Workbook

Sheet PI vs x
A1: Measurement | B1: Hall
A2: Type | B2: Off-axis
A4: Project | B4: ='10 y=-0.2'!B5 -> 504314
A5: PS serial no | B5: ='10 y=-0.2'!B7 -> 2410094
A7: Measurement date | B7: =LEFT('10 y=-0.2'!B4,10) -> 09-09-2024
C11: Nominal gap [mm] | D11: Encoder [counts] | E11: Encoder [mm] | F11: PI [T^2mm^3] | G11: y [mm] | H11: Encoder value at 10 mm gap:
B12: ='PI vs x'!$C$12 & "mm gap" -> 10mm gap | C12: ='10 y=-0.2'!B48 -> 10 | D12: ='10 y=-0.2'!$B$50 -> 19.8252 | E12: =D12-$H$12+10 -> 10.003 | F12: ='10 y=-0.2'!$K$3 -> 10352.39802 | G12: -0.2 | H12: 19.8222
C13: =C12 -> 10 | D13: ='10 y=-0.1'!$B$50 -> 19.8252 | E13: =D13-$H$12+10 -> 10.003 | F13: ='10 y=-0.1'!$K$3 -> 10349.2644 | G13: -0.1
C14: =C13 -> 10 | D14: ='10 y=0'!$B$50 -> 19.8252 | E14: 10.003 | F14: ='10 y=0'!$K$3 -> 10349.21596 | G14: 0
C15: 10 | D15: ='10 y=0.1'!$B$50 -> 19.8252 | E15: 10.003 | F15: ='10 y=0.1'!$K$3 -> 10350.49758 | G15: 0.1
C16: 10 | D16: ='10 y=0.2'!$B$50 -> 19.8252 | E16: 10.003 | F16: ='10 y=0.2'!$K$3 -> 10351.1927 | G16: 0.2
B17: ='PI vs x'!$C$17 & "mm gap" -> mm gap

Sheet 10 y=-0.2
A1: =IF('DF raw data'!A1="","",'DF raw data'!A1) -> Number of header lines | B1: =IF('DF raw data'!B1="","",'DF raw data'!B1) -> 54 | C1: =IF('DF raw data'!C1="","",'DF raw data'!C1) ->  | D1: =IF('DF raw data'!D1="","",'DF raw data'!D1) ->  | F1: T_coeff | G1: -0.001 | H1: /degC | J1: IBy total | K1: =J1262*1000 -> -4.639403993 | L1: muTm | M1: =L1262*1000 -> 15.81647445 | R1: DF ref | S1: 1
A2: =IF('DF raw data'!A2="","",'DF raw data'!A2) -> Measured by | B2: =IF('DF raw data'!B2="","",'DF raw data'!B2) -> Danfysik | C2: =IF('DF raw data'!C2="","",'DF raw data'!C2) ->  | D2: =IF('DF raw data'!D2="","",'DF raw data'!D2) ->  | F2: Tcorr | G2: 20 | H2: degC | J2: JBy total | K2: =K1262 -> -5.485474264 | L2: muTm^2 | M2: =M1262 -> 11.65053068
A3: =IF('DF raw data'!A3="","",'DF raw data'!A3) -> Operator | B3: =IF('DF raw data'!B3="","",'DF raw data'!B3) -> PMHA | C3: =IF('DF raw data'!C3="","",'DF raw data'!C3) ->  | D3: =IF('DF raw data'!D3="","",'DF raw data'!D3) ->  | F3: Step | G3: =A63-A62 -> 0.5 | H3: mm | J3: PI total | K3: =N1262 -> 10352.39802 | L3: T^2mm^3
A4: =IF('DF raw data'!A4="","",'DF raw data'!A4) -> Data-time | B4: =IF('DF raw data'!B4="","",'DF raw data'!B4) -> 09-09-2024, 14:07:16 | C4: =IF('DF raw data'!C4="","",'DF raw data'!C4) ->  | D4: =IF('DF raw data'!D4="","",'DF raw data'!D4) -> 
A5: =IF('DF raw data'!A5="","",'DF raw data'!A5) -> Project | B5: =IF('DF raw data'!B5="","",'DF raw data'!B5) -> 504314 | C5: =IF('DF raw data'!C5="","",'DF raw data'!C5) ->  | D5: =IF('DF raw data'!D5="","",'DF raw data'!D5) -> 
A6: =IF('DF raw data'!A6="","",'DF raw data'!A6) -> Magnet type | B6: =IF('DF raw data'!B6="","",'DF raw data'!B6) -> Dipole | C6: =IF('DF raw data'!C6="","",'DF raw data'!C6) ->  | D6: =IF('DF raw data'!D6="","",'DF raw data'!D6) -> 
A7: =IF('DF raw data'!A7="","",'DF raw data'!A7) -> Magnet nr. | B7: =IF('DF raw data'!B7="","",'DF raw data'!B7) -> 2410094 | C7: =IF('DF raw data'!C7="","",'DF raw data'!C7) ->  | D7: =IF('DF raw data'!D7="","",'DF raw data'!D7) -> 
A8: =IF('DF raw data'!A8="","",'DF raw data'!A8) -> Meas. number | B8: =IF('DF raw data'!B8="","",'DF raw data'!B8) -> 389 | C8: =IF('DF raw data'!C8="","",'DF raw data'!C8) ->  | D8: =IF('DF raw data'!D8="","",'DF raw data'!D8) -> 
A9: =IF('DF raw data'!A9="","",'DF raw data'!A9) -> Add. info | B9: =IF('DF raw data'!B9="","",'DF raw data'!B9) -> Y-alignment scan 1) | C9: =IF('DF raw data'!C9="","",'DF raw data'!C9) ->  | D9: =IF('DF raw data'!D9="","",'DF raw data'!D9) -> 
A10: =IF('DF raw data'!A10="","",'DF raw data'!A10) -> Device | B10: =IF('DF raw data'!B10="","",'DF raw data'!B10) -> (HAL) HALL-PROBE | C10: =IF('DF raw data'!C10="","",'DF raw data'!C10) ->  | D10: =IF('DF raw data'!D10="","",'DF raw data'!D10) -> 
A11: =IF('DF raw data'!A11="","",'DF raw data'!A11) -> Goal | B11: =IF('DF raw data'!B11="","",'DF raw data'!B11) -> (AXI) AXis Integral (Line, EFB) | C11: =IF('DF raw data'!C11="","",'DF raw data'!C11) ->  | D11: =IF('DF raw data'!D11="","",'DF raw data'!D11) -> 
A12: =IF('DF raw data'!A12="","",'DF raw data'!A12) -> Power supply mode | B12: =IF('DF raw data'!B12="","",'DF raw data'!B12) -> (PM) Permanent Magnet (no MPS in use) | C12: =IF('DF raw data'!C12="","",'DF raw data'!C12) ->  | D12: =IF('DF raw data'!D12="","",'DF raw data'!D12) -> 
A13: =IF('DF raw data'!A13="","",'DF raw data'!A13) -> Data format | B13: =IF('DF raw data'!B13="","",'DF raw data'!B13) -> Raw data text file | C13: =IF('DF raw data'!C13="","",'DF raw data'!C13) ->  | D13: =IF('DF raw data'!D13="","",'DF raw data'!D13) -> 
A14: =IF('DF raw data'!A14="","",'DF raw data'!A14) -> Direction of the pos. x-axis | B14: =IF('DF raw data'!B14="","",'DF raw data'!B14) -> See test program | C14: =IF('DF raw data'!C14="","",'DF raw data'!C14) ->  | D14: =IF('DF raw data'!D14="","",'DF raw data'!D14) -> 
A15: =IF('DF raw data'!A15="","",'DF raw data'!A15) -> Direction of the pos. y-axis | B15: =IF('DF raw data'!B15="","",'DF raw data'!B15) -> Vertical up | C15: =IF('DF raw data'!C15="","",'DF raw data'!C15) ->  | D15: =IF('DF raw data'!D15="","",'DF raw data'!D15) -> 
A16: =IF('DF raw data'!A16="","",'DF raw data'!A16) -> Direction of the pos. z-axis | B16: =IF('DF raw data'!B16="","",'DF raw data'!B16) -> See test program | C16: =IF('DF raw data'!C16="","",'DF raw data'!C16) ->  | D16: =IF('DF raw data'!D16="","",'DF raw data'!D16) -> 
A17: =IF('DF raw data'!A17="","",'DF raw data'!A17) -> Mapper type | B17: =IF('DF raw data'!B17="","",'DF raw data'!B17) -> Precision Hall Mapper | C17: =IF('DF raw data'!C17="","",'DF raw data'!C17) ->  | D17: =IF('DF raw data'!D17="","",'DF raw data'!D17) -> 
A18: =IF('DF raw data'!A18="","",'DF raw data'!A18) -> Mapper Danfysik Reg. Number | B18: =IF('DF raw data'!B18="","",'DF raw data'!B18) -> 2033-D (mapper 1) | C18: =IF('DF raw data'!C18="","",'DF raw data'!C18) ->  | D18: =IF('DF raw data'!D18="","",'DF raw data'!D18) -> 
A19: =IF('DF raw data'!A19="","",'DF raw data'!A19) -> Measurement consept | B19: =IF('DF raw data'!B19="","",'DF raw data'!B19) -> Square line grid | C19: =IF('DF raw data'!C19="","",'DF raw data'!C19) ->  | D19: =IF('DF raw data'!D19="","",'DF raw data'!D19) -> 
A20: =IF('DF raw data'!A20="","",'DF raw data'!A20) -> Mode | B20: =IF('DF raw data'!B20="","",'DF raw data'!B20) -> On-the-fly measurement | C20: =IF('DF raw data'!C20="","",'DF raw data'!C20) ->  | D20: =IF('DF raw data'!D20="","",'DF raw data'!D20) -> 
A21: =IF('DF raw data'!A21="","",'DF raw data'!A21) ->  | B21: =IF('DF raw data'!B21="","",'DF raw data'!B21) ->  | C21: =IF('DF raw data'!C21="","",'DF raw data'!C21) ->  | D21: =IF('DF raw data'!D21="","",'DF raw data'!D21) -> 
A22: =IF('DF raw data'!A22="","",'DF raw data'!A22) -> Probe Name | B22: =IF('DF raw data'!B22="","",'DF raw data'!B22) -> ID12_By | C22: =IF('DF raw data'!C22="","",'DF raw data'!C22) ->  | D22: =IF('DF raw data'!D22="","",'DF raw data'!D22) -> 
A23: =IF('DF raw data'!A23="","",'DF raw data'!A23) -> Probe Type | B23: =IF('DF raw data'!B23="","",'DF raw data'!B23) -> DF_ID_3D_Bxyz | C23: =IF('DF raw data'!C23="","",'DF raw data'!C23) ->  | D23: =IF('DF raw data'!D23="","",'DF raw data'!D23) -> 
A24: =IF('DF raw data'!A24="","",'DF raw data'!A24) -> Probe Danfysik Reg. Number | B24: =IF('DF raw data'!B24="","",'DF raw data'!B24) -> 2277 | C24: =IF('DF raw data'!C24="","",'DF raw data'!C24) ->  | D24: =IF('DF raw data'!D24="","",'DF raw data'!D24) -> 
A25: =IF('DF raw data'!A25="","",'DF raw data'!A25) -> Probe Axis | B25: =IF('DF raw data'!B25="","",'DF raw data'!B25) -> By | C25: =IF('DF raw data'!C25="","",'DF raw data'!C25) ->  | D25: =IF('DF raw data'!D25="","",'DF raw data'!D25) -> 
A26: =IF('DF raw data'!A26="","",'DF raw data'!A26) -> Probe Current Supply | B26: =IF('DF raw data'!B26="","",'DF raw data'!B26) -> 1825-D | C26: =IF('DF raw data'!C26="","",'DF raw data'!C26) ->  | D26: =IF('DF raw data'!D26="","",'DF raw data'!D26) -> 
A27: =IF('DF raw data'!A27="","",'DF raw data'!A27) -> Probe Gain Correction | B27: =IF('DF raw data'!B27="","",'DF raw data'!B27) -> 0.99606 | C27: =IF('DF raw data'!C27="","",'DF raw data'!C27) ->  | D27: =IF('DF raw data'!D27="","",'DF raw data'!D27) -> 
A28: =IF('DF raw data'!A28="","",'DF raw data'!A28) -> Probe Offset Correction | B28: =IF('DF raw data'!B28="","",'DF raw data'!B28) -> 0.002758 | C28: =IF('DF raw data'!C28="","",'DF raw data'!C28) ->  | D28: =IF('DF raw data'!D28="","",'DF raw data'!D28) -> 
A29: =IF('DF raw data'!A29="","",'DF raw data'!A29) -> DVM Number | B29: =IF('DF raw data'!B29="","",'DF raw data'!B29) -> 2 | C29: =IF('DF raw data'!C29="","",'DF raw data'!C29) ->  | D29: =IF('DF raw data'!D29="","",'DF raw data'!D29) -> 
A30: =IF('DF raw data'!A30="","",'DF raw data'!A30) -> DVM Type | B30: =IF('DF raw data'!B30="","",'DF raw data'!B30) -> K2701 | C30: =IF('DF raw data'!C30="","",'DF raw data'!C30) ->  | D30: =IF('DF raw data'!D30="","",'DF raw data'!D30) -> 
A31: =IF('DF raw data'!A31="","",'DF raw data'!A31) -> DVM Danfysik Reg. Number | B31: =IF('DF raw data'!B31="","",'DF raw data'!B31) -> 1743-D | C31: =IF('DF raw data'!C31="","",'DF raw data'!C31) ->  | D31: =IF('DF raw data'!D31="","",'DF raw data'!D31) -> 
A32: =IF('DF raw data'!A32="","",'DF raw data'!A32) -> Probe Name | B32: =IF('DF raw data'!B32="","",'DF raw data'!B32) -> ID12_Bx | C32: =IF('DF raw data'!C32="","",'DF raw data'!C32) ->  | D32: =IF('DF raw data'!D32="","",'DF raw data'!D32) -> 
A33: =IF('DF raw data'!A33="","",'DF raw data'!A33) -> Probe Type | B33: =IF('DF raw data'!B33="","",'DF raw data'!B33) -> DF_ID_3D_Bxyz | C33: =IF('DF raw data'!C33="","",'DF raw data'!C33) ->  | D33: =IF('DF raw data'!D33="","",'DF raw data'!D33) -> 
A34: =IF('DF raw data'!A34="","",'DF raw data'!A34) -> Probe Danfysik Reg. Number | B34: =IF('DF raw data'!B34="","",'DF raw data'!B34) -> 2277 | C34: =IF('DF raw data'!C34="","",'DF raw data'!C34) ->  | D34: =IF('DF raw data'!D34="","",'DF raw data'!D34) -> 
A35: =IF('DF raw data'!A35="","",'DF raw data'!A35) -> Probe Axis | B35: =IF('DF raw data'!B35="","",'DF raw data'!B35) -> Bx | C35: =IF('DF raw data'!C35="","",'DF raw data'!C35) ->  | D35: =IF('DF raw data'!D35="","",'DF raw data'!D35) -> 
A36: =IF('DF raw data'!A36="","",'DF raw data'!A36) -> Probe Current Supply | B36: =IF('DF raw data'!B36="","",'DF raw data'!B36) -> 1825-D | C36: =IF('DF raw data'!C36="","",'DF raw data'!C36) ->  | D36: =IF('DF raw data'!D36="","",'DF raw data'!D36) -> 
A37: =IF('DF raw data'!A37="","",'DF raw data'!A37) -> Probe Gain Correction | B37: =IF('DF raw data'!B37="","",'DF raw data'!B37) -> 1 | C37: =IF('DF raw data'!C37="","",'DF raw data'!C37) ->  | D37: =IF('DF raw data'!D37="","",'DF raw data'!D37) -> 
A38: =IF('DF raw data'!A38="","",'DF raw data'!A38) -> Probe Offset Correction | B38: =IF('DF raw data'!B38="","",'DF raw data'!B38) -> -0.17551 | C38: =IF('DF raw data'!C38="","",'DF raw data'!C38) ->  | D38: =IF('DF raw data'!D38="","",'DF raw data'!D38) -> 
A39: =IF('DF raw data'!A39="","",'DF raw data'!A39) -> DVM Number | B39: =IF('DF raw data'!B39="","",'DF raw data'!B39) -> 3 | C39: =IF('DF raw data'!C39="","",'DF raw data'!C39) ->  | D39: =IF('DF raw data'!D39="","",'DF raw data'!D39) -> 
A40: =IF('DF raw data'!A40="","",'DF raw data'!A40) -> DVM Type | B40: =IF('DF raw data'!B40="","",'DF raw data'!B40) -> K2701 | C40: =IF('DF raw data'!C40="","",'DF raw data'!C40) ->  | D40: =IF('DF raw data'!D40="","",'DF raw data'!D40) -> 
A41: =IF('DF raw data'!A41="","",'DF raw data'!A41) -> DVM Danfysik Reg. Number | B41: =IF('DF raw data'!B41="","",'DF raw data'!B41) -> 1744-D | C41: =IF('DF raw data'!C41="","",'DF raw data'!C41) ->  | D41: =IF('DF raw data'!D41="","",'DF raw data'!D41) -> 
A42: =IF('DF raw data'!A42="","",'DF raw data'!A42) -> Probe Name | B42: =IF('DF raw data'!B42="","",'DF raw data'!B42) -> ID12_Bz | C42: =IF('DF raw data'!C42="","",'DF raw data'!C42) ->  | D42: =IF('DF raw data'!D42="","",'DF raw data'!D42) -> 
A43: =IF('DF raw data'!A43="","",'DF raw data'!A43) -> Probe Type | B43: =IF('DF raw data'!B43="","",'DF raw data'!B43) -> DF_ID_3D_Bxyz | C43: =IF('DF raw data'!C43="","",'DF raw data'!C43) ->  | D43: =IF('DF raw data'!D43="","",'DF raw data'!D43) -> 
A44: =IF('DF raw data'!A44="","",'DF raw data'!A44) -> Probe Danfysik Reg. Number | B44: =IF('DF raw data'!B44="","",'DF raw data'!B44) -> 2277 | C44: =IF('DF raw data'!C44="","",'DF raw data'!C44) ->  | D44: =IF('DF raw data'!D44="","",'DF raw data'!D44) -> 
A45: =IF('DF raw data'!A45="","",'DF raw data'!A45) -> Probe Axis | B45: =IF('DF raw data'!B45="","",'DF raw data'!B45) -> Bz | C45: =IF('DF raw data'!C45="","",'DF raw data'!C45) ->  | D45: =IF('DF raw data'!D45="","",'DF raw data'!D45) -> 
A46: =IF('DF raw data'!A46="","",'DF raw data'!A46) -> Probe Current Supply | B46: =IF('DF raw data'!B46="","",'DF raw data'!B46) -> 1825-D | C46: =IF('DF raw data'!C46="","",'DF raw data'!C46) ->  | D46: =IF('DF raw data'!D46="","",'DF raw data'!D46) -> 
A47: =IF('DF raw data'!A47="","",'DF raw data'!A47) -> Probe Gain Correction | B47: =IF('DF raw data'!B47="","",'DF raw data'!B47) -> 1 | C47: =IF('DF raw data'!C47="","",'DF raw data'!C47) ->  | D47: =IF('DF raw data'!D47="","",'DF raw data'!D47) -> 
A48: =IF('DF raw data'!A53="","",'DF raw data'!A53) -> PS-Gap: | B48: =IF('DF raw data'!B53="","",'DF raw data'!B53) -> 10 | C48: =IF('DF raw data'!C53="","",'DF raw data'!C53) ->  | D48: =IF('DF raw data'!D53="","",'DF raw data'!D53) -> 
A49: =IF('DF raw data'!A54="","",'DF raw data'!A54) -> PS-Temperature: | B49: =IF('DF raw data'!B54="","",'DF raw data'!B54) -> 25.2 | C49: =IF('DF raw data'!C54="","",'DF raw data'!C54) ->  | D49: =IF('DF raw data'!D54="","",'DF raw data'!D54) -> 
A50: =IF('DF raw data'!A55="","",'DF raw data'!A55) -> PS-Encoder: | B50: =IF('DF raw data'!B55="","",'DF raw data'!B55) -> 19.8252 | C50: =IF('DF raw data'!C55="","",'DF raw data'!C55) ->  | D50: =IF('DF raw data'!D55="","",'DF raw data'!D55) -> 
A51: =IF('DF raw data'!A56="","",'DF raw data'!A56) ->  | B51: =IF('DF raw data'!B56="","",'DF raw data'!B56) ->  | C51: =IF('DF raw data'!C56="","",'DF raw data'!C56) ->  | D51: =IF('DF raw data'!D56="","",'DF raw data'!D56) -> 
A52: =IF('DF raw data'!A57="","",'DF raw data'!A57) -> Monitor-Index | B52: =IF('DF raw data'!B57="","",'DF raw data'!B57) -> [1,1,4] | C52: =IF('DF raw data'!C57="","",'DF raw data'!C57) ->  | D52: =IF('DF raw data'!D57="","",'DF raw data'!D57) -> 
A53: =IF('DF raw data'!A58="","",'DF raw data'!A58) ->  | B53: =IF('DF raw data'!B58="","",'DF raw data'!B58) ->  | C53: =IF('DF raw data'!C58="","",'DF raw data'!C58) ->  | D53: =IF('DF raw data'!D58="","",'DF raw data'!D58) -> 
A54: =IF('DF raw data'!A59="","",'DF raw data'!A59) -> Time [s] | B54: =IF('DF raw data'!B59="","",'DF raw data'!B59) -> Y [mm] | C54: =IF('DF raw data'!C59="","",'DF raw data'!C59) -> X [mm] | D54: =IF('DF raw data'!D59="","",'DF raw data'!D59) -> Nominal current [A]
A55: =IF('DF raw data'!A60="","",'DF raw data'!A60) ->  | B55: =IF('DF raw data'!B60="","",'DF raw data'!B60) ->  | C55: =IF('DF raw data'!C60="","",'DF raw data'!C60) ->  | D55: =IF('DF raw data'!D60="","",'DF raw data'!D60) -> 
A56: =IF('DF raw data'!A61="","",'DF raw data'!A61) -> 208.7 | B56: =IF('DF raw data'!B61="","",'DF raw data'!B61) -> 31.56 | C56: =IF('DF raw data'!C61="","",'DF raw data'!C61) -> 301.8 | D56: =IF('DF raw data'!D61="","",'DF raw data'!D61) -> 0
A57: =IF('DF raw data'!A62="","",'DF raw data'!A62) ->  | B57: =IF('DF raw data'!B62="","",'DF raw data'!B62) ->  | C57: =IF('DF raw data'!C62="","",'DF raw data'!C62) ->  | D57: =IF('DF raw data'!D62="","",'DF raw data'!D62) -> 
A58: =IF('DF raw data'!A63="","",'DF raw data'!A63) -> Measurement-Index | B58: =IF('DF raw data'!B63="","",'DF raw data'!B63) -> [1,1,1201,2] | C58: =IF('DF raw data'!C63="","",'DF raw data'!C63) ->  | D58: =IF('DF raw data'!D63="","",'DF raw data'!D63) -> 
A59: =IF('DF raw data'!A64="","",'DF raw data'!A64) ->  | B59: =IF('DF raw data'!B64="","",'DF raw data'!B64) ->  | C59: =IF('DF raw data'!C64="","",'DF raw data'!C64) ->  | D59: =IF('DF raw data'!D64="","",'DF raw data'!D64) -> 
A60: =IF('DF raw data'!A65="","",'DF raw data'!A65) -> Z [mm] | B60: =IF('DF raw data'!B65="","",'DF raw data'!B65) -> By [T] | C60: =IF('DF raw data'!C65="","",'DF raw data'!C65) -> Bx [T] | D60: =IF('DF raw data'!D65="","",'DF raw data'!D65) -> Bz [T] | F60: By_corr | G60: Bx_corr | H60: Bz_corr | J60: Iy | K60: Jy | L60: Ix | M60: Jx | N60: PI
A62: =IF('DF raw data'!A67="","",'DF raw data'!A67) -> -300 | B62: =IF('DF raw data'!B67="","",'DF raw data'!B67) -> -1.84571e-05 | C62: =IF('DF raw data'!C67="","",'DF raw data'!C67) -> 7.83023e-05 | D62: =IF('DF raw data'!D67="","",'DF raw data'!D67) -> -1.82134e-05 | F62: =(1-$G$1*($B$49))*B62 -> -1.892221892e-05 | G62: =(1-$G$1*($B$49-$G$2))*C62 -> 7.870947196e-05 | H62: =(1-$G$1*($B$49-$G$2))*D62 -> -1.830810968e-05 | J62: =F62*$G$3 -> -9.46110946e-06 | K62: =J62*$G$3 -> -4.73055473e-06 | L62: =G62*$G$3 -> 3.935473598e-05 | M62: =L62*$G$3 -> 1.967736799e-05 | N62: =(J62^2+L62^2)*$G$3 -> 8.191539181e-10
A63: =IF('DF raw data'!A68="","",'DF raw data'!A68) -> -299.5 | B63: =IF('DF raw data'!B68="","",'DF raw data'!B68) -> -1.78174e-05 | C63: =IF('DF raw data'!C68="","",'DF raw data'!C68) -> 8.51442e-05 | D63: =IF('DF raw data'!D68="","",'DF raw data'!D68) -> -1.82482e-05 | F63: =(1-$G$1*($B$49-$G$2))*B63 -> -1.791005048e-05 | G63: =(1-$G$1*($B$49-$G$2))*C63 -> 8.558694984e-05 | H63: -1.834309064e-05 | J63: =F63*$G$3+J62 -> -1.84161347e-05 | K63: =J63*$G$3+K62 -> -1.393862208e-05 | L63: =G63*$G$3+L62 -> 8.21482109e-05 | M63: =L63*$G$3+M62 -> 6.075147344e-05 | N63: =(J63^2+L63^2)*$G$3+N62 -> 4.362895204e-09
A64: =IF('DF raw data'!A69="","",'DF raw data'!A69) -> -299 | B64: =IF('DF raw data'!B69="","",'DF raw data'!B69) -> -1.93557e-05 | C64: =IF('DF raw data'!C69="","",'DF raw data'!C69) -> 8.24716e-05 | D64: =IF('DF raw data'!D69="","",'DF raw data'!D69) -> -1.79738e-05 | F64: =(1-$G$1*($B$49-$G$2))*B64 -> -1.945634964e-05 | G64: 8.290045232e-05 | H64: -1.806726376e-05 | J64: =F64*$G$3+J63 -> -2.814430952e-05 | K64: =J64*$G$3+K63 -> -2.801077684e-05 | L64: =G64*$G$3+L63 -> 0.0001235984371 | M64: =L64*$G$3+M63 -> 0.000122550692 | N64: =(J64^2+L64^2)*$G$3+N63 -> 1.23972331e-08
A65: =IF('DF raw data'!A70="","",'DF raw data'!A70) -> -298.5 | B65: =IF('DF raw data'!B70="","",'DF raw data'!B70) -> -2.24297e-05 | C65: =IF('DF raw data'!C70="","",'DF raw data'!C70) -> 8.38708e-05 | D65: =IF('DF raw data'!D70="","",'DF raw data'!D70) -> -1.74194e-05 | F65: -2.254633444e-05 | G65: 8.430692816e-05 | H65: -1.750998088e-05 | J65: -3.941747674e-05 | K65: -4.771951521e-05 | L65: 0.0001657519011 | M65: 0.0002054266425 | N65: 2.691094821e-08
A66: =IF('DF raw data'!A71="","",'DF raw data'!A71) -> -298 | B66: =IF('DF raw data'!B71="","",'DF raw data'!B71) -> -1.17298e-05 | C66: =IF('DF raw data'!C71="","",'DF raw data'!C71) -> 7.42926e-05 | D66: =IF('DF raw data'!D71="","",'DF raw data'!D71) -> -1.77649e-05 | F66: -1.179079496e-05 | G66: 7.467892152e-05 | H66: -1.785727748e-05 | J66: -4.531287422e-05 | K66: -7.037595232e-05 | L66: 0.0002030913619 | M66: 0.0003069723235 | N66: 4.856062713e-08
A67: =IF('DF raw data'!A72="","",'DF raw data'!A72) -> -297.5 | B67: =IF('DF raw data'!B72="","",'DF raw data'!B72) -> -8.13959e-06 | C67: =IF('DF raw data'!C72="","",'DF raw data'!C72) -> 6.99031e-05 | D67: =IF('DF raw data'!D72="","",'DF raw data'!D72) -> -1.9003e-05 | F67: -8.181915868e-06 | G67: 7.026659612e-05 | H67: -1.91018156e-05 | J67: -4.940383215e-05 | K67: -9.50778684e-05 | L67: 0.00023822466 | M67: 0.0004260846535 | N67: 7.815649075e-08
A68: =IF('DF raw data'!A73="","",'DF raw data'!A73) -> -297 | B68: =IF('DF raw data'!B73="","",'DF raw data'!B73) -> -2.63396e-05 | C68: =IF('DF raw data'!C73="","",'DF raw data'!C73) -> 8.08744e-05 | D68: =IF('DF raw data'!D73="","",'DF raw data'!D73) -> -1.95554e-05 | F68: -2.647656592e-05 | G68: 8.129494688e-05 | H68: -1.965708808e-05 | J68: -6.264211511e-05 | K68: -0.000126398926 | L68: 0.0002788721334 | M68: 0.0005655207202 | N68: 1.190033414e-07
A69: =IF('DF raw data'!A74="","",'DF raw data'!A74) -> -296.5 | B69: =IF('DF raw data'!B74="","",'DF raw data'!B74) -> -2.33901e-05 | C69: =IF('DF raw data'!C74="","",'DF raw data'!C74) -> 8.59526e-05 | D69: =IF('DF raw data'!D74="","",'DF raw data'!D74) -> -1.93273e-05 | F69: -2.351172852e-05 | G69: 8.639955352e-05 | H69: -1.942780196e-05 | J69: -7.439797937e-05 | K69: -0.0001635979156 | L69: 0.0003220719102 | M69: 0.0007265566752 | N69: 1.736360288e-07
A70: =IF('DF raw data'!A75="","",'DF raw data'!A75) -> -296 | B70: =IF('DF raw data'!B75="","",'DF raw data'!B75) -> -2.64679e-05 | C70: =IF('DF raw data'!C75="","",'DF raw data'!C75) -> 8.09787e-05 | D70: =IF('DF raw data'!D75="","",'DF raw data'!D75) -> -1.91037e-05 | F70: -2.660553308e-05 | G70: 8.139978924e-05 | H70: -1.920303924e-05 | J70: -8.770074591e-05 | K70: -0.0002074482886 | L70: 0.0003627718048 | M70: 0.0009079425776 | N70: 2.432834304e-07
A71: =IF('DF raw data'!A76="","",'DF raw data'!A76) -> -295.5 | B71: =IF('DF raw data'!B76="","",'DF raw data'!B76) -> -3.17848e-05 | C71: =IF('DF raw data'!C76="","",'DF raw data'!C76) -> 7.90136e-05 | D71: =IF('DF raw data'!D76="","",'DF raw data'!D76) -> -1.85817e-05 | F71: -3.195008096e-05 | G71: 7.942447072e-05 | H71: -1.867832484e-05 | J71: -0.0001036757864 | K71: -0.0002592861818 | L71: 0.0004024840401 | M71: 0.001109184598 | N71: 3.29654466e-07
A72: =IF('DF raw data'!A77="","",'DF raw data'!A77) -> -295 | B72: =IF('DF raw data'!B77="","",'DF raw data'!B77) -> -3.74911e-05 | C72: =IF('DF raw data'!C77="","",'DF raw data'!C77) -> 7.02715e-05 | D72: =IF('DF raw data'!D77="","",'DF raw data'!D77) -> -1.77046e-05 | F72: -3.768605372e-05 | G72: 7.06369118e-05 | H72: -1.779666392e-05 | J72: -0.0001225188133 | K72: -0.0003205455884 | L72: 0.000437802496 | M72: 0.001328085846 | N72: 4.329954085e-07
A73: =IF('DF raw data'!A78="","",'DF raw data'!A78) -> -294.5 | B73: =IF('DF raw data'!B78="","",'DF raw data'!B78) -> -2.12767e-05 | C73: =IF('DF raw data'!C78="","",'DF raw data'!C78) -> 7.64658e-05 | D73: =IF('DF raw data'!D78="","",'DF raw data'!D78) -> -1.75881e-05 | F73: -2.138733884e-05 | G73: 7.686342216e-05 | H73: -1.767955812e-05 | J73: -0.0001332124827 | K73: -0.0003871518298 | L73: 0.0004762342071 | M73: 0.001566202949 | N73: 5.552677013e-07
A74: =IF('DF raw data'!A79="","",'DF raw data'!A79) -> -294 | B74: =IF('DF raw data'!B79="","",'DF raw data'!B79) -> -2.91602e-05 | C74: =IF('DF raw data'!C79="","",'DF raw data'!C79) -> 9.28188e-05 | D74: =IF('DF raw data'!D79="","",'DF raw data'!D79) -> -1.79387e-05 | F74: -2.931183304e-05 | G74: 9.330145776e-05 | H74: -1.803198124e-05 | J74: -0.0001478683992 | K74: -0.0004610860294 | L74: 0.000522884936 | M74: 0.001827645417 | N74: 7.029045612e-07
A75: =IF('DF raw data'!A80="","",'DF raw data'!A80) -> -293.5 | B75: =IF('DF raw data'!B80="","",'DF raw data'!B80) -> -2.92221e-05 | C75: =IF('DF raw data'!C80="","",'DF raw data'!C80) -> 9.22462e-05 | D75: =IF('DF raw data'!D80="","",'DF raw data'!D80) -> -1.78986e-05 | F75: -2.937405492e-05 | G75: 9.272588024e-05 | H75: -1.799167272e-05 | J75: -0.0001625554267 | K75: -0.0005423637427 | L75: 0.0005692478761 | M75: 0.002112269355 | N75: 8.781382668e-07
A76: =IF('DF raw data'!A81="","",'DF raw data'!A81) -> -293 | B76: =IF('DF raw data'!B81="","",'DF raw data'!B81) -> -2.58276e-05 | C76: =IF('DF raw data'!C81="","",'DF raw data'!C81) -> 9.55637e-05 | D76: =IF('DF raw data'!D81="","",'DF raw data'!D81) -> -1.77976e-05 | F76: -2.596190352e-05 | G76: 9.606063124e-05 | H76: -1.789014752e-05 | J76: -0.0001755363784 | K76: -0.0006301319319 | L76: 0.0006172781917 | M76: 0.002420908451 | N76: 1.08406096e-06
A77: =IF('DF raw data'!A82="","",'DF raw data'!A82) -> -292.5 | B77: =IF('DF raw data'!B82="","",'DF raw data'!B82) -> -2.34549e-05 | C77: =IF('DF raw data'!C82="","",'DF raw data'!C82) -> 8.57388e-05 | D77: =IF('DF raw data'!D82="","",'DF raw data'!D82) -> -1.81957e-05 | F77: -2.357686548e-05 | G77: 8.618464176e-05 | H77: -1.829031764e-05 | J77: -0.0001873248112 | K77: -0.0007237943375 | L77: 0.0006603705126 | M77: 0.002751093708 | N77: 1.319650859e-06
A78: =IF('DF raw data'!A83="","",'DF raw data'!A83) -> -292 | B78: =IF('DF raw data'!B83="","",'DF raw data'!B83) -> -2.62118e-05 | C78: =IF('DF raw data'!C83="","",'DF raw data'!C83) -> 7.14777e-05 | D78: =IF('DF raw data'!D83="","",'DF raw data'!D83) -> -1.85288e-05 | F78: -2.634810136e-05 | G78: 7.184938404e-05 | H78: -1.862514976e-05 | J78: -0.0002004988618 | K78: -0.0008240437684 | L78: 0.0006962952046 | M78: 0.00309924131 | N78: 1.582164262e-06
A79: =IF('DF raw data'!A84="","",'DF raw data'!A84) -> -291.5 | B79: =IF('DF raw data'!B84="","",'DF raw data'!B84) -> -3.15835e-05 | C79: =IF('DF raw data'!C84="","",'DF raw data'!C84) -> 7.74268e-05 | D79: =IF('DF raw data'!D84="","",'DF raw data'!D84) -> -3.26229e-05 | F79: -3.17477342e-05 | G79: 7.782941936e-05 | H79: -3.279253908e-05 | J79: -0.0002163727289 | K79: -0.0009322301329 | L79: 0.0007352099143 | M79: 0.003466846267 | N79: 1.87583965e-06
A80: =IF('DF raw data'!A85="","",'DF raw data'!A85) -> -291 | B80: =IF('DF raw data'!B85="","",'DF raw data'!B85) -> -2.6271e-05 | C80: =IF('DF raw data'!C85="","",'DF raw data'!C85) -> 8.15871e-05 | D80: =IF('DF raw data'!D85="","",'DF raw data'!D85) -> -2.61716e-05 | F80: -2.64076092e-05 | G80: 8.201135292e-05 | H80: -2.630769232e-05 | J80: -0.0002295765335 | K80: -0.0010470184 | L80: 0.0007762155908 | M80: 0.003854954062 | N80: 2.203447664e-06
A81: =IF('DF raw data'!A86="","",'DF raw data'!A86) -> -290.5 | B81: =IF('DF raw data'!B86="","",'DF raw data'!B86) -> -2.92223e-05 | C81: =IF('DF raw data'!C86="","",'DF raw data'!C86) -> 7.88475e-05 | D81: =IF('DF raw data'!D86="","",'DF raw data'!D86) -> -1.76899e-05 | F81: -2.937425596e-05 | G81: 7.9257507e-05 | H81: -1.778188748e-05 | J81: -0.0002442636615 | K81: -0.00116915023 | L81: 0.0008158443443 | M81: 0.004262876235 | N81: 2.566081029e-06
A82: =IF('DF raw data'!A87="","",'DF raw data'!A87) -> -290 | B82: =IF('DF raw data'!B87="","",'DF raw data'!B87) -> -1.33276e-05 | C82: =IF('DF raw data'!C87="","",'DF raw data'!C87) -> 7.04146e-05 | D82: =IF('DF raw data'!D87="","",'DF raw data'!D87) -> -2.42812e-05 | F82: -1.339690352e-05 | G82: 7.078075592e-05 | H82: -2.440746224e-05 | J82: -0.0002509621133 | K82: -0.001294631287 | L82: 0.0008512347222 | M82: 0.004688493596 | N82: 2.959872297e-06
A83: =IF('DF raw data'!A88="","",'DF raw data'!A88) -> -289.5 | B83: =IF('DF raw data'!B88="","",'DF raw data'!B88) -> -1.8648e-05 | C83: =IF('DF raw data'!C88="","",'DF raw data'!C88) -> 7.02898e-05 | D83: =IF('DF raw data'!D88="","",'DF raw data'!D88) -> -1.98823e-05 | F83: -1.87449696e-05 | G83: 7.065530696e-05 | H83: -1.998568796e-05 | J83: -0.0002603345981 | K83: -0.001424798586 | L83: 0.0008865623757 | M83: 0.005131774784 | N83: 3.386755771e-06
A84: =IF('DF raw data'!A89="","",'DF raw data'!A89) -> -289 | B84: =IF('DF raw data'!B89="","",'DF raw data'!B89) -> -2.095e-05 | C84: =IF('DF raw data'!C89="","",'DF raw data'!C89) -> 7.35927e-05 | D84: =IF('DF raw data'!D89="","",'DF raw data'!D89) -> -2.92109e-05 | F84: -2.105894e-05 | G84: 7.397538204e-05 | H84: -2.936279668e-05 | J84: -0.0002708640681 | K84: -0.00156023062 | L84: 0.0009235500667 | M84: 0.005593549817 | N84: 3.849911806e-06
A85: =IF('DF raw data'!A90="","",'DF raw data'!A90) -> -288.5 | B85: =IF('DF raw data'!B90="","",'DF raw data'!B90) -> -2.30006e-05 | C85: =IF('DF raw data'!C90="","",'DF raw data'!C90) -> 7.21272e-05 | D85: =IF('DF raw data'!D90="","",'DF raw data'!D90) -> -2.73184e-05 | F85: -2.312020312e-05 | G85: 7.250226144e-05 | H85: -2.746045568e-05 | J85: -0.0002824241696 | K85: -0.001701442705 | L85: 0.0009598011975 | M85: 0.006073450416 | N85: 4.350402681e-06
A86: =IF('DF raw data'!A91="","",'DF raw data'!A91) -> -288 | B86: =IF('DF raw data'!B91="","",'DF raw data'!B91) -> -1.85187e-05 | C86: =IF('DF raw data'!C91="","",'DF raw data'!C91) -> 7.84109e-05 | D86: =IF('DF raw data'!D91="","",'DF raw data'!D91) -> -2.33092e-05 | F86: -1.861499724e-05 | G86: 7.881863668e-05 | H86: -2.343040784e-05 | J86: -0.0002917316683 | K86: -0.001847308539 | L86: 0.0009992105158 | M86: 0.006573055674 | N86: 4.892167191e-06
A87: =IF('DF raw data'!A92="","",'DF raw data'!A92) -> -287.5 | B87: =IF('DF raw data'!B92="","",'DF raw data'!B92) -> -2.41482e-05 | C87: =IF('DF raw data'!C92="","",'DF raw data'!C92) -> 8.21932e-05 | D87: =IF('DF raw data'!D92="","",'DF raw data'!D92) -> -3.64786e-05 | F87: -2.427377064e-05 | G87: 8.262060464e-05 | H87: -3.666828872e-05 | J87: -0.0003038685536 | K87: -0.001999242816 | L87: 0.001040520818 | M87: 0.007093316083 | N87: 5.479677027e-06
A88: =IF('DF raw data'!A93="","",'DF raw data'!A93) -> -287 | B88: =IF('DF raw data'!B93="","",'DF raw data'!B93) -> -2.19837e-05 | C88: =IF('DF raw data'!C93="","",'DF raw data'!C93) -> 8.78753e-05 | D88: =IF('DF raw data'!D93="","",'DF raw data'!D93) -> -1.63315e-05 | F88: -2.209801524e-05 | G88: 8.833225156e-05 | H88: -1.64164238e-05 | J88: -0.0003149175612 | K88: -0.002156701596 | L88: 0.001084686944 | M88: 0.007635659555 | N88: 6.117536445e-06
A89: =IF('DF raw data'!A94="","",'DF raw data'!A94) -> -286.5 | B89: =IF('DF raw data'!B94="","",'DF raw data'!B94) -> -2.05078e-05 | C89: =IF('DF raw data'!C94="","",'DF raw data'!C94) -> 8.33798e-05 | D89: =IF('DF raw data'!D94="","",'DF raw data'!D94) -> -1.77256e-05 | F89: -2.061444056e-05 | G89: 8.381337496e-05 | H89: -1.781777312e-05 | J89: -0.0003252247815 | K89: -0.002319313987 | L89: 0.001126593631 | M89: 0.00819895637 | N89: 6.80502863e-06
A90: =IF('DF raw data'!A95="","",'DF raw data'!A95) -> -286 | B90: =IF('DF raw data'!B95="","",'DF raw data'!B95) -> -3.26158e-05 | C90: =IF('DF raw data'!C95="","",'DF raw data'!C95) -> 8.35563e-05 | D90: =IF('DF raw data'!D95="","",'DF raw data'!D95) -> -2.44845e-05 | F90: -3.278540216e-05 | G90: 8.399079276e-05 | H90: -2.46118194e-05 | J90: -0.0003416174826 | K90: -0.002490122728 | L90: 0.001168589028 | M90: 0.008783250884 | N90: 7.54618004e-06
A91: =IF('DF raw data'!A96="","",'DF raw data'!A96) -> -285.5 | B91: =IF('DF raw data'!B96="","",'DF raw data'!B96) -> -2.8642e-05 | C91: =IF('DF raw data'!C96="","",'DF raw data'!C96) -> 8.48565e-05 | D91: =IF('DF raw data'!D96="","",'DF raw data'!D96) -> -2.37962e-05 | F91: -2.87909384e-05 | G91: 8.52977538e-05 | H91: -2.391994024e-05 | J91: -0.0003560129518 | K91: -0.002668129204 | L91: 0.001211237905 | M91: 0.009388869836 | N91: 8.343101281e-06
A92: =IF('DF raw data'!A97="","",'DF raw data'!A97) -> -285 | B92: =IF('DF raw data'!B97="","",'DF raw data'!B97) -> -3.03789e-05 | C92: =IF('DF raw data'!C97="","",'DF raw data'!C97) -> 8.66768e-05 | D92: =IF('DF raw data'!D97="","",'DF raw data'!D97) -> -1.53129e-05 | F92: -3.053687028e-05 | G92: 8.712751936e-05 | H92: -1.539252708e-05 | J92: -0.0003712813869 | K92: -0.002853769898 | L92: 0.001254801664 | M92: 0.01001627067 | N92: 9.199289824e-06
A93: =IF('DF raw data'!A98="","",'DF raw data'!A98) -> -284.5 | B93: =IF('DF raw data'!B98="","",'DF raw data'!B98) -> -2.98061e-05 | C93: =IF('DF raw data'!C98="","",'DF raw data'!C98) -> 9.5015e-05 | D93: =IF('DF raw data'!D98="","",'DF raw data'!D98) -> -7.24593e-06 | F93: -2.996109172e-05 | G93: 9.5509078e-05 | H93: -7.283608836e-06 | J93: -0.0003862619328 | K93: -0.003046900864 | L93: 0.001302556203 | M93: 0.01066754877 | N93: 1.01222153e-05
A94: =IF('DF raw data'!A99="","",'DF raw data'!A99) -> -284 | B94: =IF('DF raw data'!B99="","",'DF raw data'!B99) -> -1.34637e-05 | C94: =IF('DF raw data'!C99="","",'DF raw data'!C99) -> 0.000100783 | D94: =IF('DF raw data'!D99="","",'DF raw data'!D99) -> -1.1779e-05 | F94: -1.353371124e-05 | G94: 0.0001013070716 | H94: -1.18402508e-05 | J94: -0.0003930287884 | K94: -0.003243415258 | L94: 0.001353209739 | M94: 0.01134415364 | N94: 1.111503941e-05
A95: =IF('DF raw data'!A100="","",'DF raw data'!A100) -> -283.5 | B95: =IF('DF raw data'!B100="","",'DF raw data'!B100) -> -1.8519e-05 | C95: =IF('DF raw data'!C100="","",'DF raw data'!C100) -> 9.74946e-05 | D95: =IF('DF raw data'!D100="","",'DF raw data'!D100) -> -2.14664e-05 | F95: -1.86152988e-05 | G95: 9.800157192e-05 | H95: -2.157802528e-05 | J95: -0.0004023364378 | K95: -0.003444583477 | L95: 0.001402210525 | M95: 0.0120452589 | N95: 1.217907389e-05
A96: =IF('DF raw data'!A101="","",'DF raw data'!A101) -> -283 | B96: =IF('DF raw data'!B101="","",'DF raw data'!B101) -> -1.91575e-05 | C96: =IF('DF raw data'!C101="","",'DF raw data'!C101) -> 9.39491e-05 | D96: =IF('DF raw data'!D101="","",'DF raw data'!D101) -> -2.62861e-05 | F96: -1.9257119e-05 | G96: 9.443763532e-05 | H96: -2.642278772e-05 | J96: -0.0004119649973 | K96: -0.003650565976 | L96: 0.001449429343 | M96: 0.01276997357 | N96: 1.331435418e-05
A97: =IF('DF raw data'!A102="","",'DF raw data'!A102) -> -282.5 | B97: =IF('DF raw data'!B102="","",'DF raw data'!B102) -> -2.49881e-05 | C97: =IF('DF raw data'!C102="","",'DF raw data'!C102) -> 9.17887e-05 | D97: =IF('DF raw data'!D102="","",'DF raw data'!D102) -> -2.61779e-05 | F97: -2.511803812e-05 | G97: 9.226600124e-05 | H97: -2.631402508e-05 | J97: -0.0004245240163 | K97: -0.003862827984 | L97: 0.001495562343 | M97: 0.01351775475 | N97: 1.452281786e-05
A98: =IF('DF raw data'!A103="","",'DF raw data'!A103) -> -282 | B98: =IF('DF raw data'!B103="","",'DF raw data'!B103) -> -7.55659e-06 | C98: =IF('DF raw data'!C103="","",'DF raw data'!C103) -> 9.06444e-05 | D98: =IF('DF raw data'!D103="","",'DF raw data'!D103) -> -2.96705e-05 | F98: -7.595884268e-06 | G98: 9.111575088e-05 | H98: -2.98247866e-05 | J98: -0.0004283219585 | K98: -0.004076988963 | L98: 0.001541120219 | M98: 0.01428831485 | N98: 1.580207348e-05
A99: =IF('DF raw data'!A104="","",'DF raw data'!A104) -> -281.5 | B99: =IF('DF raw data'!B104="","",'DF raw data'!B104) -> -1.68433e-05 | C99: =IF('DF raw data'!C104="","",'DF raw data'!C104) -> 8.52729e-05 | D99: =IF('DF raw data'!D104="","",'DF raw data'!D104) -> -3.62911e-05 | F99: -1.693088516e-05 | G99: 8.571631908e-05 | H99: -3.647981372e-05 | J99: -0.000436787401 | K99: -0.004295382664 | L99: 0.001583978378 | M99: 0.01508030404 | N99: 1.715195885e-05
A100: =IF('DF raw data'!A105="","",'DF raw data'!A105) -> -281 | B100: =IF('DF raw data'!B105="","",'DF raw data'!B105) -> -1.95453e-05 | C100: =IF('DF raw data'!C105="","",'DF raw data'!C105) -> 9.82612e-05 | D100: =IF('DF raw data'!D105="","",'DF raw data'!D105) -> -2.10055e-05 | F100: -1.964693556e-05 | G100: 9.877215824e-05 | H100: -2.11147286e-05 | J100: -0.0004466108688 | K100: -0.004518688098 | L100: 0.001633364457 | M100: 0.01589698627 | N100: 1.858562921e-05
A101: =IF('DF raw data'!A106="","",'DF raw data'!A106) -> -280.5 | B101: =IF('DF raw data'!B106="","",'DF raw data'!B106) -> -2.60144e-05 | C101: =IF('DF raw data'!C106="","",'DF raw data'!C106) -> 9.15219e-05 | D101: =IF('DF raw data'!D106="","",'DF raw data'!D106) -> -2.42293e-05 | F101: -2.614967488e-05 | G101: 9.199781388e-05 | H101: -2.435529236e-05 | J101: -0.0004596857063 | K101: -0.004748530951 | L101: 0.001679363364 | M101: 0.01673666795 | N101: 2.010141533e-05
A102: =IF('DF raw data'!A107="","",'DF raw data'!A107) -> -280 | B102: =IF('DF raw data'!B107="","",'DF raw data'!B107) -> -1.74312e-05 | C102: =IF('DF raw data'!C107="","",'DF raw data'!C107) -> 9.21254e-05 | D102: =IF('DF raw data'!D107="","",'DF raw data'!D107) -> -2.01943e-05 | F102: -1.752184224e-05 | G102: 9.260445208e-05 | H102: -2.029931036e-05 | J102: -0.0004684466274 | K102: -0.004982754265 | L102: 0.00172566559 | M102: 0.01759950075 | N102: 2.170009732e-05
A103: =IF('DF raw data'!A108="","",'DF raw data'!A108) -> -279.5 | B103: =IF('DF raw data'!B108="","",'DF raw data'!B108) -> -3.1013e-05 | C103: =IF('DF raw data'!C108="","",'DF raw data'!C108) -> 0.000101306 | D103: =IF('DF raw data'!D108="","",'DF raw data'!D108) -> -2.31057e-05 | F103: -3.11742676e-05 | G103: 0.0001018327912 | H103: -2.322584964e-05 | J103: -0.0004840337612 | K103: -0.005224771146 | L103: 0.001776581986 | M103: 0.01848779174 | N103: 2.339536344e-05
A104: =IF('DF raw data'!A109="","",'DF raw data'!A109) -> -279 | B104: =IF('DF raw data'!B109="","",'DF raw data'!B109) -> -3.08926e-05 | C104: =IF('DF raw data'!C109="","",'DF raw data'!C109) -> 0.000102247 | D104: =IF('DF raw data'!D109="","",'DF raw data'!D109) -> -1.36199e-05 | F104: -3.105324152e-05 | G104: 0.0001027786844 | H104: -1.369072348e-05 | J104: -0.0004995603819 | K104: -0.005474551337 | L104: 0.001827971328 | M104: 0.01940177741 | N104: 2.519088331e-05
A105: =IF('DF raw data'!A110="","",'DF raw data'!A110) -> -278.5 | B105: =IF('DF raw data'!B110="","",'DF raw data'!B110) -> -2.81306e-05 | C105: =IF('DF raw data'!C110="","",'DF raw data'!C110) -> 9.95864e-05 | D105: =IF('DF raw data'!D110="","",'DF raw data'!D110) -> -2.16558e-05 | F105: -2.827687912e-05 | G105: 0.0001001042493 | H105: -2.176841016e-05 | J105: -0.0005136988215 | K105: -0.005731400747 | L105: 0.001878023453 | M105: 0.02034078913 | N105: 2.70863126e-05
A106: =IF('DF raw data'!A111="","",'DF raw data'!A111) -> -278 | B106: =IF('DF raw data'!B111="","",'DF raw data'!B111) -> -2.45449e-05 | C106: =IF('DF raw data'!C111="","",'DF raw data'!C111) -> 9.86064e-05 | D106: =IF('DF raw data'!D111="","",'DF raw data'!D111) -> -1.95231e-05 | F106: -2.467253348e-05 | G106: 9.911915328e-05 | H106: -1.962462012e-05 | J106: -0.0005260350882 | K106: -0.005994418291 | L106: 0.00192758303 | M106: 0.02130458065 | N106: 2.908245722e-05
A107: =IF('DF raw data'!A112="","",'DF raw data'!A112) -> -277.5 | B107: =IF('DF raw data'!B112="","",'DF raw data'!B112) -> -2.1589e-05 | C107: =IF('DF raw data'!C112="","",'DF raw data'!C112) -> 8.97586e-05 | D107: =IF('DF raw data'!D112="","",'DF raw data'!D112) -> -3.0324e-05 | F107: -2.17012628e-05 | G107: 9.022534472e-05 | H107: -3.04816848e-05 | J107: -0.0005368857196 | K107: -0.006262861151 | L107: 0.001972695702 | M107: 0.0222909285 | N107: 3.117234453e-05
A108: =IF('DF raw data'!A113="","",'DF raw data'!A113) -> -277 | B108: =IF('DF raw data'!B113="","",'DF raw data'!B113) -> -3.82571e-05 | C108: =IF('DF raw data'!C113="","",'DF raw data'!C113) -> 8.50904e-05 | D108: =IF('DF raw data'!D113="","",'DF raw data'!D113) -> -2.16222e-05 | F108: -3.845603692e-05 | G108: 8.553287008e-05 | H108: -2.173463544e-05 | J108: -0.0005561137381 | K108: -0.00654091802 | L108: 0.002015462137 | M108: 0.02329865957 | N108: 3.335801959e-05
A109: =IF('DF raw data'!A114="","",'DF raw data'!A114) -> -276.5 | B109: =IF('DF raw data'!B114="","",'DF raw data'!B114) -> -2.90281e-05 | C109: =IF('DF raw data'!C114="","",'DF raw data'!C114) -> 8.31317e-05 | D109: =IF('DF raw data'!D114="","",'DF raw data'!D114) -> -2.08122e-05 | F109: -2.917904612e-05 | G109: 8.356398484e-05 | H109: -2.092042344e-05 | J109: -0.0005707032612 | K109: -0.006826269651 | L109: 0.002057244129 | M109: 0.02432728163 | N109: 3.56369974e-05
A110: =IF('DF raw data'!A115="","",'DF raw data'!A115) -> -276 | B110: =IF('DF raw data'!B115="","",'DF raw data'!B115) -> -3.21716e-05 | C110: =IF('DF raw data'!C115="","",'DF raw data'!C115) -> 9.07229e-05 | D110: =IF('DF raw data'!D115="","",'DF raw data'!D115) -> -1.82485e-05 | F110: -3.233889232e-05 | G110: 9.119465908e-05 | H110: -1.83433922e-05 | J110: -0.0005868727073 | K110: -0.007119706005 | L110: 0.002102841459 | M110: 0.02537870236 | N110: 3.802017828e-05
A111: =IF('DF raw data'!A116="","",'DF raw data'!A116) -> -275.5 | B111: =IF('DF raw data'!B116="","",'DF raw data'!B116) -> -2.18532e-05 | C111: =IF('DF raw data'!C116="","",'DF raw data'!C116) -> 8.90193e-05 | D111: =IF('DF raw data'!D116="","",'DF raw data'!D116) -> -1.80229e-05 | F111: -2.196683664e-05 | G111: 8.948220036e-05 | H111: -1.811661908e-05 | J111: -0.0005978561256 | K111: -0.007418634067 | L111: 0.002147582559 | M111: 0.02645249364 | N111: 4.050494968e-05
A112: =IF('DF raw data'!A117="","",'DF raw data'!A117) -> -275 | B112: =IF('DF raw data'!B117="","",'DF raw data'!B117) -> -2.51221e-05 | C112: =IF('DF raw data'!C117="","",'DF raw data'!C117) -> 9.13512e-05 | D112: =IF('DF raw data'!D117="","",'DF raw data'!D117) -> -1.91047e-05 | F112: -2.525273492e-05 | G112: 9.182622624e-05 | H112: -1.920404444e-05 | J112: -0.0006104824931 | K112: -0.007723875314 | L112: 0.002193495672 | M112: 0.02754924148 | N112: 4.309700575e-05
A113: =IF('DF raw data'!A118="","",'DF raw data'!A118) -> -274.5 | B113: =IF('DF raw data'!B118="","",'DF raw data'!B118) -> -1.40938e-05 | C113: =IF('DF raw data'!C118="","",'DF raw data'!C118) -> 9.48987e-05 | D113: =IF('DF raw data'!D118="","",'DF raw data'!D118) -> -2.70452e-05 | F113: -1.416708776e-05 | G113: 9.539217324e-05 | H113: -2.718583504e-05 | J113: -0.000617566037 | K113: -0.008032658332 | L113: 0.002241191759 | M113: 0.02866983736 | N113: 4.579916991e-05
A114: =IF('DF raw data'!A119="","",'DF raw data'!A119) -> -274 | B114: =IF('DF raw data'!B119="","",'DF raw data'!B119) -> -1.90369e-05 | C114: =IF('DF raw data'!C119="","",'DF raw data'!C119) -> 8.55967e-05 | D114: =IF('DF raw data'!D119="","",'DF raw data'!D119) -> -1.47053e-05 | F114: -1.913589188e-05 | G114: 8.604180284e-05 | H114: -1.478176756e-05 | J114: -0.0006271339829 | K114: -0.008346225324 | L114: 0.00228421266 | M114: 0.02981194369 | N114: 4.860463216e-05
A115: =IF('DF raw data'!A120="","",'DF raw data'!A120) -> -273.5 | B115: =IF('DF raw data'!B120="","",'DF raw data'!B120) -> -1.55045e-05 | C115: =IF('DF raw data'!C120="","",'DF raw data'!C120) -> 9.19958e-05 | D115: =IF('DF raw data'!D120="","",'DF raw data'!D120) -> -2.55729e-05 | F115: -1.55851234e-05 | G115: 9.247417816e-05 | H115: -2.570587908e-05 | J115: -0.0006349265446 | K115: -0.008663688596 | L115: 0.002330449749 | M115: 0.03097716856 | N115: 5.152169604e-05
A116: =IF('DF raw data'!A121="","",'DF raw data'!A121) -> -273 | B116: =IF('DF raw data'!B121="","",'DF raw data'!B121) -> -3.08268e-05 | C116: =IF('DF raw data'!C121="","",'DF raw data'!C121) -> 9.39316e-05 | D116: =IF('DF raw data'!D121="","",'DF raw data'!D121) -> -1.65688e-05 | F116: -3.098709936e-05 | G116: 9.442004432e-05 | H116: -1.665495776e-05 | J116: -0.0006504200943 | K116: -0.008988898643 | L116: 0.002377659771 | M116: 0.03216599845 | N116: 5.455985218e-05
A117: =IF('DF raw data'!A122="","",'DF raw data'!A122) -> -272.5 | B117: =IF('DF raw data'!B122="","",'DF raw data'!B122) -> -2.98526e-05 | C117: =IF('DF raw data'!C122="","",'DF raw data'!C122) -> 9.81909e-05 | D117: =IF('DF raw data'!D122="","",'DF raw data'!D122) -> -3.37903e-05 | F117: -3.000783352e-05 | G117: 9.870149268e-05 | H117: -3.396600956e-05 | J117: -0.0006654240111 | K117: -0.009321610649 | L117: 0.002427010518 | M117: 0.03337950371 | N117: 5.772643676e-05
A118: =IF('DF raw data'!A123="","",'DF raw data'!A123) -> -272 | B118: =IF('DF raw data'!B123="","",'DF raw data'!B123) -> -2.81967e-05 | C118: =IF('DF raw data'!C123="","",'DF raw data'!C123) -> 9.08479e-05 | D118: =IF('DF raw data'!D123="","",'DF raw data'!D123) -> -2.0707e-05 | F118: -2.834332284e-05 | G118: 9.132030908e-05 | H118: -2.08146764e-05 | J118: -0.0006795956725 | K118: -0.009661408485 | L118: 0.002472670672 | M118: 0.03461583904 | N118: 6.101441203e-05
A119: =IF('DF raw data'!A124="","",'DF raw data'!A124) -> -271.5 | B119: =IF('DF raw data'!B124="","",'DF raw data'!B124) -> -1.83276e-05 | C119: =IF('DF raw data'!C124="","",'DF raw data'!C124) -> 0.000101756 | D119: =IF('DF raw data'!D124="","",'DF raw data'!D124) -> -1.9846e-05 | F119: -1.842290352e-05 | G119: 0.0001022851312 | H119: -1.99491992e-05 | J119: -0.0006888071242 | K119: -0.01000581205 | L119: 0.002523813238 | M119: 0.03587774566 | N119: 6.443645629e-05
A120: =IF('DF raw data'!A125="","",'DF raw data'!A125) -> -271 | B120: =IF('DF raw data'!B125="","",'DF raw data'!B125) -> -2.33915e-05 | C120: =IF('DF raw data'!C125="","",'DF raw data'!C125) -> 0.000104853 | D120: =IF('DF raw data'!D125="","",'DF raw data'!D125) -> -1.92228e-05 | F120: -2.35131358e-05 | G120: 0.0001053982356 | H120: -1.932275856e-05 | J120: -0.0007005636921 | K120: -0.01035609389 | L120: 0.002576512356 | M120: 0.03716600184 | N120: 6.800105899e-05
A121: =IF('DF raw data'!A126="","",'DF raw data'!A126) -> -270.5 | B121: =IF('DF raw data'!B126="","",'DF raw data'!B126) -> -2.22365e-05 | C121: =IF('DF raw data'!C126="","",'DF raw data'!C126) -> 8.29429e-05 | D121: =IF('DF raw data'!D126="","",'DF raw data'!D126) -> -2.00046e-05 | F121: -2.23521298e-05 | G121: 8.337420308e-05 | H121: -2.010862392e-05 | J121: -0.000711739757 | K121: -0.01071196377 | L121: 0.002618199457 | M121: 0.03847510157 | N121: 7.168182993e-05
A122: =IF('DF raw data'!A127="","",'DF raw data'!A127) -> -270 | B122: =IF('DF raw data'!B127="","",'DF raw data'!B127) -> -2.56299e-05 | C122: =IF('DF raw data'!C127="","",'DF raw data'!C127) -> 9.04311e-05 | D122: =IF('DF raw data'!D127="","",'DF raw data'!D127) -> -2.61096e-05 | F122: -2.576317548e-05 | G122: 9.090134172e-05 | H122: -2.624536992e-05 | J122: -0.0007246213448 | K122: -0.01107427444 | L122: 0.002663650128 | M122: 0.03980692663 | N122: 7.549188398e-05
A123: =IF('DF raw data'!A128="","",'DF raw data'!A128) -> -269.5 | B123: =IF('DF raw data'!B128="","",'DF raw data'!B128) -> -2.35179e-05 | C123: =IF('DF raw data'!C128="","",'DF raw data'!C128) -> 9.5927e-05 | D123: =IF('DF raw data'!D128="","",'DF raw data'!D128) -> -2.02477e-05 | F123: -2.364019308e-05 | G123: 9.64258204e-05 | H123: -2.035298804e-05 | J123: -0.0007364414413 | K123: -0.01144249516 | L123: 0.002711863038 | M123: 0.04116285815 | N123: 7.944015755e-05
A124: =IF('DF raw data'!A129="","",'DF raw data'!A129) -> -269 | B124: =IF('DF raw data'!B129="","",'DF raw data'!B129) -> -2.68522e-05 | C124: =IF('DF raw data'!C129="","",'DF raw data'!C129) -> 9.67204e-05 | D124: =IF('DF raw data'!D129="","",'DF raw data'!D129) -> -1.85078e-05 | F124: -2.699183144e-05 | G124: 9.722334608e-05 | H124: -1.860404056e-05 | J124: -0.000749937357 | K124: -0.01181746384 | L124: 0.002760474711 | M124: 0.04254309551 | N124: 8.353147088e-05
A125: =IF('DF raw data'!A130="","",'DF raw data'!A130) -> -268.5 | B125: =IF('DF raw data'!B130="","",'DF raw data'!B130) -> -2.29482e-05 | C125: =IF('DF raw data'!C130="","",'DF raw data'!C130) -> 9.87641e-05 | D125: =IF('DF raw data'!D130="","",'DF raw data'!D130) -> -9.2343e-06 | F125: -2.306753064e-05 | G125: 9.927767332e-05 | H125: -9.28231836e-06 | J125: -0.0007614711224 | K125: -0.0121981994 | L125: 0.002810113548 | M125: 0.04394815228 | N125: 8.776975909e-05
A126: =IF('DF raw data'!A131="","",'DF raw data'!A131) -> -268 | B126: =IF('DF raw data'!B131="","",'DF raw data'!B131) -> -2.40304e-05 | C126: =IF('DF raw data'!C131="","",'DF raw data'!C131) -> 9.45693e-05 | D126: =IF('DF raw data'!D131="","",'DF raw data'!D131) -> -2.20413e-05 | F126: -2.415535808e-05 | G126: 9.506106036e-05 | H126: -2.215591476e-05 | J126: -0.0007735488014 | K126: -0.01258497381 | L126: 0.002857644078 | M126: 0.04537697432 | N126: 9.215201281e-05
A127: =IF('DF raw data'!A132="","",'DF raw data'!A132) -> -267.5 | B127: =IF('DF raw data'!B132="","",'DF raw data'!B132) -> -2.10838e-05 | C127: =IF('DF raw data'!C132="","",'DF raw data'!C132) -> 8.53215e-05 | D127: =IF('DF raw data'!D132="","",'DF raw data'!D132) -> -1.85942e-05 | F127: -2.119343576e-05 | G127: 8.57651718e-05 | H127: -1.869088984e-05 | J127: -0.0007841455193 | K127: -0.01297704656 | L127: 0.002900526664 | M127: 0.04682723765 | N127: 9.666598237e-05
A128: =IF('DF raw data'!A133="","",'DF raw data'!A133) -> -267 | B128: =IF('DF raw data'!B133="","",'DF raw data'!B133) -> -2.93498e-05 | C128: =IF('DF raw data'!C133="","",'DF raw data'!C133) -> 8.04984e-05 | D128: =IF('DF raw data'!D133="","",'DF raw data'!D133) -> -2.10288e-05 | F128: =(1-$G$1*($B$49-$G$2))*B128 -> -2.950241896e-05 | G128: 8.091699168e-05 | H128: -2.113814976e-05 | J128: =F128*$G$3+J127 -> -0.0007988967288 | K128: =J128*$G$3+K127 -> -0.01337649493 | L128: =G128*$G$3+L127 -> 0.00294098516 | M128: =L128*$G$3+M127 -> 0.04829773023 | N128: =(J128^2+L128^2)*$G$3+N127 -> 0.0001013097972
A129: =IF('DF raw data'!A134="","",'DF raw data'!A134) -> -266.5 | B129: =IF('DF raw data'!B134="","",'DF raw data'!B134) -> -2.57673e-05 | C129: =IF('DF raw data'!C134="","",'DF raw data'!C134) -> 8.81762e-05 | D129: =IF('DF raw data'!D134="","",'DF raw data'!D134) -> -1.00386e-05 | F129: -2.590128996e-05 | G129: 8.863471624e-05 | H129: -1.009080072e-05 | J129: -0.0008118473737 | K129: -0.01378241862 | L129: 0.002985302518 | M129: 0.04979038149 | N129: 0.0001060953609
A130: =IF('DF raw data'!A135="","",'DF raw data'!A135) -> -266 | B130: =IF('DF raw data'!B135="","",'DF raw data'!B135) -> -2.90247e-05 | C130: =IF('DF raw data'!C135="","",'DF raw data'!C135) -> 9.11196e-05 | D130: =IF('DF raw data'!D135="","",'DF raw data'!D135) -> -2.86201e-05 | F130: -2.917562844e-05 | G130: 9.159342192e-05 | H130: -2.876892452e-05 | J130: -0.000826435188 | K130: -0.01419563621 | L130: 0.003031099229 | M130: 0.05130593111 | N130: 0.0001110306397
A131: =IF('DF raw data'!A136="","",'DF raw data'!A136) -> -265.5 | B131: =IF('DF raw data'!B136="","",'DF raw data'!B136) -> -1.75535e-05 | C131: =IF('DF raw data'!C136="","",'DF raw data'!C136) -> 8.50858e-05 | D131: =IF('DF raw data'!D136="","",'DF raw data'!D136) -> -2.77179e-05 | F131: -1.76447782e-05 | G131: 8.552824616e-05 | H131: -2.786203308e-05 | J131: -0.0008352575771 | K131: -0.014613265 | L131: 0.003073863352 | M131: 0.05284286278 | N131: 0.0001161037853
A132: =IF('DF raw data'!A137="","",'DF raw data'!A137) -> -265 | B132: =IF('DF raw data'!B137="","",'DF raw data'!B137) -> -1.60812e-05 | C132: =IF('DF raw data'!C137="","",'DF raw data'!C137) -> 8.26506e-05 | D132: =IF('DF raw data'!D137="","",'DF raw data'!D137) -> -2.69134e-05 | F132: -1.616482224e-05 | G132: 8.308038312e-05 | H132: -2.705334968e-05 | J132: -0.0008433399882 | K132: -0.01503493499 | L132: 0.003115403544 | M132: 0.05440056455 | N132: 0.000121312266
A133: =IF('DF raw data'!A138="","",'DF raw data'!A138) -> -264.5 | B133: =IF('DF raw data'!B138="","",'DF raw data'!B138) -> -1.9864e-05 | C133: =IF('DF raw data'!C138="","",'DF raw data'!C138) -> 9.02164e-05 | D133: =IF('DF raw data'!D138="","",'DF raw data'!D138) -> -2.23598e-05 | F133: -1.99672928e-05 | G133: 9.068552528e-05 | H133: -2.247607096e-05 | J133: -0.0008533236346 | K133: -0.01546159681 | L133: 0.003160746306 | M133: 0.05598093771 | N133: 0.0001266715053
A134: =IF('DF raw data'!A139="","",'DF raw data'!A139) -> -264 | B134: =IF('DF raw data'!B139="","",'DF raw data'!B139) -> -1.95397e-05 | C134: =IF('DF raw data'!C139="","",'DF raw data'!C139) -> 0.00010211 | D134: =IF('DF raw data'!D139="","",'DF raw data'!D139) -> -2.97206e-05 | F134: -1.964130644e-05 | G134: 0.000102640972 | H134: -2.987514712e-05 | J134: -0.0008631442878 | K134: -0.01589316895 | L134: 0.003212066792 | M134: 0.0575869711 | N134: 0.0001322027008
A135: =IF('DF raw data'!A140="","",'DF raw data'!A140) -> -263.5 | B135: =IF('DF raw data'!B140="","",'DF raw data'!B140) -> -2.24966e-05 | C135: =IF('DF raw data'!C140="","",'DF raw data'!C140) -> 9.64195e-05 | D135: =IF('DF raw data'!D140="","",'DF raw data'!D140) -> -1.39538e-05 | F135: -2.261358232e-05 | G135: 9.69208814e-05 | H135: -1.402635976e-05 | J135: -0.000874451079 | K135: -0.01633039449 | L135: 0.003260527233 | M135: 0.05921723472 | N135: 0.0001379005521
A136: =IF('DF raw data'!A141="","",'DF raw data'!A141) -> -263 | B136: =IF('DF raw data'!B141="","",'DF raw data'!B141) -> -1.35879e-05 | C136: =IF('DF raw data'!C141="","",'DF raw data'!C141) -> 8.91994e-05 | D136: =IF('DF raw data'!D141="","",'DF raw data'!D141) -> -1.7953e-05 | F136: -1.365855708e-05 | G136: 8.966323688e-05 | H136: -1.80463556e-05 | J136: -0.0008812803575 | K136: -0.01677103467 | L136: 0.003305358851 | M136: 0.06086991415 | N136: 0.0001437515782
A137: =IF('DF raw data'!A142="","",'DF raw data'!A142) -> -262.5 | B137: =IF('DF raw data'!B142="","",'DF raw data'!B142) -> -3.48557e-05 | C137: =IF('DF raw data'!C142="","",'DF raw data'!C142) -> 8.93234e-05 | D137: =IF('DF raw data'!D142="","",'DF raw data'!D142) -> -2.59586e-05 | F137: -3.503694964e-05 | G137: 8.978788168e-05 | H137: -2.609358472e-05 | J137: -0.0008987988323 | K137: -0.01722043409 | L137: 0.003350252792 | M137: 0.06254504054 | N137: 0.0001497675948
A138: =IF('DF raw data'!A143="","",'DF raw data'!A143) -> -262 | B138: =IF('DF raw data'!B143="","",'DF raw data'!B143) -> -3.07579e-05 | C138: =IF('DF raw data'!C143="","",'DF raw data'!C143) -> 8.95705e-05 | D138: =IF('DF raw data'!D143="","",'DF raw data'!D143) -> -2.39044e-05 | F138: -3.091784108e-05 | G138: 9.00362666e-05 | H138: -2.402870288e-05 | J138: -0.0009142577529 | K138: -0.01767756296 | L138: 0.003395270926 | M138: 0.064242676 | N138: 0.0001559494607
A139: =IF('DF raw data'!A144="","",'DF raw data'!A144) -> -261.5 | B139: =IF('DF raw data'!B144="","",'DF raw data'!B144) -> -2.38373e-05 | C139: =IF('DF raw data'!C144="","",'DF raw data'!C144) -> 8.70389e-05 | D139: =IF('DF raw data'!D144="","",'DF raw data'!D144) -> -2.11556e-05 | F139: -2.396125396e-05 | G139: 8.749150228e-05 | H139: -2.126560912e-05 | J139: -0.0009262383798 | K139: -0.01814068215 | L139: 0.003439016677 | M139: 0.06596218434 | N139: 0.0001622918373
A140: =IF('DF raw data'!A145="","",'DF raw data'!A145) -> -261 | B140: =IF('DF raw data'!B145="","",'DF raw data'!B145) -> -2.16655e-05 | C140: =IF('DF raw data'!C145="","",'DF raw data'!C145) -> 8.20807e-05 | D140: =IF('DF raw data'!D145="","",'DF raw data'!D145) -> -1.29753e-05 | F140: -2.17781606e-05 | G140: 8.250751964e-05 | H140: -1.304277156e-05 | J140: -0.0009371274601 | K140: -0.01860924588 | L140: 0.003480270437 | M140: 0.06770231956 | N140: 0.0001687870824
A141: =IF('DF raw data'!A146="","",'DF raw data'!A146) -> -260.5 | B141: =IF('DF raw data'!B146="","",'DF raw data'!B146) -> -2.42959e-05 | C141: =IF('DF raw data'!C146="","",'DF raw data'!C146) -> 8.02098e-05 | D141: =IF('DF raw data'!D146="","",'DF raw data'!D146) -> -5.81086e-06 | F141: -2.442223868e-05 | G141: 8.062689096e-05 | H141: -5.841076472e-06 | J141: -0.0009493385795 | K141: -0.01908391517 | L141: 0.003520583882 | M141: 0.0694626115 | N141: 0.0001754349597
A142: =IF('DF raw data'!A147="","",'DF raw data'!A147) -> -260 | B142: =IF('DF raw data'!B147="","",'DF raw data'!B147) -> -6.5392e-06 | C142: =IF('DF raw data'!C147="","",'DF raw data'!C147) -> 8.8119e-05 | D142: =IF('DF raw data'!D147="","",'DF raw data'!D147) -> -1.75789e-05 | F142: -6.57320384e-06 | G142: 8.85772188e-05 | H142: -1.767031028e-05 | J142: -0.0009526251814 | K142: -0.01956022777 | L142: 0.003564872491 | M142: 0.07124504775 | N142: 0.000182242865
A143: =IF('DF raw data'!A148="","",'DF raw data'!A148) -> -259.5 | B143: =IF('DF raw data'!B148="","",'DF raw data'!B148) -> -1.19195e-05 | C143: =IF('DF raw data'!C148="","",'DF raw data'!C148) -> 9.45757e-05 | D143: =IF('DF raw data'!D148="","",'DF raw data'!D148) -> -2.00834e-05 | F143: -1.19814814e-05 | G143: 9.506749364e-05 | H143: -2.018783368e-05 | J143: -0.0009586159221 | K143: -0.02003953573 | L143: 0.003612406238 | M143: 0.07305125087 | N143: 0.0001892270767
A144: =IF('DF raw data'!A149="","",'DF raw data'!A149) -> -259 | B144: =IF('DF raw data'!B149="","",'DF raw data'!B149) -> -2.28125e-05 | C144: =IF('DF raw data'!C149="","",'DF raw data'!C149) -> 9.13956e-05 | D144: =IF('DF raw data'!D149="","",'DF raw data'!D149) -> -2.27359e-05 | F144: -2.2931125e-05 | G144: 9.187085712e-05 | H144: -2.285412668e-05 | J144: -0.0009700814846 | K144: -0.02052457647 | L144: 0.003658341667 | M144: 0.0748804217 | N144: 0.0001963893376
A145: =IF('DF raw data'!A150="","",'DF raw data'!A150) -> -258.5 | B145: =IF('DF raw data'!B150="","",'DF raw data'!B150) -> -2.59451e-05 | C145: =IF('DF raw data'!C150="","",'DF raw data'!C150) -> 9.03445e-05 | D145: =IF('DF raw data'!D150="","",'DF raw data'!D150) -> -3.18511e-05 | F145: -2.608001452e-05 | G145: 9.08142914e-05 | H145: -3.201672572e-05 | J145: -0.0009831214919 | K145: -0.02101613721 | L145: 0.003703748813 | M145: 0.07673229611 | N145: 0.0002037314792
A146: =IF('DF raw data'!A151="","",'DF raw data'!A151) -> -258 | B146: =IF('DF raw data'!B151="","",'DF raw data'!B151) -> -1.11473e-05 | C146: =IF('DF raw data'!C151="","",'DF raw data'!C151) -> 8.87217e-05 | D146: =IF('DF raw data'!D151="","",'DF raw data'!D151) -> -2.60878e-05 | F146: -1.120526596e-05 | G146: 8.918305284e-05 | H146: -2.622345656e-05 | J146: -0.0009887241248 | K146: -0.02151049928 | L146: 0.003748340339 | M146: 0.07860646628 | N146: 0.0002112452945
A147: =IF('DF raw data'!A152="","",'DF raw data'!A152) -> -257.5 | B147: =IF('DF raw data'!B152="","",'DF raw data'!B152) -> -2.76915e-05 | C147: =IF('DF raw data'!C152="","",'DF raw data'!C152) -> 9.48966e-05 | D147: =IF('DF raw data'!D152="","",'DF raw data'!D152) -> -6.90532e-06 | F147: -2.78354958e-05 | G147: 9.539006232e-05 | H147: -6.941227664e-06 | J147: -0.001002641873 | K147: -0.02201182021 | L147: 0.00379603537 | M147: 0.08050448396 | N147: 0.0002189528821
A148: =IF('DF raw data'!A153="","",'DF raw data'!A153) -> -257 | B148: =IF('DF raw data'!B153="","",'DF raw data'!B153) -> -2.01287e-05 | C148: =IF('DF raw data'!C153="","",'DF raw data'!C153) -> 9.11898e-05 | D148: =IF('DF raw data'!D153="","",'DF raw data'!D153) -> -1.0916e-05 | F148: -2.023336924e-05 | G148: 9.166398696e-05 | H148: -1.09727632e-05 | J148: -0.001012758557 | K148: -0.02251819949 | L148: 0.003841867364 | M148: 0.08242541764 | N148: 0.0002268456945
A149: =IF('DF raw data'!A154="","",'DF raw data'!A154) -> -256.5 | B149: =IF('DF raw data'!B154="","",'DF raw data'!B154) -> -2.17335e-05 | C149: =IF('DF raw data'!C154="","",'DF raw data'!C154) -> 9.39589e-05 | D149: =IF('DF raw data'!D154="","",'DF raw data'!D154) -> -5.00349e-06 | F149: -2.18465142e-05 | G149: 9.444748628e-05 | H149: -5.029508148e-06 | J149: -0.001023681814 | K149: -0.0230300404 | L149: 0.003889091107 | M149: 0.0843699632 | N149: 0.0002349321716
A150: =IF('DF raw data'!A155="","",'DF raw data'!A155) -> -256 | B150: =IF('DF raw data'!B155="","",'DF raw data'!B155) -> -1.95491e-05 | C150: =IF('DF raw data'!C155="","",'DF raw data'!C155) -> 0.000101441 | D150: =IF('DF raw data'!D155="","",'DF raw data'!D155) -> -1.51698e-05 | F150: -1.965075532e-05 | G150: 0.0001019684932 | H150: -1.524868296e-05 | J150: -0.001033507192 | K150: -0.023546794 | L150: 0.003940075353 | M150: 0.08634000087 | N150: 0.000243228337
A151: =IF('DF raw data'!A156="","",'DF raw data'!A156) -> -255.5 | B151: =IF('DF raw data'!B156="","",'DF raw data'!B156) -> -2.56363e-05 | C151: =IF('DF raw data'!C156="","",'DF raw data'!C156) -> 0.00010537 | D151: =IF('DF raw data'!D156="","",'DF raw data'!D156) -> -1.43157e-05 | F151: -2.576960876e-05 | G151: 0.000105917924 | H151: -1.439014164e-05 | J151: -0.001046391997 | K151: -0.02406998999 | L151: 0.003993034315 | M151: 0.08833651803 | N151: 0.0002517479666
A152: =IF('DF raw data'!A157="","",'DF raw data'!A157) -> -255 | B152: =IF('DF raw data'!B157="","",'DF raw data'!B157) -> -1.08352e-05 | C152: =IF('DF raw data'!C157="","",'DF raw data'!C157) -> 0.0001017 | D152: =IF('DF raw data'!D157="","",'DF raw data'!D157) -> -1.34555e-05 | F152: -1.089154304e-05 | G152: 0.00010222884 | H152: -1.35254686e-05 | J152: -0.001051837768 | K152: -0.02459590888 | L152: 0.004044148735 | M152: 0.0903585924 | N152: 0.0002604787175
A153: =IF('DF raw data'!A158="","",'DF raw data'!A158) -> -254.5 | B153: =IF('DF raw data'!B158="","",'DF raw data'!B158) -> -1.71107e-05 | C153: =IF('DF raw data'!C158="","",'DF raw data'!C158) -> 9.90761e-05 | D153: =IF('DF raw data'!D158="","",'DF raw data'!D158) -> -1.92095e-05 | F153: -1.719967564e-05 | G153: 9.959129572e-05 | H153: -1.93093894e-05 | J153: -0.001060437606 | K153: -0.02512612768 | L153: 0.004093944383 | M153: 0.09240556459 | N153: 0.0002694211717
A154: =IF('DF raw data'!A159="","",'DF raw data'!A159) -> -254 | B154: =IF('DF raw data'!B159="","",'DF raw data'!B159) -> -1.98712e-05 | C154: =IF('DF raw data'!C159="","",'DF raw data'!C159) -> 9.88296e-05 | D154: =IF('DF raw data'!D159="","",'DF raw data'!D159) -> -1.26241e-05 | F154: -1.997453024e-05 | G154: 9.934351392e-05 | H154: -1.268974532e-05 | J154: -0.001070424871 | K154: -0.02566134012 | L154: 0.00414361614 | M154: 0.09447737266 | N154: 0.0002785788538
A155: =IF('DF raw data'!A160="","",'DF raw data'!A160) -> -253.5 | B155: =IF('DF raw data'!B160="","",'DF raw data'!B160) -> -2.92885e-05 | C155: =IF('DF raw data'!C160="","",'DF raw data'!C160) -> 0.000100558 | D155: =IF('DF raw data'!D160="","",'DF raw data'!D160) -> -1.48047e-05 | F155: -2.94408002e-05 | G155: 0.0001010809016 | H155: -1.488168444e-05 | J155: -0.001085145271 | K155: -0.02620391275 | L155: 0.004194156591 | M155: 0.09657445096 | N155: 0.0002879630987
A156: =IF('DF raw data'!A161="","",'DF raw data'!A161) -> -253 | B156: =IF('DF raw data'!B161="","",'DF raw data'!B161) -> -2.56378e-05 | C156: =IF('DF raw data'!C161="","",'DF raw data'!C161) -> 9.55037e-05 | D156: =IF('DF raw data'!D161="","",'DF raw data'!D161) -> -1.37599e-05 | F156: -2.577111656e-05 | G156: 9.600031924e-05 | H156: -1.383145148e-05 | J156: -0.001098030829 | K156: -0.02675292817 | L156: 0.004242156751 | M156: 0.09869552933 | N156: 0.0002975638815
A157: =IF('DF raw data'!A162="","",'DF raw data'!A162) -> -252.5 | B157: =IF('DF raw data'!B162="","",'DF raw data'!B162) -> -2.1979e-05 | C157: =IF('DF raw data'!C162="","",'DF raw data'!C162) -> 0.00010398 | D157: =IF('DF raw data'!D162="","",'DF raw data'!D162) -> -2.18941e-05 | F157: -2.20932908e-05 | G157: 0.000104520696 | H157: -2.200794932e-05 | J157: -0.001109077475 | K157: -0.0273074669 | L157: 0.004294417099 | M157: 0.1008427379 | N157: 0.000307399917
A158: =IF('DF raw data'!A163="","",'DF raw data'!A163) -> -252 | B158: =IF('DF raw data'!B163="","",'DF raw data'!B163) -> -2.97934e-05 | C158: =IF('DF raw data'!C163="","",'DF raw data'!C163) -> 0.000107581 | D158: =IF('DF raw data'!D163="","",'DF raw data'!D163) -> -2.87372e-05 | F158: -2.994832568e-05 | G158: 0.0001081404212 | H158: -2.888663344e-05 | J158: -0.001124051638 | K158: -0.02786949272 | L158: 0.004348487309 | M158: 0.1030169815 | N158: 0.000317486334
A159: =IF('DF raw data'!A164="","",'DF raw data'!A164) -> -251.5 | B159: =IF('DF raw data'!B164="","",'DF raw data'!B164) -> -6.53873e-06 | C159: =IF('DF raw data'!C164="","",'DF raw data'!C164) -> 0.000104992 | D159: =IF('DF raw data'!D164="","",'DF raw data'!D164) -> -1.77558e-05 | F159: -6.572731396e-06 | G159: 0.0001055379584 | H159: -1.784813016e-05 | J159: -0.001127338003 | K159: -0.02843316172 | L159: 0.004401256288 | M159: 0.1052176097 | N159: 0.0003278073079
A160: =IF('DF raw data'!A165="","",'DF raw data'!A165) -> -251 | B160: =IF('DF raw data'!B165="","",'DF raw data'!B165) -> -3.44791e-05 | C160: =IF('DF raw data'!C165="","",'DF raw data'!C165) -> 0.000106739 | D160: =IF('DF raw data'!D165="","",'DF raw data'!D165) -> -1.65201e-05 | F160: -3.465839132e-05 | G160: 0.0001072940428 | H160: -1.660600452e-05 | J160: -0.001144667199 | K160: -0.02900549532 | L160: 0.00445490331 | M160: 0.1074450613 | N160: 0.0003383855212
A161: =IF('DF raw data'!A166="","",'DF raw data'!A166) -> -250.5 | B161: =IF('DF raw data'!B166="","",'DF raw data'!B166) -> -1.80716e-05 | C161: =IF('DF raw data'!C166="","",'DF raw data'!C166) -> 0.000108003 | D161: =IF('DF raw data'!D166="","",'DF raw data'!D166) -> -1.91607e-05 | F161: -1.816557232e-05 | G161: 0.0001085646156 | H161: -1.926033564e-05 | J161: -0.001153749985 | K161: -0.02958237032 | L161: 0.004509185618 | M161: 0.1096996541 | N161: 0.0003492174682
A162: =IF('DF raw data'!A167="","",'DF raw data'!A167) -> -250 | B162: =IF('DF raw data'!B167="","",'DF raw data'!B167) -> -1.97314e-05 | C162: =IF('DF raw data'!C167="","",'DF raw data'!C167) -> 0.000106924 | D162: =IF('DF raw data'!D167="","",'DF raw data'!D167) -> -3.07009e-05 | F162: -1.983400328e-05 | G162: 0.0001074800048 | H162: -3.086054468e-05 | J162: -0.001163666987 | K162: -0.03016420381 | L162: 0.00456292562 | M162: 0.111981117 | N162: 0.0003603046737
A163: =IF('DF raw data'!A168="","",'DF raw data'!A168) -> -249.5 | B163: =IF('DF raw data'!B168="","",'DF raw data'!B168) -> -2.03721e-05 | C163: =IF('DF raw data'!C168="","",'DF raw data'!C168) -> 0.000111877 | D163: =IF('DF raw data'!D168="","",'DF raw data'!D168) -> -2.91807e-05 | F163: -2.047803492e-05 | G163: 0.0001124587604 | H163: -2.933243964e-05 | J163: -0.001173906004 | K163: -0.03075115681 | L163: 0.004619155 | M163: 0.1142906945 | N163: 0.0003716619978
A164: =IF('DF raw data'!A169="","",'DF raw data'!A169) -> -249 | B164: =IF('DF raw data'!B169="","",'DF raw data'!B169) -> -3.42823e-05 | C164: =IF('DF raw data'!C169="","",'DF raw data'!C169) -> 0.000108919 | D164: =IF('DF raw data'!D169="","",'DF raw data'!D169) -> -2.34846e-05 | F164: -3.446056796e-05 | G164: 0.0001094853788 | H164: -2.360671992e-05 | J164: -0.001191136288 | K164: -0.03134672496 | L164: 0.00467389769 | M164: 0.1166276433 | N164: 0.0003832940605
A165: =IF('DF raw data'!A170="","",'DF raw data'!A170) -> -248.5 | B165: =IF('DF raw data'!B170="","",'DF raw data'!B170) -> -1.80716e-05 | C165: =IF('DF raw data'!C170="","",'DF raw data'!C170) -> 0.000110454 | D165: =IF('DF raw data'!D170="","",'DF raw data'!D170) -> -1.9139e-05 | F165: -1.816557232e-05 | G165: 0.0001110283608 | H165: -1.92385228e-05 | J165: -0.001200219074 | K165: -0.03194683449 | L165: 0.00472941187 | M165: 0.1189923492 | N165: 0.0003951979917
A166: =IF('DF raw data'!A171="","",'DF raw data'!A171) -> -248 | B166: =IF('DF raw data'!B171="","",'DF raw data'!B171) -> -1.99299e-05 | C166: =IF('DF raw data'!C171="","",'DF raw data'!C171) -> 0.000109456 | D166: =IF('DF raw data'!D171="","",'DF raw data'!D171) -> -2.09265e-05 | F166: -2.003353548e-05 | G166: 0.0001100251712 | H166: -2.10353178e-05 | J166: -0.001210235842 | K166: -0.03255195241 | L166: 0.004784424456 | M166: 0.1213845615 | N166: 0.0004073756858
A167: =IF('DF raw data'!A172="","",'DF raw data'!A172) -> -247.5 | B167: =IF('DF raw data'!B172="","",'DF raw data'!B172) -> -1.89685e-05 | C167: =IF('DF raw data'!C172="","",'DF raw data'!C172) -> 0.000111978 | D167: =IF('DF raw data'!D172="","",'DF raw data'!D172) -> -1.96637e-05 | F167: -1.90671362e-05 | G167: 0.0001125602856 | H167: -1.976595124e-05 | J167: -0.00121976941 | K167: -0.03316183712 | L167: 0.004840704598 | M167: 0.1238049138 | N167: 0.000419835815
A168: =IF('DF raw data'!A173="","",'DF raw data'!A173) -> -247 | B168: =IF('DF raw data'!B173="","",'DF raw data'!B173) -> -3.12742e-05 | C168: =IF('DF raw data'!C173="","",'DF raw data'!C173) -> 0.000110421 | D168: =IF('DF raw data'!D173="","",'DF raw data'!D173) -> -1.84224e-05 | F168: -3.143682584e-05 | G168: 0.0001109951892 | H168: -1.851819648e-05 | J168: -0.001235487823 | K168: -0.03377958103 | L168: 0.004896202193 | M168: 0.1262530149 | N168: 0.000432585428
A169: =IF('DF raw data'!A174="","",'DF raw data'!A174) -> -246.5 | B169: =IF('DF raw data'!B174="","",'DF raw data'!B174) -> -2.47404e-05 | C169: =IF('DF raw data'!C174="","",'DF raw data'!C174) -> 0.000106024 | D169: =IF('DF raw data'!D174="","",'DF raw data'!D174) -> -1.20922e-05 | F169: -2.486905008e-05 | G169: 0.0001065753248 | H169: -1.215507944e-05 | J169: -0.001247922348 | K169: -0.0344035422 | L169: 0.004949489855 | M169: 0.1287277598 | N169: 0.000445612808
A170: =IF('DF raw data'!A175="","",'DF raw data'!A175) -> -246 | B170: =IF('DF raw data'!B175="","",'DF raw data'!B175) -> -3.30645e-05 | C170: =IF('DF raw data'!C175="","",'DF raw data'!C175) -> 0.00010763 | D170: =IF('DF raw data'!D175="","",'DF raw data'!D175) -> -2.45102e-05 | F170: -3.32364354e-05 | G170: 0.000108189676 | H170: -2.463765304e-05 | J170: -0.001264540566 | K170: -0.03503581249 | L170: 0.005003584693 | M170: 0.1312295521 | N170: 0.0004589302693
A171: =IF('DF raw data'!A176="","",'DF raw data'!A176) -> -245.5 | B171: =IF('DF raw data'!B176="","",'DF raw data'!B176) -> -1.87733e-05 | C171: =IF('DF raw data'!C176="","",'DF raw data'!C176) -> 0.000106117 | D171: =IF('DF raw data'!D176="","",'DF raw data'!D176) -> -2.41898e-05 | F171: -1.887092116e-05 | G171: 0.0001066688084 | H171: -2.431558696e-05 | J171: -0.001273976026 | K171: -0.0356728005 | L171: 0.005056919098 | M171: 0.1337580117 | N171: 0.0004725279922
A172: =IF('DF raw data'!A177="","",'DF raw data'!A177) -> -245 | B172: =IF('DF raw data'!B177="","",'DF raw data'!B177) -> -2.13432e-05 | C172: =IF('DF raw data'!C177="","",'DF raw data'!C177) -> 0.000108775 | D172: =IF('DF raw data'!D177="","",'DF raw data'!D177) -> -1.55965e-05 | F172: -2.145418464e-05 | G172: 0.00010934063 | H172: -1.56776018e-05 | J172: -0.001284703119 | K172: -0.03631515206 | L172: 0.005111589413 | M172: 0.1363138064 | N172: 0.0004864173964
A173: =IF('DF raw data'!A178="","",'DF raw data'!A178) -> -244.5 | B173: =IF('DF raw data'!B178="","",'DF raw data'!B178) -> -1.99281e-05 | C173: =IF('DF raw data'!C178="","",'DF raw data'!C178) -> 0.000109474 | D173: =IF('DF raw data'!D178="","",'DF raw data'!D178) -> -2.17537e-05 | F173: -2.003172612e-05 | G173: 0.0001100432648 | H173: -2.186681924e-05 | J173: -0.001294718982 | K173: -0.03696251155 | L173: 0.005166611045 | M173: 0.1388971119 | N173: 0.0005006024799
A174: =IF('DF raw data'!A179="","",'DF raw data'!A179) -> -244 | B174: =IF('DF raw data'!B179="","",'DF raw data'!B179) -> -2.21764e-05 | C174: =IF('DF raw data'!C179="","",'DF raw data'!C179) -> 0.000107252 | D174: =IF('DF raw data'!D179="","",'DF raw data'!D179) -> -1.53901e-05 | F174: -2.229171728e-05 | G174: 0.0001078097104 | H174: -1.547012852e-05 | J174: -0.00130586484 | K174: -0.03761544397 | L174: 0.0052205159 | M174: 0.1415073699 | N174: 0.0005150820145
A175: =IF('DF raw data'!A180="","",'DF raw data'!A180) -> -243.5 | B175: =IF('DF raw data'!B180="","",'DF raw data'!B180) -> -2.37786e-05 | C175: =IF('DF raw data'!C180="","",'DF raw data'!C180) -> 0.000103255 | D175: =IF('DF raw data'!D180="","",'DF raw data'!D180) -> -1.31553e-05 | F175: -2.390224872e-05 | G175: 0.000103791926 | H175: -1.322370756e-05 | J175: -0.001317815965 | K175: -0.03827435195 | L175: 0.005272411863 | M175: 0.1441435758 | N175: 0.0005298494974
A176: =IF('DF raw data'!A181="","",'DF raw data'!A181) -> -243 | B176: =IF('DF raw data'!B181="","",'DF raw data'!B181) -> -2.7496e-05 | C176: =IF('DF raw data'!C181="","",'DF raw data'!C181) -> 9.72264e-05 | D176: =IF('DF raw data'!D181="","",'DF raw data'!D181) -> -1.39766e-05 | F176: -2.76389792e-05 | G176: 9.773197728e-05 | H176: -1.404927832e-05 | J176: -0.001331635454 | K176: -0.03894016968 | L176: 0.005321277852 | M176: 0.1468042147 | N176: 0.0005448941228
A177: =IF('DF raw data'!A182="","",'DF raw data'!A182) -> -242.5 | B177: =IF('DF raw data'!B182="","",'DF raw data'!B182) -> -1.6277e-05 | C177: =IF('DF raw data'!C182="","",'DF raw data'!C182) -> 9.91482e-05 | D177: =IF('DF raw data'!D182="","",'DF raw data'!D182) -> -1.98898e-05 | F177: -1.63616404e-05 | G177: 9.966377064e-05 | H177: -1.999322696e-05 | J177: -0.001339816275 | K177: -0.03961007782 | L177: 0.005371109737 | M177: 0.1494897696 | N177: 0.0005602160866
A178: =IF('DF raw data'!A183="","",'DF raw data'!A183) -> -242 | B178: =IF('DF raw data'!B183="","",'DF raw data'!B183) -> -2.18541e-05 | C178: =IF('DF raw data'!C183="","",'DF raw data'!C183) -> 0.000107703 | D178: =IF('DF raw data'!D183="","",'DF raw data'!D183) -> -1.83319e-05 | F178: -2.196774132e-05 | G178: 0.0001082630556 | H178: -1.842722588e-05 | J178: -0.001350800145 | K178: -0.04028547789 | L178: 0.005425241265 | M178: 0.1522023902 | N178: 0.0005758450385
A179: =IF('DF raw data'!A184="","",'DF raw data'!A184) -> -241.5 | B179: =IF('DF raw data'!B184="","",'DF raw data'!B184) -> -2.45508e-05 | C179: =IF('DF raw data'!C184="","",'DF raw data'!C184) -> 0.000111097 | D179: =IF('DF raw data'!D184="","",'DF raw data'!D184) -> -8.16075e-06 | F179: -2.467846416e-05 | G179: 0.0001116747044 | H179: -8.2031859e-06 | J179: -0.001363139377 | K179: -0.04096704758 | L179: 0.005481078617 | M179: 0.1549429295 | N179: 0.0005917952244
A180: =IF('DF raw data'!A185="","",'DF raw data'!A185) -> -241 | B180: =IF('DF raw data'!B185="","",'DF raw data'!B185) -> -2.48026e-05 | C180: =IF('DF raw data'!C185="","",'DF raw data'!C185) -> 0.000112893 | D180: =IF('DF raw data'!D185="","",'DF raw data'!D185) -> -1.69422e-05 | F180: -2.493157352e-05 | G180: 0.0001134800436 | H180: -1.703029944e-05 | J180: -0.001375605164 | K180: -0.04165485016 | L180: 0.005537818639 | M180: 0.1577118388 | N180: 0.0006080750868
A181: =IF('DF raw data'!A186="","",'DF raw data'!A186) -> -240.5 | B181: =IF('DF raw data'!B186="","",'DF raw data'!B186) -> -2.86449e-05 | C181: =IF('DF raw data'!C186="","",'DF raw data'!C186) -> 0.000116131 | D181: =IF('DF raw data'!D186="","",'DF raw data'!D186) -> -1.89375e-05 | F181: -2.879385348e-05 | G181: 0.0001167348812 | H181: -1.9035975e-05 | J181: -0.001390002091 | K181: -0.04234985121 | L181: 0.00559618608 | M181: 0.1605099319 | N181: 0.000624699789
A182: =IF('DF raw data'!A187="","",'DF raw data'!A187) -> -240 | B182: =IF('DF raw data'!B187="","",'DF raw data'!B187) -> -1.58906e-05 | C182: =IF('DF raw data'!C187="","",'DF raw data'!C187) -> 0.000113896 | D182: =IF('DF raw data'!D187="","",'DF raw data'!D187) -> -2.41512e-05 | F182: -1.597323112e-05 | G182: 0.0001144882592 | H182: -2.427678624e-05 | J182: -0.001397988706 | K182: -0.04304884556 | L182: 0.005653430209 | M182: 0.163336647 | N182: 0.0006416576118
A183: =IF('DF raw data'!A188="","",'DF raw data'!A188) -> -239.5 | B183: =IF('DF raw data'!B188="","",'DF raw data'!B188) -> -1.55762e-05 | C183: =IF('DF raw data'!C188="","",'DF raw data'!C188) -> 0.000114256 | D183: =IF('DF raw data'!D188="","",'DF raw data'!D188) -> -1.41486e-05 | F183: -1.565719624e-05 | G183: 0.0001148501312 | H183: -1.422217272e-05 | J183: -0.001405817305 | K183: -0.04375175421 | L183: 0.005710855275 | M183: 0.1661920746 | N183: 0.0006589527069
A184: =IF('DF raw data'!A189="","",'DF raw data'!A189) -> -239 | B184: =IF('DF raw data'!B189="","",'DF raw data'!B189) -> -1.47462e-05 | C184: =IF('DF raw data'!C189="","",'DF raw data'!C189) -> 0.000108231 | D184: =IF('DF raw data'!D189="","",'DF raw data'!D189) -> -1.02488e-05 | F184: -1.482288024e-05 | G184: 0.0001087938012 | H184: -1.030209376e-05 | J184: -0.001413228745 | K184: -0.04445836858 | L184: 0.005765252175 | M184: 0.1690747007 | N184: 0.000676570381
A185: =IF('DF raw data'!A190="","",'DF raw data'!A190) -> -238.5 | B185: =IF('DF raw data'!B190="","",'DF raw data'!B190) -> -3.12192e-05 | C185: =IF('DF raw data'!C190="","",'DF raw data'!C190) -> 0.000108701 | D185: =IF('DF raw data'!D190="","",'DF raw data'!D190) -> -1.56332e-06 | F185: -3.138153984e-05 | G185: 0.0001092662452 | H185: -1.571449264e-06 | J185: -0.001428919515 | K185: -0.04517282834 | L185: 0.005819885298 | M185: 0.1719846434 | N185: 0.0006945268189
A186: =IF('DF raw data'!A191="","",'DF raw data'!A191) -> -238 | B186: =IF('DF raw data'!B191="","",'DF raw data'!B191) -> -3.01263e-05 | C186: =IF('DF raw data'!C191="","",'DF raw data'!C191) -> 0.000111189 | D186: =IF('DF raw data'!D191="","",'DF raw data'!D191) -> -9.05987e-06 | F186: -3.028295676e-05 | G186: 0.0001117671828 | H186: -9.106981324e-06 | J186: -0.001444060993 | K186: -0.04589485884 | L186: 0.005875768889 | M186: 0.1749225278 | N186: 0.000712831805
A187: =IF('DF raw data'!A192="","",'DF raw data'!A192) -> -237.5 | B187: =IF('DF raw data'!B192="","",'DF raw data'!B192) -> -3.44747e-05 | C187: =IF('DF raw data'!C192="","",'DF raw data'!C192) -> 0.000113731 | D187: =IF('DF raw data'!D192="","",'DF raw data'!D192) -> -2.0972e-05 | F187: -3.465396844e-05 | G187: 0.0001143224012 | H187: -2.10810544e-05 | J187: -0.001461387977 | K187: -0.04662555283 | L187: 0.00593293009 | M187: 0.1778889929 | N187: 0.0007314994621
A188: =IF('DF raw data'!A193="","",'DF raw data'!A193) -> -237 | B188: =IF('DF raw data'!B193="","",'DF raw data'!B193) -> -2.3912e-05 | C188: =IF('DF raw data'!C193="","",'DF raw data'!C193) -> 0.000117332 | D188: =IF('DF raw data'!D193="","",'DF raw data'!D193) -> -6.81282e-06 | F188: -2.40363424e-05 | G188: 0.0001179421264 | H188: -6.848246664e-06 | J188: -0.001473406148 | K188: -0.0473622559 | L188: 0.005991901153 | M188: 0.1808849434 | N188: 0.0007505363647
A189: =IF('DF raw data'!A194="","",'DF raw data'!A194) -> -236.5 | B189: =IF('DF raw data'!B194="","",'DF raw data'!B194) -> -2.5958e-05 | C189: =IF('DF raw data'!C194="","",'DF raw data'!C194) -> 0.000118263 | D189: =IF('DF raw data'!D194="","",'DF raw data'!D194) -> -1.19554e-05 | F189: -2.60929816e-05 | G189: 0.0001188779676 | H189: -1.201756808e-05 | J189: -0.001486452639 | K189: -0.04810548222 | L189: 0.006051340137 | M189: 0.1839106135 | N189: 0.0007699504942
A190: =IF('DF raw data'!A195="","",'DF raw data'!A195) -> -236 | B190: =IF('DF raw data'!B195="","",'DF raw data'!B195) -> -2.33283e-05 | C190: =IF('DF raw data'!C195="","",'DF raw data'!C195) -> 0.000117893 | D190: =IF('DF raw data'!D195="","",'DF raw data'!D195) -> -1.75524e-05 | F190: -2.344960716e-05 | G190: 0.0001185060436 | H190: -1.764367248e-05 | J190: -0.001498177443 | K190: -0.04885457094 | L190: 0.006110593159 | M190: 0.1869659101 | N190: 0.0007897424364
A191: =IF('DF raw data'!A196="","",'DF raw data'!A196) -> -235.5 | B191: =IF('DF raw data'!B196="","",'DF raw data'!B196) -> -2.56379e-05 | C191: =IF('DF raw data'!C196="","",'DF raw data'!C196) -> 0.000108944 | D191: =IF('DF raw data'!D196="","",'DF raw data'!D196) -> -1.16201e-05 | F191: -2.577121708e-05 | G191: 0.0001095105088 | H191: -1.168052452e-05 | J191: -0.001511063051 | K191: -0.04961010247 | L191: 0.006165348413 | M191: 0.1900485843 | N191: 0.0008098898527
A192: =IF('DF raw data'!A197="","",'DF raw data'!A197) -> -235 | B192: =IF('DF raw data'!B197="","",'DF raw data'!B197) -> -3.01169e-05 | C192: =IF('DF raw data'!C197="","",'DF raw data'!C197) -> 0.000114762 | D192: =IF('DF raw data'!D197="","",'DF raw data'!D197) -> -2.36022e-05 | F192: =(1-$G$1*($B$49-$G$2))*B192 -> -3.027350788e-05 | G192: 0.0001153587624 | H192: -2.372493144e-05 | J192: =F192*$G$3+J191 -> -0.001526199805 | K192: =J192*$G$3+K191 -> -0.05037320237 | L192: =G192*$G$3+L191 -> 0.006223027794 | M192: =L192*$G$3+M191 -> 0.1931600982 | N192: =(J192^2+L192^2)*$G$3+N191 -> 0.000830417533
A193: =IF('DF raw data'!A198="","",'DF raw data'!A198) -> -234.5 | B193: =IF('DF raw data'!B198="","",'DF raw data'!B198) -> -1.88425e-05 | C193: =IF('DF raw data'!C198="","",'DF raw data'!C198) -> 0.000107343 | D193: =IF('DF raw data'!D198="","",'DF raw data'!D198) -> -1.63758e-05 | F193: -1.8940481e-05 | G193: 0.0001079011836 | H193: -1.646095416e-05 | J193: -0.001535670046 | K193: -0.05114103739 | L193: 0.006276978386 | M193: 0.1962985874 | N193: 0.0008512969031
A194: =IF('DF raw data'!A199="","",'DF raw data'!A199) -> -234 | B194: =IF('DF raw data'!B199="","",'DF raw data'!B199) -> -2.62159e-05 | C194: =IF('DF raw data'!C199="","",'DF raw data'!C199) -> 0.000108814 | D194: =IF('DF raw data'!D199="","",'DF raw data'!D199) -> -1.15603e-05 | F194: -2.635222268e-05 | G194: 0.0001093798328 | H194: -1.162041356e-05 | J194: -0.001548846157 | K194: -0.05191546047 | L194: 0.006331668303 | M194: 0.1994644215 | N194: 0.0008725413771
A195: =IF('DF raw data'!A200="","",'DF raw data'!A200) -> -233.5 | B195: =IF('DF raw data'!B200="","",'DF raw data'!B200) -> -2.53099e-05 | C195: =IF('DF raw data'!C200="","",'DF raw data'!C200) -> 0.000117763 | D195: =IF('DF raw data'!D200="","",'DF raw data'!D200) -> -2.30487e-05 | F195: -2.544151148e-05 | G195: 0.0001183753676 | H195: -2.316855324e-05 | J195: -0.001561566913 | K195: -0.05269624393 | L195: 0.006390855986 | M195: 0.2026598495 | N195: 0.0008941821428
A196: =IF('DF raw data'!A201="","",'DF raw data'!A201) -> -233 | B196: =IF('DF raw data'!B201="","",'DF raw data'!B201) -> -1.98767e-05 | C196: =IF('DF raw data'!C201="","",'DF raw data'!C201) -> 0.000122917 | D196: =IF('DF raw data'!D201="","",'DF raw data'!D201) -> -4.2346e-06 | F196: -1.998005884e-05 | G196: 0.0001235561684 | H196: -4.25661992e-06 | J196: -0.001571556942 | K196: -0.0534820224 | L196: 0.006452634071 | M196: 0.2058861666 | N196: 0.0009162352816
A197: =IF('DF raw data'!A202="","",'DF raw data'!A202) -> -232.5 | B197: =IF('DF raw data'!B202="","",'DF raw data'!B202) -> -2.99968e-05 | C197: =IF('DF raw data'!C202="","",'DF raw data'!C202) -> 0.000119413 | D197: =IF('DF raw data'!D202="","",'DF raw data'!D202) -> -8.68087e-06 | F197: -3.015278336e-05 | G197: 0.0001200339476 | H197: -8.726010524e-06 | J197: -0.001586633334 | K197: -0.05427533907 | L197: 0.006512651044 | M197: 0.2091424921 | N197: 0.0009387012961
A198: =IF('DF raw data'!A203="","",'DF raw data'!A203) -> -232 | B198: =IF('DF raw data'!B203="","",'DF raw data'!B203) -> -2.37187e-05 | C198: =IF('DF raw data'!C203="","",'DF raw data'!C203) -> 0.000110633 | D198: =IF('DF raw data'!D203="","",'DF raw data'!D203) -> -8.40058e-06 | F198: -2.384203724e-05 | G198: 0.0001112082916 | H198: -8.444263016e-06 | J198: -0.001598554353 | K198: -0.05507461624 | L198: 0.00656825519 | M198: 0.2124266197 | N198: 0.0009615499722
A199: =IF('DF raw data'!A204="","",'DF raw data'!A204) -> -231.5 | B199: =IF('DF raw data'!B204="","",'DF raw data'!B204) -> -2.88378e-05 | C199: =IF('DF raw data'!C204="","",'DF raw data'!C204) -> 0.000117687 | D199: =IF('DF raw data'!D204="","",'DF raw data'!D204) -> -1.73358e-05 | F199: -2.898775656e-05 | G199: 0.0001182989724 | H199: -1.742594616e-05 | J199: -0.001613048231 | K199: -0.05588114036 | L199: 0.006627404676 | M199: 0.215740322 | N199: 0.0009848121809
A200: =IF('DF raw data'!A205="","",'DF raw data'!A205) -> -231 | B200: =IF('DF raw data'!B205="","",'DF raw data'!B205) -> -2.69843e-05 | C200: =IF('DF raw data'!C205="","",'DF raw data'!C205) -> 0.000119001 | D200: =IF('DF raw data'!D205="","",'DF raw data'!D205) -> -1.26069e-05 | F200: -2.712461836e-05 | G200: 0.0001196198052 | H200: -1.267245588e-05 | J200: -0.00162661054 | K200: -0.05669444563 | L200: 0.006687214579 | M200: 0.2190839293 | N200: 0.001008494531
A201: =IF('DF raw data'!A206="","",'DF raw data'!A206) -> -230.5 | B201: =IF('DF raw data'!B206="","",'DF raw data'!B206) -> -2.603e-05 | C201: =IF('DF raw data'!C206="","",'DF raw data'!C206) -> 0.000119251 | D201: =IF('DF raw data'!D206="","",'DF raw data'!D206) -> 4.63271e-07 | F201: -2.6165356e-05 | G201: 0.0001198711052 | H201: 4.656800092e-07 | J201: -0.001639693218 | K201: -0.05751429224 | L201: 0.006747150132 | M201: 0.2224575044 | N201: 0.001032600846
... 1061 more rows

Sheet 10 y=-0.1
A1: =IF('DF raw data'!E1="","",'DF raw data'!E1) -> Number of header lines | B1: =IF('DF raw data'!F1="","",'DF raw data'!F1) -> 54 | C1: =IF('DF raw data'!G1="","",'DF raw data'!G1) ->  | D1: =IF('DF raw data'!H1="","",'DF raw data'!H1) ->  | F1: T_coeff | G1: -0.001 | H1: /degC | J1: IBy total | K1: =J1262*1000 -> -7.239701329 | L1: muTm | M1: =L1262*1000 -> 12.92756681 | R1: DF ref | S1: ='10 y=-0.2'!S1 -> 1
A2: =IF('DF raw data'!E2="","",'DF raw data'!E2) -> Measured by | B2: =IF('DF raw data'!F2="","",'DF raw data'!F2) -> Danfysik | C2: =IF('DF raw data'!G2="","",'DF raw data'!G2) ->  | D2: =IF('DF raw data'!H2="","",'DF raw data'!H2) ->  | F2: Tcorr | G2: 20 | H2: degC | J2: JBy total | K2: =K1262 -> -6.206726068 | L2: muTm^2 | M2: =M1262 -> 10.56458126
A3: =IF('DF raw data'!E3="","",'DF raw data'!E3) -> Operator | B3: =IF('DF raw data'!F3="","",'DF raw data'!F3) -> PMHA | C3: =IF('DF raw data'!G3="","",'DF raw data'!G3) ->  | D3: =IF('DF raw data'!H3="","",'DF raw data'!H3) ->  | F3: Step | G3: =A63-A62 -> 0.5 | H3: mm | J3: PI total | K3: =N1262 -> 10349.2644 | L3: T^2mm^3
A4: =IF('DF raw data'!E4="","",'DF raw data'!E4) -> Data-time | B4: =IF('DF raw data'!F4="","",'DF raw data'!F4) -> 09-09-2024, 14:10:43 | C4: =IF('DF raw data'!G4="","",'DF raw data'!G4) ->  | D4: =IF('DF raw data'!H4="","",'DF raw data'!H4) -> 
A5: =IF('DF raw data'!E5="","",'DF raw data'!E5) -> Project | B5: =IF('DF raw data'!F5="","",'DF raw data'!F5) -> 504314 | C5: =IF('DF raw data'!G5="","",'DF raw data'!G5) ->  | D5: =IF('DF raw data'!H5="","",'DF raw data'!H5) -> 
A6: =IF('DF raw data'!E6="","",'DF raw data'!E6) -> Magnet type | B6: =IF('DF raw data'!F6="","",'DF raw data'!F6) -> Dipole | C6: =IF('DF raw data'!G6="","",'DF raw data'!G6) ->  | D6: =IF('DF raw data'!H6="","",'DF raw data'!H6) -> 
A7: =IF('DF raw data'!E7="","",'DF raw data'!E7) -> Magnet nr. | B7: =IF('DF raw data'!F7="","",'DF raw data'!F7) -> 2410094 | C7: =IF('DF raw data'!G7="","",'DF raw data'!G7) ->  | D7: =IF('DF raw data'!H7="","",'DF raw data'!H7) -> 
A8: =IF('DF raw data'!E8="","",'DF raw data'!E8) -> Meas. number | B8: =IF('DF raw data'!F8="","",'DF raw data'!F8) -> 390 | C8: =IF('DF raw data'!G8="","",'DF raw data'!G8) ->  | D8: =IF('DF raw data'!H8="","",'DF raw data'!H8) -> 
A9: =IF('DF raw data'!E9="","",'DF raw data'!E9) -> Add. info | B9: =IF('DF raw data'!F9="","",'DF raw data'!F9) -> Y-alignment scan 2) | C9: =IF('DF raw data'!G9="","",'DF raw data'!G9) ->  | D9: =IF('DF raw data'!H9="","",'DF raw data'!H9) -> 
A10: =IF('DF raw data'!E10="","",'DF raw data'!E10) -> Device | B10: =IF('DF raw data'!F10="","",'DF raw data'!F10) -> (HAL) HALL-PROBE | C10: =IF('DF raw data'!G10="","",'DF raw data'!G10) ->  | D10: =IF('DF raw data'!H10="","",'DF raw data'!H10) -> 
A11: =IF('DF raw data'!E11="","",'DF raw data'!E11) -> Goal | B11: =IF('DF raw data'!F11="","",'DF raw data'!F11) -> (AXI) AXis Integral (Line, EFB) | C11: =IF('DF raw data'!G11="","",'DF raw data'!G11) ->  | D11: =IF('DF raw data'!H11="","",'DF raw data'!H11) -> 
A12: =IF('DF raw data'!E12="","",'DF raw data'!E12) -> Power supply mode | B12: =IF('DF raw data'!F12="","",'DF raw data'!F12) -> (PM) Permanent Magnet (no MPS in use) | C12: =IF('DF raw data'!G12="","",'DF raw data'!G12) ->  | D12: =IF('DF raw data'!H12="","",'DF raw data'!H12) -> 
A13: =IF('DF raw data'!E13="","",'DF raw data'!E13) -> Data format | B13: =IF('DF raw data'!F13="","",'DF raw data'!F13) -> Raw data text file | C13: =IF('DF raw data'!G13="","",'DF raw data'!G13) ->  | D13: =IF('DF raw data'!H13="","",'DF raw data'!H13) -> 
A14: =IF('DF raw data'!E14="","",'DF raw data'!E14) -> Direction of the pos. x-axis | B14: =IF('DF raw data'!F14="","",'DF raw data'!F14) -> See test program | C14: =IF('DF raw data'!G14="","",'DF raw data'!G14) ->  | D14: =IF('DF raw data'!H14="","",'DF raw data'!H14) -> 
A15: =IF('DF raw data'!E15="","",'DF raw data'!E15) -> Direction of the pos. y-axis | B15: =IF('DF raw data'!F15="","",'DF raw data'!F15) -> Vertical up | C15: =IF('DF raw data'!G15="","",'DF raw data'!G15) ->  | D15: =IF('DF raw data'!H15="","",'DF raw data'!H15) -> 
A16: =IF('DF raw data'!E16="","",'DF raw data'!E16) -> Direction of the pos. z-axis | B16: =IF('DF raw data'!F16="","",'DF raw data'!F16) -> See test program | C16: =IF('DF raw data'!G16="","",'DF raw data'!G16) ->  | D16: =IF('DF raw data'!H16="","",'DF raw data'!H16) -> 
A17: =IF('DF raw data'!E17="","",'DF raw data'!E17) -> Mapper type | B17: =IF('DF raw data'!F17="","",'DF raw data'!F17) -> Precision Hall Mapper | C17: =IF('DF raw data'!G17="","",'DF raw data'!G17) ->  | D17: =IF('DF raw data'!H17="","",'DF raw data'!H17) -> 
A18: =IF('DF raw data'!E18="","",'DF raw data'!E18) -> Mapper Danfysik Reg. Number | B18: =IF('DF raw data'!F18="","",'DF raw data'!F18) -> 2033-D (mapper 1) | C18: =IF('DF raw data'!G18="","",'DF raw data'!G18) ->  | D18: =IF('DF raw data'!H18="","",'DF raw data'!H18) -> 
A19: =IF('DF raw data'!E19="","",'DF raw data'!E19) -> Measurement consept | B19: =IF('DF raw data'!F19="","",'DF raw data'!F19) -> Square line grid | C19: =IF('DF raw data'!G19="","",'DF raw data'!G19) ->  | D19: =IF('DF raw data'!H19="","",'DF raw data'!H19) -> 
A20: =IF('DF raw data'!E20="","",'DF raw data'!E20) -> Mode | B20: =IF('DF raw data'!F20="","",'DF raw data'!F20) -> On-the-fly measurement | C20: =IF('DF raw data'!G20="","",'DF raw data'!G20) ->  | D20: =IF('DF raw data'!H20="","",'DF raw data'!H20) -> 
A21: =IF('DF raw data'!E21="","",'DF raw data'!E21) ->  | B21: =IF('DF raw data'!F21="","",'DF raw data'!F21) ->  | C21: =IF('DF raw data'!G21="","",'DF raw data'!G21) ->  | D21: =IF('DF raw data'!H21="","",'DF raw data'!H21) -> 
A22: =IF('DF raw data'!E22="","",'DF raw data'!E22) -> Probe Name | B22: =IF('DF raw data'!F22="","",'DF raw data'!F22) -> ID12_By | C22: =IF('DF raw data'!G22="","",'DF raw data'!G22) ->  | D22: =IF('DF raw data'!H22="","",'DF raw data'!H22) -> 
A23: =IF('DF raw data'!E23="","",'DF raw data'!E23) -> Probe Type | B23: =IF('DF raw data'!F23="","",'DF raw data'!F23) -> DF_ID_3D_Bxyz | C23: =IF('DF raw data'!G23="","",'DF raw data'!G23) ->  | D23: =IF('DF raw data'!H23="","",'DF raw data'!H23) -> 
A24: =IF('DF raw data'!E24="","",'DF raw data'!E24) -> Probe Danfysik Reg. Number | B24: =IF('DF raw data'!F24="","",'DF raw data'!F24) -> 2277 | C24: =IF('DF raw data'!G24="","",'DF raw data'!G24) ->  | D24: =IF('DF raw data'!H24="","",'DF raw data'!H24) -> 
A25: =IF('DF raw data'!E25="","",'DF raw data'!E25) -> Probe Axis | B25: =IF('DF raw data'!F25="","",'DF raw data'!F25) -> By | C25: =IF('DF raw data'!G25="","",'DF raw data'!G25) ->  | D25: =IF('DF raw data'!H25="","",'DF raw data'!H25) -> 
A26: =IF('DF raw data'!E26="","",'DF raw data'!E26) -> Probe Current Supply | B26: =IF('DF raw data'!F26="","",'DF raw data'!F26) -> 1825-D | C26: =IF('DF raw data'!G26="","",'DF raw data'!G26) ->  | D26: =IF('DF raw data'!H26="","",'DF raw data'!H26) -> 
A27: =IF('DF raw data'!E27="","",'DF raw data'!E27) -> Probe Gain Correction | B27: =IF('DF raw data'!F27="","",'DF raw data'!F27) -> 0.99606 | C27: =IF('DF raw data'!G27="","",'DF raw data'!G27) ->  | D27: =IF('DF raw data'!H27="","",'DF raw data'!H27) -> 
A28: =IF('DF raw data'!E28="","",'DF raw data'!E28) -> Probe Offset Correction | B28: =IF('DF raw data'!F28="","",'DF raw data'!F28) -> 0.002758 | C28: =IF('DF raw data'!G28="","",'DF raw data'!G28) ->  | D28: =IF('DF raw data'!H28="","",'DF raw data'!H28) -> 
A29: =IF('DF raw data'!E29="","",'DF raw data'!E29) -> DVM Number | B29: =IF('DF raw data'!F29="","",'DF raw data'!F29) -> 2 | C29: =IF('DF raw data'!G29="","",'DF raw data'!G29) ->  | D29: =IF('DF raw data'!H29="","",'DF raw data'!H29) -> 
A30: =IF('DF raw data'!E30="","",'DF raw data'!E30) -> DVM Type | B30: =IF('DF raw data'!F30="","",'DF raw data'!F30) -> K2701 | C30: =IF('DF raw data'!G30="","",'DF raw data'!G30) ->  | D30: =IF('DF raw data'!H30="","",'DF raw data'!H30) -> 
A31: =IF('DF raw data'!E31="","",'DF raw data'!E31) -> DVM Danfysik Reg. Number | B31: =IF('DF raw data'!F31="","",'DF raw data'!F31) -> 1743-D | C31: =IF('DF raw data'!G31="","",'DF raw data'!G31) ->  | D31: =IF('DF raw data'!H31="","",'DF raw data'!H31) -> 
A32: =IF('DF raw data'!E32="","",'DF raw data'!E32) -> Probe Name | B32: =IF('DF raw data'!F32="","",'DF raw data'!F32) -> ID12_Bx | C32: =IF('DF raw data'!G32="","",'DF raw data'!G32) ->  | D32: =IF('DF raw data'!H32="","",'DF raw data'!H32) -> 
A33: =IF('DF raw data'!E33="","",'DF raw data'!E33) -> Probe Type | B33: =IF('DF raw data'!F33="","",'DF raw data'!F33) -> DF_ID_3D_Bxyz | C33: =IF('DF raw data'!G33="","",'DF raw data'!G33) ->  | D33: =IF('DF raw data'!H33="","",'DF raw data'!H33) -> 
A34: =IF('DF raw data'!E34="","",'DF raw data'!E34) -> Probe Danfysik Reg. Number | B34: =IF('DF raw data'!F34="","",'DF raw data'!F34) -> 2277 | C34: =IF('DF raw data'!G34="","",'DF raw data'!G34) ->  | D34: =IF('DF raw data'!H34="","",'DF raw data'!H34) -> 
A35: =IF('DF raw data'!E35="","",'DF raw data'!E35) -> Probe Axis | B35: =IF('DF raw data'!F35="","",'DF raw data'!F35) -> Bx | C35: =IF('DF raw data'!G35="","",'DF raw data'!G35) ->  | D35: =IF('DF raw data'!H35="","",'DF raw data'!H35) -> 
A36: =IF('DF raw data'!E36="","",'DF raw data'!E36) -> Probe Current Supply | B36: =IF('DF raw data'!F36="","",'DF raw data'!F36) -> 1825-D | C36: =IF('DF raw data'!G36="","",'DF raw data'!G36) ->  | D36: =IF('DF raw data'!H36="","",'DF raw data'!H36) -> 
A37: =IF('DF raw data'!E37="","",'DF raw data'!E37) -> Probe Gain Correction | B37: =IF('DF raw data'!F37="","",'DF raw data'!F37) -> 1 | C37: =IF('DF raw data'!G37="","",'DF raw data'!G37) ->  | D37: =IF('DF raw data'!H37="","",'DF raw data'!H37) -> 
A38: =IF('DF raw data'!E38="","",'DF raw data'!E38) -> Probe Offset Correction | B38: =IF('DF raw data'!F38="","",'DF raw data'!F38) -> -0.17551 | C38: =IF('DF raw data'!G38="","",'DF raw data'!G38) ->  | D38: =IF('DF raw data'!H38="","",'DF raw data'!H38) -> 
A39: =IF('DF raw data'!E39="","",'DF raw data'!E39) -> DVM Number | B39: =IF('DF raw data'!F39="","",'DF raw data'!F39) -> 3 | C39: =IF('DF raw data'!G39="","",'DF raw data'!G39) ->  | D39: =IF('DF raw data'!H39="","",'DF raw data'!H39) -> 
A40: =IF('DF raw data'!E40="","",'DF raw data'!E40) -> DVM Type | B40: =IF('DF raw data'!F40="","",'DF raw data'!F40) -> K2701 | C40: =IF('DF raw data'!G40="","",'DF raw data'!G40) ->  | D40: =IF('DF raw data'!H40="","",'DF raw data'!H40) -> 
A41: =IF('DF raw data'!E41="","",'DF raw data'!E41) -> DVM Danfysik Reg. Number | B41: =IF('DF raw data'!F41="","",'DF raw data'!F41) -> 1744-D | C41: =IF('DF raw data'!G41="","",'DF raw data'!G41) ->  | D41: =IF('DF raw data'!H41="","",'DF raw data'!H41) -> 
A42: =IF('DF raw data'!E42="","",'DF raw data'!E42) -> Probe Name | B42: =IF('DF raw data'!F42="","",'DF raw data'!F42) -> ID12_Bz | C42: =IF('DF raw data'!G42="","",'DF raw data'!G42) ->  | D42: =IF('DF raw data'!H42="","",'DF raw data'!H42) -> 
A43: =IF('DF raw data'!E43="","",'DF raw data'!E43) -> Probe Type | B43: =IF('DF raw data'!F43="","",'DF raw data'!F43) -> DF_ID_3D_Bxyz | C43: =IF('DF raw data'!G43="","",'DF raw data'!G43) ->  | D43: =IF('DF raw data'!H43="","",'DF raw data'!H43) -> 
A44: =IF('DF raw data'!E44="","",'DF raw data'!E44) -> Probe Danfysik Reg. Number | B44: =IF('DF raw data'!F44="","",'DF raw data'!F44) -> 2277 | C44: =IF('DF raw data'!G44="","",'DF raw data'!G44) ->  | D44: =IF('DF raw data'!H44="","",'DF raw data'!H44) -> 
A45: =IF('DF raw data'!E45="","",'DF raw data'!E45) -> Probe Axis | B45: =IF('DF raw data'!F45="","",'DF raw data'!F45) -> Bz | C45: =IF('DF raw data'!G45="","",'DF raw data'!G45) ->  | D45: =IF('DF raw data'!H45="","",'DF raw data'!H45) -> 
A46: =IF('DF raw data'!E46="","",'DF raw data'!E46) -> Probe Current Supply | B46: =IF('DF raw data'!F46="","",'DF raw data'!F46) -> 1825-D | C46: =IF('DF raw data'!G46="","",'DF raw data'!G46) ->  | D46: =IF('DF raw data'!H46="","",'DF raw data'!H46) -> 
A47: =IF('DF raw data'!E47="","",'DF raw data'!E47) -> Probe Gain Correction | B47: =IF('DF raw data'!F47="","",'DF raw data'!F47) -> 1 | C47: =IF('DF raw data'!G47="","",'DF raw data'!G47) ->  | D47: =IF('DF raw data'!H47="","",'DF raw data'!H47) -> 
A48: =IF('DF raw data'!E53="","",'DF raw data'!E53) -> PS-Gap: | B48: =IF('DF raw data'!F53="","",'DF raw data'!F53) -> 10 | C48: =IF('DF raw data'!G53="","",'DF raw data'!G53) ->  | D48: =IF('DF raw data'!H53="","",'DF raw data'!H53) -> 
A49: =IF('DF raw data'!E54="","",'DF raw data'!E54) -> PS-Temperature: | B49: =IF('DF raw data'!F54="","",'DF raw data'!F54) -> 25.2 | C49: =IF('DF raw data'!G54="","",'DF raw data'!G54) ->  | D49: =IF('DF raw data'!H54="","",'DF raw data'!H54) -> 
A50: =IF('DF raw data'!E55="","",'DF raw data'!E55) -> PS-Encoder: | B50: =IF('DF raw data'!F55="","",'DF raw data'!F55) -> 19.8252 | C50: =IF('DF raw data'!G55="","",'DF raw data'!G55) ->  | D50: =IF('DF raw data'!H55="","",'DF raw data'!H55) -> 
A51: =IF('DF raw data'!E56="","",'DF raw data'!E56) ->  | B51: =IF('DF raw data'!F56="","",'DF raw data'!F56) ->  | C51: =IF('DF raw data'!G56="","",'DF raw data'!G56) ->  | D51: =IF('DF raw data'!H56="","",'DF raw data'!H56) -> 
A52: =IF('DF raw data'!E57="","",'DF raw data'!E57) -> Monitor-Index | B52: =IF('DF raw data'!F57="","",'DF raw data'!F57) -> [1,1,4] | C52: =IF('DF raw data'!G57="","",'DF raw data'!G57) ->  | D52: =IF('DF raw data'!H57="","",'DF raw data'!H57) -> 
A53: =IF('DF raw data'!E58="","",'DF raw data'!E58) ->  | B53: =IF('DF raw data'!F58="","",'DF raw data'!F58) ->  | C53: =IF('DF raw data'!G58="","",'DF raw data'!G58) ->  | D53: =IF('DF raw data'!H58="","",'DF raw data'!H58) -> 
A54: =IF('DF raw data'!E59="","",'DF raw data'!E59) -> Time [s] | B54: =IF('DF raw data'!F59="","",'DF raw data'!F59) -> Y [mm] | C54: =IF('DF raw data'!G59="","",'DF raw data'!G59) -> X [mm] | D54: =IF('DF raw data'!H59="","",'DF raw data'!H59) -> Nominal current [A]
A55: =IF('DF raw data'!E60="","",'DF raw data'!E60) ->  | B55: =IF('DF raw data'!F60="","",'DF raw data'!F60) ->  | C55: =IF('DF raw data'!G60="","",'DF raw data'!G60) ->  | D55: =IF('DF raw data'!H60="","",'DF raw data'!H60) -> 
A56: =IF('DF raw data'!E61="","",'DF raw data'!E61) -> 207.6 | B56: =IF('DF raw data'!F61="","",'DF raw data'!F61) -> 31.66 | C56: =IF('DF raw data'!G61="","",'DF raw data'!G61) -> 301.8 | D56: =IF('DF raw data'!H61="","",'DF raw data'!H61) -> 0
A57: =IF('DF raw data'!E62="","",'DF raw data'!E62) ->  | B57: =IF('DF raw data'!F62="","",'DF raw data'!F62) ->  | C57: =IF('DF raw data'!G62="","",'DF raw data'!G62) ->  | D57: =IF('DF raw data'!H62="","",'DF raw data'!H62) -> 
A58: =IF('DF raw data'!E63="","",'DF raw data'!E63) -> Measurement-Index | B58: =IF('DF raw data'!F63="","",'DF raw data'!F63) -> [1,1,1201,2] | C58: =IF('DF raw data'!G63="","",'DF raw data'!G63) ->  | D58: =IF('DF raw data'!H63="","",'DF raw data'!H63) -> 
A59: =IF('DF raw data'!E64="","",'DF raw data'!E64) ->  | B59: =IF('DF raw data'!F64="","",'DF raw data'!F64) ->  | C59: =IF('DF raw data'!G64="","",'DF raw data'!G64) ->  | D59: =IF('DF raw data'!H64="","",'DF raw data'!H64) -> 
A60: =IF('DF raw data'!E65="","",'DF raw data'!E65) -> Z [mm] | B60: By [T] | C60: Bx [T] | D60: Bz [T] | F60: By_corr | G60: Bx_corr | H60: Bz_corr | J60: Iy | K60: Jy | L60: Ix | M60: Jx | N60: PI
A62: =IF('DF raw data'!E67="","",'DF raw data'!E67) -> -300 | B62: =IF('DF raw data'!F67="","",'DF raw data'!F67) -> -2.82065e-05 | C62: =IF('DF raw data'!G67="","",'DF raw data'!G67) -> 8.84895e-05 | D62: =IF('DF raw data'!H67="","",'DF raw data'!H67) -> -2.08479e-05 | F62: =(1-$G$1*($B$49))*B62 -> -2.89173038e-05 | G62: =(1-$G$1*($B$49-$G$2))*C62 -> 8.89496454e-05 | H62: =(1-$G$1*($B$49-$G$2))*D62 -> -2.095630908e-05 | J62: =F62*$G$3 -> -1.44586519e-05 | K62: =J62*$G$3 -> -7.22932595e-06 | L62: =G62*$G$3 -> 4.44748227e-05 | M62: =L62*$G$3 -> 2.223741135e-05 | N62: =(J62^2+L62^2)*$G$3 -> 1.093531234e-09
A63: =IF('DF raw data'!E68="","",'DF raw data'!E68) -> -299.5 | B63: =IF('DF raw data'!F68="","",'DF raw data'!F68) -> -1.39796e-05 | C63: =IF('DF raw data'!G68="","",'DF raw data'!G68) -> 0.000107716 | D63: =IF('DF raw data'!H68="","",'DF raw data'!H68) -> -2.14088e-05 | F63: =(1-$G$1*($B$49-$G$2))*B63 -> -1.405229392e-05 | G63: =(1-$G$1*($B$49-$G$2))*C63 -> 0.0001082761232 | H63: -2.152012576e-05 | J63: =F63*$G$3+J62 -> -2.148479886e-05 | K63: =J63*$G$3+K62 -> -1.797172538e-05 | L63: =G63*$G$3+L62 -> 9.86128843e-05 | M63: =L63*$G$3+M62 -> 7.15438535e-05 | N63: =(J63^2+L63^2)*$G$3+N62 -> 6.18658e-09
A64: =IF('DF raw data'!E69="","",'DF raw data'!E69) -> -299 | B64: =IF('DF raw data'!F69="","",'DF raw data'!F69) -> -3.13438e-05 | C64: =IF('DF raw data'!G69="","",'DF raw data'!G69) -> 0.000120926 | D64: =IF('DF raw data'!H69="","",'DF raw data'!H69) -> -2.1837e-05 | F64: =(1-$G$1*($B$49-$G$2))*B64 -> -3.150678776e-05 | G64: 0.0001215548152 | H64: -2.19505524e-05 | J64: =F64*$G$3+J63 -> -3.723819274e-05 | K64: =J64*$G$3+K63 -> -3.659082175e-05 | L64: =G64*$G$3+L63 -> 0.0001593902919 | M64: =L64*$G$3+M63 -> 0.0001512389995 | N64: =(J64^2+L64^2)*$G$3+N63 -> 1.958255408e-08
A65: =IF('DF raw data'!E70="","",'DF raw data'!E70) -> -298.5 | B65: =IF('DF raw data'!F70="","",'DF raw data'!F70) -> -1.962e-05 | C65: =IF('DF raw data'!G70="","",'DF raw data'!G70) -> 0.000117298 | D65: =IF('DF raw data'!H70="","",'DF raw data'!H70) -> -2.18846e-05 | F65: -1.9722024e-05 | G65: 0.0001179079496 | H65: -2.199839992e-05 | J65: -4.709920474e-05 | K65: -6.014042412e-05 | L65: 0.0002183442667 | M65: 0.0002604111328 | N65: 4.452883102e-08
A66: =IF('DF raw data'!E71="","",'DF raw data'!E71) -> -298 | B66: =IF('DF raw data'!F71="","",'DF raw data'!F71) -> -1.76311e-05 | C66: =IF('DF raw data'!G71="","",'DF raw data'!G71) -> 0.000113402 | D66: =IF('DF raw data'!H71="","",'DF raw data'!H71) -> -2.25676e-05 | F66: -1.772278172e-05 | G66: 0.0001139916904 | H66: -2.268495152e-05 | J66: -5.59605956e-05 | K66: -8.812072192e-05 | L66: 0.0002753401119 | M66: 0.0003980811888 | N66: 8.400071376e-08
A67: =IF('DF raw data'!E72="","",'DF raw data'!E72) -> -297.5 | B67: =IF('DF raw data'!F72="","",'DF raw data'!F72) -> -2.14776e-05 | C67: =IF('DF raw data'!G72="","",'DF raw data'!G72) -> 0.000109076 | D67: =IF('DF raw data'!H72="","",'DF raw data'!H72) -> -2.33717e-05 | F67: -2.158928352e-05 | G67: 0.0001096431952 | H67: -2.349323284e-05 | J67: -6.675523736e-05 | K67: -0.0001214983406 | L67: 0.0003301617095 | M67: 0.0005631620435 | N67: 1.407322218e-07
A68: =IF('DF raw data'!E73="","",'DF raw data'!E73) -> -297 | B68: =IF('DF raw data'!F73="","",'DF raw data'!F73) -> -3.28171e-05 | C68: =IF('DF raw data'!G73="","",'DF raw data'!G73) -> 0.00010111 | D68: =IF('DF raw data'!H73="","",'DF raw data'!H73) -> -2.28355e-05 | F68: -3.298774892e-05 | G68: 0.000101635772 | H68: -2.29542446e-05 | J68: -8.324911182e-05 | K68: -0.0001631228965 | L68: 0.0003809795955 | M68: 0.0007536518413 | N68: 2.167701552e-07
A69: =IF('DF raw data'!E74="","",'DF raw data'!E74) -> -296.5 | B69: =IF('DF raw data'!F74="","",'DF raw data'!F74) -> -3.21162e-05 | C69: =IF('DF raw data'!G74="","",'DF raw data'!G74) -> 0.000109801 | D69: =IF('DF raw data'!H74="","",'DF raw data'!H74) -> -2.14865e-05 | F69: -3.228320424e-05 | G69: 0.0001103719652 | H69: -2.15982298e-05 | J69: -9.939071394e-05 | K69: -0.0002128182535 | L69: 0.0004361655781 | M69: 0.0009717346303 | N69: 3.16829618e-07
A70: =IF('DF raw data'!E75="","",'DF raw data'!E75) -> -296 | B70: =IF('DF raw data'!F75="","",'DF raw data'!F75) -> -1.98751e-05 | C70: =IF('DF raw data'!G75="","",'DF raw data'!G75) -> 0.000109199 | D70: =IF('DF raw data'!H75="","",'DF raw data'!H75) -> -2.07658e-05 | F70: -1.997845052e-05 | G70: 0.0001097668348 | H70: -2.087378216e-05 | J70: -0.0001093799392 | K70: -0.0002675082231 | L70: 0.0004910489955 | M70: 0.001217259128 | N70: 4.433761615e-07
A71: =IF('DF raw data'!E76="","",'DF raw data'!E76) -> -295.5 | B71: =IF('DF raw data'!F76="","",'DF raw data'!F76) -> -2.21198e-05 | C71: =IF('DF raw data'!G76="","",'DF raw data'!G76) -> 0.000104264 | D71: =IF('DF raw data'!H76="","",'DF raw data'!H76) -> -2.09161e-05 | F71: -2.223482296e-05 | G71: 0.0001048061728 | H71: -2.102486372e-05 | J71: -0.0001204973507 | K71: -0.0003277568984 | L71: 0.0005434520819 | M71: 0.001488985169 | N71: 5.9830605e-07
A72: =IF('DF raw data'!E77="","",'DF raw data'!E77) -> -295 | B72: =IF('DF raw data'!F77="","",'DF raw data'!F77) -> -1.01351e-05 | C72: =IF('DF raw data'!G77="","",'DF raw data'!G77) -> 0.000105488 | D72: =IF('DF raw data'!H77="","",'DF raw data'!H77) -> -2.15401e-05 | F72: -1.018780252e-05 | G72: 0.0001060365376 | H72: -2.165210852e-05 | J72: -0.0001255912519 | K72: -0.0003905525244 | L72: 0.0005964703507 | M72: 0.001787220344 | N72: 7.840810709e-07
A73: =IF('DF raw data'!E78="","",'DF raw data'!E78) -> -294.5 | B73: =IF('DF raw data'!F78="","",'DF raw data'!F78) -> -1.71203e-05 | C73: =IF('DF raw data'!G78="","",'DF raw data'!G78) -> 0.000109077 | D73: =IF('DF raw data'!H78="","",'DF raw data'!H78) -> -2.21856e-05 | F73: -1.720932556e-05 | G73: 0.0001096442004 | H73: -2.230096512e-05 | J73: -0.0001341959147 | K73: -0.0004576504818 | L73: 0.0006512924509 | M73: 0.00211286657 | N73: 1.005176271e-06
A74: =IF('DF raw data'!E79="","",'DF raw data'!E79) -> -294 | B74: =IF('DF raw data'!F79="","",'DF raw data'!F79) -> -1.20564e-05 | C74: =IF('DF raw data'!G79="","",'DF raw data'!G79) -> 0.000110267 | D74: =IF('DF raw data'!H79="","",'DF raw data'!H79) -> -2.29582e-05 | F74: -1.211909328e-05 | G74: 0.0001108403884 | H74: -2.307758264e-05 | J74: -0.0001402554614 | K74: -0.0005277782124 | L74: 0.0007067126451 | M74: 0.002466222892 | N74: 1.26473345e-06
A75: =IF('DF raw data'!E80="","",'DF raw data'!E80) -> -293.5 | B75: =IF('DF raw data'!F80="","",'DF raw data'!F80) -> -1.72477e-05 | C75: =IF('DF raw data'!G80="","",'DF raw data'!G80) -> 0.000106458 | D75: =IF('DF raw data'!H80="","",'DF raw data'!H80) -> -2.36331e-05 | F75: -1.733738804e-05 | G75: 0.0001070115816 | H75: -2.375599212e-05 | J75: -0.0001489241554 | K75: -0.0006022402901 | L75: 0.0007602184359 | M75: 0.00284633211 | N75: 1.564788687e-06
A76: =IF('DF raw data'!E81="","",'DF raw data'!E81) -> -293 | B76: =IF('DF raw data'!F81="","",'DF raw data'!F81) -> -2.49354e-05 | C76: =IF('DF raw data'!G81="","",'DF raw data'!G81) -> 0.000110436 | D76: =IF('DF raw data'!H81="","",'DF raw data'!H81) -> -2.35208e-05 | F76: -2.506506408e-05 | G76: 0.0001110102672 | H76: -2.364310816e-05 | J76: -0.0001614566874 | K76: -0.0006829686338 | L76: 0.0008157235695 | M76: 0.003254193895 | N76: 1.910525289e-06
A77: =IF('DF raw data'!E82="","",'DF raw data'!E82) -> -292.5 | B77: =IF('DF raw data'!F82="","",'DF raw data'!F82) -> -3.26924e-05 | C77: =IF('DF raw data'!G82="","",'DF raw data'!G82) -> 0.000113571 | D77: =IF('DF raw data'!H82="","",'DF raw data'!H82) -> -2.2511e-05 | F77: -3.286240048e-05 | G77: 0.0001141615692 | H77: -2.26280572e-05 | J77: -0.0001778878877 | K77: -0.0007719125777 | L77: 0.0008728043541 | M77: 0.003690596072 | N77: 2.307241059e-06
A78: =IF('DF raw data'!E83="","",'DF raw data'!E83) -> -292 | B78: =IF('DF raw data'!F83="","",'DF raw data'!F83) -> -2.25659e-05 | C78: =IF('DF raw data'!G83="","",'DF raw data'!G83) -> 0.000111356 | D78: =IF('DF raw data'!H83="","",'DF raw data'!H83) -> -2.15027e-05 | F78: -2.268324268e-05 | G78: 0.0001119350512 | H78: -2.161451404e-05 | J78: -0.000189229509 | K78: -0.0008665273322 | L78: 0.0009287718797 | M78: 0.004154982012 | N78: 2.756453565e-06
A79: =IF('DF raw data'!E84="","",'DF raw data'!E84) -> -291.5 | B79: =IF('DF raw data'!F84="","",'DF raw data'!F84) -> -2.82053e-05 | C79: =IF('DF raw data'!G84="","",'DF raw data'!G84) -> 9.91691e-05 | D79: =IF('DF raw data'!H84="","",'DF raw data'!H84) -> -2.43764e-05 | F79: -2.835196756e-05 | G79: 9.968477932e-05 | H79: -2.450315728e-05 | J79: -0.0002034054928 | K79: -0.0009682300786 | L79: 0.0009786142694 | M79: 0.004644289147 | N79: 3.255983406e-06
A80: =IF('DF raw data'!E85="","",'DF raw data'!E85) -> -291 | B80: =IF('DF raw data'!F85="","",'DF raw data'!F85) -> -1.24401e-05 | C80: =IF('DF raw data'!G85="","",'DF raw data'!G85) -> 0.000101276 | D80: =IF('DF raw data'!H85="","",'DF raw data'!H85) -> -2.41359e-05 | F80: -1.250478852e-05 | G80: 0.0001018026352 | H80: -2.426140668e-05 | J80: -0.000209657887 | K80: -0.001073059022 | L80: 0.001029515587 | M80: 0.00515904694 | N80: 3.807912793e-06
A81: =IF('DF raw data'!E86="","",'DF raw data'!E86) -> -290.5 | B81: =IF('DF raw data'!F86="","",'DF raw data'!F86) -> -1.86579e-05 | C81: =IF('DF raw data'!G86="","",'DF raw data'!G86) -> 0.000106877 | D81: =IF('DF raw data'!H86="","",'DF raw data'!H86) -> -2.29182e-05 | F81: -1.875492108e-05 | G81: 0.0001074327604 | H81: -2.303737464e-05 | J81: -0.0002190353476 | K81: -0.001182576696 | L81: 0.001083231967 | M81: 0.005700662924 | N81: 4.418596782e-06
A82: =IF('DF raw data'!E87="","",'DF raw data'!E87) -> -290 | B82: =IF('DF raw data'!F87="","",'DF raw data'!F87) -> -2.88998e-05 | C82: =IF('DF raw data'!G87="","",'DF raw data'!G87) -> 0.000111443 | D82: =IF('DF raw data'!H87="","",'DF raw data'!H87) -> -3.63056e-05 | F82: -2.905007896e-05 | G82: 0.0001120225036 | H82: -3.649438912e-05 | J82: -0.0002335603871 | K82: -0.001299356889 | L82: 0.001139243219 | M82: 0.006270284533 | N82: 5.094809565e-06
A83: =IF('DF raw data'!E88="","",'DF raw data'!E88) -> -289.5 | B83: =IF('DF raw data'!F88="","",'DF raw data'!F88) -> -2.94184e-05 | C83: =IF('DF raw data'!G88="","",'DF raw data'!G88) -> 9.97289e-05 | D83: =IF('DF raw data'!H88="","",'DF raw data'!H88) -> -3.1466e-05 | F83: -2.957137568e-05 | G83: 0.0001002474903 | H83: -3.16296232e-05 | J83: -0.0002483460749 | K83: -0.001423529927 | L83: 0.001189366964 | M83: 0.006864968015 | N83: 5.832944339e-06
A84: =IF('DF raw data'!E89="","",'DF raw data'!E89) -> -289 | B84: =IF('DF raw data'!F89="","",'DF raw data'!F89) -> -1.97408e-05 | C84: =IF('DF raw data'!G89="","",'DF raw data'!G89) -> 9.95548e-05 | D84: =IF('DF raw data'!H89="","",'DF raw data'!H89) -> -3.01538e-05 | F84: -1.984345216e-05 | G84: 0.000100072485 | H84: -3.031059976e-05 | J84: -0.000258267801 | K84: -0.001552663827 | L84: 0.001239403207 | M84: 0.007484669619 | N84: 6.634355622e-06
A85: =IF('DF raw data'!E90="","",'DF raw data'!E90) -> -288.5 | B85: =IF('DF raw data'!F90="","",'DF raw data'!F90) -> -2.60239e-05 | C85: =IF('DF raw data'!G90="","",'DF raw data'!G90) -> 0.000103653 | D85: =IF('DF raw data'!H90="","",'DF raw data'!H90) -> -2.84366e-05 | F85: -2.615922428e-05 | G85: 0.0001041919956 | H85: -2.858447032e-05 | J85: -0.0002713474131 | K85: -0.001688337534 | L85: 0.001291499204 | M85: 0.008130419221 | N85: 7.505155429e-06
A86: =IF('DF raw data'!E91="","",'DF raw data'!E91) -> -288 | B86: =IF('DF raw data'!F91="","",'DF raw data'!F91) -> -2.94162e-05 | C86: =IF('DF raw data'!G91="","",'DF raw data'!G91) -> 9.6642e-05 | D86: =IF('DF raw data'!H91="","",'DF raw data'!H91) -> -3.05413e-05 | F86: -2.956916424e-05 | G86: 9.71445384e-05 | H86: -3.070011476e-05 | J86: -0.0002861319952 | K86: -0.001831403532 | L86: 0.001340071474 | M86: 0.008800454957 | N86: 8.443986965e-06
A87: =IF('DF raw data'!E92="","",'DF raw data'!E92) -> -287.5 | B87: =IF('DF raw data'!F92="","",'DF raw data'!F92) -> -2.7693e-05 | C87: =IF('DF raw data'!G92="","",'DF raw data'!G92) -> 9.41508e-05 | D87: =IF('DF raw data'!H92="","",'DF raw data'!H92) -> -2.36649e-05 | F87: -2.78370036e-05 | G87: 9.464038416e-05 | H87: -2.378795748e-05 | J87: -0.000300050497 | K87: -0.00198142878 | L87: 0.001387391666 | M87: 0.00949415079 | N87: 9.451429933e-06
A88: =IF('DF raw data'!E93="","",'DF raw data'!E93) -> -287 | B88: =IF('DF raw data'!F93="","",'DF raw data'!F93) -> -3.95353e-05 | C88: =IF('DF raw data'!G93="","",'DF raw data'!G93) -> 9.91359e-05 | D88: =IF('DF raw data'!H93="","",'DF raw data'!H93) -> -3.80996e-05 | F88: -3.974088356e-05 | G88: 9.965140668e-05 | H88: -3.829771792e-05 | J88: -0.0003199209388 | K88: -0.002141389249 | L88: 0.001437217369 | M88: 0.01021275947 | N88: 1.053540152e-05
A89: =IF('DF raw data'!E94="","",'DF raw data'!E94) -> -286.5 | B89: =IF('DF raw data'!F94="","",'DF raw data'!F94) -> -1.6346e-05 | C89: =IF('DF raw data'!G94="","",'DF raw data'!G94) -> 0.000101503 | D89: =IF('DF raw data'!H94="","",'DF raw data'!H94) -> -3.05781e-05 | F89: -1.64309992e-05 | G89: 0.0001020308156 | H89: -3.073710612e-05 | J89: -0.0003281364384 | K89: -0.002305457469 | L89: 0.001488232777 | M89: 0.01095687586 | N89: 1.169665668e-05
A90: =IF('DF raw data'!E95="","",'DF raw data'!E95) -> -286 | B90: =IF('DF raw data'!F95="","",'DF raw data'!F95) -> -2.85826e-05 | C90: =IF('DF raw data'!G95="","",'DF raw data'!G95) -> 0.000104851 | D90: =IF('DF raw data'!H95="","",'DF raw data'!H95) -> -3.1412e-05 | F90: -2.873122952e-05 | G90: 0.0001053962252 | H90: -3.15753424e-05 | J90: -0.0003425020532 | K90: -0.002476708495 | L90: 0.001540930889 | M90: 0.01172734131 | N90: 1.294254451e-05
A91: =IF('DF raw data'!E96="","",'DF raw data'!E96) -> -285.5 | B91: =IF('DF raw data'!F96="","",'DF raw data'!F96) -> -2.20522e-05 | C91: =IF('DF raw data'!G96="","",'DF raw data'!G96) -> 0.000111774 | D91: =IF('DF raw data'!H96="","",'DF raw data'!H96) -> -2.59508e-05 | F91: -2.216687144e-05 | G91: 0.0001123552248 | H91: -2.608574416e-05 | J91: -0.0003535854889 | K91: -0.00265350124 | L91: 0.001597108502 | M91: 0.01252589556 | N91: 1.428043364e-05
A92: =IF('DF raw data'!E97="","",'DF raw data'!E97) -> -285 | B92: =IF('DF raw data'!F97="","",'DF raw data'!F97) -> -2.81417e-05 | C92: =IF('DF raw data'!G97="","",'DF raw data'!G97) -> 0.000105869 | D92: =IF('DF raw data'!H97="","",'DF raw data'!H97) -> -1.98384e-05 | F92: -2.828803684e-05 | G92: 0.0001064195188 | H92: -1.994155968e-05 | J92: -0.0003677295073 | K92: -0.002837365993 | L92: 0.001650318261 | M92: 0.01335105469 | N92: 1.570982132e-05
A93: =IF('DF raw data'!E98="","",'DF raw data'!E98) -> -284.5 | B93: =IF('DF raw data'!F98="","",'DF raw data'!F98) -> -2.3979e-05 | C93: =IF('DF raw data'!G98="","",'DF raw data'!G98) -> 9.71049e-05 | D93: =IF('DF raw data'!H98="","",'DF raw data'!H98) -> -1.94024e-05 | F93: -2.41036908e-05 | G93: 9.760984548e-05 | H93: -1.950329248e-05 | J93: -0.0003797813527 | K93: -0.00302725667 | L93: 0.001699123184 | M93: 0.01420061628 | N93: 1.722544805e-05
A94: =IF('DF raw data'!E99="","",'DF raw data'!E99) -> -284 | B94: =IF('DF raw data'!F99="","",'DF raw data'!F99) -> -2.57613e-05 | C94: =IF('DF raw data'!G99="","",'DF raw data'!G99) -> 0.000101704 | D94: =IF('DF raw data'!H99="","",'DF raw data'!H99) -> -3.4687e-05 | F94: -2.589525876e-05 | G94: 0.0001022328608 | H94: -3.48673724e-05 | J94: -0.0003927289821 | K94: -0.003223621161 | L94: 0.001750239614 | M94: 0.01507573609 | N94: 1.883423544e-05
A95: =IF('DF raw data'!E100="","",'DF raw data'!E100) -> -283.5 | B95: =IF('DF raw data'!F100="","",'DF raw data'!F100) -> -3.02533e-05 | C95: =IF('DF raw data'!G100="","",'DF raw data'!G100) -> 0.000113001 | D95: =IF('DF raw data'!H100="","",'DF raw data'!H100) -> -2.82701e-05 | F95: -3.041061716e-05 | G95: 0.0001135886052 | H95: -2.841710452e-05 | J95: -0.0004079342907 | K95: -0.003427588306 | L95: 0.001807033917 | M95: 0.01597925305 | N95: 2.055012642e-05
A96: =IF('DF raw data'!E101="","",'DF raw data'!E101) -> -283 | B96: =IF('DF raw data'!F101="","",'DF raw data'!F101) -> -3.10122e-05 | C96: =IF('DF raw data'!G101="","",'DF raw data'!G101) -> 0.000109569 | D96: =IF('DF raw data'!H101="","",'DF raw data'!H101) -> -4.00552e-05 | F96: -3.117346344e-05 | G96: 0.0001101387588 | H96: -4.026348704e-05 | J96: -0.0004235210224 | K96: -0.003639348817 | L96: 0.001862103296 | M96: 0.0169103047 | N96: 2.237352579e-05
A97: =IF('DF raw data'!E102="","",'DF raw data'!E102) -> -282.5 | B97: =IF('DF raw data'!F102="","",'DF raw data'!F102) -> -2.00592e-05 | C97: =IF('DF raw data'!G102="","",'DF raw data'!G102) -> 0.000108817 | D97: =IF('DF raw data'!H102="","",'DF raw data'!H102) -> -3.61083e-05 | F97: -2.016350784e-05 | G97: 0.0001093828484 | H97: -3.629606316e-05 | J97: -0.0004336027763 | K97: -0.003856150205 | L97: 0.001916794721 | M97: 0.01786870206 | N97: 2.430458247e-05
A98: =IF('DF raw data'!E103="","",'DF raw data'!E103) -> -282 | B98: =IF('DF raw data'!F103="","",'DF raw data'!F103) -> -2.14067e-05 | C98: =IF('DF raw data'!G103="","",'DF raw data'!G103) -> 0.00010742 | D98: =IF('DF raw data'!H103="","",'DF raw data'!H103) -> -3.05524e-05 | F98: -2.151801484e-05 | G98: 0.000107978584 | H98: -3.071127248e-05 | J98: -0.0004443617837 | K98: -0.004078331097 | L98: 0.001970784013 | M98: 0.01885409406 | N98: 2.634530598e-05
A99: =IF('DF raw data'!E104="","",'DF raw data'!E104) -> -281.5 | B99: =IF('DF raw data'!F104="","",'DF raw data'!F104) -> -3.31371e-05 | C99: =IF('DF raw data'!G104="","",'DF raw data'!G104) -> 0.000104353 | D99: =IF('DF raw data'!H104="","",'DF raw data'!H104) -> -2.81598e-05 | F99: -3.330941292e-05 | G99: 0.0001048956356 | H99: -2.830623096e-05 | J99: -0.0004610164902 | K99: -0.004308839342 | L99: 0.00202323183 | M99: 0.01986570998 | N99: 2.84983076e-05
A100: =IF('DF raw data'!E105="","",'DF raw data'!E105) -> -281 | B100: =IF('DF raw data'!F105="","",'DF raw data'!F105) -> -2.44888e-05 | C100: =IF('DF raw data'!G105="","",'DF raw data'!G105) -> 0.000110372 | D100: =IF('DF raw data'!H105="","",'DF raw data'!H105) -> -2.05448e-05 | F100: -2.461614176e-05 | G100: 0.0001109459344 | H100: -2.065163296e-05 | J100: -0.0004733245611 | K100: -0.004545501623 | L100: 0.002078704798 | M100: 0.02090506238 | N100: 3.077083249e-05
A101: =IF('DF raw data'!E106="","",'DF raw data'!E106) -> -280.5 | B101: =IF('DF raw data'!F106="","",'DF raw data'!F106) -> -2.83332e-05 | C101: =IF('DF raw data'!G106="","",'DF raw data'!G106) -> 0.000121447 | D101: =IF('DF raw data'!H106="","",'DF raw data'!H106) -> -2.44808e-05 | F101: -2.848053264e-05 | G101: 0.0001220785244 | H101: -2.460810016e-05 | J101: -0.0004875648274 | K101: -0.004789284037 | L101: 0.00213974406 | M101: 0.02197493441 | N101: 3.317894454e-05
A102: =IF('DF raw data'!E107="","",'DF raw data'!E107) -> -280 | B102: =IF('DF raw data'!F107="","",'DF raw data'!F107) -> -2.9164e-05 | C102: =IF('DF raw data'!G107="","",'DF raw data'!G107) -> 0.000115898 | D102: =IF('DF raw data'!H107="","",'DF raw data'!H107) -> -2.42621e-05 | F102: -2.93156528e-05 | G102: 0.0001165006696 | H102: -2.438826292e-05 | J102: -0.0005022226538 | K102: -0.005040395364 | L102: 0.002197994395 | M102: 0.0230739316 | N102: 3.572064802e-05
A103: =IF('DF raw data'!E108="","",'DF raw data'!E108) -> -279.5 | B103: =IF('DF raw data'!F108="","",'DF raw data'!F108) -> -2.24339e-05 | C103: =IF('DF raw data'!G108="","",'DF raw data'!G108) -> 0.000115185 | D103: =IF('DF raw data'!H108="","",'DF raw data'!H108) -> -3.01844e-05 | F103: -2.255055628e-05 | G103: 0.000115783962 | H103: -3.034135888e-05 | J103: -0.0005134979319 | K103: -0.00529714433 | L103: 0.002255886376 | M103: 0.02420187479 | N103: 3.839699975e-05
A104: =IF('DF raw data'!E109="","",'DF raw data'!E109) -> -279 | B104: =IF('DF raw data'!F109="","",'DF raw data'!F109) -> -2.63992e-05 | C104: =IF('DF raw data'!G109="","",'DF raw data'!G109) -> 0.000113004 | D104: =IF('DF raw data'!H109="","",'DF raw data'!H109) -> -3.87339e-05 | F104: -2.653647584e-05 | G104: 0.0001135916208 | H104: -3.893531628e-05 | J104: -0.0005267661699 | K104: -0.005560527414 | L104: 0.002312682186 | M104: 0.02535821588 | N104: 4.12099905e-05
A105: =IF('DF raw data'!E110="","",'DF raw data'!E110) -> -278.5 | B105: =IF('DF raw data'!F110="","",'DF raw data'!F110) -> -2.81375e-05 | C105: =IF('DF raw data'!G110="","",'DF raw data'!G110) -> 0.000122841 | D105: =IF('DF raw data'!H110="","",'DF raw data'!H110) -> -3.01906e-05 | F105: -2.8283815e-05 | G105: 0.0001234797732 | H105: -3.034759112e-05 | J105: -0.0005409080774 | K105: -0.005830981453 | L105: 0.002374422073 | M105: 0.02654542692 | N105: 4.417522136e-05
A106: =IF('DF raw data'!E111="","",'DF raw data'!E111) -> -278 | B106: =IF('DF raw data'!F111="","",'DF raw data'!F111) -> -1.49987e-05 | C106: =IF('DF raw data'!G111="","",'DF raw data'!G111) -> 0.000125556 | D106: =IF('DF raw data'!H111="","",'DF raw data'!H111) -> -3.07135e-05 | F106: -1.507669324e-05 | G106: 0.0001262088912 | H106: -3.08732102e-05 | J106: -0.000548446424 | K106: -0.006105204665 | L106: 0.002437526518 | M106: 0.02776419018 | N106: 4.729638586e-05
A107: =IF('DF raw data'!E112="","",'DF raw data'!E112) -> -277.5 | B107: =IF('DF raw data'!F112="","",'DF raw data'!F112) -> -1.3403e-05 | C107: =IF('DF raw data'!G112="","",'DF raw data'!G112) -> 0.000122686 | D107: =IF('DF raw data'!H112="","",'DF raw data'!H112) -> -2.34176e-05 | F107: -1.34726956e-05 | G107: 0.0001233239672 | H107: -2.353937152e-05 | J107: -0.0005551827718 | K107: -0.006382796051 | L107: 0.002499188502 | M107: 0.02901378443 | N107: 5.05734714e-05
A108: =IF('DF raw data'!E113="","",'DF raw data'!E113) -> -277 | B108: =IF('DF raw data'!F113="","",'DF raw data'!F113) -> -2.70413e-05 | C108: =IF('DF raw data'!G113="","",'DF raw data'!G113) -> 0.000120151 | D108: =IF('DF raw data'!H113="","",'DF raw data'!H113) -> -3.64981e-05 | F108: -2.718191476e-05 | G108: 0.0001207757852 | H108: -3.668789012e-05 | J108: -0.0005687737292 | K108: -0.006667182916 | L108: 0.002559576394 | M108: 0.03029357263 | N108: 5.401093884e-05
A109: =IF('DF raw data'!E114="","",'DF raw data'!E114) -> -276.5 | B109: =IF('DF raw data'!F114="","",'DF raw data'!F114) -> -1.76948e-05 | C109: =IF('DF raw data'!G114="","",'DF raw data'!G114) -> 0.000125587 | D109: =IF('DF raw data'!H114="","",'DF raw data'!H114) -> -2.60116e-05 | F109: -1.778681296e-05 | G109: 0.0001262400524 | H109: -2.614686032e-05 | J109: -0.0005776671356 | K109: -0.006956016483 | L109: 0.002622696421 | M109: 0.03160492084 | N109: 5.761705676e-05
A110: =IF('DF raw data'!E115="","",'DF raw data'!E115) -> -276 | B110: =IF('DF raw data'!F115="","",'DF raw data'!F115) -> -1.30157e-05 | C110: =IF('DF raw data'!G115="","",'DF raw data'!G115) -> 0.000124837 | D110: =IF('DF raw data'!H115="","",'DF raw data'!H115) -> -2.5836e-05 | F110: -1.308338164e-05 | G110: 0.0001254861524 | H110: -2.59703472e-05 | J110: -0.0005842088265 | K110: -0.007248120897 | L110: 0.002685439497 | M110: 0.03294764059 | N110: 6.139349938e-05
A111: =IF('DF raw data'!E116="","",'DF raw data'!E116) -> -275.5 | B111: =IF('DF raw data'!F116="","",'DF raw data'!F116) -> -2.13489e-05 | C111: =IF('DF raw data'!G116="","",'DF raw data'!G116) -> 0.000113233 | D111: =IF('DF raw data'!H116="","",'DF raw data'!H116) -> -2.37962e-05 | F111: -2.145991428e-05 | G111: 0.0001138218116 | H111: -2.391994024e-05 | J111: -0.0005949387836 | K111: -0.007545590288 | L111: 0.002742350403 | M111: 0.03431881579 | N111: 6.533071832e-05
A112: =IF('DF raw data'!E117="","",'DF raw data'!E117) -> -275 | B112: =IF('DF raw data'!F117="","",'DF raw data'!F117) -> -1.90349e-05 | C112: =IF('DF raw data'!G117="","",'DF raw data'!G117) -> 0.000109349 | D112: =IF('DF raw data'!H117="","",'DF raw data'!H117) -> -3.14747e-05 | F112: -1.913388148e-05 | G112: 0.0001099176148 | H112: -3.163836844e-05 | J112: -0.0006045057243 | K112: -0.007847843151 | L112: 0.00279730921 | M112: 0.03571747039 | N112: 6.942590131e-05
A113: =IF('DF raw data'!E118="","",'DF raw data'!E118) -> -274.5 | B113: =IF('DF raw data'!F118="","",'DF raw data'!F118) -> -1.43023e-05 | C113: =IF('DF raw data'!G118="","",'DF raw data'!G118) -> 0.000110709 | D113: =IF('DF raw data'!H118="","",'DF raw data'!H118) -> -2.00493e-05 | F113: -1.437667196e-05 | G113: 0.0001112846868 | H113: -2.015355636e-05 | J113: -0.0006116940603 | K113: -0.008153690181 | L113: 0.002852951553 | M113: 0.03714394617 | N113: 7.368265241e-05
A114: =IF('DF raw data'!E119="","",'DF raw data'!E119) -> -274 | B114: =IF('DF raw data'!F119="","",'DF raw data'!F119) -> -2.1348e-05 | C114: =IF('DF raw data'!G119="","",'DF raw data'!G119) -> 0.000102266 | D114: =IF('DF raw data'!H119="","",'DF raw data'!H119) -> -2.21011e-05 | F114: -2.14590096e-05 | G114: 0.0001027977832 | H114: -2.221602572e-05 | J114: -0.0006224235651 | K114: -0.008464901963 | L114: 0.002904350445 | M114: 0.03859612139 | N114: 7.809398371e-05
A115: =IF('DF raw data'!E120="","",'DF raw data'!E120) -> -273.5 | B115: =IF('DF raw data'!F120="","",'DF raw data'!F120) -> -3.064e-05 | C115: =IF('DF raw data'!G120="","",'DF raw data'!G120) -> 0.00010288 | D115: =IF('DF raw data'!H120="","",'DF raw data'!H120) -> -2.52403e-05 | F115: -3.0799328e-05 | G115: 0.000103414976 | H115: -2.537154956e-05 | J115: -0.0006378232291 | K115: -0.008783813578 | L115: 0.002956057933 | M115: 0.04007415036 | N115: 8.26665322e-05
A116: =IF('DF raw data'!E121="","",'DF raw data'!E121) -> -273 | B116: =IF('DF raw data'!F121="","",'DF raw data'!F121) -> -2.14752e-05 | C116: =IF('DF raw data'!G121="","",'DF raw data'!G121) -> 0.00011514 | D116: =IF('DF raw data'!H121="","",'DF raw data'!H121) -> -2.35319e-05 | F116: -2.158687104e-05 | G116: 0.000115738728 | H116: -2.365426588e-05 | J116: -0.0006486166646 | K116: -0.00910812191 | L116: 0.003013927297 | M116: 0.04158111401 | N116: 8.741876286e-05
A117: =IF('DF raw data'!E122="","",'DF raw data'!E122) -> -272.5 | B117: =IF('DF raw data'!F122="","",'DF raw data'!F122) -> -2.24384e-05 | C117: =IF('DF raw data'!G122="","",'DF raw data'!G122) -> 0.000125252 | D117: =IF('DF raw data'!H122="","",'DF raw data'!H122) -> -2.32836e-05 | F117: -2.255507968e-05 | G117: 0.0001259033104 | H117: -2.340467472e-05 | J117: -0.0006598942045 | K117: -0.009438069012 | L117: 0.003076878952 | M117: 0.04311955348 | N117: 9.237008508e-05
A118: =IF('DF raw data'!E123="","",'DF raw data'!E123) -> -272 | B118: =IF('DF raw data'!F123="","",'DF raw data'!F123) -> -2.73026e-05 | C118: =IF('DF raw data'!G123="","",'DF raw data'!G123) -> 0.000119703 | D118: =IF('DF raw data'!H123="","",'DF raw data'!H123) -> -2.88588e-05 | F118: -2.744457352e-05 | G118: 0.0001203254556 | H118: -2.900886576e-05 | J118: -0.0006736164912 | K118: -0.009774877258 | L118: 0.00313704168 | M118: 0.04468807432 | N118: 9.751747992e-05
A119: =IF('DF raw data'!E124="","",'DF raw data'!E124) -> -271.5 | B119: =IF('DF raw data'!F124="","",'DF raw data'!F124) -> -2.17939e-05 | C119: =IF('DF raw data'!G124="","",'DF raw data'!G124) -> 0.00011413 | D119: =IF('DF raw data'!H124="","",'DF raw data'!H124) -> -2.89776e-05 | F119: -2.190722828e-05 | G119: 0.000114723476 | H119: -2.912828352e-05 | J119: -0.0006845701054 | K119: -0.01011716231 | L119: 0.003194403418 | M119: 0.04628527603 | N119: 0.0001028539046
A120: =IF('DF raw data'!E125="","",'DF raw data'!E125) -> -271 | B120: =IF('DF raw data'!F125="","",'DF raw data'!F125) -> -1.48779e-05 | C120: =IF('DF raw data'!G125="","",'DF raw data'!G125) -> 0.000116057 | D120: =IF('DF raw data'!H125="","",'DF raw data'!H125) -> -1.9528e-05 | F120: -1.495526508e-05 | G120: 0.0001166604964 | H120: -1.96295456e-05 | J120: -0.0006920477379 | K120: -0.01046318618 | L120: 0.003252733666 | M120: 0.04791164286 | N120: 0.0001083835078
A121: =IF('DF raw data'!E126="","",'DF raw data'!E126) -> -270.5 | B121: =IF('DF raw data'!F126="","",'DF raw data'!F126) -> -2.94173e-05 | C121: =IF('DF raw data'!G126="","",'DF raw data'!G126) -> 0.000118468 | D121: =IF('DF raw data'!H126="","",'DF raw data'!H126) -> -3.2655e-05 | F121: -2.957026996e-05 | G121: 0.0001190840336 | H121: -3.2824806e-05 | J121: -0.0007068328729 | K121: -0.01081660262 | L121: 0.003312275683 | M121: 0.04956778071 | N121: 0.0001141188993
A122: =IF('DF raw data'!E127="","",'DF raw data'!E127) -> -270 | B122: =IF('DF raw data'!F127="","",'DF raw data'!F127) -> -1.87227e-05 | C122: =IF('DF raw data'!G127="","",'DF raw data'!G127) -> 0.000121359 | D122: =IF('DF raw data'!H127="","",'DF raw data'!H127) -> -1.93106e-05 | F122: -1.882005804e-05 | G122: 0.0001219900668 | H122: -1.941101512e-05 | J122: -0.0007162429019 | K122: -0.01117472407 | L122: 0.003373270716 | M122: 0.05125441606 | N122: 0.0001200648789
A123: =IF('DF raw data'!E128="","",'DF raw data'!E128) -> -269.5 | B123: =IF('DF raw data'!F128="","",'DF raw data'!F128) -> -2.89824e-05 | C123: =IF('DF raw data'!G128="","",'DF raw data'!G128) -> 0.000122993 | D123: =IF('DF raw data'!H128="","",'DF raw data'!H128) -> -1.12726e-05 | F123: -2.913310848e-05 | G123: 0.0001236325636 | H123: -1.133121752e-05 | J123: -0.0007308094562 | K123: -0.0115401288 | L123: 0.003435086998 | M123: 0.05297195956 | N123: 0.0001262318315
A124: =IF('DF raw data'!E129="","",'DF raw data'!E129) -> -269 | B124: =IF('DF raw data'!F129="","",'DF raw data'!F129) -> -1.9359e-05 | C124: =IF('DF raw data'!G129="","",'DF raw data'!G129) -> 0.000119685 | D124: =IF('DF raw data'!H129="","",'DF raw data'!H129) -> -2.61978e-05 | F124: -1.94596668e-05 | G124: 0.000120307362 | H124: -2.633402856e-05 | J124: -0.0007405392896 | K124: -0.01191039844 | L124: 0.003495240679 | M124: 0.0547195799 | N124: 0.0001326143844
A125: =IF('DF raw data'!E130="","",'DF raw data'!E130) -> -268.5 | B125: =IF('DF raw data'!F130="","",'DF raw data'!F130) -> -1.783e-05 | C125: =IF('DF raw data'!G130="","",'DF raw data'!G130) -> 0.000110256 | D125: =IF('DF raw data'!H130="","",'DF raw data'!H130) -> -1.49375e-05 | F125: -1.7922716e-05 | G125: 0.0001108293312 | H125: -1.5015175e-05 | J125: -0.0007495006476 | K125: -0.01228514876 | L125: 0.003550655345 | M125: 0.05649490757 | N125: 0.0001391988367
A126: =IF('DF raw data'!E131="","",'DF raw data'!E131) -> -268 | B126: =IF('DF raw data'!F131="","",'DF raw data'!F131) -> -3.10254e-05 | C126: =IF('DF raw data'!G131="","",'DF raw data'!G131) -> 0.000111838 | D126: =IF('DF raw data'!H131="","",'DF raw data'!H131) -> -1.95102e-05 | F126: -3.118673208e-05 | G126: 0.0001124195576 | H126: -1.961165304e-05 | J126: -0.0007650940136 | K126: -0.01266769577 | L126: 0.003606865124 | M126: 0.05829834014 | N126: 0.0001459962591
A127: =IF('DF raw data'!E132="","",'DF raw data'!E132) -> -267.5 | B127: =IF('DF raw data'!F132="","",'DF raw data'!F132) -> -1.37833e-05 | C127: =IF('DF raw data'!G132="","",'DF raw data'!G132) -> 0.000117805 | D127: =IF('DF raw data'!H132="","",'DF raw data'!H132) -> -2.97687e-05 | F127: -1.385497316e-05 | G127: 0.000118417586 | H127: -2.992349724e-05 | J127: -0.0007720215002 | K127: -0.01305370652 | L127: 0.003666073917 | M127: 0.06013137709 | N127: 0.0001530143167
A128: =IF('DF raw data'!E133="","",'DF raw data'!E133) -> -267 | B128: =IF('DF raw data'!F133="","",'DF raw data'!F133) -> -3.4938e-05 | C128: =IF('DF raw data'!G133="","",'DF raw data'!G133) -> 0.000121887 | D128: =IF('DF raw data'!H133="","",'DF raw data'!H133) -> -1.32739e-05 | F128: =(1-$G$1*($B$49-$G$2))*B128 -> -3.51196776e-05 | G128: 0.0001225208124 | H128: -1.334292428e-05 | J128: =F128*$G$3+J127 -> -0.000789581339 | K128: =J128*$G$3+K127 -> -0.01344849719 | L128: =G128*$G$3+L127 -> 0.003727334323 | M128: =L128*$G$3+M127 -> 0.06199504426 | N128: =(J128^2+L128^2)*$G$3+N127 -> 0.0001602725466
A129: =IF('DF raw data'!E134="","",'DF raw data'!E134) -> -266.5 | B129: =IF('DF raw data'!F134="","",'DF raw data'!F134) -> -2.88365e-05 | C129: =IF('DF raw data'!G134="","",'DF raw data'!G134) -> 0.000117045 | D129: =IF('DF raw data'!H134="","",'DF raw data'!H134) -> -3.87359e-05 | F129: -2.89864498e-05 | G129: 0.000117653634 | H129: -3.893732668e-05 | J129: -0.0008040745639 | K129: -0.01385053447 | L129: 0.00378616114 | M129: 0.06388812483 | N129: 0.0001677633227
A130: =IF('DF raw data'!E135="","",'DF raw data'!E135) -> -266 | B130: =IF('DF raw data'!F135="","",'DF raw data'!F135) -> -1.85301e-05 | C130: =IF('DF raw data'!G135="","",'DF raw data'!G135) -> 0.000123387 | D130: =IF('DF raw data'!H135="","",'DF raw data'!H135) -> -1.96979e-05 | F130: -1.862645652e-05 | G130: 0.0001240286124 | H130: -1.980032908e-05 | J130: -0.0008133877921 | K130: -0.01425722837 | L130: 0.003848175446 | M130: 0.06581221255 | N130: 0.0001754983496
A131: =IF('DF raw data'!E136="","",'DF raw data'!E136) -> -265.5 | B131: =IF('DF raw data'!F136="","",'DF raw data'!F136) -> -2.90381e-05 | C131: =IF('DF raw data'!G136="","",'DF raw data'!G136) -> 0.000123572 | D131: =IF('DF raw data'!H136="","",'DF raw data'!H136) -> -2.46429e-05 | F131: -2.918909812e-05 | G131: 0.0001242145744 | H131: -2.477104308e-05 | J131: -0.0008279823412 | K131: -0.01467121954 | L131: 0.003910282733 | M131: 0.06776735392 | N131: 0.0001834862825
A132: =IF('DF raw data'!E137="","",'DF raw data'!E137) -> -265 | B132: =IF('DF raw data'!F137="","",'DF raw data'!F137) -> -2.62191e-05 | C132: =IF('DF raw data'!G137="","",'DF raw data'!G137) -> 0.000119309 | D132: =IF('DF raw data'!H137="","",'DF raw data'!H137) -> -2.04398e-05 | F132: -2.635543932e-05 | G132: 0.0001199294068 | H132: -2.054608696e-05 | J132: -0.0008411600609 | K132: -0.01509179957 | L132: 0.003970247437 | M132: 0.06975247763 | N132: 0.00019172149
A133: =IF('DF raw data'!E138="","",'DF raw data'!E138) -> -264.5 | B133: =IF('DF raw data'!F138="","",'DF raw data'!F138) -> -2.0009e-05 | C133: =IF('DF raw data'!G138="","",'DF raw data'!G138) -> 0.00011781 | D133: =IF('DF raw data'!H138="","",'DF raw data'!H138) -> -1.46331e-05 | F133: -2.01130468e-05 | G133: 0.000118422612 | H133: -1.470919212e-05 | J133: -0.0008512165843 | K133: -0.01551740786 | L133: 0.004029458743 | M133: 0.071767207 | N133: 0.0002002020437
A134: =IF('DF raw data'!E139="","",'DF raw data'!E139) -> -264 | B134: =IF('DF raw data'!F139="","",'DF raw data'!F139) -> -1.96843e-05 | C134: =IF('DF raw data'!G139="","",'DF raw data'!G139) -> 0.000123142 | D134: =IF('DF raw data'!H139="","",'DF raw data'!H139) -> -1.86911e-05 | F134: -1.978665836e-05 | G134: 0.0001237823384 | H134: -1.878829372e-05 | J134: -0.0008611099134 | K134: -0.01594796282 | L134: 0.004091349912 | M134: 0.07381288196 | N134: 0.0002089423709
A135: =IF('DF raw data'!E140="","",'DF raw data'!E140) -> -263.5 | B135: =IF('DF raw data'!F140="","",'DF raw data'!F140) -> -1.43012e-05 | C135: =IF('DF raw data'!G140="","",'DF raw data'!G140) -> 0.00012405 | D135: =IF('DF raw data'!H140="","",'DF raw data'!H140) -> -2.17952e-05 | F135: -1.437556624e-05 | G135: 0.00012469506 | H135: -2.190853504e-05 | J135: -0.0008682976966 | K135: -0.01638211167 | L135: 0.004153697442 | M135: 0.07588973068 | N135: 0.0002179459426
A136: =IF('DF raw data'!E141="","",'DF raw data'!E141) -> -263 | B136: =IF('DF raw data'!F141="","",'DF raw data'!F141) -> -2.10863e-05 | C136: =IF('DF raw data'!G141="","",'DF raw data'!G141) -> 0.000131004 | D136: =IF('DF raw data'!H141="","",'DF raw data'!H141) -> -3.03778e-05 | F136: -2.119594876e-05 | G136: 0.0001316852208 | H136: -3.053576456e-05 | J136: -0.0008788956709 | K136: -0.0168215595 | L136: 0.004219540052 | M136: 0.07799950071 | N136: 0.0002272344305
A137: =IF('DF raw data'!E142="","",'DF raw data'!E142) -> -262.5 | B137: =IF('DF raw data'!F142="","",'DF raw data'!F142) -> -2.13493e-05 | C137: =IF('DF raw data'!G142="","",'DF raw data'!G142) -> 0.000125007 | D137: =IF('DF raw data'!H142="","",'DF raw data'!H142) -> -2.3135e-05 | F137: -2.146031636e-05 | G137: 0.0001256570364 | H137: -2.3255302e-05 | J137: -0.0008896258291 | K137: -0.01726637242 | L137: 0.00428236857 | M137: 0.08014068499 | N137: 0.0002367994879
A138: =IF('DF raw data'!E143="","",'DF raw data'!E143) -> -262 | B138: =IF('DF raw data'!F143="","",'DF raw data'!F143) -> -1.53953e-05 | C138: =IF('DF raw data'!G143="","",'DF raw data'!G143) -> 0.000122777 | D138: =IF('DF raw data'!H143="","",'DF raw data'!H143) -> -1.18159e-05 | F138: -1.547535556e-05 | G138: 0.0001234154404 | H138: -1.187734268e-05 | J138: -0.0008973635069 | K138: -0.01771505417 | L138: 0.004344076291 | M138: 0.08231272314 | N138: 0.0002466376179
A139: =IF('DF raw data'!E144="","",'DF raw data'!E144) -> -261.5 | B139: =IF('DF raw data'!F144="","",'DF raw data'!F144) -> -1.94212e-05 | C139: =IF('DF raw data'!G144="","",'DF raw data'!G144) -> 0.00011752 | D139: =IF('DF raw data'!H144="","",'DF raw data'!H144) -> -3.20111e-05 | F139: -1.952219024e-05 | G139: 0.000118131104 | H139: -3.217755772e-05 | J139: -0.000907124602 | K139: -0.01816861647 | L139: 0.004403141843 | M139: 0.08451429406 | N139: 0.0002567428845
A140: =IF('DF raw data'!E145="","",'DF raw data'!E145) -> -261 | B140: =IF('DF raw data'!F145="","",'DF raw data'!F145) -> -1.76852e-05 | C140: =IF('DF raw data'!G145="","",'DF raw data'!G145) -> 0.000118959 | D140: =IF('DF raw data'!H145="","",'DF raw data'!H145) -> -3.80292e-05 | F140: -1.777716304e-05 | G140: 0.0001195775868 | H140: -3.822695184e-05 | J140: -0.0009160131835 | K140: -0.01862662306 | L140: 0.004462930636 | M140: 0.08674575938 | N140: 0.0002671212995
A141: =IF('DF raw data'!E146="","",'DF raw data'!E146) -> -260.5 | B141: =IF('DF raw data'!F146="","",'DF raw data'!F146) -> -2.01301e-05 | C141: =IF('DF raw data'!G146="","",'DF raw data'!G146) -> 0.000128879 | D141: =IF('DF raw data'!H146="","",'DF raw data'!H146) -> -2.56413e-05 | F141: -2.023477652e-05 | G141: 0.0001295491708 | H141: -2.577463476e-05 | J141: -0.0009261305718 | K141: -0.01908968835 | L141: 0.004527705221 | M141: 0.08900961199 | N141: 0.0002778002157
A142: =IF('DF raw data'!E147="","",'DF raw data'!E147) -> -260 | B142: =IF('DF raw data'!F147="","",'DF raw data'!F147) -> -1.7559e-05 | C142: =IF('DF raw data'!G147="","",'DF raw data'!G147) -> 0.000131823 | D142: =IF('DF raw data'!H147="","",'DF raw data'!H147) -> -3.51386e-05 | F142: -1.76503068e-05 | G142: 0.0001325084796 | H142: -3.532132072e-05 | J142: -0.0009349557252 | K142: -0.01955716621 | L142: 0.004593959461 | M142: 0.09130659172 | N142: 0.0002887895185
A143: =IF('DF raw data'!E148="","",'DF raw data'!E148) -> -259.5 | B143: =IF('DF raw data'!F148="","",'DF raw data'!F148) -> -1.05754e-05 | C143: =IF('DF raw data'!G148="","",'DF raw data'!G148) -> 0.000127831 | D143: =IF('DF raw data'!H148="","",'DF raw data'!H148) -> -3.54541e-05 | F143: -1.063039208e-05 | G143: 0.0001284957212 | H143: -3.563846132e-05 | J143: -0.0009402709212 | K143: -0.02002730167 | L143: 0.004658207322 | M143: 0.09363569538 | N143: 0.000300081021
A144: =IF('DF raw data'!E149="","",'DF raw data'!E149) -> -259 | B144: =IF('DF raw data'!F149="","",'DF raw data'!F149) -> -2.73034e-05 | C144: =IF('DF raw data'!G149="","",'DF raw data'!G149) -> 0.000129919 | D144: =IF('DF raw data'!H149="","",'DF raw data'!H149) -> -2.74779e-05 | F144: -2.744537768e-05 | G144: 0.0001305945788 | H144: -2.762078508e-05 | J144: -0.0009539936101 | K144: -0.02050429848 | L144: 0.004723504611 | M144: 0.09599744769 | N144: 0.0003116918208
A145: =IF('DF raw data'!E150="","",'DF raw data'!E150) -> -258.5 | B145: =IF('DF raw data'!F150="","",'DF raw data'!F150) -> -2.24435e-05 | C145: =IF('DF raw data'!G150="","",'DF raw data'!G150) -> 0.000134422 | D145: =IF('DF raw data'!H150="","",'DF raw data'!H150) -> -1.55178e-05 | F145: -2.25602062e-05 | G145: 0.0001351209944 | H145: -1.559849256e-05 | J145: -0.0009652737132 | K145: -0.02098693533 | L145: 0.004791065108 | M145: 0.09839298024 | N145: 0.0003236348499
A146: =IF('DF raw data'!E151="","",'DF raw data'!E151) -> -258 | B146: =IF('DF raw data'!F151="","",'DF raw data'!F151) -> -2.36621e-05 | C146: =IF('DF raw data'!G151="","",'DF raw data'!G151) -> 0.000132388 | D146: =IF('DF raw data'!H151="","",'DF raw data'!H151) -> -1.04778e-05 | F146: -2.378514292e-05 | G146: 0.0001330764176 | H146: -1.053228456e-05 | J146: -0.0009771662846 | K146: -0.02147551848 | L146: 0.004857603317 | M146: 0.1008217819 | N146: 0.0003359104319
A147: =IF('DF raw data'!E152="","",'DF raw data'!E152) -> -257.5 | B147: =IF('DF raw data'!F152="","",'DF raw data'!F152) -> -1.58979e-05 | C147: =IF('DF raw data'!G152="","",'DF raw data'!G152) -> 0.000131141 | D147: =IF('DF raw data'!H152="","",'DF raw data'!H152) -> -3.00065e-05 | F147: -1.598056908e-05 | G147: 0.0001318229332 | H147: -3.01625338e-05 | J147: -0.0009851565692 | K147: -0.02196809676 | L147: 0.004923514784 | M147: 0.1032835393 | N147: 0.0003485161975
A148: =IF('DF raw data'!E153="","",'DF raw data'!E153) -> -257 | B148: =IF('DF raw data'!F153="","",'DF raw data'!F153) -> -2.03205e-05 | C148: =IF('DF raw data'!G153="","",'DF raw data'!G153) -> 0.000127541 | D148: =IF('DF raw data'!H153="","",'DF raw data'!H153) -> -2.56151e-05 | F148: -2.04261666e-05 | G148: 0.0001282042132 | H148: -2.574829852e-05 | J148: -0.0009953696525 | K148: -0.02246578159 | L148: 0.00498761689 | M148: 0.1057773477 | N148: 0.000361449739
A149: =IF('DF raw data'!E154="","",'DF raw data'!E154) -> -256.5 | B149: =IF('DF raw data'!F154="","",'DF raw data'!F154) -> -2.06411e-05 | C149: =IF('DF raw data'!G154="","",'DF raw data'!G154) -> 0.000128356 | D149: =IF('DF raw data'!H154="","",'DF raw data'!H154) -> -2.79633e-05 | F149: -2.074843372e-05 | G149: 0.0001290234512 | H149: -2.810870916e-05 | J149: -0.001005743869 | K149: -0.02296865352 | L149: 0.005052128616 | M149: 0.108303412 | N149: 0.0003747175011
A150: =IF('DF raw data'!E155="","",'DF raw data'!E155) -> -256 | B150: =IF('DF raw data'!F155="","",'DF raw data'!F155) -> -8.01864e-06 | C150: =IF('DF raw data'!G155="","",'DF raw data'!G155) -> 0.000144912 | D150: =IF('DF raw data'!H155="","",'DF raw data'!H155) -> -2.43737e-05 | F150: -8.060336928e-06 | G150: 0.0001456655424 | H150: -2.450044324e-05 | J150: -0.001009774038 | K150: -0.02347354054 | L150: 0.005124961387 | M150: 0.1108658927 | N150: 0.0003883599376
A151: =IF('DF raw data'!E156="","",'DF raw data'!E156) -> -255.5 | B151: =IF('DF raw data'!F156="","",'DF raw data'!F156) -> -2.42351e-05 | C151: =IF('DF raw data'!G156="","",'DF raw data'!G156) -> 0.000147295 | D151: =IF('DF raw data'!H156="","",'DF raw data'!H156) -> -1.97841e-05 | F151: -2.436112252e-05 | G151: 0.000148060934 | H151: -1.988697732e-05 | J151: -0.001021954599 | K151: -0.02398451784 | L151: 0.005198991854 | M151: 0.1134653887 | N151: 0.0004023968913
A152: =IF('DF raw data'!E157="","",'DF raw data'!E157) -> -255 | B152: =IF('DF raw data'!F157="","",'DF raw data'!F157) -> -1.45568e-05 | C152: =IF('DF raw data'!G157="","",'DF raw data'!G157) -> 0.00014483 | D152: =IF('DF raw data'!H157="","",'DF raw data'!H157) -> -2.06942e-05 | F152: -1.463249536e-05 | G152: 0.000145583116 | H152: -2.080180984e-05 | J152: -0.001029270847 | K152: -0.02449915326 | L152: 0.005271783412 | M152: 0.1161012804 | N152: 0.0004168224407
A153: =IF('DF raw data'!E158="","",'DF raw data'!E158) -> -254.5 | B153: =IF('DF raw data'!F158="","",'DF raw data'!F158) -> -2.83985e-05 | C153: =IF('DF raw data'!G158="","",'DF raw data'!G158) -> 0.0001486 | D153: =IF('DF raw data'!H158="","",'DF raw data'!H158) -> -2.27888e-05 | F153: -2.85461722e-05 | G153: 0.00014937272 | H153: -2.290730176e-05 | J153: -0.001043543933 | K153: -0.02502092523 | L153: 0.005346469772 | M153: 0.1187745153 | N153: 0.0004316593022
A154: =IF('DF raw data'!E159="","",'DF raw data'!E159) -> -254 | B154: =IF('DF raw data'!F159="","",'DF raw data'!F159) -> -1.77007e-05 | C154: =IF('DF raw data'!G159="","",'DF raw data'!G159) -> 0.000138781 | D154: =IF('DF raw data'!H159="","",'DF raw data'!H159) -> -1.43932e-05 | F154: -1.779274364e-05 | G154: 0.0001395026612 | H154: -1.446804464e-05 | J154: -0.001052440305 | K154: -0.02554714538 | L154: 0.005416221103 | M154: 0.1214826258 | N154: 0.000446880843
A155: =IF('DF raw data'!E160="","",'DF raw data'!E160) -> -253.5 | B155: =IF('DF raw data'!F160="","",'DF raw data'!F160) -> -2.62191e-05 | C155: =IF('DF raw data'!G160="","",'DF raw data'!G160) -> 0.000131047 | D155: =IF('DF raw data'!H160="","",'DF raw data'!H160) -> -2.36828e-05 | F155: -2.635543932e-05 | G155: 0.0001317284444 | H155: -2.380595056e-05 | J155: -0.001065618024 | K155: -0.02607995439 | L155: 0.005482085325 | M155: 0.1242236685 | N155: 0.0004624752437
A156: =IF('DF raw data'!E161="","",'DF raw data'!E161) -> -253 | B156: =IF('DF raw data'!F161="","",'DF raw data'!F161) -> -2.74332e-05 | C156: =IF('DF raw data'!G161="","",'DF raw data'!G161) -> 0.000129883 | D156: =IF('DF raw data'!H161="","",'DF raw data'!H161) -> -2.50682e-05 | F156: -2.757585264e-05 | G156: 0.0001305583916 | H156: -2.519855464e-05 | J156: -0.001079405951 | K156: -0.02661965737 | L156: 0.005547364521 | M156: 0.1269973507 | N156: 0.0004784444288
A157: =IF('DF raw data'!E162="","",'DF raw data'!E162) -> -252.5 | B157: =IF('DF raw data'!F162="","",'DF raw data'!F162) -> -3.27653e-05 | C157: =IF('DF raw data'!G162="","",'DF raw data'!G162) -> 0.00013109 | D157: =IF('DF raw data'!H162="","",'DF raw data'!H162) -> -8.21205e-06 | F157: -3.293567956e-05 | G157: 0.000131771668 | H157: -8.25475266e-06 | J157: -0.00109587379 | K157: -0.02716759426 | L157: 0.005613250355 | M157: 0.1298039759 | N157: 0.0004947991883
A158: =IF('DF raw data'!E163="","",'DF raw data'!E163) -> -252 | B158: =IF('DF raw data'!F163="","",'DF raw data'!F163) -> -3.00711e-05 | C158: =IF('DF raw data'!G163="","",'DF raw data'!G163) -> 0.000135843 | D158: =IF('DF raw data'!H163="","",'DF raw data'!H163) -> -8.57817e-06 | F158: -3.022746972e-05 | G158: 0.0001365493836 | H158: -8.622776484e-06 | J158: -0.001110987525 | K158: -0.02772308803 | L158: 0.005681525047 | M158: 0.1326447384 | N158: 0.0005115561983
A159: =IF('DF raw data'!E164="","",'DF raw data'!E164) -> -251.5 | B159: =IF('DF raw data'!F164="","",'DF raw data'!F164) -> -1.98154e-05 | C159: =IF('DF raw data'!G164="","",'DF raw data'!G164) -> 0.000130962 | D159: =IF('DF raw data'!H164="","",'DF raw data'!H164) -> -1.67564e-05 | F159: -1.991844008e-05 | G159: 0.0001316430024 | H159: -1.684353328e-05 | J159: -0.001120946745 | K159: -0.0282835614 | L159: 0.005747346548 | M159: 0.1355184117 | N159: 0.0005287004553
A160: =IF('DF raw data'!E165="","",'DF raw data'!E165) -> -251 | B160: =IF('DF raw data'!F165="","",'DF raw data'!F165) -> -2.6602e-05 | C160: =IF('DF raw data'!G165="","",'DF raw data'!G165) -> 0.000134743 | D160: =IF('DF raw data'!H165="","",'DF raw data'!H165) -> -2.25399e-05 | F160: -2.67403304e-05 | G160: 0.0001354436636 | H160: -2.265710748e-05 | J160: -0.001134316911 | K160: -0.02885071985 | L160: 0.00581506838 | M160: 0.1384259459 | N160: 0.0005462513029
A161: =IF('DF raw data'!E166="","",'DF raw data'!E166) -> -250.5 | B161: =IF('DF raw data'!F166="","",'DF raw data'!F166) -> -2.68572e-05 | C161: =IF('DF raw data'!G166="","",'DF raw data'!G166) -> 0.000133702 | D161: =IF('DF raw data'!H166="","",'DF raw data'!H166) -> -2.80408e-05 | F161: -2.699685744e-05 | G161: 0.0001343972504 | H161: -2.818661216e-05 | J161: -0.001147815339 | K161: -0.02942462752 | L161: 0.005882267005 | M161: 0.1413670794 | N161: 0.0005642105755
A162: =IF('DF raw data'!E167="","",'DF raw data'!E167) -> -250 | B162: =IF('DF raw data'!F167="","",'DF raw data'!F167) -> -2.40435e-05 | C162: =IF('DF raw data'!G167="","",'DF raw data'!G167) -> 0.000127115 | D162: =IF('DF raw data'!H167="","",'DF raw data'!H167) -> -1.53283e-05 | F162: -2.41685262e-05 | G162: 0.000127775998 | H162: -1.540800716e-05 | J162: -0.001159899602 | K162: -0.03000457733 | L162: 0.005946155004 | M162: 0.1443401569 | N162: 0.0005825616387
A163: =IF('DF raw data'!E168="","",'DF raw data'!E168) -> -249.5 | B163: =IF('DF raw data'!F168="","",'DF raw data'!F168) -> -1.9826e-05 | C163: =IF('DF raw data'!G168="","",'DF raw data'!G168) -> 0.000131823 | D163: =IF('DF raw data'!H168="","",'DF raw data'!H168) -> -6.4395e-07 | F163: -1.99290952e-05 | G163: 0.0001325084796 | H163: -6.4729854e-07 | J163: -0.00116986415 | K163: -0.0305895094 | L163: 0.006012409244 | M163: 0.1473463615 | N163: 0.0006013204622
A164: =IF('DF raw data'!E169="","",'DF raw data'!E169) -> -249 | B164: =IF('DF raw data'!F169="","",'DF raw data'!F169) -> -1.48823e-05 | C164: =IF('DF raw data'!G169="","",'DF raw data'!G169) -> 0.000130053 | D164: =IF('DF raw data'!H169="","",'DF raw data'!H169) -> -1.2545e-05 | F164: -1.495968796e-05 | G164: 0.0001307292756 | H164: -1.2610234e-05 | J164: -0.001177343994 | K164: -0.0311781814 | L164: 0.006077773881 | M164: 0.1503852485 | N164: 0.0006204831993
A165: =IF('DF raw data'!E170="","",'DF raw data'!E170) -> -248.5 | B165: =IF('DF raw data'!F170="","",'DF raw data'!F170) -> -1.51364e-05 | C165: =IF('DF raw data'!G170="","",'DF raw data'!G170) -> 0.000125751 | D165: =IF('DF raw data'!H170="","",'DF raw data'!H170) -> -1.8154e-05 | F165: -1.521510928e-05 | G165: 0.0001264049052 | H165: -1.82484008e-05 | J165: -0.001184951549 | K165: -0.03177065717 | L165: 0.006140976334 | M165: 0.1534557366 | N165: 0.0006400410496
A166: =IF('DF raw data'!E171="","",'DF raw data'!E171) -> -248 | B166: =IF('DF raw data'!F171="","",'DF raw data'!F171) -> -1.50151e-05 | C166: =IF('DF raw data'!G171="","",'DF raw data'!G171) -> 0.000131235 | D166: =IF('DF raw data'!H171="","",'DF raw data'!H171) -> -5.31847e-06 | F166: -1.509317852e-05 | G166: 0.000131917422 | H166: -5.346126044e-06 | J166: -0.001192498138 | K166: -0.03236690624 | L166: 0.006206935045 | M166: 0.1565592042 | N166: 0.0006600150968
A167: =IF('DF raw data'!E172="","",'DF raw data'!E172) -> -247.5 | B167: =IF('DF raw data'!F172="","",'DF raw data'!F172) -> -1.40506e-05 | C167: =IF('DF raw data'!G172="","",'DF raw data'!G172) -> 0.000131593 | D167: =IF('DF raw data'!H172="","",'DF raw data'!H172) -> -1.28807e-05 | F167: -1.412366312e-05 | G167: 0.0001322772836 | H167: -1.294767964e-05 | J167: -0.001199559969 | K167: -0.03296668623 | L167: 0.006273073687 | M167: 0.159695741 | N167: 0.0006804102956
A168: =IF('DF raw data'!E173="","",'DF raw data'!E173) -> -247 | B168: =IF('DF raw data'!F173="","",'DF raw data'!F173) -> -2.28198e-05 | C168: =IF('DF raw data'!G173="","",'DF raw data'!G173) -> 0.000119519 | D168: =IF('DF raw data'!H173="","",'DF raw data'!H173) -> -2.50233e-05 | F168: -2.293846296e-05 | G168: 0.0001201404988 | H168: -2.515342116e-05 | J168: -0.001211029201 | K168: -0.03357220083 | L168: 0.006333143936 | M168: 0.162862313 | N168: 0.0007011979475
A169: =IF('DF raw data'!E174="","",'DF raw data'!E174) -> -246.5 | B169: =IF('DF raw data'!F174="","",'DF raw data'!F174) -> -2.35979e-05 | C169: =IF('DF raw data'!G174="","",'DF raw data'!G174) -> 0.000126021 | D169: =IF('DF raw data'!H174="","",'DF raw data'!H174) -> -1.45115e-05 | F169: -2.372060908e-05 | G169: 0.0001266763092 | H169: -1.45869598e-05 | J169: -0.001222889505 | K169: -0.03418364558 | L169: 0.006396482091 | M169: 0.166060554 | N169: 0.0007224031684
A170: =IF('DF raw data'!E175="","",'DF raw data'!E175) -> -246 | B170: =IF('DF raw data'!F175="","",'DF raw data'!F175) -> -2.67337e-05 | C170: =IF('DF raw data'!G175="","",'DF raw data'!G175) -> 0.000124751 | D170: =IF('DF raw data'!H175="","",'DF raw data'!H175) -> -1.68599e-05 | F170: -2.687271524e-05 | G170: 0.0001253997052 | H170: -1.694757148e-05 | J170: -0.001236325863 | K170: -0.03480180851 | L170: 0.006459181943 | M170: 0.169290145 | N170: 0.000744027935
A171: =IF('DF raw data'!E176="","",'DF raw data'!E176) -> -245.5 | B171: =IF('DF raw data'!F176="","",'DF raw data'!F176) -> -3.47374e-05 | C171: =IF('DF raw data'!G176="","",'DF raw data'!G176) -> 0.0001381 | D171: =IF('DF raw data'!H176="","",'DF raw data'!H176) -> -3.10312e-05 | F171: -3.491803448e-05 | G171: 0.00013881812 | H171: -3.119256224e-05 | J171: -0.00125378488 | K171: -0.03542870095 | L171: 0.006528591003 | M171: 0.1725544405 | N171: 0.0007661251735
A172: =IF('DF raw data'!E177="","",'DF raw data'!E177) -> -245 | B172: =IF('DF raw data'!F177="","",'DF raw data'!F177) -> -2.57127e-05 | C172: =IF('DF raw data'!G177="","",'DF raw data'!G177) -> 0.000143418 | D172: =IF('DF raw data'!H177="","",'DF raw data'!H177) -> -1.00281e-05 | F172: -2.584640604e-05 | G172: 0.0001441637736 | H172: -1.008024612e-05 | J172: -0.001266708083 | K172: -0.03606205499 | L172: 0.00660067289 | M172: 0.1758547769 | N172: 0.0007887118894
A173: =IF('DF raw data'!E178="","",'DF raw data'!E178) -> -244.5 | B173: =IF('DF raw data'!F178="","",'DF raw data'!F178) -> -3.41704e-05 | C173: =IF('DF raw data'!G178="","",'DF raw data'!G178) -> 0.000135369 | D173: =IF('DF raw data'!H178="","",'DF raw data'!H178) -> -1.61576e-05 | F173: -3.434808608e-05 | G173: 0.0001360729188 | H173: -1.624161952e-05 | J173: -0.001283882126 | K173: -0.03670399606 | L173: 0.00666870935 | M173: 0.1791891316 | N173: 0.0008117719083
A174: =IF('DF raw data'!E179="","",'DF raw data'!E179) -> -244 | B174: =IF('DF raw data'!F179="","",'DF raw data'!F179) -> -2.11574e-05 | C174: =IF('DF raw data'!G179="","",'DF raw data'!G179) -> 0.000129917 | D174: =IF('DF raw data'!H179="","",'DF raw data'!H179) -> -1.91239e-05 | F174: -2.126741848e-05 | G174: 0.0001305925684 | H174: -1.922334428e-05 | J174: -0.001294515836 | K174: -0.03735125397 | L174: 0.006734005634 | M174: 0.1825561344 | N174: 0.0008352832099
A175: =IF('DF raw data'!E180="","",'DF raw data'!E180) -> -243.5 | B175: =IF('DF raw data'!F180="","",'DF raw data'!F180) -> -2.61623e-05 | C175: =IF('DF raw data'!G180="","",'DF raw data'!G180) -> 0.000134042 | D175: =IF('DF raw data'!H180="","",'DF raw data'!H180) -> -1.26511e-05 | F175: -2.629834396e-05 | G175: 0.0001347390184 | H175: -1.271688572e-05 | J175: -0.001307665008 | K175: -0.03800508648 | L175: 0.006801375143 | M175: 0.185956822 | N175: 0.0008592675557
A176: =IF('DF raw data'!E181="","",'DF raw data'!E181) -> -243 | B176: =IF('DF raw data'!F181="","",'DF raw data'!F181) -> -2.33374e-05 | C176: =IF('DF raw data'!G181="","",'DF raw data'!G181) -> 0.000128497 | D176: =IF('DF raw data'!H181="","",'DF raw data'!H181) -> -1.72931e-05 | F176: -2.345875448e-05 | G176: 0.0001291651844 | H176: -1.738302412e-05 | J176: -0.001319394385 | K176: -0.03866478367 | L176: 0.006865957735 | M176: 0.1893898009 | N176: 0.0008837086442
A177: =IF('DF raw data'!E182="","",'DF raw data'!E182) -> -242.5 | B177: =IF('DF raw data'!F182="","",'DF raw data'!F182) -> -2.80729e-05 | C177: =IF('DF raw data'!G182="","",'DF raw data'!G182) -> 0.00013193 | D177: =IF('DF raw data'!H182="","",'DF raw data'!H182) -> -3.08532e-05 | F177: -2.821887908e-05 | G177: 0.000132616036 | H177: -3.101363664e-05 | J177: -0.001333503824 | K177: -0.03933153558 | L177: 0.006932265753 | M177: 0.1928559337 | N177: 0.0009086259147
A178: =IF('DF raw data'!E183="","",'DF raw data'!E183) -> -242 | B178: =IF('DF raw data'!F183="","",'DF raw data'!F183) -> -2.18626e-05 | C178: =IF('DF raw data'!G183="","",'DF raw data'!G183) -> 0.000130173 | D178: =IF('DF raw data'!H183="","",'DF raw data'!H183) -> -1.89283e-05 | F178: -2.197628552e-05 | G178: 0.0001308498996 | H178: -1.902672716e-05 | J178: -0.001344491967 | K178: -0.04000378156 | L178: 0.006997690703 | M178: 0.1963547791 | N178: 0.0009340135816
A179: =IF('DF raw data'!E184="","",'DF raw data'!E184) -> -241.5 | B179: =IF('DF raw data'!F184="","",'DF raw data'!F184) -> -3.66098e-05 | C179: =IF('DF raw data'!G184="","",'DF raw data'!G184) -> 0.000134491 | D179: =IF('DF raw data'!H184="","",'DF raw data'!H184) -> -9.29072e-06 | F179: -3.680017096e-05 | G179: 0.0001351903532 | H179: -9.339031744e-06 | J179: -0.001362892053 | K179: -0.04068522759 | L179: 0.00706528588 | M179: 0.199887422 | N179: 0.0009599014513
A180: =IF('DF raw data'!E185="","",'DF raw data'!E185) -> -241 | B180: =IF('DF raw data'!F185="","",'DF raw data'!F185) -> -2.93658e-05 | C180: =IF('DF raw data'!G185="","",'DF raw data'!G185) -> 0.000140471 | D180: =IF('DF raw data'!H185="","",'DF raw data'!H185) -> -8.97655e-06 | F180: -2.951850216e-05 | G180: 0.0001412014492 | H180: -9.02322806e-06 | J180: -0.001377651304 | K180: -0.04137405324 | L180: 0.007135886604 | M180: 0.2034553653 | N180: 0.0009863108516
A181: =IF('DF raw data'!E186="","",'DF raw data'!E186) -> -240.5 | B181: =IF('DF raw data'!F186="","",'DF raw data'!F186) -> -2.73769e-05 | C181: =IF('DF raw data'!G186="","",'DF raw data'!G186) -> 0.000138531 | D181: =IF('DF raw data'!H186="","",'DF raw data'!H186) -> -1.71831e-05 | F181: -2.751925988e-05 | G181: 0.0001392513612 | H181: -1.727245212e-05 | J181: -0.001391410934 | K181: -0.04206975871 | L181: 0.007205512285 | M181: 0.2070581215 | N181: 0.001013238567
A182: =IF('DF raw data'!E187="","",'DF raw data'!E187) -> -240 | B182: =IF('DF raw data'!F187="","",'DF raw data'!F187) -> -2.80217e-05 | C182: =IF('DF raw data'!G187="","",'DF raw data'!G187) -> 0.000137041 | D182: =IF('DF raw data'!H187="","",'DF raw data'!H187) -> -7.02835e-06 | F182: -2.816741284e-05 | G182: 0.0001377536132 | H182: -7.06489742e-06 | J182: -0.00140549464 | K182: -0.04277250603 | L182: 0.007274389091 | M182: 0.210695316 | N182: 0.001040684643
A183: =IF('DF raw data'!E188="","",'DF raw data'!E188) -> -239.5 | B183: =IF('DF raw data'!F188="","",'DF raw data'!F188) -> -2.56513e-05 | C183: =IF('DF raw data'!G188="","",'DF raw data'!G188) -> 0.000134811 | D183: =IF('DF raw data'!H188="","",'DF raw data'!H188) -> -9.7588e-06 | F183: -2.578468676e-05 | G183: 0.0001355120172 | H183: -9.80954576e-06 | J183: -0.001418386983 | K183: -0.04348169952 | L183: 0.0073421451 | M183: 0.2143663886 | N183: 0.001068644102
A184: =IF('DF raw data'!E189="","",'DF raw data'!E189) -> -239 | B184: =IF('DF raw data'!F189="","",'DF raw data'!F189) -> -1.56478e-05 | C184: =IF('DF raw data'!G189="","",'DF raw data'!G189) -> 0.000142071 | D184: =IF('DF raw data'!H189="","",'DF raw data'!H189) -> -1.8278e-05 | F184: -1.572916856e-05 | G184: 0.0001428097692 | H184: -1.83730456e-05 | J184: -0.001426251568 | K184: -0.04419482531 | L184: 0.007413549985 | M184: 0.2180731636 | N184: 0.00109714156
A185: =IF('DF raw data'!E190="","",'DF raw data'!E190) -> -238.5 | B185: =IF('DF raw data'!F190="","",'DF raw data'!F190) -> -1.01397e-05 | C185: =IF('DF raw data'!G190="","",'DF raw data'!G190) -> 0.000137436 | D185: =IF('DF raw data'!H190="","",'DF raw data'!H190) -> -1.57304e-05 | F185: -1.019242644e-05 | G185: 0.0001381506672 | H185: -1.581219808e-05 | J185: -0.001431347781 | K185: -0.0449104992 | L185: 0.007482625318 | M185: 0.2218144762 | N185: 0.001126160779
A186: =IF('DF raw data'!E191="","",'DF raw data'!E191) -> -238 | B186: =IF('DF raw data'!F191="","",'DF raw data'!F191) -> -2.2444e-05 | C186: =IF('DF raw data'!G191="","",'DF raw data'!G191) -> 0.000136798 | D186: =IF('DF raw data'!H191="","",'DF raw data'!H191) -> -1.13828e-05 | F186: -2.25607088e-05 | G186: 0.0001375093496 | H186: -1.144199056e-05 | J186: -0.001442628135 | K186: -0.04563181326 | L186: 0.007551379993 | M186: 0.2255901662 | N186: 0.001155713037
A187: =IF('DF raw data'!E192="","",'DF raw data'!E192) -> -237.5 | B187: =IF('DF raw data'!F192="","",'DF raw data'!F192) -> -2.29548e-05 | C187: =IF('DF raw data'!G192="","",'DF raw data'!G192) -> 0.000137209 | D187: =IF('DF raw data'!H192="","",'DF raw data'!H192) -> -1.78827e-05 | F187: -2.307416496e-05 | G187: 0.0001379224868 | H187: -1.797569004e-05 | J187: -0.001454165218 | K187: -0.04635889587 | L187: 0.007620341236 | M187: 0.2294003368 | N187: 0.001185805135
A188: =IF('DF raw data'!E193="","",'DF raw data'!E193) -> -237 | B188: =IF('DF raw data'!F193="","",'DF raw data'!F193) -> -2.73049e-05 | C188: =IF('DF raw data'!G193="","",'DF raw data'!G193) -> 0.000146557 | D188: =IF('DF raw data'!H193="","",'DF raw data'!H193) -> -2.50866e-05 | F188: -2.744688548e-05 | G188: 0.0001473190964 | H188: -2.521705032e-05 | J188: -0.001467888661 | K188: -0.0470928402 | L188: 0.007694000785 | M188: 0.2332473372 | N188: 0.001216481308
A189: =IF('DF raw data'!E194="","",'DF raw data'!E194) -> -236.5 | B189: =IF('DF raw data'!F194="","",'DF raw data'!F194) -> -2.66718e-05 | C189: =IF('DF raw data'!G194="","",'DF raw data'!G194) -> 0.000146448 | D189: =IF('DF raw data'!H194="","",'DF raw data'!H194) -> -1.73149e-05 | F189: -2.681049336e-05 | G189: 0.0001472095296 | H189: -1.740493748e-05 | J189: -0.001481293907 | K189: -0.04783348716 | L189: 0.007767605549 | M189: 0.23713114 | N189: 0.001247746272
A190: =IF('DF raw data'!E195="","",'DF raw data'!E195) -> -236 | B190: =IF('DF raw data'!F195="","",'DF raw data'!F195) -> -2.55188e-05 | C190: =IF('DF raw data'!G195="","",'DF raw data'!G195) -> 0.000149227 | D190: =IF('DF raw data'!H195="","",'DF raw data'!H195) -> -1.29047e-05 | F190: -2.565149776e-05 | G190: 0.0001500029804 | H190: -1.297180444e-05 | J190: -0.001494119656 | K190: -0.04858054698 | L190: 0.00784260704 | M190: 0.2410524435 | N190: 0.001279615711
A191: =IF('DF raw data'!E196="","",'DF raw data'!E196) -> -235.5 | B191: =IF('DF raw data'!F196="","",'DF raw data'!F196) -> -1.84047e-05 | C191: =IF('DF raw data'!G196="","",'DF raw data'!G196) -> 0.0001486 | D191: =IF('DF raw data'!H196="","",'DF raw data'!H196) -> -1.79947e-05 | F191: -1.850040444e-05 | G191: 0.00014937272 | H191: -1.808827244e-05 | J191: -0.001503369858 | K191: -0.04933223191 | L191: 0.0079172934 | M191: 0.2450110902 | N191: 0.001312087539
A192: =IF('DF raw data'!E197="","",'DF raw data'!E197) -> -235 | B192: =IF('DF raw data'!F197="","",'DF raw data'!F197) -> -3.22334e-05 | C192: =IF('DF raw data'!G197="","",'DF raw data'!G197) -> 0.000139621 | D192: =IF('DF raw data'!H197="","",'DF raw data'!H197) -> -3.32989e-05 | F192: =(1-$G$1*($B$49-$G$2))*B192 -> -3.240101368e-05 | G192: 0.0001403470292 | H192: -3.347205428e-05 | J192: =F192*$G$3+J191 -> -0.001519570365 | K192: =J192*$G$3+K191 -> -0.0500920171 | L192: =G192*$G$3+L191 -> 0.007987466914 | M192: =L192*$G$3+M191 -> 0.2490048237 | N192: =(J192^2+L192^2)*$G$3+N191 -> 0.0013451419
A193: =IF('DF raw data'!E198="","",'DF raw data'!E198) -> -234.5 | B193: =IF('DF raw data'!F198="","",'DF raw data'!F198) -> -2.99395e-05 | C193: =IF('DF raw data'!G198="","",'DF raw data'!G198) -> 0.000134321 | D193: =IF('DF raw data'!H198="","",'DF raw data'!H198) -> -1.81894e-05 | F193: -3.00951854e-05 | G193: 0.0001350194692 | H193: -1.828398488e-05 | J193: -0.001534617958 | K193: -0.05085932607 | L193: 0.008054976649 | M193: 0.253032312 | N193: 0.001378760751
A194: =IF('DF raw data'!E199="","",'DF raw data'!E199) -> -234 | B194: =IF('DF raw data'!F199="","",'DF raw data'!F199) -> -3.17336e-05 | C194: =IF('DF raw data'!G199="","",'DF raw data'!G199) -> 0.000142479 | D194: =IF('DF raw data'!H199="","",'DF raw data'!H199) -> -1.33797e-05 | F194: -3.189861472e-05 | G194: 0.0001432198908 | H194: -1.344927444e-05 | J194: -0.001550567265 | K194: -0.05163460971 | L194: 0.008126586594 | M194: 0.2570956053 | N194: 0.001412983585
A195: =IF('DF raw data'!E200="","",'DF raw data'!E200) -> -233.5 | B195: =IF('DF raw data'!F200="","",'DF raw data'!F200) -> -2.62203e-05 | C195: =IF('DF raw data'!G200="","",'DF raw data'!G200) -> 0.000149842 | D195: =IF('DF raw data'!H200="","",'DF raw data'!H200) -> -2.22178e-05 | F195: -2.635664556e-05 | G195: 0.0001506211784 | H195: -2.233333256e-05 | J195: -0.001563745588 | K195: -0.0524164825 | L195: 0.008201897183 | M195: 0.2611965539 | N195: 0.001447841794
A196: =IF('DF raw data'!E201="","",'DF raw data'!E201) -> -233 | B196: =IF('DF raw data'!F201="","",'DF raw data'!F201) -> -2.03978e-05 | C196: =IF('DF raw data'!G201="","",'DF raw data'!G201) -> 0.000148566 | D196: =IF('DF raw data'!H201="","",'DF raw data'!H201) -> -4.77898e-06 | F196: -2.050386856e-05 | G196: 0.0001493385432 | H196: -4.803830696e-06 | J196: -0.001573997522 | K196: -0.05320348126 | L196: 0.008276566455 | M196: 0.2653348371 | N196: 0.001483331304
A197: =IF('DF raw data'!E202="","",'DF raw data'!E202) -> -232.5 | B197: =IF('DF raw data'!F202="","",'DF raw data'!F202) -> -2.0651e-05 | C197: =IF('DF raw data'!G202="","",'DF raw data'!G202) -> 0.000154329 | D197: =IF('DF raw data'!H202="","",'DF raw data'!H202) -> -1.29217e-05 | F197: -2.07583852e-05 | G197: 0.0001551315108 | H197: -1.298889284e-05 | J197: -0.001584376715 | K197: -0.05399566962 | L197: 0.00835413221 | M197: 0.2695119032 | N197: 0.001519482191
A198: =IF('DF raw data'!E203="","",'DF raw data'!E203) -> -232 | B198: =IF('DF raw data'!F203="","",'DF raw data'!F203) -> -1.2132e-05 | C198: =IF('DF raw data'!G203="","",'DF raw data'!G203) -> 0.000156419 | D198: =IF('DF raw data'!H203="","",'DF raw data'!H203) -> -5.13684e-06 | F198: -1.21950864e-05 | G198: 0.0001572323788 | H198: -5.163551568e-06 | J198: -0.001590474258 | K198: -0.05479090675 | L198: 0.0084327484 | M198: 0.2737282774 | N198: 0.001556302618
A199: =IF('DF raw data'!E204="","",'DF raw data'!E204) -> -231.5 | B199: =IF('DF raw data'!F204="","",'DF raw data'!F204) -> -1.64256e-05 | C199: =IF('DF raw data'!G204="","",'DF raw data'!G204) -> 0.000149411 | D199: =IF('DF raw data'!H204="","",'DF raw data'!H204) -> -6.96217e-06 | F199: -1.651101312e-05 | G199: 0.0001501879372 | H199: -6.998373284e-06 | J199: -0.001598729765 | K199: -0.05559027163 | L199: 0.008507842368 | M199: 0.2779821986 | N199: 0.001593772277
A200: =IF('DF raw data'!E205="","",'DF raw data'!E205) -> -231 | B200: =IF('DF raw data'!F205="","",'DF raw data'!F205) -> -2.46293e-05 | C200: =IF('DF raw data'!G205="","",'DF raw data'!G205) -> 0.000141623 | D200: =IF('DF raw data'!H205="","",'DF raw data'!H205) -> -1.06843e-06 | F200: -2.475737236e-05 | G200: 0.0001423594396 | H200: -1.073985836e-06 | J200: -0.001611108451 | K200: -0.05639582586 | L200: 0.008579022088 | M200: 0.2822717096 | N200: 0.001631869923
A201: =IF('DF raw data'!E206="","",'DF raw data'!E206) -> -230.5 | B201: =IF('DF raw data'!F206="","",'DF raw data'!F206) -> -2.21907e-05 | C201: =IF('DF raw data'!G206="","",'DF raw data'!G206) -> 0.000141538 | D201: =IF('DF raw data'!H206="","",'DF raw data'!H206) -> -1.02862e-05 | F201: -2.230609164e-05 | G201: 0.0001422739976 | H201: -1.033968824e-05 | J201: -0.001622261497 | K201: -0.0572069566 | L201: 0.008650159087 | M201: 0.2865967892 | N201: 0.001670598415
... 1061 more rows

Sheet 10 y=0
A1: =IF('DF raw data'!I1="","",'DF raw data'!I1) -> Number of header lines | B1: =IF('DF raw data'!J1="","",'DF raw data'!J1) -> 54 | C1: =IF('DF raw data'!K1="","",'DF raw data'!K1) ->  | D1: =IF('DF raw data'!L1="","",'DF raw data'!L1) ->  | F1: T_coeff | G1: -0.001 | H1: /degC | J1: IBy total | K1: =J1262*1000 -> -5.951444431 | L1: muTm | M1: =L1262*1000 -> 9.235217588 | R1: DF ref | S1: ='10 y=-0.2'!S1 -> 1
A2: =IF('DF raw data'!I2="","",'DF raw data'!I2) -> Measured by | B2: =IF('DF raw data'!J2="","",'DF raw data'!J2) -> Danfysik | C2: =IF('DF raw data'!K2="","",'DF raw data'!K2) ->  | D2: =IF('DF raw data'!L2="","",'DF raw data'!L2) ->  | F2: Tcorr | G2: 20 | H2: degC | J2: JBy total | K2: =K1262 -> -5.749922575 | L2: muTm^2 | M2: =M1262 -> 10.38520264
A3: =IF('DF raw data'!I3="","",'DF raw data'!I3) -> Operator | B3: =IF('DF raw data'!J3="","",'DF raw data'!J3) -> PMHA | C3: =IF('DF raw data'!K3="","",'DF raw data'!K3) ->  | D3: =IF('DF raw data'!L3="","",'DF raw data'!L3) ->  | F3: Step | G3: =A63-A62 -> 0.5 | H3: mm | J3: PI total | K3: =N1262 -> 10349.21596 | L3: T^2mm^3
A4: =IF('DF raw data'!I4="","",'DF raw data'!I4) -> Data-time | B4: =IF('DF raw data'!J4="","",'DF raw data'!J4) -> 09-09-2024, 14:14:21 | C4: =IF('DF raw data'!K4="","",'DF raw data'!K4) ->  | D4: =IF('DF raw data'!L4="","",'DF raw data'!L4) -> 
A5: =IF('DF raw data'!I5="","",'DF raw data'!I5) -> Project | B5: =IF('DF raw data'!J5="","",'DF raw data'!J5) -> 504314 | C5: =IF('DF raw data'!K5="","",'DF raw data'!K5) ->  | D5: =IF('DF raw data'!L5="","",'DF raw data'!L5) -> 
A6: =IF('DF raw data'!I6="","",'DF raw data'!I6) -> Magnet type | B6: =IF('DF raw data'!J6="","",'DF raw data'!J6) -> Dipole | C6: =IF('DF raw data'!K6="","",'DF raw data'!K6) ->  | D6: =IF('DF raw data'!L6="","",'DF raw data'!L6) -> 
A7: =IF('DF raw data'!I7="","",'DF raw data'!I7) -> Magnet nr. | B7: =IF('DF raw data'!J7="","",'DF raw data'!J7) -> 2410094 | C7: =IF('DF raw data'!K7="","",'DF raw data'!K7) ->  | D7: =IF('DF raw data'!L7="","",'DF raw data'!L7) -> 
A8: =IF('DF raw data'!I8="","",'DF raw data'!I8) -> Meas. number | B8: =IF('DF raw data'!J8="","",'DF raw data'!J8) -> 391 | C8: =IF('DF raw data'!K8="","",'DF raw data'!K8) ->  | D8: =IF('DF raw data'!L8="","",'DF raw data'!L8) -> 
A9: =IF('DF raw data'!I9="","",'DF raw data'!I9) -> Add. info | B9: =IF('DF raw data'!J9="","",'DF raw data'!J9) -> Y-alignment scan 3) | C9: =IF('DF raw data'!K9="","",'DF raw data'!K9) ->  | D9: =IF('DF raw data'!L9="","",'DF raw data'!L9) -> 
A10: =IF('DF raw data'!I10="","",'DF raw data'!I10) -> Device | B10: =IF('DF raw data'!J10="","",'DF raw data'!J10) -> (HAL) HALL-PROBE | C10: =IF('DF raw data'!K10="","",'DF raw data'!K10) ->  | D10: =IF('DF raw data'!L10="","",'DF raw data'!L10) -> 
A11: =IF('DF raw data'!I11="","",'DF raw data'!I11) -> Goal | B11: =IF('DF raw data'!J11="","",'DF raw data'!J11) -> (AXI) AXis Integral (Line, EFB) | C11: =IF('DF raw data'!K11="","",'DF raw data'!K11) ->  | D11: =IF('DF raw data'!L11="","",'DF raw data'!L11) -> 
A12: =IF('DF raw data'!I12="","",'DF raw data'!I12) -> Power supply mode | B12: =IF('DF raw data'!J12="","",'DF raw data'!J12) -> (PM) Permanent Magnet (no MPS in use) | C12: =IF('DF raw data'!K12="","",'DF raw data'!K12) ->  | D12: =IF('DF raw data'!L12="","",'DF raw data'!L12) -> 
A13: =IF('DF raw data'!I13="","",'DF raw data'!I13) -> Data format | B13: =IF('DF raw data'!J13="","",'DF raw data'!J13) -> Raw data text file | C13: =IF('DF raw data'!K13="","",'DF raw data'!K13) ->  | D13: =IF('DF raw data'!L13="","",'DF raw data'!L13) -> 
A14: =IF('DF raw data'!I14="","",'DF raw data'!I14) -> Direction of the pos. x-axis | B14: =IF('DF raw data'!J14="","",'DF raw data'!J14) -> See test program | C14: =IF('DF raw data'!K14="","",'DF raw data'!K14) ->  | D14: =IF('DF raw data'!L14="","",'DF raw data'!L14) -> 
A15: =IF('DF raw data'!I15="","",'DF raw data'!I15) -> Direction of the pos. y-axis | B15: =IF('DF raw data'!J15="","",'DF raw data'!J15) -> Vertical up | C15: =IF('DF raw data'!K15="","",'DF raw data'!K15) ->  | D15: =IF('DF raw data'!L15="","",'DF raw data'!L15) -> 
A16: =IF('DF raw data'!I16="","",'DF raw data'!I16) -> Direction of the pos. z-axis | B16: =IF('DF raw data'!J16="","",'DF raw data'!J16) -> See test program | C16: =IF('DF raw data'!K16="","",'DF raw data'!K16) ->  | D16: =IF('DF raw data'!L16="","",'DF raw data'!L16) -> 
A17: =IF('DF raw data'!I17="","",'DF raw data'!I17) -> Mapper type | B17: =IF('DF raw data'!J17="","",'DF raw data'!J17) -> Precision Hall Mapper | C17: =IF('DF raw data'!K17="","",'DF raw data'!K17) ->  | D17: =IF('DF raw data'!L17="","",'DF raw data'!L17) -> 
A18: =IF('DF raw data'!I18="","",'DF raw data'!I18) -> Mapper Danfysik Reg. Number | B18: =IF('DF raw data'!J18="","",'DF raw data'!J18) -> 2033-D (mapper 1) | C18: =IF('DF raw data'!K18="","",'DF raw data'!K18) ->  | D18: =IF('DF raw data'!L18="","",'DF raw data'!L18) -> 
A19: =IF('DF raw data'!I19="","",'DF raw data'!I19) -> Measurement consept | B19: =IF('DF raw data'!J19="","",'DF raw data'!J19) -> Square line grid | C19: =IF('DF raw data'!K19="","",'DF raw data'!K19) ->  | D19: =IF('DF raw data'!L19="","",'DF raw data'!L19) -> 
A20: =IF('DF raw data'!I20="","",'DF raw data'!I20) -> Mode | B20: =IF('DF raw data'!J20="","",'DF raw data'!J20) -> On-the-fly measurement | C20: =IF('DF raw data'!K20="","",'DF raw data'!K20) ->  | D20: =IF('DF raw data'!L20="","",'DF raw data'!L20) -> 
A21: =IF('DF raw data'!I21="","",'DF raw data'!I21) ->  | B21: =IF('DF raw data'!J21="","",'DF raw data'!J21) ->  | C21: =IF('DF raw data'!K21="","",'DF raw data'!K21) ->  | D21: =IF('DF raw data'!L21="","",'DF raw data'!L21) -> 
A22: =IF('DF raw data'!I22="","",'DF raw data'!I22) -> Probe Name | B22: =IF('DF raw data'!J22="","",'DF raw data'!J22) -> ID12_By | C22: =IF('DF raw data'!K22="","",'DF raw data'!K22) ->  | D22: =IF('DF raw data'!L22="","",'DF raw data'!L22) -> 
A23: =IF('DF raw data'!I23="","",'DF raw data'!I23) -> Probe Type | B23: =IF('DF raw data'!J23="","",'DF raw data'!J23) -> DF_ID_3D_Bxyz | C23: =IF('DF raw data'!K23="","",'DF raw data'!K23) ->  | D23: =IF('DF raw data'!L23="","",'DF raw data'!L23) -> 
A24: =IF('DF raw data'!I24="","",'DF raw data'!I24) -> Probe Danfysik Reg. Number | B24: =IF('DF raw data'!J24="","",'DF raw data'!J24) -> 2277 | C24: =IF('DF raw data'!K24="","",'DF raw data'!K24) ->  | D24: =IF('DF raw data'!L24="","",'DF raw data'!L24) -> 
A25: =IF('DF raw data'!I25="","",'DF raw data'!I25) -> Probe Axis | B25: =IF('DF raw data'!J25="","",'DF raw data'!J25) -> By | C25: =IF('DF raw data'!K25="","",'DF raw data'!K25) ->  | D25: =IF('DF raw data'!L25="","",'DF raw data'!L25) -> 
A26: =IF('DF raw data'!I26="","",'DF raw data'!I26) -> Probe Current Supply | B26: =IF('DF raw data'!J26="","",'DF raw data'!J26) -> 1825-D | C26: =IF('DF raw data'!K26="","",'DF raw data'!K26) ->  | D26: =IF('DF raw data'!L26="","",'DF raw data'!L26) -> 
A27: =IF('DF raw data'!I27="","",'DF raw data'!I27) -> Probe Gain Correction | B27: =IF('DF raw data'!J27="","",'DF raw data'!J27) -> 0.99606 | C27: =IF('DF raw data'!K27="","",'DF raw data'!K27) ->  | D27: =IF('DF raw data'!L27="","",'DF raw data'!L27) -> 
A28: =IF('DF raw data'!I28="","",'DF raw data'!I28) -> Probe Offset Correction | B28: =IF('DF raw data'!J28="","",'DF raw data'!J28) -> 0.002758 | C28: =IF('DF raw data'!K28="","",'DF raw data'!K28) ->  | D28: =IF('DF raw data'!L28="","",'DF raw data'!L28) -> 
A29: =IF('DF raw data'!I29="","",'DF raw data'!I29) -> DVM Number | B29: =IF('DF raw data'!J29="","",'DF raw data'!J29) -> 2 | C29: =IF('DF raw data'!K29="","",'DF raw data'!K29) ->  | D29: =IF('DF raw data'!L29="","",'DF raw data'!L29) -> 
A30: =IF('DF raw data'!I30="","",'DF raw data'!I30) -> DVM Type | B30: =IF('DF raw data'!J30="","",'DF raw data'!J30) -> K2701 | C30: =IF('DF raw data'!K30="","",'DF raw data'!K30) ->  | D30: =IF('DF raw data'!L30="","",'DF raw data'!L30) -> 
A31: =IF('DF raw data'!I31="","",'DF raw data'!I31) -> DVM Danfysik Reg. Number | B31: =IF('DF raw data'!J31="","",'DF raw data'!J31) -> 1743-D | C31: =IF('DF raw data'!K31="","",'DF raw data'!K31) ->  | D31: =IF('DF raw data'!L31="","",'DF raw data'!L31) -> 
A32: =IF('DF raw data'!I32="","",'DF raw data'!I32) -> Probe Name | B32: =IF('DF raw data'!J32="","",'DF raw data'!J32) -> ID12_Bx | C32: =IF('DF raw data'!K32="","",'DF raw data'!K32) ->  | D32: =IF('DF raw data'!L32="","",'DF raw data'!L32) -> 
A33: =IF('DF raw data'!I33="","",'DF raw data'!I33) -> Probe Type | B33: =IF('DF raw data'!J33="","",'DF raw data'!J33) -> DF_ID_3D_Bxyz | C33: =IF('DF raw data'!K33="","",'DF raw data'!K33) ->  | D33: =IF('DF raw data'!L33="","",'DF raw data'!L33) -> 
A34: =IF('DF raw data'!I34="","",'DF raw data'!I34) -> Probe Danfysik Reg. Number | B34: =IF('DF raw data'!J34="","",'DF raw data'!J34) -> 2277 | C34: =IF('DF raw data'!K34="","",'DF raw data'!K34) ->  | D34: =IF('DF raw data'!L34="","",'DF raw data'!L34) -> 
A35: =IF('DF raw data'!I35="","",'DF raw data'!I35) -> Probe Axis | B35: =IF('DF raw data'!J35="","",'DF raw data'!J35) -> Bx | C35: =IF('DF raw data'!K35="","",'DF raw data'!K35) ->  | D35: =IF('DF raw data'!L35="","",'DF raw data'!L35) -> 
A36: =IF('DF raw data'!I36="","",'DF raw data'!I36) -> Probe Current Supply | B36: =IF('DF raw data'!J36="","",'DF raw data'!J36) -> 1825-D | C36: =IF('DF raw data'!K36="","",'DF raw data'!K36) ->  | D36: =IF('DF raw data'!L36="","",'DF raw data'!L36) -> 
A37: =IF('DF raw data'!I37="","",'DF raw data'!I37) -> Probe Gain Correction | B37: =IF('DF raw data'!J37="","",'DF raw data'!J37) -> 1 | C37: =IF('DF raw data'!K37="","",'DF raw data'!K37) ->  | D37: =IF('DF raw data'!L37="","",'DF raw data'!L37) -> 
A38: =IF('DF raw data'!I38="","",'DF raw data'!I38) -> Probe Offset Correction | B38: =IF('DF raw data'!J38="","",'DF raw data'!J38) -> -0.17551 | C38: =IF('DF raw data'!K38="","",'DF raw data'!K38) ->  | D38: =IF('DF raw data'!L38="","",'DF raw data'!L38) -> 
A39: =IF('DF raw data'!I39="","",'DF raw data'!I39) -> DVM Number | B39: =IF('DF raw data'!J39="","",'DF raw data'!J39) -> 3 | C39: =IF('DF raw data'!K39="","",'DF raw data'!K39) ->  | D39: =IF('DF raw data'!L39="","",'DF raw data'!L39) -> 
A40: =IF('DF raw data'!I40="","",'DF raw data'!I40) -> DVM Type | B40: =IF('DF raw data'!J40="","",'DF raw data'!J40) -> K2701 | C40: =IF('DF raw data'!K40="","",'DF raw data'!K40) ->  | D40: =IF('DF raw data'!L40="","",'DF raw data'!L40) -> 
A41: =IF('DF raw data'!I41="","",'DF raw data'!I41) -> DVM Danfysik Reg. Number | B41: =IF('DF raw data'!J41="","",'DF raw data'!J41) -> 1744-D | C41: =IF('DF raw data'!K41="","",'DF raw data'!K41) ->  | D41: =IF('DF raw data'!L41="","",'DF raw data'!L41) -> 
A42: =IF('DF raw data'!I42="","",'DF raw data'!I42) -> Probe Name | B42: =IF('DF raw data'!J42="","",'DF raw data'!J42) -> ID12_Bz | C42: =IF('DF raw data'!K42="","",'DF raw data'!K42) ->  | D42: =IF('DF raw data'!L42="","",'DF raw data'!L42) -> 
A43: =IF('DF raw data'!I43="","",'DF raw data'!I43) -> Probe Type | B43: =IF('DF raw data'!J43="","",'DF raw data'!J43) -> DF_ID_3D_Bxyz | C43: =IF('DF raw data'!K43="","",'DF raw data'!K43) ->  | D43: =IF('DF raw data'!L43="","",'DF raw data'!L43) -> 
A44: =IF('DF raw data'!I44="","",'DF raw data'!I44) -> Probe Danfysik Reg. Number | B44: =IF('DF raw data'!J44="","",'DF raw data'!J44) -> 2277 | C44: =IF('DF raw data'!K44="","",'DF raw data'!K44) ->  | D44: =IF('DF raw data'!L44="","",'DF raw data'!L44) -> 
A45: =IF('DF raw data'!I45="","",'DF raw data'!I45) -> Probe Axis | B45: =IF('DF raw data'!J45="","",'DF raw data'!J45) -> Bz | C45: =IF('DF raw data'!K45="","",'DF raw data'!K45) ->  | D45: =IF('DF raw data'!L45="","",'DF raw data'!L45) -> 
A46: =IF('DF raw data'!I46="","",'DF raw data'!I46) -> Probe Current Supply | B46: =IF('DF raw data'!J46="","",'DF raw data'!J46) -> 1825-D | C46: =IF('DF raw data'!K46="","",'DF raw data'!K46) ->  | D46: =IF('DF raw data'!L46="","",'DF raw data'!L46) -> 
A47: =IF('DF raw data'!I47="","",'DF raw data'!I47) -> Probe Gain Correction | B47: =IF('DF raw data'!J47="","",'DF raw data'!J47) -> 1 | C47: =IF('DF raw data'!K47="","",'DF raw data'!K47) ->  | D47: =IF('DF raw data'!L47="","",'DF raw data'!L47) -> 
A48: =IF('DF raw data'!I53="","",'DF raw data'!I53) -> PS-Gap: | B48: =IF('DF raw data'!J53="","",'DF raw data'!J53) -> 10 | C48: =IF('DF raw data'!K53="","",'DF raw data'!K53) ->  | D48: =IF('DF raw data'!L53="","",'DF raw data'!L53) -> 
A49: =IF('DF raw data'!I54="","",'DF raw data'!I54) -> PS-Temperature: | B49: =IF('DF raw data'!J54="","",'DF raw data'!J54) -> 25.2 | C49: =IF('DF raw data'!K54="","",'DF raw data'!K54) ->  | D49: =IF('DF raw data'!L54="","",'DF raw data'!L54) -> 
A50: =IF('DF raw data'!I55="","",'DF raw data'!I55) -> PS-Encoder: | B50: =IF('DF raw data'!J55="","",'DF raw data'!J55) -> 19.8252 | C50: =IF('DF raw data'!K55="","",'DF raw data'!K55) ->  | D50: =IF('DF raw data'!L55="","",'DF raw data'!L55) -> 
A51: =IF('DF raw data'!I56="","",'DF raw data'!I56) ->  | B51: =IF('DF raw data'!J56="","",'DF raw data'!J56) ->  | C51: =IF('DF raw data'!K56="","",'DF raw data'!K56) ->  | D51: =IF('DF raw data'!L56="","",'DF raw data'!L56) -> 
A52: =IF('DF raw data'!I57="","",'DF raw data'!I57) -> Monitor-Index | B52: =IF('DF raw data'!J57="","",'DF raw data'!J57) -> [1,1,4] | C52: =IF('DF raw data'!K57="","",'DF raw data'!K57) ->  | D52: =IF('DF raw data'!L57="","",'DF raw data'!L57) -> 
A53: =IF('DF raw data'!I58="","",'DF raw data'!I58) ->  | B53: =IF('DF raw data'!J58="","",'DF raw data'!J58) ->  | C53: =IF('DF raw data'!K58="","",'DF raw data'!K58) ->  | D53: =IF('DF raw data'!L58="","",'DF raw data'!L58) -> 
A54: =IF('DF raw data'!I59="","",'DF raw data'!I59) -> Time [s] | B54: =IF('DF raw data'!J59="","",'DF raw data'!J59) -> Y [mm] | C54: =IF('DF raw data'!K59="","",'DF raw data'!K59) -> X [mm] | D54: =IF('DF raw data'!L59="","",'DF raw data'!L59) -> Nominal current [A]
A55: =IF('DF raw data'!I60="","",'DF raw data'!I60) ->  | B55: =IF('DF raw data'!J60="","",'DF raw data'!J60) ->  | C55: =IF('DF raw data'!K60="","",'DF raw data'!K60) ->  | D55: =IF('DF raw data'!L60="","",'DF raw data'!L60) -> 
A56: =IF('DF raw data'!I61="","",'DF raw data'!I61) -> 217.7 | B56: =IF('DF raw data'!J61="","",'DF raw data'!J61) -> 31.76 | C56: =IF('DF raw data'!K61="","",'DF raw data'!K61) -> 301.8 | D56: =IF('DF raw data'!L61="","",'DF raw data'!L61) -> 0
A57: =IF('DF raw data'!I62="","",'DF raw data'!I62) ->  | B57: =IF('DF raw data'!J62="","",'DF raw data'!J62) ->  | C57: =IF('DF raw data'!K62="","",'DF raw data'!K62) ->  | D57: =IF('DF raw data'!L62="","",'DF raw data'!L62) -> 
A58: =IF('DF raw data'!I63="","",'DF raw data'!I63) -> Measurement-Index | B58: =IF('DF raw data'!J63="","",'DF raw data'!J63) -> [1,1,1201,2] | C58: =IF('DF raw data'!K63="","",'DF raw data'!K63) ->  | D58: =IF('DF raw data'!L63="","",'DF raw data'!L63) -> 
A59: =IF('DF raw data'!I64="","",'DF raw data'!I64) ->  | B59: =IF('DF raw data'!J64="","",'DF raw data'!J64) ->  | C59: =IF('DF raw data'!K64="","",'DF raw data'!K64) ->  | D59: =IF('DF raw data'!L64="","",'DF raw data'!L64) -> 
A60: =IF('DF raw data'!I65="","",'DF raw data'!I65) -> Z [mm] | B60: By [T] | C60: Bx [T] | D60: Bz [T] | F60: By_corr | G60: Bx_corr | H60: Bz_corr | J60: Iy | K60: Jy | L60: Ix | M60: Jx | N60: PI
A62: =IF('DF raw data'!I67="","",'DF raw data'!I67) -> -300 | B62: =IF('DF raw data'!J67="","",'DF raw data'!J67) -> -2.25653e-05 | C62: =IF('DF raw data'!K67="","",'DF raw data'!K67) -> 9.78299e-05 | D62: =IF('DF raw data'!L67="","",'DF raw data'!L67) -> -1.74263e-06 | F62: =(1-$G$1*($B$49))*B62 -> -2.313394556e-05 | G62: =(1-$G$1*($B$49-$G$2))*C62 -> 9.833861548e-05 | H62: =(1-$G$1*($B$49-$G$2))*D62 -> -1.751691676e-06 | J62: =F62*$G$3 -> -1.156697278e-05 | K62: =J62*$G$3 -> -5.78348639e-06 | L62: =G62*$G$3 -> 4.916930774e-05 | M62: =L62*$G$3 -> 2.458465387e-05 | N62: =(J62^2+L62^2)*$G$3 -> 1.275707841e-09
A63: =IF('DF raw data'!I68="","",'DF raw data'!I68) -> -299.5 | B63: =IF('DF raw data'!J68="","",'DF raw data'!J68) -> -2.66664e-05 | C63: =IF('DF raw data'!K68="","",'DF raw data'!K68) -> 0.000104087 | D63: =IF('DF raw data'!L68="","",'DF raw data'!L68) -> -1.72919e-06 | F63: =(1-$G$1*($B$49-$G$2))*B63 -> -2.680506528e-05 | G63: =(1-$G$1*($B$49-$G$2))*C63 -> 0.0001046282524 | H63: -1.738181788e-06 | J63: =F63*$G$3+J62 -> -2.496950542e-05 | K63: =J63*$G$3+K62 -> -1.82682391e-05 | L63: =G63*$G$3+L62 -> 0.0001014834339 | M63: =L63*$G$3+M62 -> 7.532637084e-05 | N63: =(J63^2+L63^2)*$G$3+N62 -> 6.736889624e-09
A64: =IF('DF raw data'!I69="","",'DF raw data'!I69) -> -299 | B64: =IF('DF raw data'!J69="","",'DF raw data'!J69) -> -2.4808e-05 | C64: =IF('DF raw data'!K69="","",'DF raw data'!K69) -> 0.000102908 | D64: =IF('DF raw data'!L69="","",'DF raw data'!L69) -> -1.72918e-06 | F64: =(1-$G$1*($B$49-$G$2))*B64 -> -2.49370016e-05 | G64: 0.0001034431216 | H64: -1.738171736e-06 | J64: =F64*$G$3+J63 -> -3.743800622e-05 | K64: =J64*$G$3+K63 -> -3.698724221e-05 | L64: =G64*$G$3+L63 -> 0.0001532049947 | M64: =L64*$G$3+M63 -> 0.0001519288682 | N64: =(J64^2+L64^2)*$G$3+N63 -> 1.917357699e-08
A65: =IF('DF raw data'!I70="","",'DF raw data'!I70) -> -298.5 | B65: =IF('DF raw data'!J70="","",'DF raw data'!J70) -> -3.33307e-05 | C65: =IF('DF raw data'!K70="","",'DF raw data'!K70) -> 0.000112354 | D65: =IF('DF raw data'!L70="","",'DF raw data'!L70) -> -1.48212e-06 | F65: -3.350401964e-05 | G65: 0.0001129382408 | H65: -1.489827024e-06 | J65: -5.419001604e-05 | K65: -6.408225023e-05 | L65: 0.0002096741151 | M65: 0.0002567659258 | N65: 4.262347318e-08
A66: =IF('DF raw data'!I71="","",'DF raw data'!I71) -> -298 | B66: =IF('DF raw data'!J71="","",'DF raw data'!J71) -> -3.00632e-05 | C66: =IF('DF raw data'!K71="","",'DF raw data'!K71) -> 0.000113964 | D66: =IF('DF raw data'!L71="","",'DF raw data'!L71) -> -7.54821e-07 | F66: -3.021952864e-05 | G66: 0.0001145566128 | H66: -7.587460692e-07 | J66: -6.929978036e-05 | K66: -9.873214041e-05 | L66: 0.0002669524215 | M66: 0.0003902421366 | N66: 8.065650065e-08
A67: =IF('DF raw data'!I72="","",'DF raw data'!I72) -> -297.5 | B67: =IF('DF raw data'!J72="","",'DF raw data'!J72) -> -3.49978e-05 | C67: =IF('DF raw data'!K72="","",'DF raw data'!K72) -> 0.000109405 | D67: =IF('DF raw data'!L72="","",'DF raw data'!L72) -> 2.00483e-07 | F67: -3.517978856e-05 | G67: 0.000109973906 | H67: 2.015255116e-07 | J67: -8.688967464e-05 | K67: -0.0001421769777 | L67: 0.0003219393745 | M67: 0.0005512118238 | N67: 1.362538889e-07
A68: =IF('DF raw data'!I73="","",'DF raw data'!I73) -> -297 | B68: =IF('DF raw data'!J73="","",'DF raw data'!J73) -> -2.09007e-05 | C68: =IF('DF raw data'!K73="","",'DF raw data'!K73) -> 0.000109742 | D68: =IF('DF raw data'!L73="","",'DF raw data'!L73) -> 4.39524e-07 | F68: -2.100938364e-05 | G68: 0.0001103126584 | H68: 4.418095248e-07 | J68: -9.739436646e-05 | K68: -0.000190874161 | L68: 0.0003770957037 | M68: 0.0007397596757 | N68: 2.120973051e-07
A69: =IF('DF raw data'!I74="","",'DF raw data'!I74) -> -296.5 | B69: =IF('DF raw data'!J74="","",'DF raw data'!J74) -> -1.85934e-05 | C69: =IF('DF raw data'!K74="","",'DF raw data'!K74) -> 0.000101809 | D69: =IF('DF raw data'!L74="","",'DF raw data'!L74) -> -8.8557e-08 | F69: -1.869008568e-05 | G69: 0.0001023384068 | H69: -8.90174964e-08 | J69: -0.0001067394093 | K69: -0.0002442438656 | L69: 0.0004282649071 | M69: 0.0009538921293 | N69: 3.094993712e-07
A70: =IF('DF raw data'!I75="","",'DF raw data'!I75) -> -296 | B70: =IF('DF raw data'!J75="","",'DF raw data'!J75) -> -2.07718e-05 | C70: =IF('DF raw data'!K75="","",'DF raw data'!K75) -> 0.000109101 | D70: =IF('DF raw data'!L75="","",'DF raw data'!L75) -> -6.99992e-07 | F70: -2.087981336e-05 | G70: 0.0001096683252 | H70: -7.036319584e-07 | J70: -0.000117179316 | K70: -0.0003028335236 | L70: 0.0004830990697 | M70: 0.001195441664 | N70: 4.330572228e-07
A71: =IF('DF raw data'!I76="","",'DF raw data'!I76) -> -295.5 | B71: =IF('DF raw data'!J76="","",'DF raw data'!J76) -> -1.55811e-05 | C71: =IF('DF raw data'!K76="","",'DF raw data'!K76) -> 0.000118486 | D71: =IF('DF raw data'!L76="","",'DF raw data'!L76) -> -9.86298e-07 | F71: -1.566212172e-05 | G71: 0.0001191021272 | H71: -9.914267496e-07 | J71: -0.0001250103768 | K71: -0.000365338712 | L71: 0.0005426501333 | M71: 0.001466766731 | N71: 5.881056036e-07
A72: =IF('DF raw data'!I77="","",'DF raw data'!I77) -> -295 | B72: =IF('DF raw data'!J77="","",'DF raw data'!J77) -> -2.32065e-05 | C72: =IF('DF raw data'!K77="","",'DF raw data'!K77) -> 0.000109761 | D72: =IF('DF raw data'!L77="","",'DF raw data'!L77) -> -8.69696e-07 | F72: -2.33271738e-05 | G72: 0.0001103317572 | H72: -8.742184192e-07 | J72: -0.0001366739637 | K72: -0.0004336756939 | L72: 0.0005978160119 | M72: 0.001765674737 | N72: 7.761374818e-07
A73: =IF('DF raw data'!I78="","",'DF raw data'!I78) -> -294.5 | B73: =IF('DF raw data'!J78="","",'DF raw data'!J78) -> -1.71193e-05 | C73: =IF('DF raw data'!K78="","",'DF raw data'!K78) -> 0.000107869 | D73: =IF('DF raw data'!L78="","",'DF raw data'!L78) -> -7.48145e-07 | F73: -1.720832036e-05 | G73: 0.0001084299188 | H73: -7.52035354e-07 | J73: -0.0001452781239 | K73: -0.0005063147558 | L73: 0.0006520309713 | M73: 0.002091690222 | N73: 9.992625422e-07
A74: =IF('DF raw data'!I79="","",'DF raw data'!I79) -> -294 | B74: =IF('DF raw data'!J79="","",'DF raw data'!J79) -> -1.77599e-05 | C74: =IF('DF raw data'!K79="","",'DF raw data'!K79) -> 0.000113179 | D74: =IF('DF raw data'!L79="","",'DF raw data'!L79) -> -8.95698e-07 | F74: -1.785225148e-05 | G74: 0.0001137675308 | H74: -9.003556296e-07 | J74: -0.0001542042497 | K74: -0.0005834168807 | L74: 0.0007089147367 | M74: 0.002446147591 | N74: 1.26243207e-06
A75: =IF('DF raw data'!I80="","",'DF raw data'!I80) -> -293.5 | B75: =IF('DF raw data'!J80="","",'DF raw data'!J80) -> -1.68628e-05 | C75: =IF('DF raw data'!K80="","",'DF raw data'!K80) -> 0.000117595 | D75: =IF('DF raw data'!L80="","",'DF raw data'!L80) -> -1.00808e-06 | F75: -1.695048656e-05 | G75: 0.000118206494 | H75: -1.013322016e-06 | J75: -0.0001626794929 | K75: -0.0006647566271 | L75: 0.0007680179837 | M75: 0.002830156583 | N75: 1.57059019e-06
A76: =IF('DF raw data'!I81="","",'DF raw data'!I81) -> -293 | B76: =IF('DF raw data'!J81="","",'DF raw data'!J81) -> -2.28222e-05 | C76: =IF('DF raw data'!K81="","",'DF raw data'!K81) -> 0.000112426 | D76: =IF('DF raw data'!L81="","",'DF raw data'!L81) -> -7.4002e-07 | F76: -2.294087544e-05 | G76: 0.0001130106152 | H76: -7.43868104e-07 | J76: -0.0001741499307 | K76: -0.0007518315925 | L76: 0.0008245232913 | M76: 0.003242418228 | N76: 1.925673618e-06
A77: =IF('DF raw data'!I82="","",'DF raw data'!I82) -> -292.5 | B77: =IF('DF raw data'!J82="","",'DF raw data'!J82) -> -1.32107e-05 | C77: =IF('DF raw data'!K82="","",'DF raw data'!K82) -> 0.000108462 | D77: =IF('DF raw data'!L82="","",'DF raw data'!L82) -> -4.13499e-07 | F77: -1.327939564e-05 | G77: 0.0001090260024 | H77: -4.156491948e-07 | J77: -0.0001807896285 | K77: -0.0008422264067 | L77: 0.0008790362925 | M77: 0.003681936375 | N77: 2.328368465e-06
A78: =IF('DF raw data'!I83="","",'DF raw data'!I83) -> -292 | B78: =IF('DF raw data'!J83="","",'DF raw data'!J83) -> -1.92342e-05 | C78: =IF('DF raw data'!K83="","",'DF raw data'!K83) -> 0.000105203 | D78: =IF('DF raw data'!L83="","",'DF raw data'!L83) -> -2.29033e-07 | F78: -1.933421784e-05 | G78: 0.0001057500556 | H78: -2.302239716e-07 | J78: -0.0001904567374 | K78: -0.0009374547754 | L78: 0.0009319113203 | M78: 0.004147892035 | N78: 2.780734704e-06
A79: =IF('DF raw data'!I84="","",'DF raw data'!I84) -> -291.5 | B79: =IF('DF raw data'!J84="","",'DF raw data'!J84) -> -1.03805e-05 | C79: =IF('DF raw data'!K84="","",'DF raw data'!K84) -> 0.000104323 | D79: =IF('DF raw data'!L84="","",'DF raw data'!L84) -> -1.68731e-05 | F79: -1.04344786e-05 | G79: 0.0001048654796 | H79: -1.696084012e-05 | J79: -0.0001956739767 | K79: -0.001035291764 | L79: 0.0009843440601 | M79: 0.004640064065 | N79: 3.284345471e-06
A80: =IF('DF raw data'!I85="","",'DF raw data'!I85) -> -291 | B80: =IF('DF raw data'!J85="","",'DF raw data'!J85) -> -7.04835e-06 | C80: =IF('DF raw data'!K85="","",'DF raw data'!K85) -> 0.000100434 | D80: =IF('DF raw data'!L85="","",'DF raw data'!L85) -> -1.70909e-05 | F80: -7.08500142e-06 | G80: 0.0001009562568 | H80: -1.717977268e-05 | J80: -0.0001992164774 | K80: -0.001134900002 | L80: 0.001034822189 | M80: 0.005157475159 | N80: 3.839617554e-06
A81: =IF('DF raw data'!I86="","",'DF raw data'!I86) -> -290.5 | B81: =IF('DF raw data'!J86="","",'DF raw data'!J86) -> -2.30052e-05 | C81: =IF('DF raw data'!K86="","",'DF raw data'!K86) -> 0.000100734 | D81: =IF('DF raw data'!L86="","",'DF raw data'!L86) -> -1.51798e-05 | F81: -2.312482704e-05 | G81: 0.0001012578168 | H81: -1.525873496e-05 | J81: -0.0002107788909 | K81: -0.001240289448 | L81: 0.001085451097 | M81: 0.005700200708 | N81: 4.450933466e-06
A82: =IF('DF raw data'!I87="","",'DF raw data'!I87) -> -290 | B82: =IF('DF raw data'!J87="","",'DF raw data'!J87) -> -5.31069e-06 | C82: =IF('DF raw data'!K87="","",'DF raw data'!K87) -> 0.000106042 | D82: =IF('DF raw data'!L87="","",'DF raw data'!L87) -> -2.86234e-05 | F82: -5.338305588e-06 | G82: 0.0001065934184 | H82: -2.877224168e-05 | J82: -0.0002134480437 | K82: -0.00134701347 | L82: 0.001138747806 | M82: 0.006269574611 | N82: 5.122086783e-06
A83: =IF('DF raw data'!I88="","",'DF raw data'!I88) -> -289.5 | B83: =IF('DF raw data'!J88="","",'DF raw data'!J88) -> -1.57611e-05 | C83: =IF('DF raw data'!K88="","",'DF raw data'!K88) -> 0.000112199 | D83: =IF('DF raw data'!L88="","",'DF raw data'!L88) -> -1.99551e-05 | F83: -1.584305772e-05 | G83: 0.0001127824348 | H83: -2.005886652e-05 | J83: -0.0002213695726 | K83: -0.001457698256 | L83: 0.001195139024 | M83: 0.006867144122 | N83: 5.86076767e-06
A84: =IF('DF raw data'!I89="","",'DF raw data'!I89) -> -289 | B84: =IF('DF raw data'!J89="","",'DF raw data'!J89) -> -9.28536e-06 | C84: =IF('DF raw data'!K89="","",'DF raw data'!K89) -> 0.000103909 | D84: =IF('DF raw data'!L89="","",'DF raw data'!L89) -> -2.55901e-05 | F84: -9.333643872e-06 | G84: 0.0001044493268 | H84: -2.572316852e-05 | J84: -0.0002260363945 | K84: -0.001570716453 | L84: 0.001247363687 | M84: 0.007490825966 | N84: 6.664271979e-06
A85: =IF('DF raw data'!I90="","",'DF raw data'!I90) -> -288.5 | B85: =IF('DF raw data'!J90="","",'DF raw data'!J90) -> -1.27495e-05 | C85: =IF('DF raw data'!K90="","",'DF raw data'!K90) -> 0.000102414 | D85: =IF('DF raw data'!L90="","",'DF raw data'!L90) -> -1.97437e-05 | F85: -1.28157974e-05 | G85: 0.0001029465528 | H85: -1.984636724e-05 | J85: -0.0002324442932 | K85: -0.0016869386 | L85: 0.001298836963 | M85: 0.008140244448 | N85: 7.534775883e-06
A86: =IF('DF raw data'!I91="","",'DF raw data'!I91) -> -288 | B86: =IF('DF raw data'!J91="","",'DF raw data'!J91) -> -2.65874e-05 | C86: =IF('DF raw data'!K91="","",'DF raw data'!K91) -> 0.000106171 | D86: =IF('DF raw data'!L91="","",'DF raw data'!L91) -> -2.43313e-05 | F86: -2.672565448e-05 | G86: 0.0001067230892 | H86: -2.445782276e-05 | J86: -0.0002458071205 | K86: -0.00180984216 | L86: 0.001352198508 | M86: 0.008816343702 | N86: 8.479206855e-06
A87: =IF('DF raw data'!I92="","",'DF raw data'!I92) -> -287.5 | B87: =IF('DF raw data'!J92="","",'DF raw data'!J92) -> -1.88304e-05 | C87: =IF('DF raw data'!K92="","",'DF raw data'!K92) -> 0.000113331 | D87: =IF('DF raw data'!L92="","",'DF raw data'!L92) -> -3.01464e-05 | F87: -1.892831808e-05 | G87: 0.0001139203212 | H87: -3.030316128e-05 | J87: -0.0002552712795 | K87: -0.0019374778 | L87: 0.001409158669 | M87: 0.009520923036 | N87: 9.504652645e-06
A88: =IF('DF raw data'!I93="","",'DF raw data'!I93) -> -287 | B88: =IF('DF raw data'!J93="","",'DF raw data'!J93) -> -1.60192e-05 | C88: =IF('DF raw data'!K93="","",'DF raw data'!K93) -> 0.000115773 | D88: =IF('DF raw data'!L93="","",'DF raw data'!L93) -> -1.71409e-05 | F88: -1.610249984e-05 | G88: 0.0001163750196 | H88: -1.723003268e-05 | J88: -0.0002633225294 | K88: -0.002069139065 | L88: 0.001467346178 | M88: 0.01025459612 | N88: 1.061587443e-05
A89: =IF('DF raw data'!I94="","",'DF raw data'!I94) -> -286.5 | B89: =IF('DF raw data'!J94="","",'DF raw data'!J94) -> -1.61496e-05 | C89: =IF('DF raw data'!K94="","",'DF raw data'!K94) -> 0.000111014 | D89: =IF('DF raw data'!L94="","",'DF raw data'!L94) -> -1.36915e-05 | F89: -1.623357792e-05 | G89: 0.0001115912728 | H89: -1.37626958e-05 | J89: -0.0002714393184 | K89: -0.002204858724 | L89: 0.001523141815 | M89: 0.01101616703 | N89: 1.181269457e-05
A90: =IF('DF raw data'!I95="","",'DF raw data'!I95) -> -286 | B90: =IF('DF raw data'!J95="","",'DF raw data'!J95) -> -1.67892e-05 | C90: =IF('DF raw data'!K95="","",'DF raw data'!K95) -> 0.000111727 | D90: =IF('DF raw data'!L95="","",'DF raw data'!L95) -> -1.54323e-05 | F90: -1.687650384e-05 | G90: 0.0001123079804 | H90: -1.551254796e-05 | J90: -0.0002798775703 | K90: -0.002344797509 | L90: 0.001579295805 | M90: 0.01180581493 | N90: 1.309894792e-05
A91: =IF('DF raw data'!I96="","",'DF raw data'!I96) -> -285.5 | B91: =IF('DF raw data'!J96="","",'DF raw data'!J96) -> -1.50488e-05 | C91: =IF('DF raw data'!K96="","",'DF raw data'!K96) -> 0.000118431 | D91: =IF('DF raw data'!L96="","",'DF raw data'!L96) -> -3.12965e-05 | F91: -1.512705376e-05 | G91: 0.0001190468412 | H91: -3.14592418e-05 | J91: -0.0002874410972 | K91: -0.002488518058 | L91: 0.001638819226 | M91: 0.01262522455 | N91: 1.448312334e-05
A92: =IF('DF raw data'!I97="","",'DF raw data'!I97) -> -285 | B92: =IF('DF raw data'!J97="","",'DF raw data'!J97) -> -2.50464e-05 | C92: =IF('DF raw data'!K97="","",'DF raw data'!K97) -> 0.000115656 | D92: =IF('DF raw data'!L97="","",'DF raw data'!L97) -> -2.93318e-05 | F92: -2.517664128e-05 | G92: 0.0001162574112 | H92: -2.948432536e-05 | J92: -0.0003000294178 | K92: -0.002638532766 | L92: 0.001696947931 | M92: 0.01347369851 | N92: 1.59679483e-05
A93: =IF('DF raw data'!I98="","",'DF raw data'!I98) -> -284.5 | B93: =IF('DF raw data'!J98="","",'DF raw data'!J98) -> -1.74875e-05 | C93: =IF('DF raw data'!K98="","",'DF raw data'!K98) -> 0.000123178 | D93: =IF('DF raw data'!L98="","",'DF raw data'!L98) -> -2.57551e-05 | F93: -1.7578435e-05 | G93: 0.0001238185256 | H93: -2.588902652e-05 | J93: -0.0003088186353 | K93: -0.002792942084 | L93: 0.001758857194 | M93: 0.01435312711 | N93: 1.756242209e-05
A94: =IF('DF raw data'!I99="","",'DF raw data'!I99) -> -284 | B94: =IF('DF raw data'!J99="","",'DF raw data'!J99) -> -2.03765e-05 | C94: =IF('DF raw data'!K99="","",'DF raw data'!K99) -> 0.000115308 | D94: =IF('DF raw data'!L99="","",'DF raw data'!L99) -> -1.73421e-05 | F94: -2.04824578e-05 | G94: 0.0001159076016 | H94: -1.743227892e-05 | J94: -0.0003190598642 | K94: -0.002952472016 | L94: 0.001816810995 | M94: 0.01526153261 | N94: 1.926372279e-05
A95: =IF('DF raw data'!I100="","",'DF raw data'!I100) -> -283.5 | B95: =IF('DF raw data'!J100="","",'DF raw data'!J100) -> -1.5759e-05 | C95: =IF('DF raw data'!K100="","",'DF raw data'!K100) -> 0.000109046 | D95: =IF('DF raw data'!L100="","",'DF raw data'!L100) -> -2.31386e-05 | F95: -1.58409468e-05 | G95: 0.0001096130392 | H95: -2.325892072e-05 | J95: -0.0003269803376 | K95: -0.003115962185 | L95: 0.001871617514 | M95: 0.01619734136 | N95: 2.106865692e-05
A96: =IF('DF raw data'!I101="","",'DF raw data'!I101) -> -283 | B96: =IF('DF raw data'!J101="","",'DF raw data'!J101) -> -3.19755e-05 | C96: =IF('DF raw data'!K101="","",'DF raw data'!K101) -> 0.000116319 | D96: =IF('DF raw data'!L101="","",'DF raw data'!L101) -> -1.58835e-05 | F96: -3.21417726e-05 | G96: 0.0001169238588 | H96: -1.59660942e-05 | J96: -0.0003430512239 | K96: -0.003287487797 | L96: 0.001930079444 | M96: 0.01716238109 | N96: 2.299010232e-05
A97: =IF('DF raw data'!I102="","",'DF raw data'!I102) -> -282.5 | B97: =IF('DF raw data'!J102="","",'DF raw data'!J102) -> -2.39569e-05 | C97: =IF('DF raw data'!K102="","",'DF raw data'!K102) -> 0.000122161 | D97: =IF('DF raw data'!L102="","",'DF raw data'!L102) -> -2.93892e-05 | F97: -2.408147588e-05 | G97: 0.0001227962372 | H97: -2.954202384e-05 | J97: -0.0003550919619 | K97: -0.003465033778 | L97: 0.001991477562 | M97: 0.01815811987 | N97: 2.503613891e-05
A98: =IF('DF raw data'!I103="","",'DF raw data'!I103) -> -282 | B98: =IF('DF raw data'!J103="","",'DF raw data'!J103) -> -2.12676e-05 | C98: =IF('DF raw data'!K103="","",'DF raw data'!K103) -> 0.000123317 | D98: =IF('DF raw data'!L103="","",'DF raw data'!L103) -> -2.6494e-05 | F98: -2.137819152e-05 | G98: 0.0001239582484 | H98: -2.66317688e-05 | J98: -0.0003657810576 | K98: -0.003647924307 | L98: 0.002053456687 | M98: 0.01918484821 | N98: 2.721137898e-05
A99: =IF('DF raw data'!I104="","",'DF raw data'!I104) -> -281.5 | B99: =IF('DF raw data'!J104="","",'DF raw data'!J104) -> -2.28705e-05 | C99: =IF('DF raw data'!K104="","",'DF raw data'!K104) -> 0.000122162 | D99: =IF('DF raw data'!L104="","",'DF raw data'!L104) -> -2.51142e-05 | F99: -2.29894266e-05 | G99: 0.0001227972424 | H99: -2.524479384e-05 | J99: -0.0003772757709 | K99: -0.003836562192 | L99: 0.002114855308 | M99: 0.02024227586 | N99: 2.951885397e-05
A100: =IF('DF raw data'!I105="","",'DF raw data'!I105) -> -281 | B100: =IF('DF raw data'!J105="","",'DF raw data'!J105) -> -1.61463e-05 | C100: =IF('DF raw data'!K105="","",'DF raw data'!K105) -> 0.00011858 | D100: =IF('DF raw data'!L105="","",'DF raw data'!L105) -> -1.86543e-05 | F100: -1.623026076e-05 | G100: 0.000119196616 | H100: -1.875130236e-05 | J100: -0.0003853909013 | K100: -0.004029257643 | L100: 0.002174453616 | M100: 0.02132950267 | N100: 3.195724131e-05
A101: =IF('DF raw data'!I106="","",'DF raw data'!I106) -> -280.5 | B101: =IF('DF raw data'!J106="","",'DF raw data'!J106) -> -1.4542e-05 | C101: =IF('DF raw data'!K106="","",'DF raw data'!K106) -> 0.000112082 | D101: =IF('DF raw data'!L106="","",'DF raw data'!L106) -> -2.22475e-05 | F101: -1.46176184e-05 | G101: 0.0001126648264 | H101: -2.2363187e-05 | J101: -0.0003926997105 | K101: -0.004225607498 | L101: 0.002230786029 | M101: 0.02244489569 | N101: 3.452255099e-05
A102: =IF('DF raw data'!I107="","",'DF raw data'!I107) -> -280 | B102: =IF('DF raw data'!J107="","",'DF raw data'!J107) -> -1.11426e-05 | C102: =IF('DF raw data'!K107="","",'DF raw data'!K107) -> 0.000104849 | D102: =IF('DF raw data'!L107="","",'DF raw data'!L107) -> -2.72213e-05 | F102: -1.120054152e-05 | G102: 0.0001053942148 | H102: -2.736285076e-05 | J102: -0.0003982999813 | K102: -0.004424757489 | L102: 0.002283483136 | M102: 0.02358663726 | N102: 3.720902005e-05
A103: =IF('DF raw data'!I108="","",'DF raw data'!I108) -> -279.5 | B103: =IF('DF raw data'!J108="","",'DF raw data'!J108) -> -1.73646e-05 | C103: =IF('DF raw data'!K108="","",'DF raw data'!K108) -> 0.000106255 | D103: =IF('DF raw data'!L108="","",'DF raw data'!L108) -> -1.76668e-05 | F103: -1.745489592e-05 | G103: 0.000106807526 | H103: -1.775866736e-05 | J103: -0.0004070274292 | K103: -0.004628271203 | L103: 0.002336886899 | M103: 0.02475508071 | N103: 4.00223759e-05
A104: =IF('DF raw data'!I109="","",'DF raw data'!I109) -> -279 | B104: =IF('DF raw data'!J109="","",'DF raw data'!J109) -> -1.37132e-05 | C104: =IF('DF raw data'!K109="","",'DF raw data'!K109) -> 0.000115625 | D104: =IF('DF raw data'!L109="","",'DF raw data'!L109) -> -1.59907e-05 | F104: -1.378450864e-05 | G104: 0.00011622625 | H104: -1.607385164e-05 | J104: -0.0004139196835 | K104: -0.004835231045 | L104: 0.002395000024 | M104: 0.02595258072 | N104: 4.297605321e-05
A105: =IF('DF raw data'!I110="","",'DF raw data'!I110) -> -278.5 | B105: =IF('DF raw data'!J110="","",'DF raw data'!J110) -> -1.42879e-05 | C105: =IF('DF raw data'!K110="","",'DF raw data'!K110) -> 0.0001173 | D105: =IF('DF raw data'!L110="","",'DF raw data'!L110) -> -1.87757e-05 | F105: -1.436219708e-05 | G105: 0.00011790996 | H105: -1.887333364e-05 | J105: -0.0004211007821 | K105: -0.005045781436 | L105: 0.002453955004 | M105: 0.02717955822 | N105: 4.607566373e-05
A106: =IF('DF raw data'!I111="","",'DF raw data'!I111) -> -278 | B106: =IF('DF raw data'!J111="","",'DF raw data'!J111) -> -1.07101e-05 | C106: =IF('DF raw data'!K111="","",'DF raw data'!K111) -> 0.000119584 | D106: =IF('DF raw data'!L111="","",'DF raw data'!L111) -> -2.72772e-06 | F106: -1.076579252e-05 | G106: 0.0001202058368 | H106: -2.741904144e-06 | J106: -0.0004264836783 | K106: -0.005259023275 | L106: 0.002514057923 | M106: 0.02843658718 | N106: 4.932685151e-05
A107: =IF('DF raw data'!I112="","",'DF raw data'!I112) -> -277.5 | B107: =IF('DF raw data'!J112="","",'DF raw data'!J112) -> -3.06961e-05 | C107: =IF('DF raw data'!K112="","",'DF raw data'!K112) -> 0.000113091 | D107: =IF('DF raw data'!L112="","",'DF raw data'!L112) -> -1.27244e-05 | F107: -3.085571972e-05 | G107: 0.0001136790732 | H107: -1.279056688e-05 | J107: -0.0004419115382 | K107: -0.005479979044 | L107: 0.002570897459 | M107: 0.02972203591 | N107: 5.272925129e-05
A108: =IF('DF raw data'!I113="","",'DF raw data'!I113) -> -277 | B108: =IF('DF raw data'!J113="","",'DF raw data'!J113) -> -3.46031e-05 | C108: =IF('DF raw data'!K113="","",'DF raw data'!K113) -> 0.000113238 | D108: =IF('DF raw data'!L113="","",'DF raw data'!L113) -> -1.53267e-05 | F108: -3.478303612e-05 | G108: 0.0001138268376 | H108: -1.540639884e-05 | J108: -0.0004593030563 | K108: -0.005709630573 | L108: 0.002627810878 | M108: 0.03103594135 | N108: 5.628742594e-05
A109: =IF('DF raw data'!I114="","",'DF raw data'!I114) -> -276.5 | B109: =IF('DF raw data'!J114="","",'DF raw data'!J114) -> -2.0636e-05 | C109: =IF('DF raw data'!K114="","",'DF raw data'!K114) -> 0.000105086 | D109: =IF('DF raw data'!L114="","",'DF raw data'!L114) -> -1.2341e-05 | F109: -2.07433072e-05 | G109: 0.0001056324472 | H109: -1.24051732e-05 | J109: -0.0004696747099 | K109: -0.005944467928 | L109: 0.002680627102 | M109: 0.0323762549 | N109: 5.999060394e-05
A110: =IF('DF raw data'!I115="","",'DF raw data'!I115) -> -276 | B110: =IF('DF raw data'!J115="","",'DF raw data'!J115) -> -2.29377e-05 | C110: =IF('DF raw data'!K115="","",'DF raw data'!K115) -> 0.000100852 | D110: =IF('DF raw data'!L115="","",'DF raw data'!L115) -> -2.00476e-05 | F110: -2.305697604e-05 | G110: 0.0001013764304 | H110: -2.015184752e-05 | J110: -0.0004812031979 | K110: -0.006185069526 | L110: 0.002731315317 | M110: 0.03374191256 | N110: 6.383642388e-05
A111: =IF('DF raw data'!I116="","",'DF raw data'!I116) -> -275.5 | B111: =IF('DF raw data'!J116="","",'DF raw data'!J116) -> -1.55078e-05 | C111: =IF('DF raw data'!K116="","",'DF raw data'!K116) -> 0.000103784 | D111: =IF('DF raw data'!L116="","",'DF raw data'!L116) -> -1.52887e-05 | F111: -1.558844056e-05 | G111: 0.0001043236768 | H111: -1.536820124e-05 | J111: -0.0004889974182 | K111: -0.006429568236 | L111: 0.002783477155 | M111: 0.03513365114 | N111: 6.782985565e-05
A112: =IF('DF raw data'!I117="","",'DF raw data'!I117) -> -275 | B112: =IF('DF raw data'!J117="","",'DF raw data'!J117) -> -2.03075e-05 | C112: =IF('DF raw data'!K117="","",'DF raw data'!K117) -> 0.000106371 | D112: =IF('DF raw data'!L117="","",'DF raw data'!L117) -> -2.4641e-05 | F112: -2.0413099e-05 | G112: 0.0001069241292 | H112: -2.47691332e-05 | J112: -0.0004992039677 | K112: -0.006679170219 | L112: 0.00283693922 | M112: 0.03655212075 | N112: 7.197857002e-05
A113: =IF('DF raw data'!I118="","",'DF raw data'!I118) -> -274.5 | B113: =IF('DF raw data'!J118="","",'DF raw data'!J118) -> -1.9091e-05 | C113: =IF('DF raw data'!K118="","",'DF raw data'!K118) -> 0.000107277 | D113: =IF('DF raw data'!L118="","",'DF raw data'!L118) -> -2.3422e-05 | F113: -1.91902732e-05 | G113: 0.0001078348404 | H113: -2.35437944e-05 | J113: -0.0005087991043 | K113: -0.006933569771 | L113: 0.00289085664 | M113: 0.03799754907 | N113: 7.628653434e-05
A114: =IF('DF raw data'!I119="","",'DF raw data'!I119) -> -274 | B114: =IF('DF raw data'!J119="","",'DF raw data'!J119) -> -2.3957e-05 | C114: =IF('DF raw data'!K119="","",'DF raw data'!K119) -> 0.000112462 | D114: =IF('DF raw data'!L119="","",'DF raw data'!L119) -> -2.91874e-05 | F114: -2.40815764e-05 | G114: 0.0001130468024 | H114: -2.933917448e-05 | J114: -0.0005208398925 | K114: -0.007193989718 | L114: 0.002947380041 | M114: 0.03947123909 | N114: 8.076569599e-05
A115: =IF('DF raw data'!I120="","",'DF raw data'!I120) -> -273.5 | B115: =IF('DF raw data'!J120="","",'DF raw data'!J120) -> -2.87731e-05 | C115: =IF('DF raw data'!K120="","",'DF raw data'!K120) -> 0.000102306 | D115: =IF('DF raw data'!L120="","",'DF raw data'!L120) -> -1.37765e-05 | F115: -2.892272012e-05 | G115: 0.0001028379912 | H115: -1.38481378e-05 | J115: -0.0005353012525 | K115: -0.007461640344 | L115: 0.002998799037 | M115: 0.04097063861 | N115: 8.540536754e-05
A116: =IF('DF raw data'!I121="","",'DF raw data'!I121) -> -273 | B116: =IF('DF raw data'!J121="","",'DF raw data'!J121) -> -2.43562e-05 | C116: =IF('DF raw data'!K121="","",'DF raw data'!K121) -> 0.000107517 | D116: =IF('DF raw data'!L121="","",'DF raw data'!L121) -> -6.39493e-06 | F116: -2.448285224e-05 | G116: 0.0001080760884 | H116: -6.428183636e-06 | J116: -0.0005475426786 | K116: -0.007735411683 | L116: 0.003052837081 | M116: 0.04249705715 | N116: 9.021517616e-05
A117: =IF('DF raw data'!I122="","",'DF raw data'!I122) -> -272.5 | B117: =IF('DF raw data'!J122="","",'DF raw data'!J122) -> -2.15951e-05 | C117: =IF('DF raw data'!K122="","",'DF raw data'!K122) -> 0.0001085 | D117: =IF('DF raw data'!L122="","",'DF raw data'!L122) -> -1.52875e-05 | F117: -2.170739452e-05 | G117: 0.0001090642 | H117: -1.5366995e-05 | J117: -0.0005583963759 | K117: -0.008014609871 | L117: 0.003107369181 | M117: 0.04405074174 | N117: 9.519895103e-05
A118: =IF('DF raw data'!I123="","",'DF raw data'!I123) -> -272 | B118: =IF('DF raw data'!J123="","",'DF raw data'!J123) -> -2.34533e-05 | C118: =IF('DF raw data'!K123="","",'DF raw data'!K123) -> 0.000106218 | D118: =IF('DF raw data'!L123="","",'DF raw data'!L123) -> -1.5453e-05 | F118: -2.357525716e-05 | G118: 0.0001067703336 | H118: -1.55333556e-05 | J118: -0.0005701840045 | K118: -0.008299701873 | L118: 0.003160754348 | M118: 0.04563111891 | N118: 0.00010035669
A119: =IF('DF raw data'!I124="","",'DF raw data'!I124) -> -271.5 | B119: =IF('DF raw data'!J124="","",'DF raw data'!J124) -> -2.11385e-05 | C119: =IF('DF raw data'!K124="","",'DF raw data'!K124) -> 0.000111916 | D119: =IF('DF raw data'!L124="","",'DF raw data'!L124) -> -2.79189e-05 | F119: -2.12484202e-05 | G119: 0.0001124979632 | H119: -2.806407828e-05 | J119: -0.0005808082146 | K119: -0.008590105981 | L119: 0.00321700333 | M119: 0.04723962058 | N119: 0.0001056999143
A120: =IF('DF raw data'!I125="","",'DF raw data'!I125) -> -271 | B120: =IF('DF raw data'!J125="","",'DF raw data'!J125) -> -5.31793e-06 | C120: =IF('DF raw data'!K125="","",'DF raw data'!K125) -> 0.000115856 | D120: =IF('DF raw data'!L125="","",'DF raw data'!L125) -> -1.74229e-05 | F120: -5.345583236e-06 | G120: 0.0001164584512 | H120: -1.751349908e-05 | J120: -0.0005834810062 | K120: -0.008881846484 | L120: 0.003275232555 | M120: 0.04887723685 | N120: 0.0001112337134
A121: =IF('DF raw data'!I126="","",'DF raw data'!I126) -> -270.5 | B121: =IF('DF raw data'!J126="","",'DF raw data'!J126) -> -3.52456e-05 | C121: =IF('DF raw data'!K126="","",'DF raw data'!K126) -> 0.000116317 | D121: =IF('DF raw data'!L126="","",'DF raw data'!L126) -> -1.26522e-05 | F121: -3.542887712e-05 | G121: 0.0001169218484 | H121: -1.271799144e-05 | J121: -0.0006011954448 | K121: -0.009182444206 | L121: 0.003333693479 | M121: 0.05054408359 | N121: 0.0001169711875
A122: =IF('DF raw data'!I127="","",'DF raw data'!I127) -> -270 | B122: =IF('DF raw data'!J127="","",'DF raw data'!J127) -> -2.13276e-05 | C122: =IF('DF raw data'!K127="","",'DF raw data'!K127) -> 0.000108929 | D122: =IF('DF raw data'!L127="","",'DF raw data'!L127) -> -3.24419e-05 | F122: -2.143850352e-05 | G122: 0.0001094954308 | H122: -3.261059788e-05 | J122: -0.0006119146965 | K122: -0.009488401555 | L122: 0.003388441195 | M122: 0.05223830419 | N122: 0.0001228991742
A123: =IF('DF raw data'!I128="","",'DF raw data'!I128) -> -269.5 | B123: =IF('DF raw data'!J128="","",'DF raw data'!J128) -> -3.0713e-06 | C123: =IF('DF raw data'!K128="","",'DF raw data'!K128) -> 0.000119289 | D123: =IF('DF raw data'!L128="","",'DF raw data'!L128) -> -2.33703e-05 | F123: -3.08727076e-06 | G123: 0.0001199093028 | H123: -2.349182556e-05 | J123: -0.0006134583319 | K123: -0.00979513072 | L123: 0.003448395846 | M123: 0.05396250211 | N123: 0.0001290330567
A124: =IF('DF raw data'!I129="","",'DF raw data'!I129) -> -269 | B124: =IF('DF raw data'!J129="","",'DF raw data'!J129) -> -1.97333e-05 | C124: =IF('DF raw data'!K129="","",'DF raw data'!K129) -> 0.000124095 | D124: =IF('DF raw data'!L129="","",'DF raw data'!L129) -> -2.09692e-05 | F124: -1.983591316e-05 | G124: 0.000124740294 | H124: -2.107823984e-05 | J124: -0.0006233762885 | K124: -0.01010681886 | L124: 0.003510765993 | M124: 0.05571788511 | N124: 0.0001353900946
A125: =IF('DF raw data'!I130="","",'DF raw data'!I130) -> -268.5 | B125: =IF('DF raw data'!J130="","",'DF raw data'!J130) -> -2.45439e-05 | C125: =IF('DF raw data'!K130="","",'DF raw data'!K130) -> 0.000114418 | D125: =IF('DF raw data'!L130="","",'DF raw data'!L130) -> -1.35642e-05 | F125: -2.467152828e-05 | G125: 0.0001150129736 | H125: -1.363473384e-05 | J125: -0.0006357120526 | K125: -0.01042467489 | L125: 0.00356827248 | M125: 0.05750202135 | N125: 0.0001419584438
A126: =IF('DF raw data'!I131="","",'DF raw data'!I131) -> -268 | B126: =IF('DF raw data'!J131="","",'DF raw data'!J131) -> -2.07621e-05 | C126: =IF('DF raw data'!K131="","",'DF raw data'!K131) -> 0.00011975 | D126: =IF('DF raw data'!L131="","",'DF raw data'!L131) -> -1.54272e-05 | F126: -2.087006292e-05 | G126: 0.0001203727 | H126: -1.550742144e-05 | J126: -0.0006461470841 | K126: -0.01074774843 | L126: 0.00362845883 | M126: 0.05931625076 | N126: 0.0001487500536
A127: =IF('DF raw data'!I132="","",'DF raw data'!I132) -> -267.5 | B127: =IF('DF raw data'!J132="","",'DF raw data'!J132) -> -1.62797e-05 | C127: =IF('DF raw data'!K132="","",'DF raw data'!K132) -> 0.00012668 | D127: =IF('DF raw data'!L132="","",'DF raw data'!L132) -> -1.0656e-05 | F127: -1.636435444e-05 | G127: 0.000127338736 | H127: -1.07114112e-05 | J127: -0.0006543292613 | K127: -0.01107491306 | L127: 0.003692128198 | M127: 0.06116231486 | N127: 0.0001557800323
A128: =IF('DF raw data'!I133="","",'DF raw data'!I133) -> -267 | B128: =IF('DF raw data'!J133="","",'DF raw data'!J133) -> -1.90287e-05 | C128: =IF('DF raw data'!K133="","",'DF raw data'!K133) -> 0.000119747 | D128: =IF('DF raw data'!L133="","",'DF raw data'!L133) -> -2.04244e-05 | F128: =(1-$G$1*($B$49-$G$2))*B128 -> -1.912764924e-05 | G128: 0.0001203696844 | H128: -2.053060688e-05 | J128: =F128*$G$3+J127 -> -0.0006638930859 | K128: =J128*$G$3+K127 -> -0.01140685961 | L128: =G128*$G$3+L127 -> 0.00375231304 | M128: =L128*$G$3+M127 -> 0.06303847138 | N128: =(J128^2+L128^2)*$G$3+N127 -> 0.0001630403359
A129: =IF('DF raw data'!I134="","",'DF raw data'!I134) -> -266.5 | B129: =IF('DF raw data'!J134="","",'DF raw data'!J134) -> -1.43517e-05 | C129: =IF('DF raw data'!K134="","",'DF raw data'!K134) -> 0.000111188 | D129: =IF('DF raw data'!L134="","",'DF raw data'!L134) -> -1.94842e-05 | F129: -1.442632884e-05 | G129: 0.0001117661776 | H129: -1.958551784e-05 | J129: -0.0006711062503 | K129: -0.01174241273 | L129: 0.003808196129 | M129: 0.06494256945 | N129: 0.0001705167065
A130: =IF('DF raw data'!I135="","",'DF raw data'!I135) -> -266 | B130: =IF('DF raw data'!J135="","",'DF raw data'!J135) -> -2.06929e-05 | C130: =IF('DF raw data'!K135="","",'DF raw data'!K135) -> 0.000111237 | D130: =IF('DF raw data'!L135="","",'DF raw data'!L135) -> -2.30366e-05 | F130: -2.080050308e-05 | G130: 0.0001118154324 | H130: -2.315639032e-05 | J130: -0.0006815065019 | K130: -0.01208316598 | L130: 0.003864103845 | M130: 0.06687462137 | N130: 0.0001782145814
A131: =IF('DF raw data'!I136="","",'DF raw data'!I136) -> -265.5 | B131: =IF('DF raw data'!J136="","",'DF raw data'!J136) -> -2.69705e-05 | C131: =IF('DF raw data'!K136="","",'DF raw data'!K136) -> 0.000112316 | D131: =IF('DF raw data'!L136="","",'DF raw data'!L136) -> -2.6274e-05 | F131: -2.71107466e-05 | G131: 0.0001129000432 | H131: -2.64106248e-05 | J131: -0.0006950618752 | K131: -0.01243069692 | L131: 0.003920553867 | M131: 0.0688348983 | N131: 0.0001861415082
A132: =IF('DF raw data'!I137="","",'DF raw data'!I137) -> -265 | B132: =IF('DF raw data'!J137="","",'DF raw data'!J137) -> -2.78e-05 | C132: =IF('DF raw data'!K137="","",'DF raw data'!K137) -> 0.000120286 | D132: =IF('DF raw data'!L137="","",'DF raw data'!L137) -> -3.18125e-05 | F132: -2.794456e-05 | G132: 0.0001209114872 | H132: -3.1977925e-05 | J132: -0.0007090341552 | K132: -0.012785214 | L132: 0.00398100961 | M132: 0.07082540311 | N132: 0.0001943170916
A133: =IF('DF raw data'!I138="","",'DF raw data'!I138) -> -264.5 | B133: =IF('DF raw data'!J138="","",'DF raw data'!J138) -> -2.74826e-05 | C133: =IF('DF raw data'!K138="","",'DF raw data'!K138) -> 0.000125841 | D133: =IF('DF raw data'!L138="","",'DF raw data'!L138) -> -2.70764e-05 | F133: -2.762550952e-05 | G133: 0.0001264953732 | H133: -2.721719728e-05 | J133: -0.0007228469099 | K133: -0.01314663745 | L133: 0.004044257297 | M133: 0.07284753176 | N133: 0.000202756354
A134: =IF('DF raw data'!I139="","",'DF raw data'!I139) -> -264 | B134: =IF('DF raw data'!J139="","",'DF raw data'!J139) -> -2.29352e-05 | C134: =IF('DF raw data'!K139="","",'DF raw data'!K139) -> 0.000132373 | D134: =IF('DF raw data'!L139="","",'DF raw data'!L139) -> -2.38891e-05 | F134: -2.305446304e-05 | G134: 0.0001330613396 | H134: -2.401332332e-05 | J134: -0.0007343741415 | K134: -0.01351382452 | L134: 0.004110787967 | M134: 0.07490292574 | N134: 0.0002114752956
A135: =IF('DF raw data'!I140="","",'DF raw data'!I140) -> -263.5 | B135: =IF('DF raw data'!J140="","",'DF raw data'!J140) -> -1.4222e-05 | C135: =IF('DF raw data'!K140="","",'DF raw data'!K140) -> 0.000131956 | D135: =IF('DF raw data'!L140="","",'DF raw data'!L140) -> -2.18245e-05 | F135: -1.42959544e-05 | G135: 0.0001326421712 | H135: -2.19379874e-05 | J135: -0.0007415221187 | K135: -0.01388458558 | L135: 0.004177109052 | M135: 0.07699148027 | N135: 0.0002204743431
A136: =IF('DF raw data'!I141="","",'DF raw data'!I141) -> -263 | B136: =IF('DF raw data'!J141="","",'DF raw data'!J141) -> -2.4545e-05 | C136: =IF('DF raw data'!K141="","",'DF raw data'!K141) -> 0.000124453 | D136: =IF('DF raw data'!L141="","",'DF raw data'!L141) -> -1.1812e-05 | F136: -2.4672634e-05 | G136: 0.0001251001556 | H136: -1.18734224e-05 | J136: -0.0007538584357 | K136: -0.0142615148 | L136: 0.00423965913 | M136: 0.07911130983 | N136: 0.0002297458491
A137: =IF('DF raw data'!I142="","",'DF raw data'!I142) -> -262.5 | B137: =IF('DF raw data'!J142="","",'DF raw data'!J142) -> -2.46669e-05 | C137: =IF('DF raw data'!K142="","",'DF raw data'!K142) -> 0.00012677 | D137: =IF('DF raw data'!L142="","",'DF raw data'!L142) -> -2.1567e-05 | F137: -2.479516788e-05 | G137: 0.000127429204 | H137: -2.16791484e-05 | J137: -0.0007662560196 | K137: -0.01464464281 | L137: 0.004303373732 | M137: 0.0812629967 | N137: 0.000239298936
A138: =IF('DF raw data'!I143="","",'DF raw data'!I143) -> -262 | B138: =IF('DF raw data'!J143="","",'DF raw data'!J143) -> -2.7553e-05 | C138: =IF('DF raw data'!K143="","",'DF raw data'!K143) -> 0.000124705 | D138: =IF('DF raw data'!L143="","",'DF raw data'!L143) -> -1.75623e-05 | F138: -2.76962756e-05 | G138: 0.000125353466 | H138: -1.765362396e-05 | J138: -0.0007801041574 | K138: -0.01503469489 | L138: 0.004366050465 | M138: 0.08344602193 | N138: 0.0002491344156
A139: =IF('DF raw data'!I144="","",'DF raw data'!I144) -> -261.5 | B139: =IF('DF raw data'!J144="","",'DF raw data'!J144) -> -2.45373e-05 | C139: =IF('DF raw data'!K144="","",'DF raw data'!K144) -> 0.000125032 | D139: =IF('DF raw data'!L144="","",'DF raw data'!L144) -> -2.37896e-05 | F139: -2.466489396e-05 | G139: 0.0001256821664 | H139: -2.391330592e-05 | J139: -0.0007924366044 | K139: -0.01543091319 | L139: 0.004428891548 | M139: 0.08566046771 | N139: 0.0002592559337
A140: =IF('DF raw data'!I145="","",'DF raw data'!I145) -> -261 | B140: =IF('DF raw data'!J145="","",'DF raw data'!J145) -> -1.88333e-05 | C140: =IF('DF raw data'!K145="","",'DF raw data'!K145) -> 0.000121446 | D140: =IF('DF raw data'!L145="","",'DF raw data'!L145) -> -2.53946e-05 | F140: -1.893123316e-05 | G140: 0.0001220775192 | H140: -2.552665192e-05 | J140: -0.000801902221 | K140: -0.0158318643 | L140: 0.004489930308 | M140: 0.08790543286 | N140: 0.0002696571943
A141: =IF('DF raw data'!I146="","",'DF raw data'!I146) -> -260.5 | B141: =IF('DF raw data'!J146="","",'DF raw data'!J146) -> -9.47682e-06 | C141: =IF('DF raw data'!K146="","",'DF raw data'!K146) -> 0.000117467 | D141: =IF('DF raw data'!L146="","",'DF raw data'!L146) -> -2.69133e-05 | F141: -9.526099464e-06 | G141: 0.0001180778284 | H141: -2.705324916e-05 | J141: -0.0008066652707 | K141: -0.01623519694 | L141: 0.004548969222 | M141: 0.09017991747 | N141: 0.0002803291093
A142: =IF('DF raw data'!I147="","",'DF raw data'!I147) -> -260 | B142: =IF('DF raw data'!J147="","",'DF raw data'!J147) -> -2.53733e-05 | C142: =IF('DF raw data'!K147="","",'DF raw data'!K147) -> 0.00011625 | D142: =IF('DF raw data'!L147="","",'DF raw data'!L147) -> -1.92177e-05 | F142: -2.550524116e-05 | G142: 0.0001168545 | H142: -1.931763204e-05 | J142: -0.0008194178913 | K142: -0.01664490588 | L142: 0.004607396472 | M142: 0.09248361571 | N142: 0.0002912788832
A143: =IF('DF raw data'!I148="","",'DF raw data'!I148) -> -259.5 | B143: =IF('DF raw data'!J148="","",'DF raw data'!J148) -> -1.50561e-05 | C143: =IF('DF raw data'!K148="","",'DF raw data'!K148) -> 0.000127088 | D143: =IF('DF raw data'!L148="","",'DF raw data'!L148) -> -1.98674e-05 | F143: -1.513439172e-05 | G143: 0.0001277488576 | H143: -1.997071048e-05 | J143: -0.0008269850871 | K143: -0.01705839843 | L143: 0.004671270901 | M143: 0.09481925116 | N143: 0.0003025312213
A144: =IF('DF raw data'!I149="","",'DF raw data'!I149) -> -259 | B144: =IF('DF raw data'!J149="","",'DF raw data'!J149) -> -2.82547e-05 | C144: =IF('DF raw data'!K149="","",'DF raw data'!K149) -> 0.000129482 | D144: =IF('DF raw data'!L149="","",'DF raw data'!L149) -> -2.25431e-05 | F144: -2.840162444e-05 | G144: 0.0001301553064 | H144: -2.266032412e-05 | J144: -0.0008411858994 | K144: -0.01747899138 | L144: 0.004736348554 | M144: 0.09718742543 | N144: 0.000314101517
A145: =IF('DF raw data'!I150="","",'DF raw data'!I150) -> -258.5 | B145: =IF('DF raw data'!J150="","",'DF raw data'!J150) -> -2.10774e-05 | C145: =IF('DF raw data'!K150="","",'DF raw data'!K150) -> 0.00012545 | D145: =IF('DF raw data'!L150="","",'DF raw data'!L150) -> -2.31136e-05 | F145: -2.118700248e-05 | G145: 0.00012610234 | H145: -2.323379072e-05 | J145: -0.0008517794006 | K145: -0.01790488108 | L145: 0.004799399724 | M145: 0.0995871253 | N145: 0.0003259813999
A146: =IF('DF raw data'!I151="","",'DF raw data'!I151) -> -258 | B146: =IF('DF raw data'!J151="","",'DF raw data'!J151) -> -2.7936e-05 | C146: =IF('DF raw data'!K151="","",'DF raw data'!K151) -> 0.000120479 | D146: =IF('DF raw data'!L151="","",'DF raw data'!L151) -> -1.96312e-05 | F146: -2.80812672e-05 | G146: 0.0001211054908 | H146: -1.973328224e-05 | J146: -0.0008658200342 | K146: -0.01833779109 | L146: 0.00485995247 | M146: 0.1020171015 | N146: 0.0003381657911
A147: =IF('DF raw data'!I152="","",'DF raw data'!I152) -> -257.5 | B147: =IF('DF raw data'!J152="","",'DF raw data'!J152) -> -2.28801e-05 | C147: =IF('DF raw data'!K152="","",'DF raw data'!K152) -> 0.000114699 | D147: =IF('DF raw data'!L152="","",'DF raw data'!L152) -> -1.01856e-05 | F147: -2.299907652e-05 | G147: 0.0001152954348 | H147: -1.023856512e-05 | J147: -0.0008773195725 | K147: -0.01877645088 | L147: 0.004917600187 | M147: 0.1044759016 | N147: 0.0003506420317
A148: =IF('DF raw data'!I153="","",'DF raw data'!I153) -> -257 | B148: =IF('DF raw data'!J153="","",'DF raw data'!J153) -> -2.68548e-05 | C148: =IF('DF raw data'!K153="","",'DF raw data'!K153) -> 0.000119877 | D148: =IF('DF raw data'!L153="","",'DF raw data'!L153) -> -7.06985e-06 | F148: -2.699444496e-05 | G148: 0.0001205003604 | H148: -7.10661322e-06 | J148: -0.0008908167949 | K148: -0.01922185928 | L148: 0.004977850367 | M148: 0.1069648268 | N148: 0.0003634283061
A149: =IF('DF raw data'!I154="","",'DF raw data'!I154) -> -256.5 | B149: =IF('DF raw data'!J154="","",'DF raw data'!J154) -> -2.55997e-06 | C149: =IF('DF raw data'!K154="","",'DF raw data'!K154) -> 0.000126938 | D149: =IF('DF raw data'!L154="","",'DF raw data'!L154) -> -2.13922e-05 | F149: -2.573281844e-06 | G149: 0.0001275980776 | H149: -2.150343944e-05 | J149: -0.0008921034359 | K149: -0.019667911 | L149: 0.005041649406 | M149: 0.1094856515 | N149: 0.0003765353447
A150: =IF('DF raw data'!I155="","",'DF raw data'!I155) -> -256 | B150: =IF('DF raw data'!J155="","",'DF raw data'!J155) -> -9.42561e-06 | C150: =IF('DF raw data'!K155="","",'DF raw data'!K155) -> 0.000136733 | D150: =IF('DF raw data'!L155="","",'DF raw data'!L155) -> -6.83211e-06 | F150: -9.474623172e-06 | G150: 0.0001374440116 | H150: -6.867636972e-06 | J150: -0.0008968407474 | K150: -0.02011633137 | L150: 0.005110371412 | M150: 0.1120408372 | N150: 0.0003899954544
A151: =IF('DF raw data'!I156="","",'DF raw data'!I156) -> -255.5 | B151: =IF('DF raw data'!J156="","",'DF raw data'!J156) -> -2.65956e-05 | C151: =IF('DF raw data'!K156="","",'DF raw data'!K156) -> 0.000124775 | D151: =IF('DF raw data'!L156="","",'DF raw data'!L156) -> -1.14964e-05 | F151: -2.673389712e-05 | G151: 0.00012542383 | H151: -1.155618128e-05 | J151: -0.000910207696 | K151: -0.02057143522 | L151: 0.005173083327 | M151: 0.1146273789 | N151: 0.000403790089
A152: =IF('DF raw data'!I157="","",'DF raw data'!I157) -> -255 | B152: =IF('DF raw data'!J157="","",'DF raw data'!J157) -> -2.32009e-05 | C152: =IF('DF raw data'!K157="","",'DF raw data'!K157) -> 0.000117323 | D152: =IF('DF raw data'!L157="","",'DF raw data'!L157) -> -9.29567e-06 | F152: -2.332154468e-05 | G152: 0.0001179330796 | H152: -9.344007484e-06 | J152: -0.0009218684683 | K152: -0.02103236945 | L152: 0.005232049867 | M152: 0.1172434038 | N152: 0.0004179021826
A153: =IF('DF raw data'!I158="","",'DF raw data'!I158) -> -254.5 | B153: =IF('DF raw data'!J158="","",'DF raw data'!J158) -> -2.23653e-05 | C153: =IF('DF raw data'!K158="","",'DF raw data'!K158) -> 0.000122469 | D153: =IF('DF raw data'!L158="","",'DF raw data'!L158) -> -1.35653e-05 | F153: -2.248159956e-05 | G153: 0.0001231058388 | H153: -1.363583956e-05 | J153: -0.0009331092681 | K153: -0.02149892409 | L153: 0.005293602786 | M153: 0.1198902052 | N153: 0.0004323486443
A154: =IF('DF raw data'!I159="","",'DF raw data'!I159) -> -254 | B154: =IF('DF raw data'!J159="","",'DF raw data'!J159) -> -3.61338e-05 | C154: =IF('DF raw data'!K159="","",'DF raw data'!K159) -> 0.000127245 | D154: =IF('DF raw data'!L159="","",'DF raw data'!L159) -> -2.60587e-05 | F154: -3.632169576e-05 | G154: 0.000127906674 | H154: -2.619420524e-05 | J154: -0.000951270116 | K154: -0.02197455914 | L154: 0.005357556123 | M154: 0.1225689833 | N154: 0.0004471528055
A155: =IF('DF raw data'!I160="","",'DF raw data'!I160) -> -253.5 | B155: =IF('DF raw data'!J160="","",'DF raw data'!J160) -> -2.10858e-05 | C155: =IF('DF raw data'!K160="","",'DF raw data'!K160) -> 0.000129871 | D155: =IF('DF raw data'!L160="","",'DF raw data'!L160) -> -1.00357e-05 | F155: -2.119544616e-05 | G155: 0.0001305463292 | H155: -1.008788564e-05 | J155: -0.0009618678391 | K155: -0.02245549306 | L155: 0.005422829288 | M155: 0.1252803979 | N155: 0.0004623189391
A156: =IF('DF raw data'!I161="","",'DF raw data'!I161) -> -253 | B156: =IF('DF raw data'!J161="","",'DF raw data'!J161) -> -2.7174e-05 | C156: =IF('DF raw data'!K161="","",'DF raw data'!K161) -> 0.000129928 | D156: =IF('DF raw data'!L161="","",'DF raw data'!L161) -> -9.04656e-06 | F156: -2.73153048e-05 | G156: 0.0001306036256 | H156: -9.093602112e-06 | J156: -0.0009755254915 | K156: -0.02294325581 | L156: 0.0054881311 | M156: 0.1280244635 | N156: 0.0004778545556
A157: =IF('DF raw data'!I162="","",'DF raw data'!I162) -> -252.5 | B157: =IF('DF raw data'!J162="","",'DF raw data'!J162) -> -2.50559e-05 | C157: =IF('DF raw data'!K162="","",'DF raw data'!K162) -> 0.000122578 | D157: =IF('DF raw data'!L162="","",'DF raw data'!L162) -> -1.44485e-05 | F157: -2.518619068e-05 | G157: 0.0001232154056 | H157: -1.45236322e-05 | J157: -0.0009881185868 | K157: -0.0234373151 | L157: 0.005549738803 | M157: 0.1307993329 | N157: 0.0004937425452
A158: =IF('DF raw data'!I163="","",'DF raw data'!I163) -> -252 | B158: =IF('DF raw data'!J163="","",'DF raw data'!J163) -> -1.85213e-05 | C158: =IF('DF raw data'!K163="","",'DF raw data'!K163) -> 0.00011716 | D158: =IF('DF raw data'!L163="","",'DF raw data'!L163) -> -1.23504e-05 | F158: -1.861761076e-05 | G158: 0.000117769232 | H158: -1.241462208e-05 | J158: -0.0009974273922 | K158: -0.0239360288 | L158: 0.005608623419 | M158: 0.1336036446 | N158: 0.0005099683042
A159: =IF('DF raw data'!I164="","",'DF raw data'!I164) -> -251.5 | B159: =IF('DF raw data'!J164="","",'DF raw data'!J164) -> -9.10252e-06 | C159: =IF('DF raw data'!K164="","",'DF raw data'!K164) -> 0.000113554 | D159: =IF('DF raw data'!L164="","",'DF raw data'!L164) -> -1.12309e-05 | F159: -9.149853104e-06 | G159: 0.0001141444808 | H159: -1.128930068e-05 | J159: -0.001002002319 | K159: -0.02443702996 | L159: 0.00566569566 | M159: 0.1364364924 | N159: 0.0005265203622
A160: =IF('DF raw data'!I165="","",'DF raw data'!I165) -> -251 | B160: =IF('DF raw data'!J165="","",'DF raw data'!J165) -> -2.21675e-05 | C160: =IF('DF raw data'!K165="","",'DF raw data'!K165) -> 0.000109684 | D160: =IF('DF raw data'!L165="","",'DF raw data'!L165) -> -2.18604e-05 | F160: -2.2282771e-05 | G160: 0.0001102543568 | H160: -2.197407408e-05 | J160: -0.001013143704 | K160: -0.02494360181 | L160: 0.005720822838 | M160: 0.1392969038 | N160: 0.0005433974992
A161: =IF('DF raw data'!I166="","",'DF raw data'!I166) -> -250.5 | B161: =IF('DF raw data'!J166="","",'DF raw data'!J166) -> -1.55081e-05 | C161: =IF('DF raw data'!K166="","",'DF raw data'!K166) -> 0.000116897 | D161: =IF('DF raw data'!L166="","",'DF raw data'!L166) -> -1.46221e-05 | F161: -1.558874212e-05 | G161: 0.0001175048644 | H161: -1.469813492e-05 | J161: -0.001020938075 | K161: -0.02545407085 | L161: 0.00577957527 | M161: 0.1421866915 | N161: 0.0005606204017
A162: =IF('DF raw data'!I167="","",'DF raw data'!I167) -> -250 | B162: =IF('DF raw data'!J167="","",'DF raw data'!J167) -> -3.03738e-05 | C162: =IF('DF raw data'!K167="","",'DF raw data'!K167) -> 0.000119414 | D162: =IF('DF raw data'!L167="","",'DF raw data'!L167) -> -1.50933e-05 | F162: -3.053174376e-05 | G162: 0.0001200349528 | H162: -1.517178516e-05 | J162: -0.001036203947 | K162: -0.02597217282 | L162: 0.005839592747 | M162: 0.1451064878 | N162: 0.0005782076827
A163: =IF('DF raw data'!I168="","",'DF raw data'!I168) -> -249.5 | B163: =IF('DF raw data'!J168="","",'DF raw data'!J168) -> -1.52477e-05 | C163: =IF('DF raw data'!K168="","",'DF raw data'!K168) -> 0.00012257 | D163: =IF('DF raw data'!L168="","",'DF raw data'!L168) -> -2.09852e-05 | F163: -1.532698804e-05 | G163: 0.000123207364 | H163: -2.109432304e-05 | J163: -0.001043867441 | K163: -0.02649410654 | L163: 0.005901196429 | M163: 0.148057086 | N163: 0.0005961645719
A164: =IF('DF raw data'!I169="","",'DF raw data'!I169) -> -249 | B164: =IF('DF raw data'!J169="","",'DF raw data'!J169) -> -2.30704e-05 | C164: =IF('DF raw data'!K169="","",'DF raw data'!K169) -> 0.000119928 | D164: =IF('DF raw data'!L169="","",'DF raw data'!L169) -> -1.28587e-05 | F164: -2.319036608e-05 | G164: 0.0001205516256 | H164: -1.292556524e-05 | J164: -0.001055462624 | K164: -0.02702183785 | L164: 0.005961472241 | M164: 0.1510378222 | N164: 0.0006144911483
A165: =IF('DF raw data'!I170="","",'DF raw data'!I170) -> -248.5 | B165: =IF('DF raw data'!J170="","",'DF raw data'!J170) -> -1.98697e-05 | C165: =IF('DF raw data'!K170="","",'DF raw data'!K170) -> 0.000121687 | D165: =IF('DF raw data'!L170="","",'DF raw data'!L170) -> -8.23742e-06 | F165: -1.997302244e-05 | G165: 0.0001223197724 | H165: -8.280254584e-06 | J165: -0.001065449135 | K165: -0.02755456242 | L165: 0.006022632128 | M165: 0.1540491382 | N165: 0.0006331947881
A166: =IF('DF raw data'!I171="","",'DF raw data'!I171) -> -248 | B166: =IF('DF raw data'!J171="","",'DF raw data'!J171) -> -8.78725e-06 | C166: =IF('DF raw data'!K171="","",'DF raw data'!K171) -> 0.000126092 | D166: =IF('DF raw data'!L171="","",'DF raw data'!L171) -> -3.07988e-06 | F166: -8.8329437e-06 | G166: 0.0001267476784 | H166: -3.095895376e-06 | J166: -0.001069865607 | K166: -0.02808949522 | L166: 0.006086005967 | M166: 0.1570921412 | N166: 0.0006522868286
A167: =IF('DF raw data'!I172="","",'DF raw data'!I172) -> -247.5 | B167: =IF('DF raw data'!J172="","",'DF raw data'!J172) -> -2.33264e-05 | C167: =IF('DF raw data'!K172="","",'DF raw data'!K172) -> 0.000121778 | D167: =IF('DF raw data'!L172="","",'DF raw data'!L172) -> -1.36753e-05 | F167: -2.344769728e-05 | G167: 0.0001224112456 | H167: -1.374641156e-05 | J167: -0.001081589456 | K167: -0.02863028995 | L167: 0.00614721159 | M167: 0.160165747 | N167: 0.0006717658516
A168: =IF('DF raw data'!I173="","",'DF raw data'!I173) -> -247 | B168: =IF('DF raw data'!J173="","",'DF raw data'!J173) -> -2.80692e-05 | C168: =IF('DF raw data'!K173="","",'DF raw data'!K173) -> 0.00012081 | D168: =IF('DF raw data'!L173="","",'DF raw data'!L173) -> -1.16602e-05 | F168: -2.821515984e-05 | G168: 0.000121438212 | H168: -1.172083304e-05 | J168: -0.001095697036 | K168: -0.02917813847 | L168: 0.006207930696 | M168: 0.1632697124 | N168: 0.0006916353294
A169: =IF('DF raw data'!I174="","",'DF raw data'!I174) -> -246.5 | B169: =IF('DF raw data'!J174="","",'DF raw data'!J174) -> -1.21164e-05 | C169: =IF('DF raw data'!K174="","",'DF raw data'!K174) -> 0.000132387 | D169: =IF('DF raw data'!L174="","",'DF raw data'!L174) -> -7.9711e-06 | F169: -1.217940528e-05 | G169: 0.0001330754124 | H169: -8.01254972e-06 | J169: -0.001101786739 | K169: -0.02972903184 | L169: 0.006274468402 | M169: 0.1664069466 | N169: 0.0007119267733
A170: =IF('DF raw data'!I175="","",'DF raw data'!I175) -> -246 | B170: =IF('DF raw data'!J175="","",'DF raw data'!J175) -> -1.97464e-05 | C170: =IF('DF raw data'!K175="","",'DF raw data'!K175) -> 0.000131185 | D170: =IF('DF raw data'!L175="","",'DF raw data'!L175) -> -3.29265e-07 | F170: -1.984908128e-05 | G170: 0.000131867162 | H170: -3.30977178e-07 | J170: -0.001111711279 | K170: -0.03028488748 | L170: 0.006340401983 | M170: 0.1695771475 | N170: 0.0007326450729
A171: =IF('DF raw data'!I176="","",'DF raw data'!I176) -> -245.5 | B171: =IF('DF raw data'!J176="","",'DF raw data'!J176) -> -3.13351e-05 | C171: =IF('DF raw data'!K176="","",'DF raw data'!K176) -> 0.000122584 | D171: =IF('DF raw data'!L176="","",'DF raw data'!L176) -> -1.56964e-05 | F171: -3.149804252e-05 | G171: 0.0001232214368 | H171: -1.577802128e-05 | J171: -0.0011274603 | K171: -0.03084861763 | L171: 0.006402012701 | M171: 0.1727781539 | N171: 0.0007537735396
A172: =IF('DF raw data'!I177="","",'DF raw data'!I177) -> -245 | B172: =IF('DF raw data'!J177="","",'DF raw data'!J177) -> -3.18546e-05 | C172: =IF('DF raw data'!K177="","",'DF raw data'!K177) -> 0.000118305 | D172: =IF('DF raw data'!L177="","",'DF raw data'!L177) -> -3.88282e-06 | F172: -3.202024392e-05 | G172: 0.000118920186 | H172: -3.903010664e-06 | J172: -0.001143470422 | K172: -0.03142035284 | L172: 0.006461472794 | M172: 0.1760088903 | N172: 0.0007753026172
A173: =IF('DF raw data'!I178="","",'DF raw data'!I178) -> -244.5 | B173: =IF('DF raw data'!J178="","",'DF raw data'!J178) -> -1.81432e-05 | C173: =IF('DF raw data'!K178="","",'DF raw data'!K178) -> 0.000116132 | D173: =IF('DF raw data'!L178="","",'DF raw data'!L178) -> -2.8778e-06 | F173: -1.823754464e-05 | G173: 0.0001167358864 | H173: -2.89276456e-06 | J173: -0.001152589195 | K173: -0.03199664744 | L173: 0.006519840737 | M173: 0.1792688107 | N173: 0.0007972210098
A174: =IF('DF raw data'!I179="","",'DF raw data'!I179) -> -244 | B174: =IF('DF raw data'!J179="","",'DF raw data'!J179) -> -1.71086e-05 | C174: =IF('DF raw data'!K179="","",'DF raw data'!K179) -> 0.00012206 | D174: =IF('DF raw data'!L179="","",'DF raw data'!L179) -> -1.66636e-05 | F174: -1.719756472e-05 | G174: 0.000122694712 | H174: -1.675025072e-05 | J174: -0.001161187977 | K174: -0.03257724143 | L174: 0.006581188093 | M174: 0.1825594047 | N174: 0.0008195512069
A175: =IF('DF raw data'!I180="","",'DF raw data'!I180) -> -243.5 | B175: =IF('DF raw data'!J180="","",'DF raw data'!J180) -> -9.56136e-06 | C175: =IF('DF raw data'!K180="","",'DF raw data'!K180) -> 0.000124357 | D175: =IF('DF raw data'!L180="","",'DF raw data'!L180) -> 4.29295e-06 | F175: -9.611079072e-06 | G175: 0.0001250036564 | H175: 4.31527334e-06 | J175: -0.001165993517 | K175: -0.03316023819 | L175: 0.006643689922 | M175: 0.1858812497 | N175: 0.0008423002852
A176: =IF('DF raw data'!I181="","",'DF raw data'!I181) -> -243 | B176: =IF('DF raw data'!J181="","",'DF raw data'!J181) -> -2.83169e-05 | C176: =IF('DF raw data'!K181="","",'DF raw data'!K181) -> 0.000121028 | D176: =IF('DF raw data'!L181="","",'DF raw data'!L181) -> -2.47208e-05 | F176: -2.846414788e-05 | G176: 0.0001216573456 | H176: -2.484934816e-05 | J176: -0.001180225591 | K176: -0.03375035098 | L176: 0.006704518594 | M176: 0.189233509 | N176: 0.0008654720362
A177: =IF('DF raw data'!I182="","",'DF raw data'!I182) -> -242.5 | B177: =IF('DF raw data'!J182="","",'DF raw data'!J182) -> -1.98651e-05 | C177: =IF('DF raw data'!K182="","",'DF raw data'!K182) -> 0.000118784 | D177: =IF('DF raw data'!L182="","",'DF raw data'!L182) -> -1.56468e-05 | F177: -1.996839852e-05 | G177: 0.0001194016768 | H177: -1.572816336e-05 | J177: -0.00119020979 | K177: -0.03434545588 | L177: 0.006764219433 | M177: 0.1926156187 | N177: 0.0008890576682
A178: =IF('DF raw data'!I183="","",'DF raw data'!I183) -> -242 | B178: =IF('DF raw data'!J183="","",'DF raw data'!J183) -> -1.4672e-05 | C178: =IF('DF raw data'!K183="","",'DF raw data'!K183) -> 0.000119539 | D178: =IF('DF raw data'!L183="","",'DF raw data'!L183) -> -1.91363e-05 | F178: -1.47482944e-05 | G178: 0.0001201606028 | H178: -1.923580876e-05 | J178: -0.001197583937 | K178: -0.03494424784 | L178: 0.006824299734 | M178: 0.1960277686 | N178: 0.0009130603052
A179: =IF('DF raw data'!I184="","",'DF raw data'!I184) -> -241.5 | B179: =IF('DF raw data'!J184="","",'DF raw data'!J184) -> -2.03164e-05 | C179: =IF('DF raw data'!K184="","",'DF raw data'!K184) -> 0.000126811 | D179: =IF('DF raw data'!L184="","",'DF raw data'!L184) -> -1.10398e-05 | F179: -2.042204528e-05 | G179: 0.0001274704172 | H179: -1.109720696e-05 | J179: -0.00120779496 | K179: -0.03554814532 | L179: 0.006888034943 | M179: 0.199471786 | N179: 0.0009375122022
A180: =IF('DF raw data'!I185="","",'DF raw data'!I185) -> -241 | B180: =IF('DF raw data'!J185="","",'DF raw data'!J185) -> -2.41575e-05 | C180: =IF('DF raw data'!K185="","",'DF raw data'!K185) -> 0.000128307 | D180: =IF('DF raw data'!L185="","",'DF raw data'!L185) -> -1.60819e-05 | F180: -2.4283119e-05 | G180: 0.0001289741964 | H180: -1.616552588e-05 | J180: -0.001219936519 | K180: -0.03615811358 | L180: 0.006952522041 | M180: 0.202948047 | N180: 0.0009624251062
A181: =IF('DF raw data'!I186="","",'DF raw data'!I186) -> -240.5 | B181: =IF('DF raw data'!J186="","",'DF raw data'!J186) -> -1.65267e-05 | C181: =IF('DF raw data'!K186="","",'DF raw data'!K186) -> 0.000131492 | D181: =IF('DF raw data'!L186="","",'DF raw data'!L186) -> -2.50541e-05 | F181: -1.661263884e-05 | G181: 0.0001321757584 | H181: -2.518438132e-05 | J181: -0.001228242839 | K181: -0.036772235 | L181: 0.00701860992 | M181: 0.206457352 | N181: 0.000987809839
A182: =IF('DF raw data'!I187="","",'DF raw data'!I187) -> -240 | B182: =IF('DF raw data'!J187="","",'DF raw data'!J187) -> -2.10227e-05 | C182: =IF('DF raw data'!K187="","",'DF raw data'!K187) -> 0.000133296 | D182: =IF('DF raw data'!L187="","",'DF raw data'!L187) -> -8.44322e-06 | F182: -2.113201804e-05 | G182: 0.0001339891392 | H182: -8.487124744e-06 | J182: -0.001238808848 | K182: -0.03739163943 | L182: 0.00708560449 | M182: 0.2100001542 | N182: 0.001013680058
A183: =IF('DF raw data'!I188="","",'DF raw data'!I188) -> -239.5 | B183: =IF('DF raw data'!J188="","",'DF raw data'!J188) -> -1.53117e-05 | C183: =IF('DF raw data'!K188="","",'DF raw data'!K188) -> 0.000133624 | D183: =IF('DF raw data'!L188="","",'DF raw data'!L188) -> -2.10286e-05 | F183: -1.539132084e-05 | G183: 0.0001343188448 | H183: -2.113794872e-05 | J183: -0.001246504508 | K183: -0.03801489168 | L183: 0.007152763912 | M183: 0.2135765362 | N183: 0.001040037961
A184: =IF('DF raw data'!I189="","",'DF raw data'!I189) -> -239 | B184: =IF('DF raw data'!J189="","",'DF raw data'!J189) -> -2.49972e-05 | C184: =IF('DF raw data'!K189="","",'DF raw data'!K189) -> 0.000131493 | D184: =IF('DF raw data'!L189="","",'DF raw data'!L189) -> -5.90551e-06 | F184: -2.512718544e-05 | G184: 0.0001321767636 | H184: -5.936218652e-06 | J184: -0.001259068101 | K184: -0.03864442573 | L184: 0.007218852294 | M184: 0.2171859624 | N184: 0.001066886501
A185: =IF('DF raw data'!I190="","",'DF raw data'!I190) -> -238.5 | B185: =IF('DF raw data'!J190="","",'DF raw data'!J190) -> -1.81358e-05 | C185: =IF('DF raw data'!K190="","",'DF raw data'!K190) -> 0.000130211 | D185: =IF('DF raw data'!L190="","",'DF raw data'!L190) -> -1.42071e-05 | F185: -1.823010616e-05 | G185: 0.0001308880972 | H185: -1.428097692e-05 | J185: -0.001268183154 | K185: -0.03927851731 | L185: 0.007284296343 | M185: 0.2208281105 | N185: 0.001094221132
A186: =IF('DF raw data'!I191="","",'DF raw data'!I191) -> -238 | B186: =IF('DF raw data'!J191="","",'DF raw data'!J191) -> -3.0949e-05 | C186: =IF('DF raw data'!K191="","",'DF raw data'!K191) -> 0.000131012 | D186: =IF('DF raw data'!L191="","",'DF raw data'!L191) -> -1.70074e-05 | F186: -3.11099348e-05 | G186: 0.0001316932624 | H186: -1.709583848e-05 | J186: -0.001283738121 | K186: -0.03992038637 | L186: 0.007350142974 | M186: 0.224503182 | N186: 0.001122057425
A187: =IF('DF raw data'!I192="","",'DF raw data'!I192) -> -237.5 | B187: =IF('DF raw data'!J192="","",'DF raw data'!J192) -> -2.44097e-05 | C187: =IF('DF raw data'!K192="","",'DF raw data'!K192) -> 0.000126633 | D187: =IF('DF raw data'!L192="","",'DF raw data'!L192) -> -2.32505e-05 | F187: -2.453663044e-05 | G187: 0.0001272914916 | H187: -2.33714026e-05 | J187: -0.001296006436 | K187: -0.04056838959 | L187: 0.00741378872 | M187: 0.2282100764 | N187: 0.001150379373
A188: =IF('DF raw data'!I193="","",'DF raw data'!I193) -> -237 | B188: =IF('DF raw data'!J193="","",'DF raw data'!J193) -> -2.72333e-05 | C188: =IF('DF raw data'!K193="","",'DF raw data'!K193) -> 0.000122727 | D188: =IF('DF raw data'!L193="","",'DF raw data'!L193) -> -1.56949e-05 | F188: -2.737491316e-05 | G188: 0.0001233651804 | H188: -1.577651348e-05 | J188: -0.001309693893 | K188: -0.04122323653 | L188: 0.00747547131 | M188: 0.231947812 | N188: 0.001179178357
A189: =IF('DF raw data'!I194="","",'DF raw data'!I194) -> -236.5 | B189: =IF('DF raw data'!J194="","",'DF raw data'!J194) -> -2.2747e-05 | C189: =IF('DF raw data'!K194="","",'DF raw data'!K194) -> 0.000123753 | D189: =IF('DF raw data'!L194="","",'DF raw data'!L194) -> -1.813e-05 | F189: -2.28652844e-05 | G189: 0.0001243965156 | H189: -1.8224276e-05 | J189: -0.001321126535 | K189: -0.0418837998 | L189: 0.007537669568 | M189: 0.2357166468 | N189: 0.001208459276
A190: =IF('DF raw data'!I195="","",'DF raw data'!I195) -> -236 | B190: =IF('DF raw data'!J195="","",'DF raw data'!J195) -> -3.03137e-05 | C190: =IF('DF raw data'!K195="","",'DF raw data'!K195) -> 0.000125876 | D190: =IF('DF raw data'!L195="","",'DF raw data'!L195) -> -8.35524e-06 | F190: -3.047133124e-05 | G190: 0.0001265305552 | H190: -8.398687248e-06 | J190: -0.001336362201 | K190: -0.0425519809 | L190: 0.007600934845 | M190: 0.2395171142 | N190: 0.001238239313
A191: =IF('DF raw data'!I196="","",'DF raw data'!I196) -> -235.5 | B191: =IF('DF raw data'!J196="","",'DF raw data'!J196) -> -2.38379e-05 | C191: =IF('DF raw data'!K196="","",'DF raw data'!K196) -> 0.000118889 | D191: =IF('DF raw data'!L196="","",'DF raw data'!L196) -> -1.56556e-05 | F191: -2.396185708e-05 | G191: 0.0001195072228 | H191: -1.573700912e-05 | J191: -0.001348343129 | K191: -0.04322615247 | L191: 0.007660688457 | M191: 0.2433474585 | N191: 0.001268491402
A192: =IF('DF raw data'!I197="","",'DF raw data'!I197) -> -235 | B192: =IF('DF raw data'!J197="","",'DF raw data'!J197) -> -2.81907e-05 | C192: =IF('DF raw data'!K197="","",'DF raw data'!K197) -> 0.000120643 | D192: =IF('DF raw data'!L197="","",'DF raw data'!L197) -> -2.1326e-05 | F192: =(1-$G$1*($B$49-$G$2))*B192 -> -2.833729164e-05 | G192: 0.0001212703436 | H192: -2.14368952e-05 | J192: =F192*$G$3+J191 -> -0.001362511775 | K192: =J192*$G$3+K191 -> -0.04390740835 | L192: =G192*$G$3+L191 -> 0.007721323628 | M192: =L192*$G$3+M191 -> 0.2472081203 | N192: =(J192^2+L192^2)*$G$3+N191 -> 0.00129922904
A193: =IF('DF raw data'!I198="","",'DF raw data'!I198) -> -234.5 | B193: =IF('DF raw data'!J198="","",'DF raw data'!J198) -> -1.83292e-05 | C193: =IF('DF raw data'!K198="","",'DF raw data'!K198) -> 0.000131164 | D193: =IF('DF raw data'!L198="","",'DF raw data'!L198) -> -1.24005e-05 | F193: -1.842451184e-05 | G193: 0.0001318460528 | H193: -1.24649826e-05 | J193: -0.001371724031 | K193: -0.04459327037 | L193: 0.007787246655 | M193: 0.2511017436 | N193: 0.001330490459
A194: =IF('DF raw data'!I199="","",'DF raw data'!I199) -> -234 | B194: =IF('DF raw data'!J199="","",'DF raw data'!J199) -> -2.49818e-05 | C194: =IF('DF raw data'!K199="","",'DF raw data'!K199) -> 0.00012963 | D194: =IF('DF raw data'!L199="","",'DF raw data'!L199) -> -2.91904e-05 | F194: -2.511170536e-05 | G194: 0.000130304076 | H194: -2.934219008e-05 | J194: -0.001384279884 | K194: -0.04528541031 | L194: 0.007852398693 | M194: 0.2550279429 | N194: 0.001362278657
A195: =IF('DF raw data'!I200="","",'DF raw data'!I200) -> -233.5 | B195: =IF('DF raw data'!J200="","",'DF raw data'!J200) -> -2.72301e-05 | C195: =IF('DF raw data'!K200="","",'DF raw data'!K200) -> 0.000128775 | D195: =IF('DF raw data'!L200="","",'DF raw data'!L200) -> -2.19808e-05 | F195: -2.737169652e-05 | G195: 0.00012944463 | H195: -2.209510016e-05 | J195: -0.001397965732 | K195: -0.04598439318 | L195: 0.007917121008 | M195: 0.2589865035 | N195: 0.001394596214
A196: =IF('DF raw data'!I201="","",'DF raw data'!I201) -> -233 | B196: =IF('DF raw data'!J201="","",'DF raw data'!J201) -> -2.03122e-05 | C196: =IF('DF raw data'!K201="","",'DF raw data'!K201) -> 0.000134024 | D196: =IF('DF raw data'!L201="","",'DF raw data'!L201) -> -1.64244e-05 | F196: -2.041782344e-05 | G196: 0.0001347209248 | H196: -1.650980688e-05 | J196: -0.001408174644 | K196: -0.0466884805 | L196: 0.00798448147 | M196: 0.2629787442 | N196: 0.001427463664
A197: =IF('DF raw data'!I202="","",'DF raw data'!I202) -> -232.5 | B197: =IF('DF raw data'!J202="","",'DF raw data'!J202) -> -3.38376e-05 | C197: =IF('DF raw data'!K202="","",'DF raw data'!K202) -> 0.0001275 | D197: =IF('DF raw data'!L202="","",'DF raw data'!L202) -> -1.11134e-05 | F197: -3.401355552e-05 | G197: 0.000128163 | H197: -1.117118968e-05 | J197: -0.001425181422 | K197: -0.04740107121 | L197: 0.00804856297 | M197: 0.2670030257 | N197: 0.001460868918
A198: =IF('DF raw data'!I203="","",'DF raw data'!I203) -> -232 | B198: =IF('DF raw data'!J203="","",'DF raw data'!J203) -> -2.21108e-05 | C198: =IF('DF raw data'!K203="","",'DF raw data'!K203) -> 0.000121643 | D198: =IF('DF raw data'!L203="","",'DF raw data'!L203) -> -9.78912e-06 | F198: -2.222577616e-05 | G198: 0.0001222755436 | H198: -9.840023424e-06 | J198: -0.00143629431 | K198: -0.04811921836 | L198: 0.008109700742 | M198: 0.271057876 | N198: 0.001494784011
A199: =IF('DF raw data'!I204="","",'DF raw data'!I204) -> -231.5 | B199: =IF('DF raw data'!J204="","",'DF raw data'!J204) -> -2.60187e-05 | C199: =IF('DF raw data'!K204="","",'DF raw data'!K204) -> 0.000124355 | D199: =IF('DF raw data'!L204="","",'DF raw data'!L204) -> -1.30686e-05 | F199: -2.615399724e-05 | G199: 0.000125001646 | H199: -1.313655672e-05 | J199: -0.001449371308 | K199: -0.04884390402 | L199: 0.008172201565 | M199: 0.2751439768 | N199: 0.001529226789
A200: =IF('DF raw data'!I205="","",'DF raw data'!I205) -> -231 | B200: =IF('DF raw data'!J205="","",'DF raw data'!J205) -> -2.45466e-05 | C200: =IF('DF raw data'!K205="","",'DF raw data'!K205) -> 0.000126917 | D200: =IF('DF raw data'!L205="","",'DF raw data'!L205) -> -8.09594e-06 | F200: -2.467424232e-05 | G200: 0.0001275769684 | H200: -8.138038888e-06 | J200: -0.001461708429 | K200: -0.04957475823 | L200: 0.008235990049 | M200: 0.2792619718 | N200: 0.001564210851
A201: =IF('DF raw data'!I206="","",'DF raw data'!I206) -> -230.5 | B201: =IF('DF raw data'!J206="","",'DF raw data'!J206) -> -1.92183e-05 | C201: =IF('DF raw data'!K206="","",'DF raw data'!K206) -> 0.000123188 | D201: =IF('DF raw data'!L206="","",'DF raw data'!L206) -> -2.54617e-05 | F201: -1.931823516e-05 | G201: 0.0001238285776 | H201: -2.559410084e-05 | J201: -0.001471367547 | K201: -0.05031044201 | L201: 0.008297904338 | M201: 0.283410924 | N201: 0.00159972092
... 1061 more rows

Sheet 10 y=0.1
A1: =IF('DF raw data'!M1="","",'DF raw data'!M1) -> Number of header lines | B1: =IF('DF raw data'!N1="","",'DF raw data'!N1) -> 54 | C1: =IF('DF raw data'!O1="","",'DF raw data'!O1) ->  | D1: =IF('DF raw data'!P1="","",'DF raw data'!P1) ->  | F1: T_coeff | G1: -0.001 | H1: /degC | J1: ='10 y=-0.2'!J1 -> IBy total | K1: ='10 y=-0.2'!K1 -> -4.639403993 | L1: ='10 y=-0.2'!L1 -> muTm | R1: ='10 y=-0.2'!R1 -> DF ref | S1: ='10 y=-0.2'!S1 -> 1
A2: =IF('DF raw data'!M2="","",'DF raw data'!M2) -> Measured by | B2: =IF('DF raw data'!N2="","",'DF raw data'!N2) -> Danfysik | C2: =IF('DF raw data'!O2="","",'DF raw data'!O2) ->  | D2: =IF('DF raw data'!P2="","",'DF raw data'!P2) ->  | F2: Tcorr | G2: 20 | H2: degC | J2: JBy total | K2: =K1262 -> -5.35419955 | L2: muTm^2 | M2: =M1262 -> 18.14882739
A3: =IF('DF raw data'!M3="","",'DF raw data'!M3) -> Operator | B3: =IF('DF raw data'!N3="","",'DF raw data'!N3) -> PMHA | C3: =IF('DF raw data'!O3="","",'DF raw data'!O3) ->  | D3: =IF('DF raw data'!P3="","",'DF raw data'!P3) ->  | F3: Step | G3: =A63-A62 -> 0.5 | H3: mm | J3: PI total | K3: =N1262 -> 10350.49758 | L3: T^2mm^3
A4: =IF('DF raw data'!M4="","",'DF raw data'!M4) -> Data-time | B4: =IF('DF raw data'!N4="","",'DF raw data'!N4) -> 09-09-2024, 14:17:49 | C4: =IF('DF raw data'!O4="","",'DF raw data'!O4) ->  | D4: =IF('DF raw data'!P4="","",'DF raw data'!P4) -> 
A5: =IF('DF raw data'!M5="","",'DF raw data'!M5) -> Project | B5: =IF('DF raw data'!N5="","",'DF raw data'!N5) -> 504314 | C5: =IF('DF raw data'!O5="","",'DF raw data'!O5) ->  | D5: =IF('DF raw data'!P5="","",'DF raw data'!P5) -> 
A6: =IF('DF raw data'!M6="","",'DF raw data'!M6) -> Magnet type | B6: =IF('DF raw data'!N6="","",'DF raw data'!N6) -> Dipole | C6: =IF('DF raw data'!O6="","",'DF raw data'!O6) ->  | D6: =IF('DF raw data'!P6="","",'DF raw data'!P6) -> 
A7: =IF('DF raw data'!M7="","",'DF raw data'!M7) -> Magnet nr. | B7: =IF('DF raw data'!N7="","",'DF raw data'!N7) -> 2410094 | C7: =IF('DF raw data'!O7="","",'DF raw data'!O7) ->  | D7: =IF('DF raw data'!P7="","",'DF raw data'!P7) -> 
A8: =IF('DF raw data'!M8="","",'DF raw data'!M8) -> Meas. number | B8: =IF('DF raw data'!N8="","",'DF raw data'!N8) -> 392 | C8: =IF('DF raw data'!O8="","",'DF raw data'!O8) ->  | D8: =IF('DF raw data'!P8="","",'DF raw data'!P8) -> 
A9: =IF('DF raw data'!M9="","",'DF raw data'!M9) -> Add. info | B9: =IF('DF raw data'!N9="","",'DF raw data'!N9) -> Y-alignment scan 4) | C9: =IF('DF raw data'!O9="","",'DF raw data'!O9) ->  | D9: =IF('DF raw data'!P9="","",'DF raw data'!P9) -> 
A10: =IF('DF raw data'!M10="","",'DF raw data'!M10) -> Device | B10: =IF('DF raw data'!N10="","",'DF raw data'!N10) -> (HAL) HALL-PROBE | C10: =IF('DF raw data'!O10="","",'DF raw data'!O10) ->  | D10: =IF('DF raw data'!P10="","",'DF raw data'!P10) -> 
A11: =IF('DF raw data'!M11="","",'DF raw data'!M11) -> Goal | B11: =IF('DF raw data'!N11="","",'DF raw data'!N11) -> (AXI) AXis Integral (Line, EFB) | C11: =IF('DF raw data'!O11="","",'DF raw data'!O11) ->  | D11: =IF('DF raw data'!P11="","",'DF raw data'!P11) -> 
A12: =IF('DF raw data'!M12="","",'DF raw data'!M12) -> Power supply mode | B12: =IF('DF raw data'!N12="","",'DF raw data'!N12) -> (PM) Permanent Magnet (no MPS in use) | C12: =IF('DF raw data'!O12="","",'DF raw data'!O12) ->  | D12: =IF('DF raw data'!P12="","",'DF raw data'!P12) -> 
A13: =IF('DF raw data'!M13="","",'DF raw data'!M13) -> Data format | B13: =IF('DF raw data'!N13="","",'DF raw data'!N13) -> Raw data text file | C13: =IF('DF raw data'!O13="","",'DF raw data'!O13) ->  | D13: =IF('DF raw data'!P13="","",'DF raw data'!P13) -> 
A14: =IF('DF raw data'!M14="","",'DF raw data'!M14) -> Direction of the pos. x-axis | B14: =IF('DF raw data'!N14="","",'DF raw data'!N14) -> See test program | C14: =IF('DF raw data'!O14="","",'DF raw data'!O14) ->  | D14: =IF('DF raw data'!P14="","",'DF raw data'!P14) -> 
A15: =IF('DF raw data'!M15="","",'DF raw data'!M15) -> Direction of the pos. y-axis | B15: =IF('DF raw data'!N15="","",'DF raw data'!N15) -> Vertical up | C15: =IF('DF raw data'!O15="","",'DF raw data'!O15) ->  | D15: =IF('DF raw data'!P15="","",'DF raw data'!P15) -> 
A16: =IF('DF raw data'!M16="","",'DF raw data'!M16) -> Direction of the pos. z-axis | B16: =IF('DF raw data'!N16="","",'DF raw data'!N16) -> See test program | C16: =IF('DF raw data'!O16="","",'DF raw data'!O16) ->  | D16: =IF('DF raw data'!P16="","",'DF raw data'!P16) -> 
A17: =IF('DF raw data'!M17="","",'DF raw data'!M17) -> Mapper type | B17: =IF('DF raw data'!N17="","",'DF raw data'!N17) -> Precision Hall Mapper | C17: =IF('DF raw data'!O17="","",'DF raw data'!O17) ->  | D17: =IF('DF raw data'!P17="","",'DF raw data'!P17) -> 
A18: =IF('DF raw data'!M18="","",'DF raw data'!M18) -> Mapper Danfysik Reg. Number | B18: =IF('DF raw data'!N18="","",'DF raw data'!N18) -> 2033-D (mapper 1) | C18: =IF('DF raw data'!O18="","",'DF raw data'!O18) ->  | D18: =IF('DF raw data'!P18="","",'DF raw data'!P18) -> 
A19: =IF('DF raw data'!M19="","",'DF raw data'!M19) -> Measurement consept | B19: =IF('DF raw data'!N19="","",'DF raw data'!N19) -> Square line grid | C19: =IF('DF raw data'!O19="","",'DF raw data'!O19) ->  | D19: =IF('DF raw data'!P19="","",'DF raw data'!P19) -> 
A20: =IF('DF raw data'!M20="","",'DF raw data'!M20) -> Mode | B20: =IF('DF raw data'!N20="","",'DF raw data'!N20) -> On-the-fly measurement | C20: =IF('DF raw data'!O20="","",'DF raw data'!O20) ->  | D20: =IF('DF raw data'!P20="","",'DF raw data'!P20) -> 
A21: =IF('DF raw data'!M21="","",'DF raw data'!M21) ->  | B21: =IF('DF raw data'!N21="","",'DF raw data'!N21) ->  | C21: =IF('DF raw data'!O21="","",'DF raw data'!O21) ->  | D21: =IF('DF raw data'!P21="","",'DF raw data'!P21) -> 
A22: =IF('DF raw data'!M22="","",'DF raw data'!M22) -> Probe Name | B22: =IF('DF raw data'!N22="","",'DF raw data'!N22) -> ID12_By | C22: =IF('DF raw data'!O22="","",'DF raw data'!O22) ->  | D22: =IF('DF raw data'!P22="","",'DF raw data'!P22) -> 
A23: =IF('DF raw data'!M23="","",'DF raw data'!M23) -> Probe Type | B23: =IF('DF raw data'!N23="","",'DF raw data'!N23) -> DF_ID_3D_Bxyz | C23: =IF('DF raw data'!O23="","",'DF raw data'!O23) ->  | D23: =IF('DF raw data'!P23="","",'DF raw data'!P23) -> 
A24: =IF('DF raw data'!M24="","",'DF raw data'!M24) -> Probe Danfysik Reg. Number | B24: =IF('DF raw data'!N24="","",'DF raw data'!N24) -> 2277 | C24: =IF('DF raw data'!O24="","",'DF raw data'!O24) ->  | D24: =IF('DF raw data'!P24="","",'DF raw data'!P24) -> 
A25: =IF('DF raw data'!M25="","",'DF raw data'!M25) -> Probe Axis | B25: =IF('DF raw data'!N25="","",'DF raw data'!N25) -> By | C25: =IF('DF raw data'!O25="","",'DF raw data'!O25) ->  | D25: =IF('DF raw data'!P25="","",'DF raw data'!P25) -> 
A26: =IF('DF raw data'!M26="","",'DF raw data'!M26) -> Probe Current Supply | B26: =IF('DF raw data'!N26="","",'DF raw data'!N26) -> 1825-D | C26: =IF('DF raw data'!O26="","",'DF raw data'!O26) ->  | D26: =IF('DF raw data'!P26="","",'DF raw data'!P26) -> 
A27: =IF('DF raw data'!M27="","",'DF raw data'!M27) -> Probe Gain Correction | B27: =IF('DF raw data'!N27="","",'DF raw data'!N27) -> 0.99606 | C27: =IF('DF raw data'!O27="","",'DF raw data'!O27) ->  | D27: =IF('DF raw data'!P27="","",'DF raw data'!P27) -> 
A28: =IF('DF raw data'!M28="","",'DF raw data'!M28) -> Probe Offset Correction | B28: =IF('DF raw data'!N28="","",'DF raw data'!N28) -> 0.002758 | C28: =IF('DF raw data'!O28="","",'DF raw data'!O28) ->  | D28: =IF('DF raw data'!P28="","",'DF raw data'!P28) -> 
A29: =IF('DF raw data'!M29="","",'DF raw data'!M29) -> DVM Number | B29: =IF('DF raw data'!N29="","",'DF raw data'!N29) -> 2 | C29: =IF('DF raw data'!O29="","",'DF raw data'!O29) ->  | D29: =IF('DF raw data'!P29="","",'DF raw data'!P29) -> 
A30: =IF('DF raw data'!M30="","",'DF raw data'!M30) -> DVM Type | B30: =IF('DF raw data'!N30="","",'DF raw data'!N30) -> K2701 | C30: =IF('DF raw data'!O30="","",'DF raw data'!O30) ->  | D30: =IF('DF raw data'!P30="","",'DF raw data'!P30) -> 
A31: =IF('DF raw data'!M31="","",'DF raw data'!M31) -> DVM Danfysik Reg. Number | B31: =IF('DF raw data'!N31="","",'DF raw data'!N31) -> 1743-D | C31: =IF('DF raw data'!O31="","",'DF raw data'!O31) ->  | D31: =IF('DF raw data'!P31="","",'DF raw data'!P31) -> 
A32: =IF('DF raw data'!M32="","",'DF raw data'!M32) -> Probe Name | B32: =IF('DF raw data'!N32="","",'DF raw data'!N32) -> ID12_Bx | C32: =IF('DF raw data'!O32="","",'DF raw data'!O32) ->  | D32: =IF('DF raw data'!P32="","",'DF raw data'!P32) -> 
A33: =IF('DF raw data'!M33="","",'DF raw data'!M33) -> Probe Type | B33: =IF('DF raw data'!N33="","",'DF raw data'!N33) -> DF_ID_3D_Bxyz | C33: =IF('DF raw data'!O33="","",'DF raw data'!O33) ->  | D33: =IF('DF raw data'!P33="","",'DF raw data'!P33) -> 
A34: =IF('DF raw data'!M34="","",'DF raw data'!M34) -> Probe Danfysik Reg. Number | B34: =IF('DF raw data'!N34="","",'DF raw data'!N34) -> 2277 | C34: =IF('DF raw data'!O34="","",'DF raw data'!O34) ->  | D34: =IF('DF raw data'!P34="","",'DF raw data'!P34) -> 
A35: =IF('DF raw data'!M35="","",'DF raw data'!M35) -> Probe Axis | B35: =IF('DF raw data'!N35="","",'DF raw data'!N35) -> Bx | C35: =IF('DF raw data'!O35="","",'DF raw data'!O35) ->  | D35: =IF('DF raw data'!P35="","",'DF raw data'!P35) -> 
A36: =IF('DF raw data'!M36="","",'DF raw data'!M36) -> Probe Current Supply | B36: =IF('DF raw data'!N36="","",'DF raw data'!N36) -> 1825-D | C36: =IF('DF raw data'!O36="","",'DF raw data'!O36) ->  | D36: =IF('DF raw data'!P36="","",'DF raw data'!P36) -> 
A37: =IF('DF raw data'!M37="","",'DF raw data'!M37) -> Probe Gain Correction | B37: =IF('DF raw data'!N37="","",'DF raw data'!N37) -> 1 | C37: =IF('DF raw data'!O37="","",'DF raw data'!O37) ->  | D37: =IF('DF raw data'!P37="","",'DF raw data'!P37) -> 
A38: =IF('DF raw data'!M38="","",'DF raw data'!M38) -> Probe Offset Correction | B38: =IF('DF raw data'!N38="","",'DF raw data'!N38) -> -0.17551 | C38: =IF('DF raw data'!O38="","",'DF raw data'!O38) ->  | D38: =IF('DF raw data'!P38="","",'DF raw data'!P38) -> 
A39: =IF('DF raw data'!M39="","",'DF raw data'!M39) -> DVM Number | B39: =IF('DF raw data'!N39="","",'DF raw data'!N39) -> 3 | C39: =IF('DF raw data'!O39="","",'DF raw data'!O39) ->  | D39: =IF('DF raw data'!P39="","",'DF raw data'!P39) -> 
A40: =IF('DF raw data'!M40="","",'DF raw data'!M40) -> DVM Type | B40: =IF('DF raw data'!N40="","",'DF raw data'!N40) -> K2701 | C40: =IF('DF raw data'!O40="","",'DF raw data'!O40) ->  | D40: =IF('DF raw data'!P40="","",'DF raw data'!P40) -> 
A41: =IF('DF raw data'!M41="","",'DF raw data'!M41) -> DVM Danfysik Reg. Number | B41: =IF('DF raw data'!N41="","",'DF raw data'!N41) -> 1744-D | C41: =IF('DF raw data'!O41="","",'DF raw data'!O41) ->  | D41: =IF('DF raw data'!P41="","",'DF raw data'!P41) -> 
A42: =IF('DF raw data'!M42="","",'DF raw data'!M42) -> Probe Name | B42: =IF('DF raw data'!N42="","",'DF raw data'!N42) -> ID12_Bz | C42: =IF('DF raw data'!O42="","",'DF raw data'!O42) ->  | D42: =IF('DF raw data'!P42="","",'DF raw data'!P42) -> 
A43: =IF('DF raw data'!M43="","",'DF raw data'!M43) -> Probe Type | B43: =IF('DF raw data'!N43="","",'DF raw data'!N43) -> DF_ID_3D_Bxyz | C43: =IF('DF raw data'!O43="","",'DF raw data'!O43) ->  | D43: =IF('DF raw data'!P43="","",'DF raw data'!P43) -> 
A44: =IF('DF raw data'!M44="","",'DF raw data'!M44) -> Probe Danfysik Reg. Number | B44: =IF('DF raw data'!N44="","",'DF raw data'!N44) -> 2277 | C44: =IF('DF raw data'!O44="","",'DF raw data'!O44) ->  | D44: =IF('DF raw data'!P44="","",'DF raw data'!P44) -> 
A45: =IF('DF raw data'!M45="","",'DF raw data'!M45) -> Probe Axis | B45: =IF('DF raw data'!N45="","",'DF raw data'!N45) -> Bz | C45: =IF('DF raw data'!O45="","",'DF raw data'!O45) ->  | D45: =IF('DF raw data'!P45="","",'DF raw data'!P45) -> 
A46: =IF('DF raw data'!M46="","",'DF raw data'!M46) -> Probe Current Supply | B46: =IF('DF raw data'!N46="","",'DF raw data'!N46) -> 1825-D | C46: =IF('DF raw data'!O46="","",'DF raw data'!O46) ->  | D46: =IF('DF raw data'!P46="","",'DF raw data'!P46) -> 
A47: =IF('DF raw data'!M47="","",'DF raw data'!M47) -> Probe Gain Correction | B47: =IF('DF raw data'!N47="","",'DF raw data'!N47) -> 1 | C47: =IF('DF raw data'!O47="","",'DF raw data'!O47) ->  | D47: =IF('DF raw data'!P47="","",'DF raw data'!P47) -> 
A48: =IF('DF raw data'!M53="","",'DF raw data'!M53) -> PS-Gap: | B48: =IF('DF raw data'!N53="","",'DF raw data'!N53) -> 10 | C48: =IF('DF raw data'!O53="","",'DF raw data'!O53) ->  | D48: =IF('DF raw data'!P53="","",'DF raw data'!P53) -> 
A49: =IF('DF raw data'!M54="","",'DF raw data'!M54) -> PS-Temperature: | B49: =IF('DF raw data'!N54="","",'DF raw data'!N54) -> 25.2 | C49: =IF('DF raw data'!O54="","",'DF raw data'!O54) ->  | D49: =IF('DF raw data'!P54="","",'DF raw data'!P54) -> 
A50: =IF('DF raw data'!M55="","",'DF raw data'!M55) -> PS-Encoder: | B50: =IF('DF raw data'!N55="","",'DF raw data'!N55) -> 19.8252 | C50: =IF('DF raw data'!O55="","",'DF raw data'!O55) ->  | D50: =IF('DF raw data'!P55="","",'DF raw data'!P55) -> 
A51: =IF('DF raw data'!M56="","",'DF raw data'!M56) ->  | B51: =IF('DF raw data'!N56="","",'DF raw data'!N56) ->  | C51: =IF('DF raw data'!O56="","",'DF raw data'!O56) ->  | D51: =IF('DF raw data'!P56="","",'DF raw data'!P56) -> 
A52: =IF('DF raw data'!M57="","",'DF raw data'!M57) -> Monitor-Index | B52: =IF('DF raw data'!N57="","",'DF raw data'!N57) -> [1,1,4] | C52: =IF('DF raw data'!O57="","",'DF raw data'!O57) ->  | D52: =IF('DF raw data'!P57="","",'DF raw data'!P57) -> 
A53: =IF('DF raw data'!M58="","",'DF raw data'!M58) ->  | B53: =IF('DF raw data'!N58="","",'DF raw data'!N58) ->  | C53: =IF('DF raw data'!O58="","",'DF raw data'!O58) ->  | D53: =IF('DF raw data'!P58="","",'DF raw data'!P58) -> 
A54: =IF('DF raw data'!M59="","",'DF raw data'!M59) -> Time [s] | B54: =IF('DF raw data'!N59="","",'DF raw data'!N59) -> Y [mm] | C54: =IF('DF raw data'!O59="","",'DF raw data'!O59) -> X [mm] | D54: =IF('DF raw data'!P59="","",'DF raw data'!P59) -> Nominal current [A]
A55: =IF('DF raw data'!M60="","",'DF raw data'!M60) ->  | B55: =IF('DF raw data'!N60="","",'DF raw data'!N60) ->  | C55: =IF('DF raw data'!O60="","",'DF raw data'!O60) ->  | D55: =IF('DF raw data'!P60="","",'DF raw data'!P60) -> 
A56: =IF('DF raw data'!M61="","",'DF raw data'!M61) -> 207.4 | B56: =IF('DF raw data'!N61="","",'DF raw data'!N61) -> 31.86 | C56: =IF('DF raw data'!O61="","",'DF raw data'!O61) -> 301.8 | D56: =IF('DF raw data'!P61="","",'DF raw data'!P61) -> 0
A57: =IF('DF raw data'!M62="","",'DF raw data'!M62) ->  | B57: =IF('DF raw data'!N62="","",'DF raw data'!N62) ->  | C57: =IF('DF raw data'!O62="","",'DF raw data'!O62) ->  | D57: =IF('DF raw data'!P62="","",'DF raw data'!P62) -> 
A58: =IF('DF raw data'!M63="","",'DF raw data'!M63) -> Measurement-Index | B58: =IF('DF raw data'!N63="","",'DF raw data'!N63) -> [1,1,1201,2] | C58: =IF('DF raw data'!O63="","",'DF raw data'!O63) ->  | D58: =IF('DF raw data'!P63="","",'DF raw data'!P63) -> 
A59: =IF('DF raw data'!M64="","",'DF raw data'!M64) ->  | B59: =IF('DF raw data'!N64="","",'DF raw data'!N64) ->  | C59: =IF('DF raw data'!O64="","",'DF raw data'!O64) ->  | D59: =IF('DF raw data'!P64="","",'DF raw data'!P64) -> 
A60: =IF('DF raw data'!M65="","",'DF raw data'!M65) -> Z [mm] | B60: By [T] | C60: Bx [T] | D60: Bz [T] | F60: By_corr | G60: Bx_corr | H60: Bz_corr | J60: Iy | K60: Jy | L60: Ix | M60: Jx | N60: PI
A62: =IF('DF raw data'!M67="","",'DF raw data'!M67) -> -300 | B62: =IF('DF raw data'!N67="","",'DF raw data'!N67) -> -2.40274e-05 | C62: =IF('DF raw data'!O67="","",'DF raw data'!O67) -> 0.000137809 | D62: =IF('DF raw data'!P67="","",'DF raw data'!P67) -> -2.13407e-05 | F62: =(1-$G$1*($B$49))*B62 -> -2.463289048e-05 | G62: =(1-$G$1*($B$49-$G$2))*C62 -> 0.0001385256068 | H62: =(1-$G$1*($B$49-$G$2))*D62 -> -2.145167164e-05 | J62: =F62*$G$3 -> -1.231644524e-05 | K62: =J62*$G$3 -> -6.15822262e-06 | L62: =G62*$G$3 -> 6.92628034e-05 | M62: =L62*$G$3 -> 3.46314017e-05 | N62: =(J62^2+L62^2)*$G$3 -> 2.474515379e-09
A63: =IF('DF raw data'!M68="","",'DF raw data'!M68) -> -299.5 | B63: =IF('DF raw data'!N68="","",'DF raw data'!N68) -> -1.67218e-05 | C63: =IF('DF raw data'!O68="","",'DF raw data'!O68) -> 0.000126782 | D63: =IF('DF raw data'!P68="","",'DF raw data'!P68) -> -2.16672e-05 | F63: =(1-$G$1*($B$49-$G$2))*B63 -> -1.680875336e-05 | G63: =(1-$G$1*($B$49-$G$2))*C63 -> 0.0001274412664 | H63: -2.177986944e-05 | J63: =F63*$G$3+J62 -> -2.072082192e-05 | K63: =J63*$G$3+K62 -> -1.651863358e-05 | L63: =G63*$G$3+L62 -> 0.0001329834366 | M63: =L63*$G$3+M62 -> 0.00010112312 | N63: =(J63^2+L63^2)*$G$3+N62 -> 1.153148881e-08
A64: =IF('DF raw data'!M69="","",'DF raw data'!M69) -> -299 | B64: =IF('DF raw data'!N69="","",'DF raw data'!N69) -> -1.97331e-05 | C64: =IF('DF raw data'!O69="","",'DF raw data'!O69) -> 0.00014152 | D64: =IF('DF raw data'!P69="","",'DF raw data'!P69) -> -2.21375e-05 | F64: =(1-$G$1*($B$49-$G$2))*B64 -> -1.983571212e-05 | G64: 0.000142255904 | H64: -2.2252615e-05 | J64: =F64*$G$3+J63 -> -3.063867798e-05 | K64: =J64*$G$3+K63 -> -3.183797257e-05 | L64: =G64*$G$3+L63 -> 0.0002041113886 | M64: =L64*$G$3+M63 -> 0.0002031788143 | N64: =(J64^2+L64^2)*$G$3+N63 -> 3.283158259e-08
A65: =IF('DF raw data'!M70="","",'DF raw data'!M70) -> -298.5 | B65: =IF('DF raw data'!N70="","",'DF raw data'!N70) -> -1.78124e-05 | C65: =IF('DF raw data'!O70="","",'DF raw data'!O70) -> 0.000148874 | D65: =IF('DF raw data'!P70="","",'DF raw data'!P70) -> -2.248e-05 | F65: -1.790502448e-05 | G65: 0.0001496481448 | H65: -2.2596896e-05 | J65: -3.959119022e-05 | K65: -5.163356768e-05 | L65: 0.000278935461 | M65: 0.0003426465448 | N65: 7.251780946e-08
A66: =IF('DF raw data'!M71="","",'DF raw data'!M71) -> -298 | B66: =IF('DF raw data'!N71="","",'DF raw data'!N71) -> -1.42222e-05 | C66: =IF('DF raw data'!O71="","",'DF raw data'!O71) -> 0.00014946 | D66: =IF('DF raw data'!P71="","",'DF raw data'!P71) -> -2.27283e-05 | F66: -1.429615544e-05 | G66: 0.000150237192 | H66: -2.284648716e-05 | J66: -4.673926794e-05 | K66: -7.500320165e-05 | L66: 0.000354054057 | M66: 0.0005196735733 | N66: 1.362872267e-07
A67: =IF('DF raw data'!M72="","",'DF raw data'!M72) -> -297.5 | B67: =IF('DF raw data'!N72="","",'DF raw data'!N72) -> -2.31312e-05 | C67: =IF('DF raw data'!O72="","",'DF raw data'!O72) -> 0.000145062 | D67: =IF('DF raw data'!P72="","",'DF raw data'!P72) -> -2.25258e-05 | F67: -2.325148224e-05 | G67: 0.0001458163224 | H67: -2.264293416e-05 | J67: -5.836500906e-05 | K67: -0.0001041857062 | L67: 0.0004269622182 | M67: 0.0007331546824 | N67: 2.291388317e-07
A68: =IF('DF raw data'!M73="","",'DF raw data'!M73) -> -297 | B68: =IF('DF raw data'!N73="","",'DF raw data'!N73) -> -1.74262e-05 | C68: =IF('DF raw data'!O73="","",'DF raw data'!O73) -> 0.000142044 | D68: =IF('DF raw data'!P73="","",'DF raw data'!P73) -> -2.21271e-05 | F68: -1.751681624e-05 | G68: 0.0001427826288 | H68: -2.224216092e-05 | J68: -6.712341718e-05 | K68: -0.0001377474148 | L68: 0.0004983535326 | M68: 0.0009823314487 | N68: 3.5556973e-07
A69: =IF('DF raw data'!M74="","",'DF raw data'!M74) -> -296.5 | B69: =IF('DF raw data'!N74="","",'DF raw data'!N74) -> -1.44163e-05 | C69: =IF('DF raw data'!O74="","",'DF raw data'!O74) -> 0.000145724 | D69: =IF('DF raw data'!P74="","",'DF raw data'!P74) -> -2.21424e-05 | F69: -1.449126476e-05 | G69: 0.0001464817648 | H69: -2.225754048e-05 | J69: -7.436904956e-05 | K69: -0.0001749319395 | L69: 0.000571594415 | M69: 0.001268128656 | N69: 5.216951954e-07
A70: =IF('DF raw data'!M75="","",'DF raw data'!M75) -> -296 | B70: =IF('DF raw data'!N75="","",'DF raw data'!N75) -> -1.49913e-05 | C70: =IF('DF raw data'!O75="","",'DF raw data'!O75) -> 0.000141827 | D70: =IF('DF raw data'!P75="","",'DF raw data'!P75) -> -2.24455e-05 | F70: -1.506925476e-05 | G70: 0.0001425645004 | H70: -2.25622166e-05 | J70: -8.190367694e-05 | K70: -0.000215883778 | L70: 0.0006428766652 | M70: 0.001589566989 | N70: 7.316945049e-07
A71: =IF('DF raw data'!M76="","",'DF raw data'!M76) -> -295.5 | B71: =IF('DF raw data'!N76="","",'DF raw data'!N76) -> -1.46084e-05 | C71: =IF('DF raw data'!O76="","",'DF raw data'!O76) -> 0.000140469 | D71: =IF('DF raw data'!P76="","",'DF raw data'!P76) -> -2.25408e-05 | F71: -1.468436368e-05 | G71: 0.0001411994388 | H71: -2.265801216e-05 | J71: -8.924585878e-05 | K71: -0.0002605067074 | L71: 0.0007134763846 | M71: 0.001946305181 | N71: 9.902011922e-07
A72: =IF('DF raw data'!M77="","",'DF raw data'!M77) -> -295 | B72: =IF('DF raw data'!N77="","",'DF raw data'!N77) -> -1.73619e-05 | C72: =IF('DF raw data'!O77="","",'DF raw data'!O77) -> 0.000142702 | D72: =IF('DF raw data'!P77="","",'DF raw data'!P77) -> -2.2556e-05 | F72: -1.745218188e-05 | G72: 0.0001434440504 | H72: -2.26732912e-05 | J72: -9.797194972e-05 | K72: -0.0003094926823 | L72: 0.0007851984098 | M72: 0.002338904386 | N72: 1.303268715e-06
A73: =IF('DF raw data'!M78="","",'DF raw data'!M78) -> -294.5 | B73: =IF('DF raw data'!N78="","",'DF raw data'!N78) -> -9.60995e-06 | C73: =IF('DF raw data'!O78="","",'DF raw data'!O78) -> 0.000141443 | D73: =IF('DF raw data'!P78="","",'DF raw data'!P78) -> -2.27253e-05 | F73: -9.65992174e-06 | G73: 0.0001421785036 | H73: -2.284347156e-05 | J73: -0.0001028019106 | K73: -0.0003608936376 | L73: 0.0008562876616 | M73: 0.002767048217 | N73: 1.675167111e-06
A74: =IF('DF raw data'!M79="","",'DF raw data'!M79) -> -294 | B74: =IF('DF raw data'!N79="","",'DF raw data'!N79) -> -2.13342e-05 | C74: =IF('DF raw data'!O79="","",'DF raw data'!O79) -> 0.000146761 | D74: =IF('DF raw data'!P79="","",'DF raw data'!P79) -> -2.27229e-05 | F74: -2.144513784e-05 | G74: 0.0001475241572 | H74: -2.284105908e-05 | J74: -0.0001135244795 | K74: -0.0004176558773 | L74: 0.0009300497402 | M74: 0.003232073087 | N74: 2.114107275e-06
A75: =IF('DF raw data'!M80="","",'DF raw data'!M80) -> -293.5 | B75: =IF('DF raw data'!N80="","",'DF raw data'!N80) -> -1.29418e-05 | C75: =IF('DF raw data'!O80="","",'DF raw data'!O80) -> 0.000146685 | D75: =IF('DF raw data'!P80="","",'DF raw data'!P80) -> -2.29896e-05 | F75: -1.300909736e-05 | G75: 0.000147447762 | H75: -2.310914592e-05 | J75: -0.0001200290282 | K75: -0.0004776703914 | L75: 0.001003773621 | M75: 0.003733959897 | N75: 2.6250915e-06
A76: =IF('DF raw data'!M81="","",'DF raw data'!M81) -> -293 | B76: =IF('DF raw data'!N81="","",'DF raw data'!N81) -> -1.51186e-05 | C76: =IF('DF raw data'!O81="","",'DF raw data'!O81) -> 0.000139165 | D76: =IF('DF raw data'!P81="","",'DF raw data'!P81) -> -2.363e-05 | F76: -1.519721672e-05 | G76: 0.000139888658 | H76: -2.3752876e-05 | J76: -0.0001276276366 | K76: -0.0005414842097 | L76: 0.00107371795 | M76: 0.004270818873 | N76: 3.209671025e-06
A77: =IF('DF raw data'!M82="","",'DF raw data'!M82) -> -292.5 | B77: =IF('DF raw data'!N82="","",'DF raw data'!N82) -> -2.36432e-05 | C77: =IF('DF raw data'!O82="","",'DF raw data'!O82) -> 0.000138778 | D77: =IF('DF raw data'!P82="","",'DF raw data'!P82) -> -2.35124e-05 | F77: -2.376614464e-05 | G77: 0.0001394996456 | H77: -2.363466448e-05 | J77: -0.0001395107089 | K77: -0.0006112395641 | L77: 0.001143467773 | M77: 0.004842552759 | N77: 3.873161918e-06
A78: =IF('DF raw data'!M83="","",'DF raw data'!M83) -> -292 | B78: =IF('DF raw data'!N83="","",'DF raw data'!N83) -> -3.29319e-05 | C78: =IF('DF raw data'!O83="","",'DF raw data'!O83) -> 0.000138526 | D78: =IF('DF raw data'!P83="","",'DF raw data'!P83) -> -2.24166e-05 | F78: -3.310314588e-05 | G78: 0.0001392463352 | H78: -2.253316632e-05 | J78: -0.0001560622818 | K78: -0.000689270705 | L78: 0.001213090941 | M78: 0.005449098229 | N78: 4.621134451e-06
A79: =IF('DF raw data'!M84="","",'DF raw data'!M84) -> -291.5 | B79: =IF('DF raw data'!N84="","",'DF raw data'!N84) -> -1.46762e-05 | C79: =IF('DF raw data'!O84="","",'DF raw data'!O84) -> 0.000139723 | D79: =IF('DF raw data'!P84="","",'DF raw data'!P84) -> -1.66081e-05 | F79: -1.475251624e-05 | G79: 0.0001404495596 | H79: -1.669446212e-05 | J79: -0.0001634385399 | K79: -0.000770989975 | L79: 0.00128331572 | M79: 0.00609075609 | N79: 5.457940148e-06
A80: =IF('DF raw data'!M85="","",'DF raw data'!M85) -> -291 | B80: =IF('DF raw data'!N85="","",'DF raw data'!N85) -> -2.12796e-05 | C80: =IF('DF raw data'!O85="","",'DF raw data'!O85) -> 0.000144536 | D80: =IF('DF raw data'!P85="","",'DF raw data'!P85) -> -8.29317e-06 | F80: -2.139025392e-05 | G80: 0.0001452875872 | H80: -8.336294484e-06 | J80: -0.0001741336669 | K80: -0.0008580568084 | L80: 0.001355959514 | M80: 0.006768735847 | N80: 6.392414517e-06
A81: =IF('DF raw data'!M86="","",'DF raw data'!M86) -> -290.5 | B81: =IF('DF raw data'!N86="","",'DF raw data'!N86) -> -2.30668e-05 | C81: =IF('DF raw data'!O86="","",'DF raw data'!O86) -> 0.000150361 | D81: =IF('DF raw data'!P86="","",'DF raw data'!P86) -> -2.28849e-05 | F81: -2.318674736e-05 | G81: 0.0001511428772 | H81: -2.300390148e-05 | J81: -0.0001857270406 | K81: -0.0009509203287 | L81: 0.001431530953 | M81: 0.007484501323 | N81: 7.434302218e-06
A82: =IF('DF raw data'!M87="","",'DF raw data'!M87) -> -290 | B82: =IF('DF raw data'!N87="","",'DF raw data'!N87) -> -1.67794e-05 | C82: =IF('DF raw data'!O87="","",'DF raw data'!O87) -> 0.000153137 | D82: =IF('DF raw data'!P87="","",'DF raw data'!P87) -> -3.13852e-05 | F82: -1.686665288e-05 | G82: 0.0001539333124 | H82: -3.154840304e-05 | J82: -0.000194160367 | K82: -0.001048000512 | L82: 0.001508497609 | M82: 0.008238750127 | N82: 8.59093386e-06
A83: =IF('DF raw data'!M88="","",'DF raw data'!M88) -> -289.5 | B83: =IF('DF raw data'!N88="","",'DF raw data'!N88) -> -2.95387e-05 | C83: =IF('DF raw data'!O88="","",'DF raw data'!O88) -> 0.000151193 | D83: =IF('DF raw data'!P88="","",'DF raw data'!P88) -> -2.34506e-05 | F83: -2.969230124e-05 | G83: 0.0001519792036 | H83: -2.357254312e-05 | J83: -0.0002090065176 | K83: -0.001152503771 | L83: 0.001584487211 | M83: 0.009030993733 | N83: 9.868075582e-06
A84: =IF('DF raw data'!M89="","",'DF raw data'!M89) -> -289 | B84: =IF('DF raw data'!N89="","",'DF raw data'!N89) -> -1.21095e-05 | C84: =IF('DF raw data'!O89="","",'DF raw data'!O89) -> 0.000149499 | D84: =IF('DF raw data'!P89="","",'DF raw data'!P89) -> -2.00006e-05 | F84: -1.21724694e-05 | G84: 0.0001502763948 | H84: -2.010460312e-05 | J84: -0.0002150927523 | K84: -0.001260050147 | L84: 0.001659625408 | M84: 0.009860806437 | N84: 1.126838628e-05
A85: =IF('DF raw data'!M90="","",'DF raw data'!M90) -> -288.5 | B85: =IF('DF raw data'!N90="","",'DF raw data'!N90) -> -1.70434e-05 | C85: =IF('DF raw data'!O90="","",'DF raw data'!O90) -> 0.000155187 | D85: =IF('DF raw data'!P90="","",'DF raw data'!P90) -> -2.26067e-05 | F85: -1.713202568e-05 | G85: 0.0001559939724 | H85: -2.272425484e-05 | J85: -0.0002236587652 | K85: -0.00137187953 | L85: 0.001737622394 | M85: 0.01072961763 | N85: 1.280306369e-05
A86: =IF('DF raw data'!M91="","",'DF raw data'!M91) -> -288 | B86: =IF('DF raw data'!N91="","",'DF raw data'!N91) -> -1.94105e-05 | C86: =IF('DF raw data'!O91="","",'DF raw data'!O91) -> 0.000139357 | D86: =IF('DF raw data'!P91="","",'DF raw data'!P91) -> -2.52519e-05 | F86: -1.95114346e-05 | G86: 0.0001400816564 | H86: -2.538320988e-05 | J86: -0.0002334144825 | K86: -0.001488586771 | L86: 0.001807663222 | M86: 0.01163344924 | N86: 1.446412801e-05
A87: =IF('DF raw data'!M92="","",'DF raw data'!M92) -> -287.5 | B87: =IF('DF raw data'!N92="","",'DF raw data'!N92) -> -1.60209e-05 | C87: =IF('DF raw data'!O92="","",'DF raw data'!O92) -> 0.000142173 | D87: =IF('DF raw data'!P92="","",'DF raw data'!P92) -> -1.83429e-05 | F87: -1.610420868e-05 | G87: 0.0001429122996 | H87: -1.843828308e-05 | J87: -0.0002414665868 | K87: -0.001609320064 | L87: 0.001879119372 | M87: 0.01257300893 | N87: 1.625882588e-05
A88: =IF('DF raw data'!M93="","",'DF raw data'!M93) -> -287 | B88: =IF('DF raw data'!N93="","",'DF raw data'!N93) -> -5.504e-06 | C88: =IF('DF raw data'!O93="","",'DF raw data'!O93) -> 0.000140991 | D88: =IF('DF raw data'!P93="","",'DF raw data'!P93) -> -2.89437e-05 | F88: -5.5326208e-06 | G88: 0.0001417241532 | H88: -2.909420724e-05 | J88: -0.0002442328972 | K88: -0.001731436513 | L88: 0.001949981449 | M88: 0.01354799966 | N88: 1.818986456e-05
A89: =IF('DF raw data'!M94="","",'DF raw data'!M94) -> -286.5 | B89: =IF('DF raw data'!N94="","",'DF raw data'!N94) -> -1.78107e-05 | C89: =IF('DF raw data'!O94="","",'DF raw data'!O94) -> 0.000139516 | D89: =IF('DF raw data'!P94="","",'DF raw data'!P94) -> -2.49938e-05 | F89: -1.790331564e-05 | G89: 0.0001402414832 | H89: -2.512376776e-05 | J89: -0.000253184555 | K89: -0.001858028791 | L89: 0.00202010219 | M89: 0.01455805075 | N89: 2.02623222e-05
A90: =IF('DF raw data'!M95="","",'DF raw data'!M95) -> -286 | B90: =IF('DF raw data'!N95="","",'DF raw data'!N95) -> -1.44727e-05 | C90: =IF('DF raw data'!O95="","",'DF raw data'!O95) -> 0.000149835 | D90: =IF('DF raw data'!P95="","",'DF raw data'!P95) -> -3.17881e-05 | F90: -1.454795804e-05 | G90: 0.000150614142 | H90: -3.195339812e-05 | J90: -0.0002604585341 | K90: -0.001988258058 | L90: 0.002095409261 | M90: 0.01560575538 | N90: 2.249161151e-05
A91: =IF('DF raw data'!M96="","",'DF raw data'!M96) -> -285.5 | B91: =IF('DF raw data'!N96="","",'DF raw data'!N96) -> -1.04418e-05 | C91: =IF('DF raw data'!O96="","",'DF raw data'!O96) -> 0.000149864 | D91: =IF('DF raw data'!P96="","",'DF raw data'!P96) -> -2.47429e-05 | F91: -1.049609736e-05 | G91: 0.0001506432928 | H91: -2.487156308e-05 | J91: -0.0002657065827 | K91: -0.002121111349 | L91: 0.002170730908 | M91: 0.01669112084 | N91: 2.488294784e-05
A92: =IF('DF raw data'!M97="","",'DF raw data'!M97) -> -285 | B92: =IF('DF raw data'!N97="","",'DF raw data'!N97) -> -1.20425e-05 | C92: =IF('DF raw data'!O97="","",'DF raw data'!O97) -> 0.00013129 | D92: =IF('DF raw data'!P97="","",'DF raw data'!P97) -> -2.44399e-05 | F92: -1.2105121e-05 | G92: 0.000131972708 | H92: -2.456698748e-05 | J92: -0.0002717591432 | K92: -0.002256990921 | L92: 0.002236717262 | M92: 0.01780947947 | N92: 2.742132641e-05
A93: =IF('DF raw data'!M98="","",'DF raw data'!M98) -> -284.5 | B93: =IF('DF raw data'!N98="","",'DF raw data'!N98) -> -1.29417e-05 | C93: =IF('DF raw data'!O98="","",'DF raw data'!O98) -> 0.000137974 | D93: =IF('DF raw data'!P98="","",'DF raw data'!P98) -> -2.31552e-05 | F93: -1.300899684e-05 | G93: 0.0001386914648 | H93: -2.327560704e-05 | J93: -0.0002782636417 | K93: -0.002396122741 | L93: 0.002306062994 | M93: 0.01896251096 | N93: 3.0119005e-05
A94: =IF('DF raw data'!M99="","",'DF raw data'!M99) -> -284 | B94: =IF('DF raw data'!N99="","",'DF raw data'!N99) -> -8.45848e-06 | C94: =IF('DF raw data'!O99="","",'DF raw data'!O99) -> 0.000150751 | D94: =IF('DF raw data'!P99="","",'DF raw data'!P99) -> -1.82887e-05 | F94: -8.502464096e-06 | G94: 0.0001515349052 | H94: -1.838380124e-05 | J94: -0.0002825148737 | K94: -0.002537380178 | L94: 0.002381830447 | M94: 0.02015342619 | N94: 3.299547047e-05
A95: =IF('DF raw data'!M100="","",'DF raw data'!M100) -> -283.5 | B95: =IF('DF raw data'!N100="","",'DF raw data'!N100) -> -2.17264e-05 | C95: =IF('DF raw data'!O100="","",'DF raw data'!O100) -> 0.000143709 | D95: =IF('DF raw data'!P100="","",'DF raw data'!P100) -> -1.44532e-05 | F95: -2.183937728e-05 | G95: 0.0001444562868 | H95: -1.452835664e-05 | J95: -0.0002934345623 | K95: -0.002684097459 | L95: 0.00245405859 | M95: 0.02138045548 | N95: 3.604972417e-05
A96: =IF('DF raw data'!M101="","",'DF raw data'!M101) -> -283 | B96: =IF('DF raw data'!N101="","",'DF raw data'!N101) -> -1.45411e-05 | C96: =IF('DF raw data'!O101="","",'DF raw data'!O101) -> 0.000133836 | D96: =IF('DF raw data'!P101="","",'DF raw data'!P101) -> -2.49119e-05 | F96: -1.461671372e-05 | G96: 0.0001345319472 | H96: -2.504144188e-05 | J96: -0.0003007429192 | K96: -0.002834468919 | L96: 0.002521324564 | M96: 0.02264111776 | N96: 3.92734861e-05
A97: =IF('DF raw data'!M102="","",'DF raw data'!M102) -> -282.5 | B97: =IF('DF raw data'!N102="","",'DF raw data'!N102) -> -9.2965e-06 | C97: =IF('DF raw data'!O102="","",'DF raw data'!O102) -> 0.000146218 | D97: =IF('DF raw data'!P102="","",'DF raw data'!P102) -> -1.17404e-05 | F97: -9.3448418e-06 | G97: 0.0001469783336 | H97: -1.180145008e-05 | J97: -0.0003054153401 | K97: -0.002987176589 | L97: 0.002594813731 | M97: 0.02393852463 | N97: 4.268665451e-05
A98: =IF('DF raw data'!M103="","",'DF raw data'!M103) -> -282 | B98: =IF('DF raw data'!N103="","",'DF raw data'!N103) -> -7.68068e-06 | C98: =IF('DF raw data'!O103="","",'DF raw data'!O103) -> 0.000146431 | D98: =IF('DF raw data'!P103="","",'DF raw data'!P103) -> -3.20655e-05 | F98: -7.720619536e-06 | G98: 0.0001471924412 | H98: -3.22322406e-05 | J98: -0.0003092756499 | K98: -0.003141814414 | L98: 0.002668409951 | M98: 0.0252727296 | N98: 4.629468606e-05
A99: =IF('DF raw data'!M104="","",'DF raw data'!M104) -> -281.5 | B99: =IF('DF raw data'!N104="","",'DF raw data'!N104) -> -1.57581e-05 | C99: =IF('DF raw data'!O104="","",'DF raw data'!O104) -> 0.000136929 | D99: =IF('DF raw data'!P104="","",'DF raw data'!P104) -> -2.82075e-05 | F99: -1.584004212e-05 | G99: 0.0001376410308 | H99: -2.8354179e-05 | J99: -0.0003171956709 | K99: -0.003300412249 | L99: 0.002737230467 | M99: 0.02664134484 | N99: 5.009120792e-05
A100: =IF('DF raw data'!M105="","",'DF raw data'!M105) -> -281 | B100: =IF('DF raw data'!N105="","",'DF raw data'!N105) -> -9.03219e-06 | C100: =IF('DF raw data'!O105="","",'DF raw data'!O105) -> 0.000137101 | D100: =IF('DF raw data'!P105="","",'DF raw data'!P105) -> -2.25751e-05 | F100: -9.079157388e-06 | G100: 0.0001378139252 | H100: -2.269249052e-05 | J100: -0.0003217352496 | K100: -0.003461279874 | L100: 0.002806137429 | M100: 0.02804441355 | N100: 5.408016834e-05
A101: =IF('DF raw data'!M106="","",'DF raw data'!M106) -> -280.5 | B101: =IF('DF raw data'!N106="","",'DF raw data'!N106) -> -1.98096e-05 | C101: =IF('DF raw data'!O106="","",'DF raw data'!O106) -> 0.000143916 | D101: =IF('DF raw data'!P106="","",'DF raw data'!P106) -> -5.9846e-06 | F101: -1.991260992e-05 | G101: 0.0001446643632 | H101: -6.01571992e-06 | J101: -0.0003316915546 | K101: -0.003627125652 | L101: 0.002878469611 | M101: 0.02948364836 | N101: 5.827797164e-05
A102: =IF('DF raw data'!M107="","",'DF raw data'!M107) -> -280 | B102: =IF('DF raw data'!N107="","",'DF raw data'!N107) -> -1.59018e-05 | C102: =IF('DF raw data'!O107="","",'DF raw data'!O107) -> 0.00014775 | D102: =IF('DF raw data'!P107="","",'DF raw data'!P107) -> -1.58979e-06 | F102: -1.598448936e-05 | G102: 0.0001485183 | H102: -1.598056908e-06 | J102: -0.0003396837993 | K102: -0.003796967551 | L102: 0.002952728761 | M102: 0.03096001274 | N102: 6.269496774e-05
A103: =IF('DF raw data'!M108="","",'DF raw data'!M108) -> -279.5 | B103: =IF('DF raw data'!N108="","",'DF raw data'!N108) -> -1.15379e-05 | C103: =IF('DF raw data'!O108="","",'DF raw data'!O108) -> 0.0001493 | D103: =IF('DF raw data'!P108="","",'DF raw data'!P108) -> -1.40393e-05 | F103: -1.159789708e-05 | G103: 0.00015007636 | H103: -1.411230436e-05 | J103: -0.0003454827478 | K103: -0.003969708925 | L103: 0.003027766941 | M103: 0.03247389621 | N103: 6.733833323e-05
A104: =IF('DF raw data'!M109="","",'DF raw data'!M109) -> -279 | B104: =IF('DF raw data'!N109="","",'DF raw data'!N109) -> -1.49303e-05 | C104: =IF('DF raw data'!O109="","",'DF raw data'!O109) -> 0.000146295 | D104: =IF('DF raw data'!P109="","",'DF raw data'!P109) -> -1.74225e-05 | F104: -1.500793756e-05 | G104: 0.000147055734 | H104: -1.7513097e-05 | J104: -0.0003529867166 | K104: -0.004146202283 | L104: 0.003101294808 | M104: 0.03402454361 | N104: 7.220964779e-05
A105: =IF('DF raw data'!M110="","",'DF raw data'!M110) -> -278.5 | B105: =IF('DF raw data'!N110="","",'DF raw data'!N110) -> -1.83346e-05 | C105: =IF('DF raw data'!O110="","",'DF raw data'!O110) -> 0.000153416 | D105: =IF('DF raw data'!P110="","",'DF raw data'!P110) -> -7.66072e-06 | F105: -1.842993992e-05 | G105: 0.0001542137632 | H105: -7.700555744e-06 | J105: -0.0003622016865 | K105: -0.004327303127 | L105: 0.003178401689 | M105: 0.03561374446 | N105: 7.732636147e-05
A106: =IF('DF raw data'!M111="","",'DF raw data'!M111) -> -278 | B106: =IF('DF raw data'!N111="","",'DF raw data'!N111) -> -1.80739e-05 | C106: =IF('DF raw data'!O111="","",'DF raw data'!O111) -> 0.000152446 | D106: =IF('DF raw data'!P111="","",'DF raw data'!P111) -> -1.138e-05 | F106: -1.816788428e-05 | G106: 0.0001532387192 | H106: -1.1439176e-05 | J106: -0.0003712856287 | K106: -0.004512945941 | L106: 0.003255021049 | M106: 0.03724125498 | N106: 8.269286899e-05
A107: =IF('DF raw data'!M112="","",'DF raw data'!M112) -> -277.5 | B107: =IF('DF raw data'!N112="","",'DF raw data'!N112) -> -1.32037e-05 | C107: =IF('DF raw data'!O112="","",'DF raw data'!O112) -> 0.000157194 | D107: =IF('DF raw data'!P112="","",'DF raw data'!P112) -> -1.48724e-05 | F107: -1.327235924e-05 | G107: 0.0001580114088 | H107: -1.494973648e-05 | J107: -0.0003779218083 | K107: -0.004701906845 | L107: 0.003334026753 | M107: 0.03890826836 | N107: 8.832214863e-05
A108: =IF('DF raw data'!M113="","",'DF raw data'!M113) -> -277 | B108: =IF('DF raw data'!N113="","",'DF raw data'!N113) -> -1.50604e-05 | C108: =IF('DF raw data'!O113="","",'DF raw data'!O113) -> 0.000153704 | D108: =IF('DF raw data'!P113="","",'DF raw data'!P113) -> -1.44243e-05 | F108: -1.513871408e-05 | G108: 0.0001545032608 | H108: -1.449930636e-05 | J108: -0.0003854911653 | K108: -0.004894652428 | L108: 0.003411278384 | M108: 0.04061390755 | N108: 9.421486046e-05
A109: =IF('DF raw data'!M114="","",'DF raw data'!M114) -> -276.5 | B109: =IF('DF raw data'!N114="","",'DF raw data'!N114) -> -2.97389e-05 | C109: =IF('DF raw data'!O114="","",'DF raw data'!O114) -> 0.000148689 | D109: =IF('DF raw data'!P114="","",'DF raw data'!P114) -> -1.0929e-05 | F109: -2.989354228e-05 | G109: 0.0001494621828 | H109: -1.09858308e-05 | J109: -0.0004004379365 | K109: -0.005094871396 | L109: 0.003486009475 | M109: 0.04235691229 | N109: 0.0001003711668
A110: =IF('DF raw data'!M115="","",'DF raw data'!M115) -> -276 | B110: =IF('DF raw data'!N115="","",'DF raw data'!N115) -> -6.73129e-06 | C110: =IF('DF raw data'!O115="","",'DF raw data'!O115) -> 0.000140161 | D110: =IF('DF raw data'!P115="","",'DF raw data'!P115) -> -1.38693e-05 | F110: -6.766292708e-06 | G110: 0.0001408898372 | H110: -1.394142036e-05 | J110: -0.0004038210828 | K110: -0.005296781937 | L110: 0.003556454394 | M110: 0.04413513948 | N110: 0.0001067768864
A111: =IF('DF raw data'!M116="","",'DF raw data'!M116) -> -275.5 | B111: =IF('DF raw data'!N116="","",'DF raw data'!N116) -> -1.5572e-05 | C111: =IF('DF raw data'!O116="","",'DF raw data'!O116) -> 0.000139511 | D111: =IF('DF raw data'!P116="","",'DF raw data'!P116) -> -1.85981e-05 | F111: -1.56529744e-05 | G111: 0.0001402364572 | H111: -1.869481012e-05 | J111: -0.00041164757 | K111: -0.005502605722 | L111: 0.003626572622 | M111: 0.0459484258 | N111: 0.0001134376278
A112: =IF('DF raw data'!M117="","",'DF raw data'!M117) -> -275 | B112: =IF('DF raw data'!N117="","",'DF raw data'!N117) -> -1.98018e-05 | C112: =IF('DF raw data'!O117="","",'DF raw data'!O117) -> 0.000142185 | D112: =IF('DF raw data'!P117="","",'DF raw data'!P117) -> -1.47354e-05 | F112: -1.990476936e-05 | G112: 0.000142924362 | H112: -1.481202408e-05 | J112: -0.0004215999547 | K112: -0.0057134057 | L112: 0.003698034803 | M112: 0.0477974432 | N112: 0.0001203642317
A113: =IF('DF raw data'!M118="","",'DF raw data'!M118) -> -274.5 | B113: =IF('DF raw data'!N118="","",'DF raw data'!N118) -> -1.92252e-05 | C113: =IF('DF raw data'!O118="","",'DF raw data'!O118) -> 0.000142977 | D113: =IF('DF raw data'!P118="","",'DF raw data'!P118) -> -1.75563e-05 | F113: -1.932517104e-05 | G113: 0.0001437204804 | H113: -1.764759276e-05 | J113: -0.0004312625402 | K113: -0.00592903697 | L113: 0.003769895044 | M113: 0.04968239072 | N113: 0.0001275632797
A114: =IF('DF raw data'!M119="","",'DF raw data'!M119) -> -274 | B114: =IF('DF raw data'!N119="","",'DF raw data'!N119) -> -3.09503e-05 | C114: =IF('DF raw data'!O119="","",'DF raw data'!O119) -> 0.000140394 | D114: =IF('DF raw data'!P119="","",'DF raw data'!P119) -> -1.52451e-05 | F114: -3.111124156e-05 | G114: 0.0001411240488 | H114: -1.532437452e-05 | J114: -0.000446818161 | K114: -0.00615244605 | L114: 0.003840457068 | M114: 0.05160261925 | N114: 0.0001350376582
A115: =IF('DF raw data'!M120="","",'DF raw data'!M120) -> -273.5 | B115: =IF('DF raw data'!N120="","",'DF raw data'!N120) -> -4.93633e-06 | C115: =IF('DF raw data'!O120="","",'DF raw data'!O120) -> 0.000144127 | D115: =IF('DF raw data'!P120="","",'DF raw data'!P120) -> -1.61558e-05 | F115: -4.961998916e-06 | G115: 0.0001448764604 | H115: -1.623981016e-05 | J115: -0.0004492991605 | K115: -0.006377095631 | L115: 0.003912895298 | M115: 0.0535590669 | N115: 0.0001427939679
A116: =IF('DF raw data'!M121="","",'DF raw data'!M121) -> -273 | B116: =IF('DF raw data'!N121="","",'DF raw data'!N121) -> -1.79422e-05 | C116: =IF('DF raw data'!O121="","",'DF raw data'!O121) -> 0.000139683 | D116: =IF('DF raw data'!P121="","",'DF raw data'!P121) -> -1.68965e-05 | F116: -1.803549944e-05 | G116: 0.0001404093516 | H116: -1.69843618e-05 | J116: -0.0004583169102 | K116: -0.006606254086 | L116: 0.003983099974 | M116: 0.05555061689 | N116: 0.0001508315378
A117: =IF('DF raw data'!M122="","",'DF raw data'!M122) -> -272.5 | B117: =IF('DF raw data'!N122="","",'DF raw data'!N122) -> -1.80703e-05 | C117: =IF('DF raw data'!O122="","",'DF raw data'!O122) -> 0.000145454 | D117: =IF('DF raw data'!P122="","",'DF raw data'!P122) -> -1.99337e-05 | F117: -1.816426556e-05 | G117: 0.0001462103608 | H117: -2.003735524e-05 | J117: -0.000467399043 | K117: -0.006839953607 | L117: 0.004056205154 | M117: 0.05757871947 | N117: 0.0001591671689
A118: =IF('DF raw data'!M123="","",'DF raw data'!M123) -> -272 | B118: =IF('DF raw data'!N123="","",'DF raw data'!N123) -> -1.22379e-06 | C118: =IF('DF raw data'!O123="","",'DF raw data'!O123) -> 0.000147606 | D118: =IF('DF raw data'!P123="","",'DF raw data'!P123) -> -9.41265e-06 | F118: -1.230153708e-06 | G118: 0.0001483735512 | H118: -9.46159578e-06 | J118: -0.0004680141198 | K118: -0.007073960667 | L118: 0.00413039193 | M118: 0.05964391543 | N118: 0.0001678067562
A119: =IF('DF raw data'!M124="","",'DF raw data'!M124) -> -271.5 | B119: =IF('DF raw data'!N124="","",'DF raw data'!N124) -> -1.42232e-05 | C119: =IF('DF raw data'!O124="","",'DF raw data'!O124) -> 0.000146779 | D119: =IF('DF raw data'!P124="","",'DF raw data'!P124) -> -2.3737e-05 | F119: -1.429716064e-05 | G119: 0.0001475422508 | H119: -2.38604324e-05 | J119: -0.0004751627001 | K119: -0.007311542017 | L119: 0.004204163055 | M119: 0.06174599696 | N119: 0.0001767571395
A120: =IF('DF raw data'!M125="","",'DF raw data'!M125) -> -271 | B120: =IF('DF raw data'!N125="","",'DF raw data'!N125) -> -2.78723e-05 | C120: =IF('DF raw data'!O125="","",'DF raw data'!O125) -> 0.000147826 | D120: =IF('DF raw data'!P125="","",'DF raw data'!P125) -> -1.87805e-05 | F120: -2.801723596e-05 | G120: 0.0001485946952 | H120: -1.88781586e-05 | J120: -0.0004891713181 | K120: -0.007556127676 | L120: 0.004278460403 | M120: 0.06388522716 | N120: 0.0001860293955
A121: =IF('DF raw data'!M126="","",'DF raw data'!M126) -> -270.5 | B121: =IF('DF raw data'!N126="","",'DF raw data'!N126) -> -1.94894e-05 | C121: =IF('DF raw data'!O126="","",'DF raw data'!O126) -> 0.000149777 | D121: =IF('DF raw data'!P126="","",'DF raw data'!P126) -> -5.99638e-06 | F121: -1.959074488e-05 | G121: 0.0001505558404 | H121: -6.027561176e-06 | J121: -0.0004989666906 | K121: -0.007805611022 | L121: 0.004353738323 | M121: 0.06606209632 | N121: 0.0001956313981
A122: =IF('DF raw data'!M127="","",'DF raw data'!M127) -> -270 | B122: =IF('DF raw data'!N127="","",'DF raw data'!N127) -> -2.16604e-05 | C122: =IF('DF raw data'!O127="","",'DF raw data'!O127) -> 0.000141404 | D122: =IF('DF raw data'!P127="","",'DF raw data'!P127) -> -1.38904e-05 | F122: -2.177303408e-05 | G122: 0.0001421393008 | H122: -1.396263008e-05 | J122: -0.0005098532076 | K122: -0.008060537625 | L122: 0.004424807974 | M122: 0.06827450031 | N122: 0.000205550836
A123: =IF('DF raw data'!M128="","",'DF raw data'!M128) -> -269.5 | B123: =IF('DF raw data'!N128="","",'DF raw data'!N128) -> -2.03188e-05 | C123: =IF('DF raw data'!O128="","",'DF raw data'!O128) -> 0.000141687 | D123: =IF('DF raw data'!P128="","",'DF raw data'!P128) -> -1.13452e-05 | F123: -2.042445776e-05 | G123: 0.0001424237724 | H123: -1.140419504e-05 | J123: -0.0005200654365 | K123: -0.008320570344 | L123: 0.00449601986 | M123: 0.07052251024 | N123: 0.0002157931673
A124: =IF('DF raw data'!M129="","",'DF raw data'!M129) -> -269 | B124: =IF('DF raw data'!N129="","",'DF raw data'!N129) -> -2.03732e-05 | C124: =IF('DF raw data'!O129="","",'DF raw data'!O129) -> 0.000142484 | D124: =IF('DF raw data'!P129="","",'DF raw data'!P129) -> -2.29404e-05 | F124: -2.047914064e-05 | G124: 0.0001432249168 | H124: -2.305969008e-05 | J124: -0.0005303050068 | K124: -0.008585722847 | L124: 0.004567632318 | M124: 0.0728063264 | N124: 0.0002263654115
A125: =IF('DF raw data'!M130="","",'DF raw data'!M130) -> -268.5 | B125: =IF('DF raw data'!N130="","",'DF raw data'!N130) -> -2.16614e-05 | C125: =IF('DF raw data'!O130="","",'DF raw data'!O130) -> 0.000147346 | D125: =IF('DF raw data'!P130="","",'DF raw data'!P130) -> -1.62644e-05 | F125: -2.177403928e-05 | G125: 0.0001481121992 | H125: -1.634897488e-05 | J125: -0.0005411920264 | K125: -0.00885631886 | L125: 0.004641688418 | M125: 0.07512717061 | N125: 0.0002372844916
A126: =IF('DF raw data'!M131="","",'DF raw data'!M131) -> -268 | B126: =IF('DF raw data'!N131="","",'DF raw data'!N131) -> -1.17922e-05 | C126: =IF('DF raw data'!O131="","",'DF raw data'!O131) -> 0.000152579 | D126: =IF('DF raw data'!P131="","",'DF raw data'!P131) -> -1.514e-05 | F126: -1.185351944e-05 | G126: 0.0001533724108 | H126: -1.5218728e-05 | J126: -0.0005471187862 | K126: -0.009129878253 | L126: 0.004718374623 | M126: 0.07748635792 | N126: 0.0002485656907
A127: =IF('DF raw data'!M132="","",'DF raw data'!M132) -> -267.5 | B127: =IF('DF raw data'!N132="","",'DF raw data'!N132) -> 3.17696e-07 | C127: =IF('DF raw data'!O132="","",'DF raw data'!O132) -> 0.000151489 | D127: =IF('DF raw data'!P132="","",'DF raw data'!P132) -> -1.51863e-05 | F127: 3.193480192e-07 | G127: 0.0001522767428 | H127: -1.526526876e-05 | J127: -0.0005469591122 | K127: -0.009403357809 | L127: 0.004794512995 | M127: 0.07988361442 | N127: 0.0002602089502
A128: =IF('DF raw data'!M133="","",'DF raw data'!M133) -> -267 | B128: =IF('DF raw data'!N133="","",'DF raw data'!N133) -> 1.53427e-06 | C128: =IF('DF raw data'!O133="","",'DF raw data'!O133) -> 0.000151212 | D128: =IF('DF raw data'!P133="","",'DF raw data'!P133) -> -1.38373e-05 | F128: =(1-$G$1*($B$49-$G$2))*B128 -> 1.542248204e-06 | G128: 0.0001519983024 | H128: -1.390925396e-05 | J128: =F128*$G$3+J127 -> -0.0005461879881 | K128: =J128*$G$3+K127 -> -0.009676451803 | L128: =G128*$G$3+L127 -> 0.004870512146 | M128: =L128*$G$3+M127 -> 0.08231887049 | N128: =(J128^2+L128^2)*$G$3+N127 -> 0.0002722190552
A129: =IF('DF raw data'!M134="","",'DF raw data'!M134) -> -266.5 | B129: =IF('DF raw data'!N134="","",'DF raw data'!N134) -> -1.64041e-05 | C129: =IF('DF raw data'!O134="","",'DF raw data'!O134) -> 0.000145481 | D129: =IF('DF raw data'!P134="","",'DF raw data'!P134) -> -2.0199e-05 | F129: -1.648940132e-05 | G129: 0.0001462375012 | H129: -2.03040348e-05 | J129: -0.0005544326887 | K129: -0.009953668148 | L129: 0.004943630896 | M129: 0.08479068594 | N129: 0.0002845924962
A130: =IF('DF raw data'!M135="","",'DF raw data'!M135) -> -266 | B130: =IF('DF raw data'!N135="","",'DF raw data'!N135) -> -1.29461e-05 | C130: =IF('DF raw data'!O135="","",'DF raw data'!O135) -> 0.000147503 | D130: =IF('DF raw data'!P135="","",'DF raw data'!P135) -> -1.42362e-05 | F130: -1.301341972e-05 | G130: 0.0001482700156 | H130: -1.431022824e-05 | J130: -0.0005609393986 | K130: -0.01023413785 | L130: 0.005017765904 | M130: 0.08729956889 | N130: 0.00029733881
A131: =IF('DF raw data'!M136="","",'DF raw data'!M136) -> -265.5 | B131: =IF('DF raw data'!N136="","",'DF raw data'!N136) -> -1.29999e-05 | C131: =IF('DF raw data'!O136="","",'DF raw data'!O136) -> 0.000149412 | D131: =IF('DF raw data'!P136="","",'DF raw data'!P136) -> -3.23497e-05 | F131: -1.306749948e-05 | G131: 0.0001501889424 | H131: -3.251791844e-05 | J131: -0.0005674731483 | K131: -0.01051787442 | L131: 0.005092860375 | M131: 0.08984599908 | N131: 0.0003104684363
A132: =IF('DF raw data'!M137="","",'DF raw data'!M137) -> -265 | B132: =IF('DF raw data'!N137="","",'DF raw data'!N137) -> -8.7077e-06 | C132: =IF('DF raw data'!O137="","",'DF raw data'!O137) -> 0.000161527 | D132: =IF('DF raw data'!P137="","",'DF raw data'!P137) -> -2.91647e-05 | F132: -8.75298004e-06 | G132: 0.0001623669404 | H132: -2.931635644e-05 | J132: -0.0005718496383 | K132: -0.01080379924 | L132: 0.005174043846 | M132: 0.092433021 | N132: 0.0003240173072
A133: =IF('DF raw data'!M138="","",'DF raw data'!M138) -> -264.5 | B133: =IF('DF raw data'!N138="","",'DF raw data'!N138) -> -1.41019e-05 | C133: =IF('DF raw data'!O138="","",'DF raw data'!O138) -> 0.000153005 | D133: =IF('DF raw data'!P138="","",'DF raw data'!P138) -> -1.3001e-05 | F133: -1.417522988e-05 | G133: 0.000153800626 | H133: -1.30686052e-05 | J133: -0.0005789372533 | K133: -0.01109326787 | L133: 0.005250944159 | M133: 0.09505849308 | N133: 0.0003379710986
A134: =IF('DF raw data'!M139="","",'DF raw data'!M139) -> -264 | B134: =IF('DF raw data'!N139="","",'DF raw data'!N139) -> -2.42826e-05 | C134: =IF('DF raw data'!O139="","",'DF raw data'!O139) -> 0.000138677 | D134: =IF('DF raw data'!P139="","",'DF raw data'!P139) -> -2.16153e-05 | F134: -2.440886952e-05 | G134: 0.0001393981204 | H134: -2.172769956e-05 | J134: -0.000591141688 | K134: -0.01138883871 | L134: 0.005320643219 | M134: 0.09771881469 | N134: 0.000352300445
A135: =IF('DF raw data'!M140="","",'DF raw data'!M140) -> -263.5 | B135: =IF('DF raw data'!N140="","",'DF raw data'!N140) -> -1.98606e-05 | C135: =IF('DF raw data'!O140="","",'DF raw data'!O140) -> 0.000147632 | D135: =IF('DF raw data'!P140="","",'DF raw data'!P140) -> -2.62643e-05 | F135: -1.996387512e-05 | G135: 0.0001483996864 | H135: -2.640087436e-05 | J135: -0.0006011236256 | K135: -0.01168940052 | L135: 0.005394843062 | M135: 0.1004162362 | N135: 0.0003670332856
A136: =IF('DF raw data'!M141="","",'DF raw data'!M141) -> -263 | B136: =IF('DF raw data'!N141="","",'DF raw data'!N141) -> -1.68443e-05 | C136: =IF('DF raw data'!O141="","",'DF raw data'!O141) -> 0.000159296 | D136: =IF('DF raw data'!P141="","",'DF raw data'!P141) -> -3.07014e-05 | F136: -1.693189036e-05 | G136: 0.0001601243392 | H136: -3.086104728e-05 | J136: -0.0006095895708 | K136: -0.01199419531 | L136: 0.005474905232 | M136: 0.1031536888 | N136: 0.000382206379
A137: =IF('DF raw data'!M142="","",'DF raw data'!M142) -> -262.5 | B137: =IF('DF raw data'!N142="","",'DF raw data'!N142) -> -1.55672e-05 | C137: =IF('DF raw data'!O142="","",'DF raw data'!O142) -> 0.000154757 | D137: =IF('DF raw data'!P142="","",'DF raw data'!P142) -> -2.57815e-05 | F137: -1.564814944e-05 | G137: 0.0001555617364 | H137: -2.59155638e-05 | J137: -0.0006174136455 | K137: -0.01230290213 | L137: 0.0055526861 | M137: 0.1059300319 | N137: 0.0003978131403
A138: =IF('DF raw data'!M143="","",'DF raw data'!M143) -> -262 | B138: =IF('DF raw data'!N143="","",'DF raw data'!N143) -> -1.30741e-05 | C138: =IF('DF raw data'!O143="","",'DF raw data'!O143) -> 0.000145196 | D138: =IF('DF raw data'!P143="","",'DF raw data'!P143) -> -1.50305e-05 | F138: -1.314208532e-05 | G138: 0.0001459510192 | H138: -1.51086586e-05 | J138: -0.0006239846882 | K138: -0.01261489448 | L138: 0.005625661609 | M138: 0.1087428627 | N138: 0.000413831853
A139: =IF('DF raw data'!M144="","",'DF raw data'!M144) -> -261.5 | B139: =IF('DF raw data'!N144="","",'DF raw data'!N144) -> -2.3099e-06 | C139: =IF('DF raw data'!O144="","",'DF raw data'!O144) -> 0.000145208 | D139: =IF('DF raw data'!P144="","",'DF raw data'!P144) -> -1.4753e-05 | F139: -2.32191148e-06 | G139: 0.0001459630816 | H139: -1.48297156e-05 | J139: -0.0006251456439 | K139: -0.0129274673 | L139: 0.00569864315 | M139: 0.1115921843 | N139: 0.0004302645234
A140: =IF('DF raw data'!M145="","",'DF raw data'!M145) -> -261 | B140: =IF('DF raw data'!N145="","",'DF raw data'!N145) -> -7.76057e-06 | C140: =IF('DF raw data'!O145="","",'DF raw data'!O145) -> 0.000144666 | D140: =IF('DF raw data'!P145="","",'DF raw data'!P145) -> -7.55784e-06 | F140: -7.800924964e-06 | G140: 0.0001454182632 | H140: -7.597140768e-06 | J140: -0.0006290461064 | K140: -0.01324199035 | L140: 0.005771352282 | M140: 0.1144778604 | N140: 0.0004471166265
A141: =IF('DF raw data'!M146="","",'DF raw data'!M146) -> -260.5 | B141: =IF('DF raw data'!N146="","",'DF raw data'!N146) -> -1.48072e-05 | C141: =IF('DF raw data'!O146="","",'DF raw data'!O146) -> 0.000136698 | D141: =IF('DF raw data'!P146="","",'DF raw data'!P146) -> -1.20111e-05 | F141: -1.488419744e-05 | G141: 0.0001374088296 | H141: -1.207355772e-05 | J141: -0.0006364882051 | K141: -0.01356023445 | L141: 0.005840056697 | M141: 0.1173978888 | N141: 0.0004643723162
A142: =IF('DF raw data'!M147="","",'DF raw data'!M147) -> -260 | B142: =IF('DF raw data'!N147="","",'DF raw data'!N147) -> -1.31996e-05 | C142: =IF('DF raw data'!O147="","",'DF raw data'!O147) -> 0.000131235 | D142: =IF('DF raw data'!P147="","",'DF raw data'!P147) -> -1.90481e-05 | F142: -1.326823792e-05 | G142: 0.000131917422 | H142: -1.914715012e-05 | J142: -0.0006431223241 | K142: -0.01388179562 | L142: 0.005906015408 | M142: 0.1203508965 | N142: 0.0004820196284
A143: =IF('DF raw data'!M148="","",'DF raw data'!M148) -> -259.5 | B143: =IF('DF raw data'!N148="","",'DF raw data'!N148) -> -1.51841e-05 | C143: =IF('DF raw data'!O148="","",'DF raw data'!O148) -> 0.000138144 | D143: =IF('DF raw data'!P148="","",'DF raw data'!P148) -> -2.36971e-05 | F143: -1.526305732e-05 | G143: 0.0001388623488 | H143: -2.382032492e-05 | J143: -0.0006507538527 | K143: -0.01420717254 | L143: 0.005975446582 | M143: 0.1233386197 | N143: 0.0005000843496
A144: =IF('DF raw data'!M149="","",'DF raw data'!M149) -> -259 | B144: =IF('DF raw data'!N149="","",'DF raw data'!N149) -> -1.49963e-05 | C144: =IF('DF raw data'!O149="","",'DF raw data'!O149) -> 0.000145006 | D144: =IF('DF raw data'!P149="","",'DF raw data'!P149) -> -1.48686e-05 | F144: -1.507428076e-05 | G144: 0.0001457600312 | H144: -1.494591672e-05 | J144: -0.0006582909931 | K144: -0.01453631804 | L144: 0.006048326598 | M144: 0.126362783 | N144: 0.0005185921504
